Workbook

Sheet Feuil1
A1: الجمهورية الجزائرية الديمقراطية الشعبية
A2: =Feuil2!J2 -> وزارة التربية الوطنية
A3: =Feuil2!H2 -> مديرية التربية
A4: =Feuil2!G2 -> مديرية التربية
A5: كشف الراتب لشهر:
A6: =VLOOKUP(A10,Feuil4!J2:AM200,30,FALSE) -> 2014 | D6: =VLOOKUP(A10,Feuil4!J2:AL200,29,FALSE) -> فيفري
A7: =VLOOKUP(A10,Feuil4!B2:H200,7,FALSE) -> أعزب | B7: الحالة العائلية | E7: =VLOOKUP(A10,Feuil4!B2:C200,2,FALSE) -> شريف | F7: الاســـــــــــــــــم
A8: =VLOOKUP(A10,Feuil4!B2:I200,8,FALSE) -> 12 | B8: الدرجـــــــــة | E8: =VLOOKUP(A10,Feuil4!B2:D200,3,FALSE) -> عرابة | F8: اللقــــــــــــــــــب
E9: =VLOOKUP(A10,Feuil4!B2:E200,4,FALSE) -> 13 | F9: الصـــــــــــــــنف
A10: =دخـــــــــــول!D19 -> 1020 | B10: رقم الحساب | E10: =VLOOKUP(A10,Feuil4!B2:F200,5,FALSE) -> طب | F10: الإطــــــــــــــــــار
E11: =VLOOKUP(A10,Feuil4!B2:G200,6,FALSE) -> 14 | F11: القســــــــــــــــــم
A13: المبالغ | B13: الاقتطاعات | E13: المبالغ | F13: المنح | H13: /
A14: =VLOOKUP(A10,Feuil4!J2:AC200,20,FALSE) -> 1000 | B14: =IF(A14<>0,Feuil2!E2,H13) -> yynynynyn | E14: =VLOOKUP(A10,Feuil4!J2:K200,2,FALSE) -> 12000 | F14: =IF(E14<>0,Feuil2!B2,H13) -> ujujuj | H14: /
A15: =VLOOKUP(A10,Feuil4!J2:AD200,21,FALSE) -> 2000 | B15: =IF(A15<>0,Feuil2!E3,H14) -> nununu | E15: =VLOOKUP(A10,Feuil4!J2:L200,3,FALSE) -> 20000 | F15: =IF(E15<>0,Feuil2!B3,H14) -> uj-uju-j | H15: /
A16: =VLOOKUP(A10,Feuil4!J2:AE200,22,FALSE) -> 0 | B16: =IF(A16<>0,Feuil2!E4,H15) -> / | E16: =VLOOKUP(A10,Feuil4!J2:M11,4,FALSE) -> 25000 | F16: =IF(E16<>0,Feuil2!B4,H15) -> -jrtgth | H16: /
A17: =VLOOKUP(A10,Feuil4!J2:AF200,23,FALSE) -> 0 | B17: =IF(A17<>0,Feuil2!E5,H16) -> / | E17: =VLOOKUP(A10,Feuil4!J2:N200,5,FALSE) -> 0 | F17: =IF(E17<>0,Feuil2!B5,H16) -> / | H17: /
A18: =VLOOKUP(A10,Feuil4!J2:AG200,24,FALSE) -> 0 | B18: =IF(A18<>0,Feuil2!E6,H17) -> / | E18: =VLOOKUP(A10,Feuil4!J2:O200,6,FALSE) -> 0 | F18: =IF(E18<>0,Feuil2!B6,H17) -> / | H18: /
A19: =VLOOKUP(A10,Feuil4!J2:AH200,25,FALSE) -> 0 | B19: =IF(A19<>0,Feuil2!E7,H18) -> / | E19: =VLOOKUP(A10,Feuil4!J2:P200,7,FALSE) -> 0 | F19: =IF(E19<>0,Feuil2!B7,H18) -> / | H19: /
A20: =VLOOKUP(A10,Feuil4!J2:AI200,26,FALSE) -> 0 | B20: =IF(A20<>0,Feuil2!E8,H19) -> / | E20: =VLOOKUP(A10,Feuil4!J2:Q200,8,FALSE) -> 0 | F20: =IF(E20<>0,Feuil2!B8,H19) -> / | H20: /
A21: =VLOOKUP(A10,Feuil4!J2:AJ200,27,FALSE) -> 0 | B21: =IF(A21<>0,Feuil2!E9,H20) -> / | E21: =VLOOKUP(A10,Feuil4!J2:R202,9,FALSE) -> 0 | F21: =IF(E21<>0,Feuil2!B9,H20) -> / | H21: /
E22: =VLOOKUP(A10,Feuil4!J2:S200,10,FALSE) -> 0 | F22: =IF(E22<>0,Feuil2!B10,H21) -> / | H22: /
E23: =VLOOKUP(A10,Feuil4!J2:T200,11,FALSE) -> 0 | F23: =IF(E23<>0,Feuil2!B11,H22) -> / | H23: /
E24: =VLOOKUP(A10,Feuil4!J2:U200,12,FALSE) -> 30000 | F24: =IF(E24<>0,Feuil2!B12,H23) -> 0 | H24: /
E25: =VLOOKUP(A10,Feuil4!J2:V200,13,FALSE) -> 40000 | F25: =IF(E25<>0,Feuil2!B13,H24) -> 0 | H25: /
E26: =VLOOKUP(A10,Feuil4!J2:W200,14,FALSE) -> 30000 | F26: =IF(E26<>0,Feuil2!B14,H25) -> 0 | H26: /
E27: =VLOOKUP(A10,Feuil4!J2:X200,15,FALSE) -> 30000 | F27: =IF(E27<>0,Feuil2!B15,H26) -> 0 | H27: /
E28: =VLOOKUP(A10,Feuil4!J2:Y200,16,FALSE) -> 0 | F28: =IF(E28<>0,Feuil2!B16,H27) -> / | H28: /
E29: =VLOOKUP(A10,Feuil4!J2:Z200,17,FALSE) -> 0 | F29: =IF(E29<>0,Feuil2!B17,H28) -> / | H29: /
E30: =VLOOKUP(A10,Feuil4!J2:AA200,18,FALSE) -> 0 | F30: =IF(E30<>0,Feuil2!B18,H29) -> / | H30: /
E31: =VLOOKUP(A10,Feuil4!J2:AB200,19,FALSE) -> 0 | F31: =IF(E31<>0,Feuil2!B19,H30) -> /
A32: =SUM(A14:A31) -> 3000 | B32: مجمل الاقتطاعات | E32: =SUM(E14:E31) -> 187000 | F32: المجموع الخام
A34: =E32-A32 -> 184000 | E34: الراتب الشهري الصافي
F36: المقتصد
F37: =Feuil2!I2 -> عرابة شريف
B38: =VLOOKUP(A10,Feuil4!J2:AN200,31,FALSE) -> 2013-01-11

Sheet Feuil2
A1: الرقم | B1: المنحة | D1: الرقم | E1: الاقتطاع | G1: المؤسسة | H1: الجهة الوصية | I1: المقتصد | J1: الوزارة
A2: 1 | B2: ujujuj | D2: 1 | E2: yynynynyn | G2: مديرية التربية | H2: مديرية التربية | I2: عرابة شريف | J2: وزارة التربية الوطنية
A3: 2 | B3: uj-uju-j | D3: 2 | E3: nununu
A4: 3 | B4: -jrtgth | D4: 3
A5: 4
G12: =MAX(A2:A19) -> 4 | H12: =MAX(D2:D11) -> 3
E13: لا تتجاوز الحد الاسود
A33: =MAX(A2:A17) -> 4 | D33: =MAX(D2:D32) -> 3

Sheet Feuil3
A1: الرقم | B1: الاسم | C1: اللقب | D1: الصنف | E1: الاطار | F1: القسم | G1: الحالة العائلية | H1: الدرجة | I1: رقم الحساب
A2: 1 | B2: شريف | C2: عرابة | D2: 13 | E2: طب | F2: 14 | G2: أعزب | H2: 12 | I2: 1020
A3: 2 | B3: خالد | C3: اقتلقل | D3: 6 | E3: لاىتات | F3: 2 | G3: متزوج | H3: 12 | I3: 1000
A4: 3 | B4: تجريب | C4: البرنامج | D4: 12 | E4: استاذ | F4: 12 | G4: متزوج | H4: 2 | I4: 1230
A5: 4
K12: =MAX(Tableau1[الرقم]) -> 4

Sheet Feuil4
A1: الرقم | B1: رقم الحساب | C1: =Feuil3!B1 -> الاسم | D1: =Feuil3!C1 -> اللقب | E1: =Feuil3!D1 -> الصنف | F1: =Feuil3!E1 -> الاطار | G1: =Feuil3!F1 -> القسم | H1: =Feuil3!G1 -> الحالة العائلية | I1: =Feuil3!H1 -> الدرجة | J1: =Feuil3!I1 -> رقم الحساب | K1: 20100 | L1: 1500 | M1: 2000 | N1: =Feuil2!B5 -> 0 | O1: =Feuil2!B6 -> 0 | P1: =Feuil2!B7 -> 0 | Q1: =Feuil2!B8 -> 0 | R1: =Feuil2!B9 -> 0 | S1: =Feuil2!B10 -> 0 | T1: =Feuil2!B11 -> 0 | U1: =Feuil2!B12 -> 0 | V1: =Feuil2!B13 -> 0 | W1: =Feuil2!B14 -> 0 | X1: =Feuil2!B15 -> 0 | Y1: =Feuil2!B16 -> 0 | Z1: =Feuil2!B17 -> 0 | AA1: =Feuil2!B18 -> 0 | AB1: =Feuil2!B19 -> 0 | AC1: 1500 | AD1: 350 | AE1: =Feuil2!E4 -> 0 | AF1: =Feuil2!E5 -> 0 | AG1: =Feuil2!E6 -> 0 | AH1: =Feuil2!E7 -> 0 | AI1: =Feuil2!E8 -> 0 | AJ1: =Feuil2!E9 -> 0 | AK1: =Feuil2!E10 -> 0 | AL1: اكتوبر | AM1: 2013 | AN1: 27/10/2013 | AO1: رقم الموظف المدخل | AP1: val_resul | AQ1: val_cher | AR1: Max
A2: =Feuil3!A2 -> 1 | B2: =Tableau1[[#This Row],[رقم الحساب]] -> 1020 | C2: =Feuil3!B2 -> شريف | D2: =Feuil3!C2 -> عرابة | E2: =Feuil3!D2 -> 13 | F2: =Feuil3!E2 -> طب | G2: =Feuil3!F2 -> 14 | H2: =Feuil3!G2 -> أعزب | I2: =Feuil3!H2 -> 12 | J2: =Feuil3!I2 -> 1020 | K2: 12000 | L2: 20000 | M2: 25000 | U2: 30000 | V2: 40000 | W2: 30000 | X2: 30000 | AC2: 1000 | AD2: 2000 | AL2: فيفري | AM2: 2014 | AN2: 2013-01-11 | AO2: =A2 -> 1 | AP2: =VLOOKUP(AQ2,Feuil4!J2:AO200,32,FALSE) -> 4 | AR2: =MAX(A2:A210) -> 4 | BK2: الاسم | BL2: رقم الموظف | BM2: اللقب | BN2: الاسم واللقب
A3: =Feuil3!A3 -> 2 | B3: =Tableau1[[#This Row],[رقم الحساب]] -> 1000 | C3: =Feuil3!B3 -> خالد | D3: =Feuil3!C3 -> اقتلقل | E3: =Feuil3!D3 -> 6 | F3: =Feuil3!E3 -> لاىتات | G3: =Feuil3!F3 -> 2 | H3: =Feuil3!G3 -> متزوج | I3: =Feuil3!H3 -> 12 | J3: =Feuil3!I3 -> 1000 | K3: 1 | L3: 2 | M3: 3 | N3: 4 | O3: 5 | P3: 6 | Q3: 7 | R3: 8 | S3: 9 | T3: 10 | U3: 11 | V3: 12 | W3: 13 | X3: 14 | AC3: 15 | AD3: 16 | AE3: 17 | AF3: 18 | AL3: مارس | AM3: 2016 | AO3: =A3 -> 2 | BK3: =VLOOKUP(BL3,Feuil4!A2:C200,3,FALSE) -> شريف | BL3: 1 | BM3: =VLOOKUP(BL3,Feuil4!A2:D200,4,FALSE) -> عرابة | BN3: =Feuil4!BM3&" "&Feuil4!BK3 -> عرابة شريف
A4: 3 | B4: =Tableau1[[#This Row],[رقم الحساب]] -> 1230 | C4: =Feuil3!B4 -> تجريب | D4: =Feuil3!C4 -> البرنامج | E4: =Feuil3!D4 -> 12 | F4: =Feuil3!E4 -> استاذ | G4: =Feuil3!F4 -> 12 | H4: =Feuil3!G4 -> متزوج | I4: =Feuil3!H4 -> 2 | J4: =Feuil3!I4 -> 1230 | K4: 12000 | L4: 14000 | M4: 16000 | N4: 18000 | O4: 20000 | P4: 22000 | Q4: 24000 | R4: 26000 | S4: 28000 | T4: 30000 | U4: 32000 | V4: 34000 | W4: 36000 | X4: 38000 | AC4: 40000 | AD4: 42000 | AE4: 44000 | AF4: 46000 | AG4: 48000 | AH4: 50000 | AI4: 52000 | AJ4: 54000 | AK4: 56000 | AL4: جويلية | AM4: 2017 | AN4: 14/11/2013 | AO4: 3 | BH4: 2 | BI4: 1 | BJ4: 4
A5: =Feuil3!A5 -> 4 | B5: =Tableau1[[#This Row],[رقم الحساب]] -> 0 | C5: =Feuil3!B5 -> 0 | D5: =Feuil3!C5 -> 0 | E5: =Feuil3!D5 -> 0 | F5: =Feuil3!E5 -> 0 | G5: =Feuil3!F5 -> 0 | H5: =Feuil3!G5 -> 0 | I5: =Feuil3!H5 -> 0 | J5: =Feuil3!I5 -> 0 | AL5: جانفي | AM5: Label30 | AN5: 2013-11-12 | AO5: 4
A6: =Feuil3!A6 -> 0 | B6: =Tableau1[[#This Row],[رقم الحساب]] ->  | C6: =Feuil3!B6 -> 0 | D6: =Feuil3!C6 -> 0 | E6: =Feuil3!D6 -> 0 | F6: =Feuil3!E6 -> 0 | G6: =Feuil3!F6 -> 0 | H6: =Feuil3!G6 -> 0 | I6: =Feuil3!H6 -> 0 | J6: =Feuil3!I6 -> 0 | K6: 1 | L6: 2 | M6: 3 | O6: 5 | P6: 6 | Q6: 7 | R6: 8 | S6: 9 | T6: 10 | U6: 11 | V6: 12 | W6: 13 | X6: 14 | AM6: Label30 | AN6: 2013-01-11 | AO6: 0
A7: =Feuil3!A7 -> 0 | B7: =Tableau1[[#This Row],[رقم الحساب]] ->  | C7: =Feuil3!B7 -> 0 | D7: =Feuil3!C7 -> 0 | E7: =Feuil3!D7 -> 0 | F7: =Feuil3!E7 -> 0 | G7: =Feuil3!F7 -> 0 | H7: =Feuil3!G7 -> 0 | I7: =Feuil3!H7 -> 0 | J7: =Feuil3!I7 -> 0 | AM7: Label30 | AN7: 2013-05-11 | AO7: 0
A8: =Feuil3!A8 -> 0 | B8: =Tableau1[[#This Row],[رقم الحساب]] ->  | C8: =Feuil3!B8 -> 0 | D8: =Feuil3!C8 -> 0 | E8: =Feuil3!D8 -> 0 | F8: =Feuil3!E8 -> 0 | G8: =Feuil3!F8 -> 0 | H8: =Feuil3!G8 -> 0 | I8: =Feuil3!H8 -> 0 | J8: =Feuil3!I8 -> 0 | AM8: Label30 | AN8: 2013-05-11 | AO8: 0
A9: =Feuil3!A9 -> 0 | B9: =Tableau1[[#This Row],[رقم الحساب]] ->  | C9: =Feuil3!B9 -> 0 | D9: =Feuil3!C9 -> 0 | E9: =Feuil3!D9 -> 0 | F9: =Feuil3!E9 -> 0 | G9: =Feuil3!F9 -> 0 | H9: =Feuil3!G9 -> 0 | I9: =Feuil3!H9 -> 0 | J9: =Feuil3!I9 -> 0 | AO9: 0
A10: =Feuil3!A10 -> 0 | B10: =Tableau1[[#This Row],[رقم الحساب]] ->  | C10: =Feuil3!B10 -> 0 | D10: =Feuil3!C10 -> 0 | E10: =Feuil3!D10 -> 0 | F10: =Feuil3!E10 -> 0 | G10: =Feuil3!F10 -> 0 | H10: =Feuil3!G10 -> 0 | I10: =Feuil3!H10 -> 0 | J10: =Feuil3!I10 -> 0 | AO10: 0
A11: =Feuil3!A11 -> 0 | B11: =Tableau1[[#This Row],[رقم الحساب]] ->  | C11: =Feuil3!B11 -> 0 | D11: =Feuil3!C11 -> 0 | E11: =Feuil3!D11 -> 0 | F11: =Feuil3!E11 -> 0 | G11: =Feuil3!F11 -> 0 | H11: =Feuil3!G11 -> 0 | I11: =Feuil3!H11 -> 0 | J11: =Feuil3!I11 -> 0 | AO11: 0
A12: =Feuil3!A12 -> 0 | B12: =Tableau1[[#This Row],[رقم الحساب]] ->  | C12: =Feuil3!B12 -> 0 | D12: =Feuil3!C12 -> 0 | E12: =Feuil3!D12 -> 0 | F12: =Feuil3!E12 -> 0 | G12: =Feuil3!F12 -> 0 | H12: =Feuil3!G12 -> 0 | I12: =Feuil3!H12 -> 0 | J12: =Feuil3!I12 -> 0 | AO12: 0
A13: =Feuil3!A13 -> 0 | B13: =Tableau1[[#This Row],[رقم الحساب]] ->  | C13: =Feuil3!B13 -> 0 | D13: =Feuil3!C13 -> 0 | E13: =Feuil3!D13 -> 0 | F13: =Feuil3!E13 -> 0 | G13: =Feuil3!F13 -> 0 | H13: =Feuil3!G13 -> 0 | I13: =Feuil3!H13 -> 0 | J13: =Feuil3!I13 -> 0 | AO13: 0
A14: =Feuil3!A14 -> 0 | B14: =Tableau1[[#This Row],[رقم الحساب]] ->  | C14: =Feuil3!B14 -> 0 | D14: =Feuil3!C14 -> 0 | E14: =Feuil3!D14 -> 0 | F14: =Feuil3!E14 -> 0 | G14: =Feuil3!F14 -> 0 | H14: =Feuil3!G14 -> 0 | I14: =Feuil3!H14 -> 0 | J14: =Feuil3!I14 -> 0 | AO14: 0
A15: =Feuil3!A15 -> 0 | B15: =Tableau1[[#This Row],[رقم الحساب]] ->  | C15: =Feuil3!B15 -> 0 | D15: =Feuil3!C15 -> 0 | E15: =Feuil3!D15 -> 0 | F15: =Feuil3!E15 -> 0 | G15: =Feuil3!F15 -> 0 | H15: =Feuil3!G15 -> 0 | I15: =Feuil3!H15 -> 0 | J15: =Feuil3!I15 -> 0 | AO15: 0
A16: =Feuil3!A16 -> 0 | B16: =Tableau1[[#This Row],[رقم الحساب]] ->  | C16: =Feuil3!B16 -> 0 | D16: =Feuil3!C16 -> 0 | E16: =Feuil3!D16 -> 0 | F16: =Feuil3!E16 -> 0 | G16: =Feuil3!F16 -> 0 | H16: =Feuil3!G16 -> 0 | I16: =Feuil3!H16 -> 0 | J16: =Feuil3!I16 -> 0 | AO16: 0
A17: =Feuil3!A17 -> 0 | B17: =Tableau1[[#This Row],[رقم الحساب]] ->  | C17: =Feuil3!B17 -> 0 | D17: =Feuil3!C17 -> 0 | E17: =Feuil3!D17 -> 0 | F17: =Feuil3!E17 -> 0 | G17: =Feuil3!F17 -> 0 | H17: =Feuil3!G17 -> 0 | I17: =Feuil3!H17 -> 0 | J17: =Feuil3!I17 -> 0 | AO17: 0
A18: =Feuil3!A18 -> 0 | B18: =Tableau1[[#This Row],[رقم الحساب]] ->  | C18: =Feuil3!B18 -> 0 | D18: =Feuil3!C18 -> 0 | E18: =Feuil3!D18 -> 0 | F18: =Feuil3!E18 -> 0 | G18: =Feuil3!F18 -> 0 | H18: =Feuil3!G18 -> 0 | I18: =Feuil3!H18 -> 0 | J18: =Feuil3!I18 -> 0 | AO18: 0
A19: =Feuil3!A19 -> 0 | B19: =Tableau1[[#This Row],[رقم الحساب]] ->  | C19: =Feuil3!B19 -> 0 | D19: =Feuil3!C19 -> 0 | E19: =Feuil3!D19 -> 0 | F19: =Feuil3!E19 -> 0 | G19: =Feuil3!F19 -> 0 | H19: =Feuil3!G19 -> 0 | I19: =Feuil3!H19 -> 0 | J19: =Feuil3!I19 -> 0 | AO19: 0
A20: =Feuil3!A20 -> 0 | B20: =Tableau1[[#This Row],[رقم الحساب]] ->  | C20: =Feuil3!B20 -> 0 | D20: =Feuil3!C20 -> 0 | E20: =Feuil3!D20 -> 0 | F20: =Feuil3!E20 -> 0 | G20: =Feuil3!F20 -> 0 | H20: =Feuil3!G20 -> 0 | I20: =Feuil3!H20 -> 0 | J20: =Feuil3!I20 -> 0 | AO20: 0
A21: =Feuil3!A21 -> 0 | B21: =Tableau1[[#This Row],[رقم الحساب]] ->  | C21: =Feuil3!B21 -> 0 | D21: =Feuil3!C21 -> 0 | E21: =Feuil3!D21 -> 0 | F21: =Feuil3!E21 -> 0 | G21: =Feuil3!F21 -> 0 | H21: =Feuil3!G21 -> 0 | I21: =Feuil3!H21 -> 0 | J21: =Feuil3!I21 -> 0 | AO21: 0
A22: =Feuil3!A22 -> 0 | B22: =Tableau1[[#This Row],[رقم الحساب]] ->  | C22: =Feuil3!B22 -> 0 | D22: =Feuil3!C22 -> 0 | E22: =Feuil3!D22 -> 0 | F22: =Feuil3!E22 -> 0 | G22: =Feuil3!F22 -> 0 | H22: =Feuil3!G22 -> 0 | I22: =Feuil3!H22 -> 0 | J22: =Feuil3!I22 -> 0 | AO22: 0
A23: =Feuil3!A23 -> 0 | B23: =Tableau1[[#This Row],[رقم الحساب]] ->  | C23: =Feuil3!B23 -> 0 | D23: =Feuil3!C23 -> 0 | E23: =Feuil3!D23 -> 0 | F23: =Feuil3!E23 -> 0 | G23: =Feuil3!F23 -> 0 | H23: =Feuil3!G23 -> 0 | I23: =Feuil3!H23 -> 0 | J23: =Feuil3!I23 -> 0 | AO23: 0
A24: =Feuil3!A24 -> 0 | B24: =Tableau1[[#This Row],[رقم الحساب]] ->  | C24: =Feuil3!B24 -> 0 | D24: =Feuil3!C24 -> 0 | E24: =Feuil3!D24 -> 0 | F24: =Feuil3!E24 -> 0 | G24: =Feuil3!F24 -> 0 | H24: =Feuil3!G24 -> 0 | I24: =Feuil3!H24 -> 0 | J24: =Feuil3!I24 -> 0 | AO24: 0
A25: =Feuil3!A25 -> 0 | B25: =Tableau1[[#This Row],[رقم الحساب]] ->  | C25: =Feuil3!B25 -> 0 | D25: =Feuil3!C25 -> 0 | E25: =Feuil3!D25 -> 0 | F25: =Feuil3!E25 -> 0 | G25: =Feuil3!F25 -> 0 | H25: =Feuil3!G25 -> 0 | I25: =Feuil3!H25 -> 0 | J25: =Feuil3!I25 -> 0 | AO25: 0
A26: =Feuil3!A26 -> 0 | B26: =Tableau1[[#This Row],[رقم الحساب]] ->  | C26: =Feuil3!B26 -> 0 | D26: =Feuil3!C26 -> 0 | E26: =Feuil3!D26 -> 0 | F26: =Feuil3!E26 -> 0 | G26: =Feuil3!F26 -> 0 | H26: =Feuil3!G26 -> 0 | I26: =Feuil3!H26 -> 0 | J26: =Feuil3!I26 -> 0 | AO26: 0
A27: =Feuil3!A27 -> 0 | B27: =Tableau1[[#This Row],[رقم الحساب]] ->  | C27: =Feuil3!B27 -> 0 | D27: =Feuil3!C27 -> 0 | E27: =Feuil3!D27 -> 0 | F27: =Feuil3!E27 -> 0 | G27: =Feuil3!F27 -> 0 | H27: =Feuil3!G27 -> 0 | I27: =Feuil3!H27 -> 0 | J27: =Feuil3!I27 -> 0 | AO27: 0
A28: =Feuil3!A28 -> 0 | B28: =Tableau1[[#This Row],[رقم الحساب]] ->  | C28: =Feuil3!B28 -> 0 | D28: =Feuil3!C28 -> 0 | E28: =Feuil3!D28 -> 0 | F28: =Feuil3!E28 -> 0 | G28: =Feuil3!F28 -> 0 | H28: =Feuil3!G28 -> 0 | I28: =Feuil3!H28 -> 0 | J28: =Feuil3!I28 -> 0 | AO28: 0
A29: =Feuil3!A29 -> 0 | B29: =Tableau1[[#This Row],[رقم الحساب]] ->  | C29: =Feuil3!B29 -> 0 | D29: =Feuil3!C29 -> 0 | E29: =Feuil3!D29 -> 0 | F29: =Feuil3!E29 -> 0 | G29: =Feuil3!F29 -> 0 | H29: =Feuil3!G29 -> 0 | I29: =Feuil3!H29 -> 0 | J29: =Feuil3!I29 -> 0 | AO29: 0
A30: =Feuil3!A30 -> 0 | B30: =Tableau1[[#This Row],[رقم الحساب]] ->  | C30: =Feuil3!B30 -> 0 | D30: =Feuil3!C30 -> 0 | E30: =Feuil3!D30 -> 0 | F30: =Feuil3!E30 -> 0 | G30: =Feuil3!F30 -> 0 | H30: =Feuil3!G30 -> 0 | I30: =Feuil3!H30 -> 0 | J30: =Feuil3!I30 -> 0 | AO30: 0
A31: =Feuil3!A31 -> 0 | B31: =Tableau1[[#This Row],[رقم الحساب]] ->  | C31: =Feuil3!B31 -> 0 | D31: =Feuil3!C31 -> 0 | E31: =Feuil3!D31 -> 0 | F31: =Feuil3!E31 -> 0 | G31: =Feuil3!F31 -> 0 | H31: =Feuil3!G31 -> 0 | I31: =Feuil3!H31 -> 0 | J31: =Feuil3!I31 -> 0 | AO31: 0
A32: =Feuil3!A32 -> 0 | B32: =Tableau1[[#This Row],[رقم الحساب]] ->  | C32: =Feuil3!B32 -> 0 | D32: =Feuil3!C32 -> 0 | E32: =Feuil3!D32 -> 0 | F32: =Feuil3!E32 -> 0 | G32: =Feuil3!F32 -> 0 | H32: =Feuil3!G32 -> 0 | I32: =Feuil3!H32 -> 0 | J32: =Feuil3!I32 -> 0 | AO32: 0
A33: =Feuil3!A33 -> 0 | B33: =Tableau1[[#This Row],[رقم الحساب]] ->  | C33: =Feuil3!B33 -> 0 | D33: =Feuil3!C33 -> 0 | E33: =Feuil3!D33 -> 0 | F33: =Feuil3!E33 -> 0 | G33: =Feuil3!F33 -> 0 | H33: =Feuil3!G33 -> 0 | I33: =Feuil3!H33 -> 0 | J33: =Feuil3!I33 -> 0 | AO33: 0
A34: =Feuil3!A34 -> 0 | B34: =Tableau1[[#This Row],[رقم الحساب]] ->  | C34: =Feuil3!B34 -> 0 | D34: =Feuil3!C34 -> 0 | E34: =Feuil3!D34 -> 0 | F34: =Feuil3!E34 -> 0 | G34: =Feuil3!F34 -> 0 | H34: =Feuil3!G34 -> 0 | I34: =Feuil3!H34 -> 0 | J34: =Feuil3!I34 -> 0 | AO34: 0
A35: =Feuil3!A35 -> 0 | B35: =Tableau1[[#This Row],[رقم الحساب]] ->  | C35: =Feuil3!B35 -> 0 | D35: =Feuil3!C35 -> 0 | E35: =Feuil3!D35 -> 0 | F35: =Feuil3!E35 -> 0 | G35: =Feuil3!F35 -> 0 | H35: =Feuil3!G35 -> 0 | I35: =Feuil3!H35 -> 0 | J35: =Feuil3!I35 -> 0 | AO35: 0
A36: =Feuil3!A36 -> 0 | B36: =Tableau1[[#This Row],[رقم الحساب]] ->  | C36: =Feuil3!B36 -> 0 | D36: =Feuil3!C36 -> 0 | E36: =Feuil3!D36 -> 0 | F36: =Feuil3!E36 -> 0 | G36: =Feuil3!F36 -> 0 | H36: =Feuil3!G36 -> 0 | I36: =Feuil3!H36 -> 0 | J36: =Feuil3!I36 -> 0 | AO36: 0
A37: =Feuil3!A37 -> 0 | B37: =Tableau1[[#This Row],[رقم الحساب]] ->  | C37: =Feuil3!B37 -> 0 | D37: =Feuil3!C37 -> 0 | E37: =Feuil3!D37 -> 0 | F37: =Feuil3!E37 -> 0 | G37: =Feuil3!F37 -> 0 | H37: =Feuil3!G37 -> 0 | I37: =Feuil3!H37 -> 0 | J37: =Feuil3!I37 -> 0 | AO37: 0
A38: =Feuil3!A38 -> 0 | B38: =Tableau1[[#This Row],[رقم الحساب]] ->  | C38: =Feuil3!B38 -> 0 | D38: =Feuil3!C38 -> 0 | E38: =Feuil3!D38 -> 0 | F38: =Feuil3!E38 -> 0 | G38: =Feuil3!F38 -> 0 | H38: =Feuil3!G38 -> 0 | I38: =Feuil3!H38 -> 0 | J38: =Feuil3!I38 -> 0 | AO38: 0
A39: =Feuil3!A39 -> 0 | B39: =Tableau1[[#This Row],[رقم الحساب]] ->  | C39: =Feuil3!B39 -> 0 | D39: =Feuil3!C39 -> 0 | E39: =Feuil3!D39 -> 0 | F39: =Feuil3!E39 -> 0 | G39: =Feuil3!F39 -> 0 | H39: =Feuil3!G39 -> 0 | I39: =Feuil3!H39 -> 0 | J39: =Feuil3!I39 -> 0 | AO39: 0
A40: =Feuil3!A40 -> 0 | B40: =Tableau1[[#This Row],[رقم الحساب]] ->  | C40: =Feuil3!B40 -> 0 | D40: =Feuil3!C40 -> 0 | E40: =Feuil3!D40 -> 0 | F40: =Feuil3!E40 -> 0 | G40: =Feuil3!F40 -> 0 | H40: =Feuil3!G40 -> 0 | I40: =Feuil3!H40 -> 0 | J40: =Feuil3!I40 -> 0 | AO40: 0
A41: =Feuil3!A41 -> 0 | B41: =Tableau1[[#This Row],[رقم الحساب]] ->  | C41: =Feuil3!B41 -> 0 | D41: =Feuil3!C41 -> 0 | E41: =Feuil3!D41 -> 0 | F41: =Feuil3!E41 -> 0 | G41: =Feuil3!F41 -> 0 | H41: =Feuil3!G41 -> 0 | I41: =Feuil3!H41 -> 0 | J41: =Feuil3!I41 -> 0 | AO41: 0
A42: =Feuil3!A42 -> 0 | B42: =Tableau1[[#This Row],[رقم الحساب]] ->  | C42: =Feuil3!B42 -> 0 | D42: =Feuil3!C42 -> 0 | E42: =Feuil3!D42 -> 0 | F42: =Feuil3!E42 -> 0 | G42: =Feuil3!F42 -> 0 | H42: =Feuil3!G42 -> 0 | I42: =Feuil3!H42 -> 0 | J42: =Feuil3!I42 -> 0 | AO42: 0
A43: =Feuil3!A43 -> 0 | B43: =Tableau1[[#This Row],[رقم الحساب]] ->  | C43: =Feuil3!B43 -> 0 | D43: =Feuil3!C43 -> 0 | E43: =Feuil3!D43 -> 0 | F43: =Feuil3!E43 -> 0 | G43: =Feuil3!F43 -> 0 | H43: =Feuil3!G43 -> 0 | I43: =Feuil3!H43 -> 0 | J43: =Feuil3!I43 -> 0 | AO43: 0
A44: =Feuil3!A44 -> 0 | B44: =Tableau1[[#This Row],[رقم الحساب]] ->  | C44: =Feuil3!B44 -> 0 | D44: =Feuil3!C44 -> 0 | E44: =Feuil3!D44 -> 0 | F44: =Feuil3!E44 -> 0 | G44: =Feuil3!F44 -> 0 | H44: =Feuil3!G44 -> 0 | I44: =Feuil3!H44 -> 0 | J44: =Feuil3!I44 -> 0 | AO44: 0
A45: =Feuil3!A45 -> 0 | B45: =Tableau1[[#This Row],[رقم الحساب]] ->  | C45: =Feuil3!B45 -> 0 | D45: =Feuil3!C45 -> 0 | E45: =Feuil3!D45 -> 0 | F45: =Feuil3!E45 -> 0 | G45: =Feuil3!F45 -> 0 | H45: =Feuil3!G45 -> 0 | I45: =Feuil3!H45 -> 0 | J45: =Feuil3!I45 -> 0 | AO45: 0
A46: =Feuil3!A46 -> 0 | B46: =Tableau1[[#This Row],[رقم الحساب]] ->  | C46: =Feuil3!B46 -> 0 | D46: =Feuil3!C46 -> 0 | E46: =Feuil3!D46 -> 0 | F46: =Feuil3!E46 -> 0 | G46: =Feuil3!F46 -> 0 | H46: =Feuil3!G46 -> 0 | I46: =Feuil3!H46 -> 0 | J46: =Feuil3!I46 -> 0 | AO46: 0
A47: =Feuil3!A47 -> 0 | B47: =Tableau1[[#This Row],[رقم الحساب]] ->  | C47: =Feuil3!B47 -> 0 | D47: =Feuil3!C47 -> 0 | E47: =Feuil3!D47 -> 0 | F47: =Feuil3!E47 -> 0 | G47: =Feuil3!F47 -> 0 | H47: =Feuil3!G47 -> 0 | I47: =Feuil3!H47 -> 0 | J47: =Feuil3!I47 -> 0 | AO47: 0
A48: =Feuil3!A48 -> 0 | B48: =Tableau1[[#This Row],[رقم الحساب]] ->  | C48: =Feuil3!B48 -> 0 | D48: =Feuil3!C48 -> 0 | E48: =Feuil3!D48 -> 0 | F48: =Feuil3!E48 -> 0 | G48: =Feuil3!F48 -> 0 | H48: =Feuil3!G48 -> 0 | I48: =Feuil3!H48 -> 0 | J48: =Feuil3!I48 -> 0 | AO48: 0
A49: =Feuil3!A49 -> 0 | B49: =Tableau1[[#This Row],[رقم الحساب]] ->  | C49: =Feuil3!B49 -> 0 | D49: =Feuil3!C49 -> 0 | E49: =Feuil3!D49 -> 0 | F49: =Feuil3!E49 -> 0 | G49: =Feuil3!F49 -> 0 | H49: =Feuil3!G49 -> 0 | I49: =Feuil3!H49 -> 0 | J49: =Feuil3!I49 -> 0 | AO49: 0
A50: =Feuil3!A50 -> 0 | B50: =Tableau1[[#This Row],[رقم الحساب]] ->  | C50: =Feuil3!B50 -> 0 | D50: =Feuil3!C50 -> 0 | E50: =Feuil3!D50 -> 0 | F50: =Feuil3!E50 -> 0 | G50: =Feuil3!F50 -> 0 | H50: =Feuil3!G50 -> 0 | I50: =Feuil3!H50 -> 0 | J50: =Feuil3!I50 -> 0 | AO50: 0
A51: =Feuil3!A51 -> 0 | B51: =Tableau1[[#This Row],[رقم الحساب]] ->  | C51: =Feuil3!B51 -> 0 | D51: =Feuil3!C51 -> 0 | E51: =Feuil3!D51 -> 0 | F51: =Feuil3!E51 -> 0 | G51: =Feuil3!F51 -> 0 | H51: =Feuil3!G51 -> 0 | I51: =Feuil3!H51 -> 0 | J51: =Feuil3!I51 -> 0 | AO51: 0
A52: =Feuil3!A52 -> 0 | B52: =Tableau1[[#This Row],[رقم الحساب]] ->  | C52: =Feuil3!B52 -> 0 | D52: =Feuil3!C52 -> 0 | E52: =Feuil3!D52 -> 0 | F52: =Feuil3!E52 -> 0 | G52: =Feuil3!F52 -> 0 | H52: =Feuil3!G52 -> 0 | I52: =Feuil3!H52 -> 0 | J52: =Feuil3!I52 -> 0 | AO52: 0
A53: =Feuil3!A53 -> 0 | B53: =Tableau1[[#This Row],[رقم الحساب]] ->  | C53: =Feuil3!B53 -> 0 | D53: =Feuil3!C53 -> 0 | E53: =Feuil3!D53 -> 0 | F53: =Feuil3!E53 -> 0 | G53: =Feuil3!F53 -> 0 | H53: =Feuil3!G53 -> 0 | I53: =Feuil3!H53 -> 0 | J53: =Feuil3!I53 -> 0 | AO53: 0
A54: =Feuil3!A54 -> 0 | B54: =Tableau1[[#This Row],[رقم الحساب]] ->  | C54: =Feuil3!B54 -> 0 | D54: =Feuil3!C54 -> 0 | E54: =Feuil3!D54 -> 0 | F54: =Feuil3!E54 -> 0 | G54: =Feuil3!F54 -> 0 | H54: =Feuil3!G54 -> 0 | I54: =Feuil3!H54 -> 0 | J54: =Feuil3!I54 -> 0 | AO54: 0
A55: =Feuil3!A55 -> 0 | B55: =Tableau1[[#This Row],[رقم الحساب]] ->  | C55: =Feuil3!B55 -> 0 | D55: =Feuil3!C55 -> 0 | E55: =Feuil3!D55 -> 0 | F55: =Feuil3!E55 -> 0 | G55: =Feuil3!F55 -> 0 | H55: =Feuil3!G55 -> 0 | I55: =Feuil3!H55 -> 0 | J55: =Feuil3!I55 -> 0 | AO55: 0
A56: =Feuil3!A56 -> 0 | B56: =Tableau1[[#This Row],[رقم الحساب]] ->  | C56: =Feuil3!B56 -> 0 | D56: =Feuil3!C56 -> 0 | E56: =Feuil3!D56 -> 0 | F56: =Feuil3!E56 -> 0 | G56: =Feuil3!F56 -> 0 | H56: =Feuil3!G56 -> 0 | I56: =Feuil3!H56 -> 0 | J56: =Feuil3!I56 -> 0 | AO56: 0
A57: =Feuil3!A57 -> 0 | B57: =Tableau1[[#This Row],[رقم الحساب]] ->  | C57: =Feuil3!B57 -> 0 | D57: =Feuil3!C57 -> 0 | E57: =Feuil3!D57 -> 0 | F57: =Feuil3!E57 -> 0 | G57: =Feuil3!F57 -> 0 | H57: =Feuil3!G57 -> 0 | I57: =Feuil3!H57 -> 0 | J57: =Feuil3!I57 -> 0 | AO57: 0
A58: =Feuil3!A58 -> 0 | B58: =Tableau1[[#This Row],[رقم الحساب]] ->  | C58: =Feuil3!B58 -> 0 | D58: =Feuil3!C58 -> 0 | E58: =Feuil3!D58 -> 0 | F58: =Feuil3!E58 -> 0 | G58: =Feuil3!F58 -> 0 | H58: =Feuil3!G58 -> 0 | I58: =Feuil3!H58 -> 0 | J58: =Feuil3!I58 -> 0 | AO58: 0
A59: =Feuil3!A59 -> 0 | B59: =Tableau1[[#This Row],[رقم الحساب]] ->  | C59: =Feuil3!B59 -> 0 | D59: =Feuil3!C59 -> 0 | E59: =Feuil3!D59 -> 0 | F59: =Feuil3!E59 -> 0 | G59: =Feuil3!F59 -> 0 | H59: =Feuil3!G59 -> 0 | I59: =Feuil3!H59 -> 0 | J59: =Feuil3!I59 -> 0 | AO59: 0
A60: =Feuil3!A60 -> 0 | B60: =Tableau1[[#This Row],[رقم الحساب]] ->  | C60: =Feuil3!B60 -> 0 | D60: =Feuil3!C60 -> 0 | E60: =Feuil3!D60 -> 0 | F60: =Feuil3!E60 -> 0 | G60: =Feuil3!F60 -> 0 | H60: =Feuil3!G60 -> 0 | I60: =Feuil3!H60 -> 0 | J60: =Feuil3!I60 -> 0 | AO60: 0
A61: =Feuil3!A61 -> 0 | B61: =Tableau1[[#This Row],[رقم الحساب]] ->  | C61: =Feuil3!B61 -> 0 | D61: =Feuil3!C61 -> 0 | E61: =Feuil3!D61 -> 0 | F61: =Feuil3!E61 -> 0 | G61: =Feuil3!F61 -> 0 | H61: =Feuil3!G61 -> 0 | I61: =Feuil3!H61 -> 0 | J61: =Feuil3!I61 -> 0 | AO61: 0
A62: =Feuil3!A62 -> 0 | B62: =Tableau1[[#This Row],[رقم الحساب]] ->  | C62: =Feuil3!B62 -> 0 | D62: =Feuil3!C62 -> 0 | E62: =Feuil3!D62 -> 0 | F62: =Feuil3!E62 -> 0 | G62: =Feuil3!F62 -> 0 | H62: =Feuil3!G62 -> 0 | I62: =Feuil3!H62 -> 0 | J62: =Feuil3!I62 -> 0 | AO62: 0
A63: =Feuil3!A63 -> 0 | B63: =Tableau1[[#This Row],[رقم الحساب]] ->  | C63: =Feuil3!B63 -> 0 | D63: =Feuil3!C63 -> 0 | E63: =Feuil3!D63 -> 0 | F63: =Feuil3!E63 -> 0 | G63: =Feuil3!F63 -> 0 | H63: =Feuil3!G63 -> 0 | I63: =Feuil3!H63 -> 0 | J63: =Feuil3!I63 -> 0 | AO63: 0
A64: =Feuil3!A64 -> 0 | B64: =Tableau1[[#This Row],[رقم الحساب]] ->  | C64: =Feuil3!B64 -> 0 | D64: =Feuil3!C64 -> 0 | E64: =Feuil3!D64 -> 0 | F64: =Feuil3!E64 -> 0 | G64: =Feuil3!F64 -> 0 | H64: =Feuil3!G64 -> 0 | I64: =Feuil3!H64 -> 0 | J64: =Feuil3!I64 -> 0 | AO64: 0
A65: =Feuil3!A65 -> 0 | B65: =Tableau1[[#This Row],[رقم الحساب]] ->  | C65: =Feuil3!B65 -> 0 | D65: =Feuil3!C65 -> 0 | E65: =Feuil3!D65 -> 0 | F65: =Feuil3!E65 -> 0 | G65: =Feuil3!F65 -> 0 | H65: =Feuil3!G65 -> 0 | I65: =Feuil3!H65 -> 0 | J65: =Feuil3!I65 -> 0 | AO65: 0
A66: =Feuil3!A66 -> 0 | B66: =Tableau1[[#This Row],[رقم الحساب]] ->  | C66: =Feuil3!B66 -> 0 | D66: =Feuil3!C66 -> 0 | E66: =Feuil3!D66 -> 0 | F66: =Feuil3!E66 -> 0 | G66: =Feuil3!F66 -> 0 | H66: =Feuil3!G66 -> 0 | I66: =Feuil3!H66 -> 0 | J66: =Feuil3!I66 -> 0 | AO66: 0
A67: =Feuil3!A67 -> 0 | B67: =Tableau1[[#This Row],[رقم الحساب]] ->  | C67: =Feuil3!B67 -> 0 | D67: =Feuil3!C67 -> 0 | E67: =Feuil3!D67 -> 0 | F67: =Feuil3!E67 -> 0 | G67: =Feuil3!F67 -> 0 | H67: =Feuil3!G67 -> 0 | I67: =Feuil3!H67 -> 0 | J67: =Feuil3!I67 -> 0 | AO67: =A67 -> 0
A68: =Feuil3!A68 -> 0 | B68: =Tableau1[[#This Row],[رقم الحساب]] ->  | C68: =Feuil3!B68 -> 0 | D68: =Feuil3!C68 -> 0 | E68: =Feuil3!D68 -> 0 | F68: =Feuil3!E68 -> 0 | G68: =Feuil3!F68 -> 0 | H68: =Feuil3!G68 -> 0 | I68: =Feuil3!H68 -> 0 | J68: =Feuil3!I68 -> 0 | AO68: 0
A69: =Feuil3!A69 -> 0 | B69: =Tableau1[[#This Row],[رقم الحساب]] ->  | C69: =Feuil3!B69 -> 0 | D69: =Feuil3!C69 -> 0 | E69: =Feuil3!D69 -> 0 | F69: =Feuil3!E69 -> 0 | G69: =Feuil3!F69 -> 0 | H69: =Feuil3!G69 -> 0 | I69: =Feuil3!H69 -> 0 | J69: =Feuil3!I69 -> 0 | AO69: 0
A70: =Feuil3!A70 -> 0 | B70: =Tableau1[[#This Row],[رقم الحساب]] ->  | C70: =Feuil3!B70 -> 0 | D70: =Feuil3!C70 -> 0 | E70: =Feuil3!D70 -> 0 | F70: =Feuil3!E70 -> 0 | G70: =Feuil3!F70 -> 0 | H70: =Feuil3!G70 -> 0 | I70: =Feuil3!H70 -> 0 | J70: =Feuil3!I70 -> 0 | AO70: 0
A71: =Feuil3!A71 -> 0 | B71: =Tableau1[[#This Row],[رقم الحساب]] ->  | C71: =Feuil3!B71 -> 0 | D71: =Feuil3!C71 -> 0 | E71: =Feuil3!D71 -> 0 | F71: =Feuil3!E71 -> 0 | G71: =Feuil3!F71 -> 0 | H71: =Feuil3!G71 -> 0 | I71: =Feuil3!H71 -> 0 | J71: =Feuil3!I71 -> 0 | AO71: 0
A72: =Feuil3!A72 -> 0 | B72: =Tableau1[[#This Row],[رقم الحساب]] ->  | C72: =Feuil3!B72 -> 0 | D72: =Feuil3!C72 -> 0 | E72: =Feuil3!D72 -> 0 | F72: =Feuil3!E72 -> 0 | G72: =Feuil3!F72 -> 0 | H72: =Feuil3!G72 -> 0 | I72: =Feuil3!H72 -> 0 | J72: =Feuil3!I72 -> 0 | AO72: 0
A73: =Feuil3!A73 -> 0 | B73: =Tableau1[[#This Row],[رقم الحساب]] ->  | C73: =Feuil3!B73 -> 0 | D73: =Feuil3!C73 -> 0 | E73: =Feuil3!D73 -> 0 | F73: =Feuil3!E73 -> 0 | G73: =Feuil3!F73 -> 0 | H73: =Feuil3!G73 -> 0 | I73: =Feuil3!H73 -> 0 | J73: =Feuil3!I73 -> 0 | AO73: 0
A74: =Feuil3!A74 -> 0 | B74: =Tableau1[[#This Row],[رقم الحساب]] ->  | C74: =Feuil3!B74 -> 0 | D74: =Feuil3!C74 -> 0 | E74: =Feuil3!D74 -> 0 | F74: =Feuil3!E74 -> 0 | G74: =Feuil3!F74 -> 0 | H74: =Feuil3!G74 -> 0 | I74: =Feuil3!H74 -> 0 | J74: =Feuil3!I74 -> 0 | AO74: 0
A75: =Feuil3!A75 -> 0 | B75: =Tableau1[[#This Row],[رقم الحساب]] ->  | C75: =Feuil3!B75 -> 0 | D75: =Feuil3!C75 -> 0 | E75: =Feuil3!D75 -> 0 | F75: =Feuil3!E75 -> 0 | G75: =Feuil3!F75 -> 0 | H75: =Feuil3!G75 -> 0 | I75: =Feuil3!H75 -> 0 | J75: =Feuil3!I75 -> 0 | AO75: 0
A76: =Feuil3!A76 -> 0 | B76: =Tableau1[[#This Row],[رقم الحساب]] ->  | C76: =Feuil3!B76 -> 0 | D76: =Feuil3!C76 -> 0 | E76: =Feuil3!D76 -> 0 | F76: =Feuil3!E76 -> 0 | G76: =Feuil3!F76 -> 0 | H76: =Feuil3!G76 -> 0 | I76: =Feuil3!H76 -> 0 | J76: =Feuil3!I76 -> 0 | AO76: 0
A77: =Feuil3!A77 -> 0 | B77: =Tableau1[[#This Row],[رقم الحساب]] ->  | C77: =Feuil3!B77 -> 0 | D77: =Feuil3!C77 -> 0 | E77: =Feuil3!D77 -> 0 | F77: =Feuil3!E77 -> 0 | G77: =Feuil3!F77 -> 0 | H77: =Feuil3!G77 -> 0 | I77: =Feuil3!H77 -> 0 | J77: =Feuil3!I77 -> 0 | AO77: 0
A78: =Feuil3!A78 -> 0 | B78: =Tableau1[[#This Row],[رقم الحساب]] ->  | C78: =Feuil3!B78 -> 0 | D78: =Feuil3!C78 -> 0 | E78: =Feuil3!D78 -> 0 | F78: =Feuil3!E78 -> 0 | G78: =Feuil3!F78 -> 0 | H78: =Feuil3!G78 -> 0 | I78: =Feuil3!H78 -> 0 | J78: =Feuil3!I78 -> 0 | AO78: 0
A79: =Feuil3!A79 -> 0 | B79: =Tableau1[[#This Row],[رقم الحساب]] ->  | C79: =Feuil3!B79 -> 0 | D79: =Feuil3!C79 -> 0 | E79: =Feuil3!D79 -> 0 | F79: =Feuil3!E79 -> 0 | G79: =Feuil3!F79 -> 0 | H79: =Feuil3!G79 -> 0 | I79: =Feuil3!H79 -> 0 | J79: =Feuil3!I79 -> 0 | AO79: 0
A80: =Feuil3!A80 -> 0 | B80: =Tableau1[[#This Row],[رقم الحساب]] ->  | C80: =Feuil3!B80 -> 0 | D80: =Feuil3!C80 -> 0 | E80: =Feuil3!D80 -> 0 | F80: =Feuil3!E80 -> 0 | G80: =Feuil3!F80 -> 0 | H80: =Feuil3!G80 -> 0 | I80: =Feuil3!H80 -> 0 | J80: =Feuil3!I80 -> 0 | AO80: 0
A81: =Feuil3!A81 -> 0 | B81: =Tableau1[[#This Row],[رقم الحساب]] ->  | C81: =Feuil3!B81 -> 0 | D81: =Feuil3!C81 -> 0 | E81: =Feuil3!D81 -> 0 | F81: =Feuil3!E81 -> 0 | G81: =Feuil3!F81 -> 0 | H81: =Feuil3!G81 -> 0 | I81: =Feuil3!H81 -> 0 | J81: =Feuil3!I81 -> 0 | AO81: 0
A82: =Feuil3!A82 -> 0 | B82: =Tableau1[[#This Row],[رقم الحساب]] ->  | C82: =Feuil3!B82 -> 0 | D82: =Feuil3!C82 -> 0 | E82: =Feuil3!D82 -> 0 | F82: =Feuil3!E82 -> 0 | G82: =Feuil3!F82 -> 0 | H82: =Feuil3!G82 -> 0 | I82: =Feuil3!H82 -> 0 | J82: =Feuil3!I82 -> 0 | AO82: 0
A83: =Feuil3!A83 -> 0 | B83: =Tableau1[[#This Row],[رقم الحساب]] ->  | C83: =Feuil3!B83 -> 0 | D83: =Feuil3!C83 -> 0 | E83: =Feuil3!D83 -> 0 | F83: =Feuil3!E83 -> 0 | G83: =Feuil3!F83 -> 0 | H83: =Feuil3!G83 -> 0 | I83: =Feuil3!H83 -> 0 | J83: =Feuil3!I83 -> 0 | AO83: 0
A84: =Feuil3!A84 -> 0 | B84: =Tableau1[[#This Row],[رقم الحساب]] ->  | C84: =Feuil3!B84 -> 0 | D84: =Feuil3!C84 -> 0 | E84: =Feuil3!D84 -> 0 | F84: =Feuil3!E84 -> 0 | G84: =Feuil3!F84 -> 0 | H84: =Feuil3!G84 -> 0 | I84: =Feuil3!H84 -> 0 | J84: =Feuil3!I84 -> 0 | AO84: 0
A85: =Feuil3!A85 -> 0 | B85: =Tableau1[[#This Row],[رقم الحساب]] ->  | C85: =Feuil3!B85 -> 0 | D85: =Feuil3!C85 -> 0 | E85: =Feuil3!D85 -> 0 | F85: =Feuil3!E85 -> 0 | G85: =Feuil3!F85 -> 0 | H85: =Feuil3!G85 -> 0 | I85: =Feuil3!H85 -> 0 | J85: =Feuil3!I85 -> 0 | AO85: 0
A86: =Feuil3!A86 -> 0 | B86: =Tableau1[[#This Row],[رقم الحساب]] ->  | C86: =Feuil3!B86 -> 0 | D86: =Feuil3!C86 -> 0 | E86: =Feuil3!D86 -> 0 | F86: =Feuil3!E86 -> 0 | G86: =Feuil3!F86 -> 0 | H86: =Feuil3!G86 -> 0 | I86: =Feuil3!H86 -> 0 | J86: =Feuil3!I86 -> 0 | AO86: 0
A87: =Feuil3!A87 -> 0 | B87: =Tableau1[[#This Row],[رقم الحساب]] ->  | C87: =Feuil3!B87 -> 0 | D87: =Feuil3!C87 -> 0 | E87: =Feuil3!D87 -> 0 | F87: =Feuil3!E87 -> 0 | G87: =Feuil3!F87 -> 0 | H87: =Feuil3!G87 -> 0 | I87: =Feuil3!H87 -> 0 | J87: =Feuil3!I87 -> 0 | AO87: 0
A88: =Feuil3!A88 -> 0 | B88: =Tableau1[[#This Row],[رقم الحساب]] ->  | C88: =Feuil3!B88 -> 0 | D88: =Feuil3!C88 -> 0 | E88: =Feuil3!D88 -> 0 | F88: =Feuil3!E88 -> 0 | G88: =Feuil3!F88 -> 0 | H88: =Feuil3!G88 -> 0 | I88: =Feuil3!H88 -> 0 | J88: =Feuil3!I88 -> 0 | AO88: 0
A89: =Feuil3!A89 -> 0 | B89: =Tableau1[[#This Row],[رقم الحساب]] ->  | C89: =Feuil3!B89 -> 0 | D89: =Feuil3!C89 -> 0 | E89: =Feuil3!D89 -> 0 | F89: =Feuil3!E89 -> 0 | G89: =Feuil3!F89 -> 0 | H89: =Feuil3!G89 -> 0 | I89: =Feuil3!H89 -> 0 | J89: =Feuil3!I89 -> 0 | AO89: 0
A90: =Feuil3!A90 -> 0 | B90: =Tableau1[[#This Row],[رقم الحساب]] ->  | C90: =Feuil3!B90 -> 0 | D90: =Feuil3!C90 -> 0 | E90: =Feuil3!D90 -> 0 | F90: =Feuil3!E90 -> 0 | G90: =Feuil3!F90 -> 0 | H90: =Feuil3!G90 -> 0 | I90: =Feuil3!H90 -> 0 | J90: =Feuil3!I90 -> 0 | AO90: 0
A91: =Feuil3!A91 -> 0 | B91: =Tableau1[[#This Row],[رقم الحساب]] ->  | C91: =Feuil3!B91 -> 0 | D91: =Feuil3!C91 -> 0 | E91: =Feuil3!D91 -> 0 | F91: =Feuil3!E91 -> 0 | G91: =Feuil3!F91 -> 0 | H91: =Feuil3!G91 -> 0 | I91: =Feuil3!H91 -> 0 | J91: =Feuil3!I91 -> 0 | AO91: 0
A92: =Feuil3!A92 -> 0 | B92: =Tableau1[[#This Row],[رقم الحساب]] ->  | C92: =Feuil3!B92 -> 0 | D92: =Feuil3!C92 -> 0 | E92: =Feuil3!D92 -> 0 | F92: =Feuil3!E92 -> 0 | G92: =Feuil3!F92 -> 0 | H92: =Feuil3!G92 -> 0 | I92: =Feuil3!H92 -> 0 | J92: =Feuil3!I92 -> 0 | AO92: 0
A93: =Feuil3!A93 -> 0 | B93: =Tableau1[[#This Row],[رقم الحساب]] ->  | C93: =Feuil3!B93 -> 0 | D93: =Feuil3!C93 -> 0 | E93: =Feuil3!D93 -> 0 | F93: =Feuil3!E93 -> 0 | G93: =Feuil3!F93 -> 0 | H93: =Feuil3!G93 -> 0 | I93: =Feuil3!H93 -> 0 | J93: =Feuil3!I93 -> 0 | AO93: 0
A94: =Feuil3!A94 -> 0 | B94: =Tableau1[[#This Row],[رقم الحساب]] ->  | C94: =Feuil3!B94 -> 0 | D94: =Feuil3!C94 -> 0 | E94: =Feuil3!D94 -> 0 | F94: =Feuil3!E94 -> 0 | G94: =Feuil3!F94 -> 0 | H94: =Feuil3!G94 -> 0 | I94: =Feuil3!H94 -> 0 | J94: =Feuil3!I94 -> 0 | AO94: 0
A95: =Feuil3!A95 -> 0 | B95: =Tableau1[[#This Row],[رقم الحساب]] ->  | C95: =Feuil3!B95 -> 0 | D95: =Feuil3!C95 -> 0 | E95: =Feuil3!D95 -> 0 | F95: =Feuil3!E95 -> 0 | G95: =Feuil3!F95 -> 0 | H95: =Feuil3!G95 -> 0 | I95: =Feuil3!H95 -> 0 | J95: =Feuil3!I95 -> 0 | AO95: 0
A96: =Feuil3!A96 -> 0 | B96: =Tableau1[[#This Row],[رقم الحساب]] ->  | C96: =Feuil3!B96 -> 0 | D96: =Feuil3!C96 -> 0 | E96: =Feuil3!D96 -> 0 | F96: =Feuil3!E96 -> 0 | G96: =Feuil3!F96 -> 0 | H96: =Feuil3!G96 -> 0 | I96: =Feuil3!H96 -> 0 | J96: =Feuil3!I96 -> 0 | AO96: 0
A97: =Feuil3!A97 -> 0 | B97: =Tableau1[[#This Row],[رقم الحساب]] ->  | C97: =Feuil3!B97 -> 0 | D97: =Feuil3!C97 -> 0 | E97: =Feuil3!D97 -> 0 | F97: =Feuil3!E97 -> 0 | G97: =Feuil3!F97 -> 0 | H97: =Feuil3!G97 -> 0 | I97: =Feuil3!H97 -> 0 | J97: =Feuil3!I97 -> 0 | AO97: 0
A98: =Feuil3!A98 -> 0 | B98: =Tableau1[[#This Row],[رقم الحساب]] ->  | C98: =Feuil3!B98 -> 0 | D98: =Feuil3!C98 -> 0 | E98: =Feuil3!D98 -> 0 | F98: =Feuil3!E98 -> 0 | G98: =Feuil3!F98 -> 0 | H98: =Feuil3!G98 -> 0 | I98: =Feuil3!H98 -> 0 | J98: =Feuil3!I98 -> 0 | AO98: 0
A99: =Feuil3!A99 -> 0 | B99: =Tableau1[[#This Row],[رقم الحساب]] ->  | C99: =Feuil3!B99 -> 0 | D99: =Feuil3!C99 -> 0 | E99: =Feuil3!D99 -> 0 | F99: =Feuil3!E99 -> 0 | G99: =Feuil3!F99 -> 0 | H99: =Feuil3!G99 -> 0 | I99: =Feuil3!H99 -> 0 | J99: =Feuil3!I99 -> 0 | AO99: 0
A100: =Feuil3!A100 -> 0 | B100: =Tableau1[[#This Row],[رقم الحساب]] ->  | C100: =Feuil3!B100 -> 0 | D100: =Feuil3!C100 -> 0 | E100: =Feuil3!D100 -> 0 | F100: =Feuil3!E100 -> 0 | G100: =Feuil3!F100 -> 0 | H100: =Feuil3!G100 -> 0 | I100: =Feuil3!H100 -> 0 | J100: =Feuil3!I100 -> 0 | AO100: 0
A101: =Feuil3!A101 -> 0 | B101: =Tableau1[[#This Row],[رقم الحساب]] ->  | C101: =Feuil3!B101 -> 0 | D101: =Feuil3!C101 -> 0 | E101: =Feuil3!D101 -> 0 | F101: =Feuil3!E101 -> 0 | G101: =Feuil3!F101 -> 0 | H101: =Feuil3!G101 -> 0 | I101: =Feuil3!H101 -> 0 | J101: =Feuil3!I101 -> 0 | AO101: 0
A102: =Feuil3!A102 -> 0 | B102: =Tableau1[[#This Row],[رقم الحساب]] ->  | C102: =Feuil3!B102 -> 0 | D102: =Feuil3!C102 -> 0 | E102: =Feuil3!D102 -> 0 | F102: =Feuil3!E102 -> 0 | G102: =Feuil3!F102 -> 0 | H102: =Feuil3!G102 -> 0 | I102: =Feuil3!H102 -> 0 | J102: =Feuil3!I102 -> 0 | AO102: 0
A103: =Feuil3!A103 -> 0 | B103: =Tableau1[[#This Row],[رقم الحساب]] ->  | C103: =Feuil3!B103 -> 0 | D103: =Feuil3!C103 -> 0 | E103: =Feuil3!D103 -> 0 | F103: =Feuil3!E103 -> 0 | G103: =Feuil3!F103 -> 0 | H103: =Feuil3!G103 -> 0 | I103: =Feuil3!H103 -> 0 | J103: =Feuil3!I103 -> 0 | AO103: 0
A104: =Feuil3!A104 -> 0 | B104: =Tableau1[[#This Row],[رقم الحساب]] ->  | C104: =Feuil3!B104 -> 0 | D104: =Feuil3!C104 -> 0 | E104: =Feuil3!D104 -> 0 | F104: =Feuil3!E104 -> 0 | G104: =Feuil3!F104 -> 0 | H104: =Feuil3!G104 -> 0 | I104: =Feuil3!H104 -> 0 | J104: =Feuil3!I104 -> 0 | AO104: 0
A105: =Feuil3!A105 -> 0 | B105: =Tableau1[[#This Row],[رقم الحساب]] ->  | C105: =Feuil3!B105 -> 0 | D105: =Feuil3!C105 -> 0 | E105: =Feuil3!D105 -> 0 | F105: =Feuil3!E105 -> 0 | G105: =Feuil3!F105 -> 0 | H105: =Feuil3!G105 -> 0 | I105: =Feuil3!H105 -> 0 | J105: =Feuil3!I105 -> 0 | AO105: 0
A106: =Feuil3!A106 -> 0 | B106: =Tableau1[[#This Row],[رقم الحساب]] ->  | C106: =Feuil3!B106 -> 0 | D106: =Feuil3!C106 -> 0 | E106: =Feuil3!D106 -> 0 | F106: =Feuil3!E106 -> 0 | G106: =Feuil3!F106 -> 0 | H106: =Feuil3!G106 -> 0 | I106: =Feuil3!H106 -> 0 | J106: =Feuil3!I106 -> 0 | AO106: 0
A107: =Feuil3!A107 -> 0 | B107: =Tableau1[[#This Row],[رقم الحساب]] ->  | C107: =Feuil3!B107 -> 0 | D107: =Feuil3!C107 -> 0 | E107: =Feuil3!D107 -> 0 | F107: =Feuil3!E107 -> 0 | G107: =Feuil3!F107 -> 0 | H107: =Feuil3!G107 -> 0 | I107: =Feuil3!H107 -> 0 | J107: =Feuil3!I107 -> 0 | AO107: 0
A108: =Feuil3!A108 -> 0 | B108: =Tableau1[[#This Row],[رقم الحساب]] ->  | C108: =Feuil3!B108 -> 0 | D108: =Feuil3!C108 -> 0 | E108: =Feuil3!D108 -> 0 | F108: =Feuil3!E108 -> 0 | G108: =Feuil3!F108 -> 0 | H108: =Feuil3!G108 -> 0 | I108: =Feuil3!H108 -> 0 | J108: =Feuil3!I108 -> 0 | AO108: 0
A109: =Feuil3!A109 -> 0 | B109: =Tableau1[[#This Row],[رقم الحساب]] ->  | C109: =Feuil3!B109 -> 0 | D109: =Feuil3!C109 -> 0 | E109: =Feuil3!D109 -> 0 | F109: =Feuil3!E109 -> 0 | G109: =Feuil3!F109 -> 0 | H109: =Feuil3!G109 -> 0 | I109: =Feuil3!H109 -> 0 | J109: =Feuil3!I109 -> 0 | AO109: 0
A110: =Feuil3!A110 -> 0 | B110: =Tableau1[[#This Row],[رقم الحساب]] ->  | C110: =Feuil3!B110 -> 0 | D110: =Feuil3!C110 -> 0 | E110: =Feuil3!D110 -> 0 | F110: =Feuil3!E110 -> 0 | G110: =Feuil3!F110 -> 0 | H110: =Feuil3!G110 -> 0 | I110: =Feuil3!H110 -> 0 | J110: =Feuil3!I110 -> 0 | AO110: 0
A111: =Feuil3!A111 -> 0 | B111: =Tableau1[[#This Row],[رقم الحساب]] ->  | C111: =Feuil3!B111 -> 0 | D111: =Feuil3!C111 -> 0 | E111: =Feuil3!D111 -> 0 | F111: =Feuil3!E111 -> 0 | G111: =Feuil3!F111 -> 0 | H111: =Feuil3!G111 -> 0 | I111: =Feuil3!H111 -> 0 | J111: =Feuil3!I111 -> 0 | AO111: 0
A112: =Feuil3!A112 -> 0 | B112: =Tableau1[[#This Row],[رقم الحساب]] ->  | C112: =Feuil3!B112 -> 0 | D112: =Feuil3!C112 -> 0 | E112: =Feuil3!D112 -> 0 | F112: =Feuil3!E112 -> 0 | G112: =Feuil3!F112 -> 0 | H112: =Feuil3!G112 -> 0 | I112: =Feuil3!H112 -> 0 | J112: =Feuil3!I112 -> 0 | AO112: 0
A113: =Feuil3!A113 -> 0 | B113: =Tableau1[[#This Row],[رقم الحساب]] ->  | C113: =Feuil3!B113 -> 0 | D113: =Feuil3!C113 -> 0 | E113: =Feuil3!D113 -> 0 | F113: =Feuil3!E113 -> 0 | G113: =Feuil3!F113 -> 0 | H113: =Feuil3!G113 -> 0 | I113: =Feuil3!H113 -> 0 | J113: =Feuil3!I113 -> 0 | AO113: 0
A114: =Feuil3!A114 -> 0 | B114: =Tableau1[[#This Row],[رقم الحساب]] ->  | C114: =Feuil3!B114 -> 0 | D114: =Feuil3!C114 -> 0 | E114: =Feuil3!D114 -> 0 | F114: =Feuil3!E114 -> 0 | G114: =Feuil3!F114 -> 0 | H114: =Feuil3!G114 -> 0 | I114: =Feuil3!H114 -> 0 | J114: =Feuil3!I114 -> 0 | AO114: 0
A115: =Feuil3!A115 -> 0 | B115: =Tableau1[[#This Row],[رقم الحساب]] ->  | C115: =Feuil3!B115 -> 0 | D115: =Feuil3!C115 -> 0 | E115: =Feuil3!D115 -> 0 | F115: =Feuil3!E115 -> 0 | G115: =Feuil3!F115 -> 0 | H115: =Feuil3!G115 -> 0 | I115: =Feuil3!H115 -> 0 | J115: =Feuil3!I115 -> 0 | AO115: 0
A116: =Feuil3!A116 -> 0 | B116: =Tableau1[[#This Row],[رقم الحساب]] ->  | C116: =Feuil3!B116 -> 0 | D116: =Feuil3!C116 -> 0 | E116: =Feuil3!D116 -> 0 | F116: =Feuil3!E116 -> 0 | G116: =Feuil3!F116 -> 0 | H116: =Feuil3!G116 -> 0 | I116: =Feuil3!H116 -> 0 | J116: =Feuil3!I116 -> 0 | AO116: 0
A117: =Feuil3!A117 -> 0 | B117: =Tableau1[[#This Row],[رقم الحساب]] ->  | C117: =Feuil3!B117 -> 0 | D117: =Feuil3!C117 -> 0 | E117: =Feuil3!D117 -> 0 | F117: =Feuil3!E117 -> 0 | G117: =Feuil3!F117 -> 0 | H117: =Feuil3!G117 -> 0 | I117: =Feuil3!H117 -> 0 | J117: =Feuil3!I117 -> 0 | AO117: 0
A118: =Feuil3!A118 -> 0 | B118: =Tableau1[[#This Row],[رقم الحساب]] ->  | C118: =Feuil3!B118 -> 0 | D118: =Feuil3!C118 -> 0 | E118: =Feuil3!D118 -> 0 | F118: =Feuil3!E118 -> 0 | G118: =Feuil3!F118 -> 0 | H118: =Feuil3!G118 -> 0 | I118: =Feuil3!H118 -> 0 | J118: =Feuil3!I118 -> 0 | AO118: 0
A119: =Feuil3!A119 -> 0 | B119: =Tableau1[[#This Row],[رقم الحساب]] ->  | C119: =Feuil3!B119 -> 0 | D119: =Feuil3!C119 -> 0 | E119: =Feuil3!D119 -> 0 | F119: =Feuil3!E119 -> 0 | G119: =Feuil3!F119 -> 0 | H119: =Feuil3!G119 -> 0 | I119: =Feuil3!H119 -> 0 | J119: =Feuil3!I119 -> 0 | AO119: 0
A120: =Feuil3!A120 -> 0 | B120: =Tableau1[[#This Row],[رقم الحساب]] ->  | C120: =Feuil3!B120 -> 0 | D120: =Feuil3!C120 -> 0 | E120: =Feuil3!D120 -> 0 | F120: =Feuil3!E120 -> 0 | G120: =Feuil3!F120 -> 0 | H120: =Feuil3!G120 -> 0 | I120: =Feuil3!H120 -> 0 | J120: =Feuil3!I120 -> 0 | AO120: 0
A121: =Feuil3!A121 -> 0 | B121: =Tableau1[[#This Row],[رقم الحساب]] ->  | C121: =Feuil3!B121 -> 0 | D121: =Feuil3!C121 -> 0 | E121: =Feuil3!D121 -> 0 | F121: =Feuil3!E121 -> 0 | G121: =Feuil3!F121 -> 0 | H121: =Feuil3!G121 -> 0 | I121: =Feuil3!H121 -> 0 | J121: =Feuil3!I121 -> 0 | AO121: 0
A122: =Feuil3!A122 -> 0 | B122: =Tableau1[[#This Row],[رقم الحساب]] ->  | C122: =Feuil3!B122 -> 0 | D122: =Feuil3!C122 -> 0 | E122: =Feuil3!D122 -> 0 | F122: =Feuil3!E122 -> 0 | G122: =Feuil3!F122 -> 0 | H122: =Feuil3!G122 -> 0 | I122: =Feuil3!H122 -> 0 | J122: =Feuil3!I122 -> 0 | AO122: 0
A123: =Feuil3!A123 -> 0 | B123: =Tableau1[[#This Row],[رقم الحساب]] ->  | C123: =Feuil3!B123 -> 0 | D123: =Feuil3!C123 -> 0 | E123: =Feuil3!D123 -> 0 | F123: =Feuil3!E123 -> 0 | G123: =Feuil3!F123 -> 0 | H123: =Feuil3!G123 -> 0 | I123: =Feuil3!H123 -> 0 | J123: =Feuil3!I123 -> 0 | AO123: 0
A124: =Feuil3!A124 -> 0 | B124: =Tableau1[[#This Row],[رقم الحساب]] ->  | C124: =Feuil3!B124 -> 0 | D124: =Feuil3!C124 -> 0 | E124: =Feuil3!D124 -> 0 | F124: =Feuil3!E124 -> 0 | G124: =Feuil3!F124 -> 0 | H124: =Feuil3!G124 -> 0 | I124: =Feuil3!H124 -> 0 | J124: =Feuil3!I124 -> 0 | AO124: 0
A125: =Feuil3!A125 -> 0 | B125: =Tableau1[[#This Row],[رقم الحساب]] ->  | C125: =Feuil3!B125 -> 0 | D125: =Feuil3!C125 -> 0 | E125: =Feuil3!D125 -> 0 | F125: =Feuil3!E125 -> 0 | G125: =Feuil3!F125 -> 0 | H125: =Feuil3!G125 -> 0 | I125: =Feuil3!H125 -> 0 | J125: =Feuil3!I125 -> 0 | AO125: 0
A126: =Feuil3!A126 -> 0 | B126: =Tableau1[[#This Row],[رقم الحساب]] ->  | C126: =Feuil3!B126 -> 0 | D126: =Feuil3!C126 -> 0 | E126: =Feuil3!D126 -> 0 | F126: =Feuil3!E126 -> 0 | G126: =Feuil3!F126 -> 0 | H126: =Feuil3!G126 -> 0 | I126: =Feuil3!H126 -> 0 | J126: =Feuil3!I126 -> 0 | AO126: 0
A127: =Feuil3!A127 -> 0 | B127: =Tableau1[[#This Row],[رقم الحساب]] ->  | C127: =Feuil3!B127 -> 0 | D127: =Feuil3!C127 -> 0 | E127: =Feuil3!D127 -> 0 | F127: =Feuil3!E127 -> 0 | G127: =Feuil3!F127 -> 0 | H127: =Feuil3!G127 -> 0 | I127: =Feuil3!H127 -> 0 | J127: =Feuil3!I127 -> 0 | AO127: 0
A128: =Feuil3!A128 -> 0 | B128: =Tableau1[[#This Row],[رقم الحساب]] ->  | C128: =Feuil3!B128 -> 0 | D128: =Feuil3!C128 -> 0 | E128: =Feuil3!D128 -> 0 | F128: =Feuil3!E128 -> 0 | G128: =Feuil3!F128 -> 0 | H128: =Feuil3!G128 -> 0 | I128: =Feuil3!H128 -> 0 | J128: =Feuil3!I128 -> 0 | AO128: 0
A129: =Feuil3!A129 -> 0 | B129: =Tableau1[[#This Row],[رقم الحساب]] ->  | C129: =Feuil3!B129 -> 0 | D129: =Feuil3!C129 -> 0 | E129: =Feuil3!D129 -> 0 | F129: =Feuil3!E129 -> 0 | G129: =Feuil3!F129 -> 0 | H129: =Feuil3!G129 -> 0 | I129: =Feuil3!H129 -> 0 | J129: =Feuil3!I129 -> 0 | AO129: 0
A130: =Feuil3!A130 -> 0 | B130: =Tableau1[[#This Row],[رقم الحساب]] ->  | C130: =Feuil3!B130 -> 0 | D130: =Feuil3!C130 -> 0 | E130: =Feuil3!D130 -> 0 | F130: =Feuil3!E130 -> 0 | G130: =Feuil3!F130 -> 0 | H130: =Feuil3!G130 -> 0 | I130: =Feuil3!H130 -> 0 | J130: =Feuil3!I130 -> 0 | AO130: 0
A131: =Feuil3!A131 -> 0 | B131: =Tableau1[[#This Row],[رقم الحساب]] ->  | C131: =Feuil3!B131 -> 0 | D131: =Feuil3!C131 -> 0 | E131: =Feuil3!D131 -> 0 | F131: =Feuil3!E131 -> 0 | G131: =Feuil3!F131 -> 0 | H131: =Feuil3!G131 -> 0 | I131: =Feuil3!H131 -> 0 | J131: =Feuil3!I131 -> 0 | AO131: =A131 -> 0
A132: =Feuil3!A132 -> 0 | B132: =Tableau1[[#This Row],[رقم الحساب]] ->  | C132: =Feuil3!B132 -> 0 | D132: =Feuil3!C132 -> 0 | E132: =Feuil3!D132 -> 0 | F132: =Feuil3!E132 -> 0 | G132: =Feuil3!F132 -> 0 | H132: =Feuil3!G132 -> 0 | I132: =Feuil3!H132 -> 0 | J132: =Feuil3!I132 -> 0 | AO132: 0
A133: =Feuil3!A133 -> 0 | B133: =Tableau1[[#This Row],[رقم الحساب]] ->  | C133: =Feuil3!B133 -> 0 | D133: =Feuil3!C133 -> 0 | E133: =Feuil3!D133 -> 0 | F133: =Feuil3!E133 -> 0 | G133: =Feuil3!F133 -> 0 | H133: =Feuil3!G133 -> 0 | I133: =Feuil3!H133 -> 0 | J133: =Feuil3!I133 -> 0 | AO133: 0
A134: =Feuil3!A134 -> 0 | B134: =Tableau1[[#This Row],[رقم الحساب]] ->  | C134: =Feuil3!B134 -> 0 | D134: =Feuil3!C134 -> 0 | E134: =Feuil3!D134 -> 0 | F134: =Feuil3!E134 -> 0 | G134: =Feuil3!F134 -> 0 | H134: =Feuil3!G134 -> 0 | I134: =Feuil3!H134 -> 0 | J134: =Feuil3!I134 -> 0 | AO134: 0
A135: =Feuil3!A135 -> 0 | B135: =Tableau1[[#This Row],[رقم الحساب]] ->  | C135: =Feuil3!B135 -> 0 | D135: =Feuil3!C135 -> 0 | E135: =Feuil3!D135 -> 0 | F135: =Feuil3!E135 -> 0 | G135: =Feuil3!F135 -> 0 | H135: =Feuil3!G135 -> 0 | I135: =Feuil3!H135 -> 0 | J135: =Feuil3!I135 -> 0 | AO135: 0
A136: =Feuil3!A136 -> 0 | B136: =Tableau1[[#This Row],[رقم الحساب]] ->  | C136: =Feuil3!B136 -> 0 | D136: =Feuil3!C136 -> 0 | E136: =Feuil3!D136 -> 0 | F136: =Feuil3!E136 -> 0 | G136: =Feuil3!F136 -> 0 | H136: =Feuil3!G136 -> 0 | I136: =Feuil3!H136 -> 0 | J136: =Feuil3!I136 -> 0 | AO136: 0
A137: =Feuil3!A137 -> 0 | B137: =Tableau1[[#This Row],[رقم الحساب]] ->  | C137: =Feuil3!B137 -> 0 | D137: =Feuil3!C137 -> 0 | E137: =Feuil3!D137 -> 0 | F137: =Feuil3!E137 -> 0 | G137: =Feuil3!F137 -> 0 | H137: =Feuil3!G137 -> 0 | I137: =Feuil3!H137 -> 0 | J137: =Feuil3!I137 -> 0 | AO137: 0
A138: =Feuil3!A138 -> 0 | B138: =Tableau1[[#This Row],[رقم الحساب]] ->  | C138: =Feuil3!B138 -> 0 | D138: =Feuil3!C138 -> 0 | E138: =Feuil3!D138 -> 0 | F138: =Feuil3!E138 -> 0 | G138: =Feuil3!F138 -> 0 | H138: =Feuil3!G138 -> 0 | I138: =Feuil3!H138 -> 0 | J138: =Feuil3!I138 -> 0 | AO138: 0
A139: =Feuil3!A139 -> 0 | B139: =Tableau1[[#This Row],[رقم الحساب]] ->  | C139: =Feuil3!B139 -> 0 | D139: =Feuil3!C139 -> 0 | E139: =Feuil3!D139 -> 0 | F139: =Feuil3!E139 -> 0 | G139: =Feuil3!F139 -> 0 | H139: =Feuil3!G139 -> 0 | I139: =Feuil3!H139 -> 0 | J139: =Feuil3!I139 -> 0 | AO139: 0
A140: =Feuil3!A140 -> 0 | B140: =Tableau1[[#This Row],[رقم الحساب]] ->  | C140: =Feuil3!B140 -> 0 | D140: =Feuil3!C140 -> 0 | E140: =Feuil3!D140 -> 0 | F140: =Feuil3!E140 -> 0 | G140: =Feuil3!F140 -> 0 | H140: =Feuil3!G140 -> 0 | I140: =Feuil3!H140 -> 0 | J140: =Feuil3!I140 -> 0 | AO140: 0
A141: =Feuil3!A141 -> 0 | B141: =Tableau1[[#This Row],[رقم الحساب]] ->  | C141: =Feuil3!B141 -> 0 | D141: =Feuil3!C141 -> 0 | E141: =Feuil3!D141 -> 0 | F141: =Feuil3!E141 -> 0 | G141: =Feuil3!F141 -> 0 | H141: =Feuil3!G141 -> 0 | I141: =Feuil3!H141 -> 0 | J141: =Feuil3!I141 -> 0 | AO141: 0
A142: =Feuil3!A142 -> 0 | B142: =Tableau1[[#This Row],[رقم الحساب]] ->  | C142: =Feuil3!B142 -> 0 | D142: =Feuil3!C142 -> 0 | E142: =Feuil3!D142 -> 0 | F142: =Feuil3!E142 -> 0 | G142: =Feuil3!F142 -> 0 | H142: =Feuil3!G142 -> 0 | I142: =Feuil3!H142 -> 0 | J142: =Feuil3!I142 -> 0 | AO142: 0
A143: =Feuil3!A143 -> 0 | B143: =Tableau1[[#This Row],[رقم الحساب]] ->  | C143: =Feuil3!B143 -> 0 | D143: =Feuil3!C143 -> 0 | E143: =Feuil3!D143 -> 0 | F143: =Feuil3!E143 -> 0 | G143: =Feuil3!F143 -> 0 | H143: =Feuil3!G143 -> 0 | I143: =Feuil3!H143 -> 0 | J143: =Feuil3!I143 -> 0 | AO143: 0
A144: =Feuil3!A144 -> 0 | B144: =Tableau1[[#This Row],[رقم الحساب]] ->  | C144: =Feuil3!B144 -> 0 | D144: =Feuil3!C144 -> 0 | E144: =Feuil3!D144 -> 0 | F144: =Feuil3!E144 -> 0 | G144: =Feuil3!F144 -> 0 | H144: =Feuil3!G144 -> 0 | I144: =Feuil3!H144 -> 0 | J144: =Feuil3!I144 -> 0 | AO144: 0
A145: =Feuil3!A145 -> 0 | B145: =Tableau1[[#This Row],[رقم الحساب]] ->  | C145: =Feuil3!B145 -> 0 | D145: =Feuil3!C145 -> 0 | E145: =Feuil3!D145 -> 0 | F145: =Feuil3!E145 -> 0 | G145: =Feuil3!F145 -> 0 | H145: =Feuil3!G145 -> 0 | I145: =Feuil3!H145 -> 0 | J145: =Feuil3!I145 -> 0 | AO145: 0
A146: =Feuil3!A146 -> 0 | B146: =Tableau1[[#This Row],[رقم الحساب]] ->  | C146: =Feuil3!B146 -> 0 | D146: =Feuil3!C146 -> 0 | E146: =Feuil3!D146 -> 0 | F146: =Feuil3!E146 -> 0 | G146: =Feuil3!F146 -> 0 | H146: =Feuil3!G146 -> 0 | I146: =Feuil3!H146 -> 0 | J146: =Feuil3!I146 -> 0 | AO146: 0
A147: =Feuil3!A147 -> 0 | B147: =Tableau1[[#This Row],[رقم الحساب]] ->  | C147: =Feuil3!B147 -> 0 | D147: =Feuil3!C147 -> 0 | E147: =Feuil3!D147 -> 0 | F147: =Feuil3!E147 -> 0 | G147: =Feuil3!F147 -> 0 | H147: =Feuil3!G147 -> 0 | I147: =Feuil3!H147 -> 0 | J147: =Feuil3!I147 -> 0 | AO147: 0
A148: =Feuil3!A148 -> 0 | B148: =Tableau1[[#This Row],[رقم الحساب]] ->  | C148: =Feuil3!B148 -> 0 | D148: =Feuil3!C148 -> 0 | E148: =Feuil3!D148 -> 0 | F148: =Feuil3!E148 -> 0 | G148: =Feuil3!F148 -> 0 | H148: =Feuil3!G148 -> 0 | I148: =Feuil3!H148 -> 0 | J148: =Feuil3!I148 -> 0 | AO148: 0
A149: =Feuil3!A149 -> 0 | B149: =Tableau1[[#This Row],[رقم الحساب]] ->  | C149: =Feuil3!B149 -> 0 | D149: =Feuil3!C149 -> 0 | E149: =Feuil3!D149 -> 0 | F149: =Feuil3!E149 -> 0 | G149: =Feuil3!F149 -> 0 | H149: =Feuil3!G149 -> 0 | I149: =Feuil3!H149 -> 0 | J149: =Feuil3!I149 -> 0 | AO149: 0
A150: =Feuil3!A150 -> 0 | B150: =Tableau1[[#This Row],[رقم الحساب]] ->  | C150: =Feuil3!B150 -> 0 | D150: =Feuil3!C150 -> 0 | E150: =Feuil3!D150 -> 0 | F150: =Feuil3!E150 -> 0 | G150: =Feuil3!F150 -> 0 | H150: =Feuil3!G150 -> 0 | I150: =Feuil3!H150 -> 0 | J150: =Feuil3!I150 -> 0 | AO150: 0
A151: =Feuil3!A151 -> 0 | B151: =Tableau1[[#This Row],[رقم الحساب]] ->  | C151: =Feuil3!B151 -> 0 | D151: =Feuil3!C151 -> 0 | E151: =Feuil3!D151 -> 0 | F151: =Feuil3!E151 -> 0 | G151: =Feuil3!F151 -> 0 | H151: =Feuil3!G151 -> 0 | I151: =Feuil3!H151 -> 0 | J151: =Feuil3!I151 -> 0 | AO151: 0
A152: =Feuil3!A152 -> 0 | B152: =Tableau1[[#This Row],[رقم الحساب]] ->  | C152: =Feuil3!B152 -> 0 | D152: =Feuil3!C152 -> 0 | E152: =Feuil3!D152 -> 0 | F152: =Feuil3!E152 -> 0 | G152: =Feuil3!F152 -> 0 | H152: =Feuil3!G152 -> 0 | I152: =Feuil3!H152 -> 0 | J152: =Feuil3!I152 -> 0 | AO152: 0
A153: =Feuil3!A153 -> 0 | B153: =Tableau1[[#This Row],[رقم الحساب]] ->  | C153: =Feuil3!B153 -> 0 | D153: =Feuil3!C153 -> 0 | E153: =Feuil3!D153 -> 0 | F153: =Feuil3!E153 -> 0 | G153: =Feuil3!F153 -> 0 | H153: =Feuil3!G153 -> 0 | I153: =Feuil3!H153 -> 0 | J153: =Feuil3!I153 -> 0 | AO153: 0
A154: =Feuil3!A154 -> 0 | B154: =Tableau1[[#This Row],[رقم الحساب]] ->  | C154: =Feuil3!B154 -> 0 | D154: =Feuil3!C154 -> 0 | E154: =Feuil3!D154 -> 0 | F154: =Feuil3!E154 -> 0 | G154: =Feuil3!F154 -> 0 | H154: =Feuil3!G154 -> 0 | I154: =Feuil3!H154 -> 0 | J154: =Feuil3!I154 -> 0 | AO154: 0
A155: =Feuil3!A155 -> 0 | B155: =Tableau1[[#This Row],[رقم الحساب]] ->  | C155: =Feuil3!B155 -> 0 | D155: =Feuil3!C155 -> 0 | E155: =Feuil3!D155 -> 0 | F155: =Feuil3!E155 -> 0 | G155: =Feuil3!F155 -> 0 | H155: =Feuil3!G155 -> 0 | I155: =Feuil3!H155 -> 0 | J155: =Feuil3!I155 -> 0 | AO155: 0
A156: =Feuil3!A156 -> 0 | B156: =Tableau1[[#This Row],[رقم الحساب]] ->  | C156: =Feuil3!B156 -> 0 | D156: =Feuil3!C156 -> 0 | E156: =Feuil3!D156 -> 0 | F156: =Feuil3!E156 -> 0 | G156: =Feuil3!F156 -> 0 | H156: =Feuil3!G156 -> 0 | I156: =Feuil3!H156 -> 0 | J156: =Feuil3!I156 -> 0 | AO156: 0
A157: =Feuil3!A157 -> 0 | B157: =Tableau1[[#This Row],[رقم الحساب]] ->  | C157: =Feuil3!B157 -> 0 | D157: =Feuil3!C157 -> 0 | E157: =Feuil3!D157 -> 0 | F157: =Feuil3!E157 -> 0 | G157: =Feuil3!F157 -> 0 | H157: =Feuil3!G157 -> 0 | I157: =Feuil3!H157 -> 0 | J157: =Feuil3!I157 -> 0 | AO157: 0
A158: =Feuil3!A158 -> 0 | B158: =Tableau1[[#This Row],[رقم الحساب]] ->  | C158: =Feuil3!B158 -> 0 | D158: =Feuil3!C158 -> 0 | E158: =Feuil3!D158 -> 0 | F158: =Feuil3!E158 -> 0 | G158: =Feuil3!F158 -> 0 | H158: =Feuil3!G158 -> 0 | I158: =Feuil3!H158 -> 0 | J158: =Feuil3!I158 -> 0 | AO158: 0
A159: =Feuil3!A159 -> 0 | B159: =Tableau1[[#This Row],[رقم الحساب]] ->  | C159: =Feuil3!B159 -> 0 | D159: =Feuil3!C159 -> 0 | E159: =Feuil3!D159 -> 0 | F159: =Feuil3!E159 -> 0 | G159: =Feuil3!F159 -> 0 | H159: =Feuil3!G159 -> 0 | I159: =Feuil3!H159 -> 0 | J159: =Feuil3!I159 -> 0 | AO159: 0
A160: =Feuil3!A160 -> 0 | B160: =Tableau1[[#This Row],[رقم الحساب]] ->  | C160: =Feuil3!B160 -> 0 | D160: =Feuil3!C160 -> 0 | E160: =Feuil3!D160 -> 0 | F160: =Feuil3!E160 -> 0 | G160: =Feuil3!F160 -> 0 | H160: =Feuil3!G160 -> 0 | I160: =Feuil3!H160 -> 0 | J160: =Feuil3!I160 -> 0 | AO160: 0
A161: =Feuil3!A161 -> 0 | B161: =Tableau1[[#This Row],[رقم الحساب]] ->  | C161: =Feuil3!B161 -> 0 | D161: =Feuil3!C161 -> 0 | E161: =Feuil3!D161 -> 0 | F161: =Feuil3!E161 -> 0 | G161: =Feuil3!F161 -> 0 | H161: =Feuil3!G161 -> 0 | I161: =Feuil3!H161 -> 0 | J161: =Feuil3!I161 -> 0 | AO161: 0
A162: =Feuil3!A162 -> 0 | B162: =Tableau1[[#This Row],[رقم الحساب]] ->  | C162: =Feuil3!B162 -> 0 | D162: =Feuil3!C162 -> 0 | E162: =Feuil3!D162 -> 0 | F162: =Feuil3!E162 -> 0 | G162: =Feuil3!F162 -> 0 | H162: =Feuil3!G162 -> 0 | I162: =Feuil3!H162 -> 0 | J162: =Feuil3!I162 -> 0 | AO162: 0
A163: =Feuil3!A163 -> 0 | B163: =Tableau1[[#This Row],[رقم الحساب]] ->  | C163: =Feuil3!B163 -> 0 | D163: =Feuil3!C163 -> 0 | E163: =Feuil3!D163 -> 0 | F163: =Feuil3!E163 -> 0 | G163: =Feuil3!F163 -> 0 | H163: =Feuil3!G163 -> 0 | I163: =Feuil3!H163 -> 0 | J163: =Feuil3!I163 -> 0 | AO163: 0
A164: =Feuil3!A164 -> 0 | B164: =Tableau1[[#This Row],[رقم الحساب]] ->  | C164: =Feuil3!B164 -> 0 | D164: =Feuil3!C164 -> 0 | E164: =Feuil3!D164 -> 0 | F164: =Feuil3!E164 -> 0 | G164: =Feuil3!F164 -> 0 | H164: =Feuil3!G164 -> 0 | I164: =Feuil3!H164 -> 0 | J164: =Feuil3!I164 -> 0 | AO164: 0
A165: =Feuil3!A165 -> 0 | B165: =Tableau1[[#This Row],[رقم الحساب]] ->  | C165: =Feuil3!B165 -> 0 | D165: =Feuil3!C165 -> 0 | E165: =Feuil3!D165 -> 0 | F165: =Feuil3!E165 -> 0 | G165: =Feuil3!F165 -> 0 | H165: =Feuil3!G165 -> 0 | I165: =Feuil3!H165 -> 0 | J165: =Feuil3!I165 -> 0 | AO165: 0
A166: =Feuil3!A166 -> 0 | B166: =Tableau1[[#This Row],[رقم الحساب]] ->  | C166: =Feuil3!B166 -> 0 | D166: =Feuil3!C166 -> 0 | E166: =Feuil3!D166 -> 0 | F166: =Feuil3!E166 -> 0 | G166: =Feuil3!F166 -> 0 | H166: =Feuil3!G166 -> 0 | I166: =Feuil3!H166 -> 0 | J166: =Feuil3!I166 -> 0 | AO166: 0
A167: =Feuil3!A167 -> 0 | B167: =Tableau1[[#This Row],[رقم الحساب]] ->  | C167: =Feuil3!B167 -> 0 | D167: =Feuil3!C167 -> 0 | E167: =Feuil3!D167 -> 0 | F167: =Feuil3!E167 -> 0 | G167: =Feuil3!F167 -> 0 | H167: =Feuil3!G167 -> 0 | I167: =Feuil3!H167 -> 0 | J167: =Feuil3!I167 -> 0 | AO167: 0
A168: =Feuil3!A168 -> 0 | B168: =Tableau1[[#This Row],[رقم الحساب]] ->  | C168: =Feuil3!B168 -> 0 | D168: =Feuil3!C168 -> 0 | E168: =Feuil3!D168 -> 0 | F168: =Feuil3!E168 -> 0 | G168: =Feuil3!F168 -> 0 | H168: =Feuil3!G168 -> 0 | I168: =Feuil3!H168 -> 0 | J168: =Feuil3!I168 -> 0 | AO168: 0
A169: =Feuil3!A169 -> 0 | B169: =Tableau1[[#This Row],[رقم الحساب]] ->  | C169: =Feuil3!B169 -> 0 | D169: =Feuil3!C169 -> 0 | E169: =Feuil3!D169 -> 0 | F169: =Feuil3!E169 -> 0 | G169: =Feuil3!F169 -> 0 | H169: =Feuil3!G169 -> 0 | I169: =Feuil3!H169 -> 0 | J169: =Feuil3!I169 -> 0 | AO169: 0
A170: =Feuil3!A170 -> 0 | B170: =Tableau1[[#This Row],[رقم الحساب]] ->  | C170: =Feuil3!B170 -> 0 | D170: =Feuil3!C170 -> 0 | E170: =Feuil3!D170 -> 0 | F170: =Feuil3!E170 -> 0 | G170: =Feuil3!F170 -> 0 | H170: =Feuil3!G170 -> 0 | I170: =Feuil3!H170 -> 0 | J170: =Feuil3!I170 -> 0 | AO170: 0
A171: =Feuil3!A171 -> 0 | B171: =Tableau1[[#This Row],[رقم الحساب]] ->  | C171: =Feuil3!B171 -> 0 | D171: =Feuil3!C171 -> 0 | E171: =Feuil3!D171 -> 0 | F171: =Feuil3!E171 -> 0 | G171: =Feuil3!F171 -> 0 | H171: =Feuil3!G171 -> 0 | I171: =Feuil3!H171 -> 0 | J171: =Feuil3!I171 -> 0 | AO171: 0
A172: =Feuil3!A172 -> 0 | B172: =Tableau1[[#This Row],[رقم الحساب]] ->  | C172: =Feuil3!B172 -> 0 | D172: =Feuil3!C172 -> 0 | E172: =Feuil3!D172 -> 0 | F172: =Feuil3!E172 -> 0 | G172: =Feuil3!F172 -> 0 | H172: =Feuil3!G172 -> 0 | I172: =Feuil3!H172 -> 0 | J172: =Feuil3!I172 -> 0 | AO172: 0
A173: =Feuil3!A173 -> 0 | B173: =Tableau1[[#This Row],[رقم الحساب]] ->  | C173: =Feuil3!B173 -> 0 | D173: =Feuil3!C173 -> 0 | E173: =Feuil3!D173 -> 0 | F173: =Feuil3!E173 -> 0 | G173: =Feuil3!F173 -> 0 | H173: =Feuil3!G173 -> 0 | I173: =Feuil3!H173 -> 0 | J173: =Feuil3!I173 -> 0 | AO173: 0
A174: =Feuil3!A174 -> 0 | B174: =Tableau1[[#This Row],[رقم الحساب]] ->  | C174: =Feuil3!B174 -> 0 | D174: =Feuil3!C174 -> 0 | E174: =Feuil3!D174 -> 0 | F174: =Feuil3!E174 -> 0 | G174: =Feuil3!F174 -> 0 | H174: =Feuil3!G174 -> 0 | I174: =Feuil3!H174 -> 0 | J174: =Feuil3!I174 -> 0 | AO174: 0
A175: =Feuil3!A175 -> 0 | B175: =Tableau1[[#This Row],[رقم الحساب]] ->  | C175: =Feuil3!B175 -> 0 | D175: =Feuil3!C175 -> 0 | E175: =Feuil3!D175 -> 0 | F175: =Feuil3!E175 -> 0 | G175: =Feuil3!F175 -> 0 | H175: =Feuil3!G175 -> 0 | I175: =Feuil3!H175 -> 0 | J175: =Feuil3!I175 -> 0 | AO175: 0
A176: =Feuil3!A176 -> 0 | B176: =Tableau1[[#This Row],[رقم الحساب]] ->  | C176: =Feuil3!B176 -> 0 | D176: =Feuil3!C176 -> 0 | E176: =Feuil3!D176 -> 0 | F176: =Feuil3!E176 -> 0 | G176: =Feuil3!F176 -> 0 | H176: =Feuil3!G176 -> 0 | I176: =Feuil3!H176 -> 0 | J176: =Feuil3!I176 -> 0 | AO176: 0
A177: =Feuil3!A177 -> 0 | B177: =Tableau1[[#This Row],[رقم الحساب]] ->  | C177: =Feuil3!B177 -> 0 | D177: =Feuil3!C177 -> 0 | E177: =Feuil3!D177 -> 0 | F177: =Feuil3!E177 -> 0 | G177: =Feuil3!F177 -> 0 | H177: =Feuil3!G177 -> 0 | I177: =Feuil3!H177 -> 0 | J177: =Feuil3!I177 -> 0 | AO177: 0
A178: =Feuil3!A178 -> 0 | B178: =Tableau1[[#This Row],[رقم الحساب]] ->  | C178: =Feuil3!B178 -> 0 | D178: =Feuil3!C178 -> 0 | E178: =Feuil3!D178 -> 0 | F178: =Feuil3!E178 -> 0 | G178: =Feuil3!F178 -> 0 | H178: =Feuil3!G178 -> 0 | I178: =Feuil3!H178 -> 0 | J178: =Feuil3!I178 -> 0 | AO178: 0
A179: =Feuil3!A179 -> 0 | B179: =Tableau1[[#This Row],[رقم الحساب]] ->  | C179: =Feuil3!B179 -> 0 | D179: =Feuil3!C179 -> 0 | E179: =Feuil3!D179 -> 0 | F179: =Feuil3!E179 -> 0 | G179: =Feuil3!F179 -> 0 | H179: =Feuil3!G179 -> 0 | I179: =Feuil3!H179 -> 0 | J179: =Feuil3!I179 -> 0 | AO179: 0
A180: =Feuil3!A180 -> 0 | B180: =Tableau1[[#This Row],[رقم الحساب]] ->  | C180: =Feuil3!B180 -> 0 | D180: =Feuil3!C180 -> 0 | E180: =Feuil3!D180 -> 0 | F180: =Feuil3!E180 -> 0 | G180: =Feuil3!F180 -> 0 | H180: =Feuil3!G180 -> 0 | I180: =Feuil3!H180 -> 0 | J180: =Feuil3!I180 -> 0 | AO180: 0
A181: =Feuil3!A181 -> 0 | B181: =Tableau1[[#This Row],[رقم الحساب]] ->  | C181: =Feuil3!B181 -> 0 | D181: =Feuil3!C181 -> 0 | E181: =Feuil3!D181 -> 0 | F181: =Feuil3!E181 -> 0 | G181: =Feuil3!F181 -> 0 | H181: =Feuil3!G181 -> 0 | I181: =Feuil3!H181 -> 0 | J181: =Feuil3!I181 -> 0 | AO181: 0
A182: =Feuil3!A182 -> 0 | B182: =Tableau1[[#This Row],[رقم الحساب]] ->  | C182: =Feuil3!B182 -> 0 | D182: =Feuil3!C182 -> 0 | E182: =Feuil3!D182 -> 0 | F182: =Feuil3!E182 -> 0 | G182: =Feuil3!F182 -> 0 | H182: =Feuil3!G182 -> 0 | I182: =Feuil3!H182 -> 0 | J182: =Feuil3!I182 -> 0 | AO182: 0
A183: =Feuil3!A183 -> 0 | B183: =Tableau1[[#This Row],[رقم الحساب]] ->  | C183: =Feuil3!B183 -> 0 | D183: =Feuil3!C183 -> 0 | E183: =Feuil3!D183 -> 0 | F183: =Feuil3!E183 -> 0 | G183: =Feuil3!F183 -> 0 | H183: =Feuil3!G183 -> 0 | I183: =Feuil3!H183 -> 0 | J183: =Feuil3!I183 -> 0 | AO183: 0
A184: =Feuil3!A184 -> 0 | B184: =Tableau1[[#This Row],[رقم الحساب]] ->  | C184: =Feuil3!B184 -> 0 | D184: =Feuil3!C184 -> 0 | E184: =Feuil3!D184 -> 0 | F184: =Feuil3!E184 -> 0 | G184: =Feuil3!F184 -> 0 | H184: =Feuil3!G184 -> 0 | I184: =Feuil3!H184 -> 0 | J184: =Feuil3!I184 -> 0 | AO184: 0
A185: =Feuil3!A185 -> 0 | B185: =Tableau1[[#This Row],[رقم الحساب]] ->  | C185: =Feuil3!B185 -> 0 | D185: =Feuil3!C185 -> 0 | E185: =Feuil3!D185 -> 0 | F185: =Feuil3!E185 -> 0 | G185: =Feuil3!F185 -> 0 | H185: =Feuil3!G185 -> 0 | I185: =Feuil3!H185 -> 0 | J185: =Feuil3!I185 -> 0 | AO185: 0
A186: =Feuil3!A186 -> 0 | B186: =Tableau1[[#This Row],[رقم الحساب]] ->  | C186: =Feuil3!B186 -> 0 | D186: =Feuil3!C186 -> 0 | E186: =Feuil3!D186 -> 0 | F186: =Feuil3!E186 -> 0 | G186: =Feuil3!F186 -> 0 | H186: =Feuil3!G186 -> 0 | I186: =Feuil3!H186 -> 0 | J186: =Feuil3!I186 -> 0 | AO186: 0
A187: =Feuil3!A187 -> 0 | B187: =Tableau1[[#This Row],[رقم الحساب]] ->  | C187: =Feuil3!B187 -> 0 | D187: =Feuil3!C187 -> 0 | E187: =Feuil3!D187 -> 0 | F187: =Feuil3!E187 -> 0 | G187: =Feuil3!F187 -> 0 | H187: =Feuil3!G187 -> 0 | I187: =Feuil3!H187 -> 0 | J187: =Feuil3!I187 -> 0 | AO187: 0
A188: =Feuil3!A188 -> 0 | B188: =Tableau1[[#This Row],[رقم الحساب]] ->  | C188: =Feuil3!B188 -> 0 | D188: =Feuil3!C188 -> 0 | E188: =Feuil3!D188 -> 0 | F188: =Feuil3!E188 -> 0 | G188: =Feuil3!F188 -> 0 | H188: =Feuil3!G188 -> 0 | I188: =Feuil3!H188 -> 0 | J188: =Feuil3!I188 -> 0 | AO188: 0
A189: =Feuil3!A189 -> 0 | B189: =Tableau1[[#This Row],[رقم الحساب]] ->  | C189: =Feuil3!B189 -> 0 | D189: =Feuil3!C189 -> 0 | E189: =Feuil3!D189 -> 0 | F189: =Feuil3!E189 -> 0 | G189: =Feuil3!F189 -> 0 | H189: =Feuil3!G189 -> 0 | I189: =Feuil3!H189 -> 0 | J189: =Feuil3!I189 -> 0 | AO189: 0
A190: =Feuil3!A190 -> 0 | B190: =Tableau1[[#This Row],[رقم الحساب]] ->  | C190: =Feuil3!B190 -> 0 | D190: =Feuil3!C190 -> 0 | E190: =Feuil3!D190 -> 0 | F190: =Feuil3!E190 -> 0 | G190: =Feuil3!F190 -> 0 | H190: =Feuil3!G190 -> 0 | I190: =Feuil3!H190 -> 0 | J190: =Feuil3!I190 -> 0 | AO190: 0
A191: =Feuil3!A191 -> 0 | B191: =Tableau1[[#This Row],[رقم الحساب]] ->  | C191: =Feuil3!B191 -> 0 | D191: =Feuil3!C191 -> 0 | E191: =Feuil3!D191 -> 0 | F191: =Feuil3!E191 -> 0 | G191: =Feuil3!F191 -> 0 | H191: =Feuil3!G191 -> 0 | I191: =Feuil3!H191 -> 0 | J191: =Feuil3!I191 -> 0 | AO191: 0
A192: =Feuil3!A192 -> 0 | B192: =Tableau1[[#This Row],[رقم الحساب]] ->  | C192: =Feuil3!B192 -> 0 | D192: =Feuil3!C192 -> 0 | E192: =Feuil3!D192 -> 0 | F192: =Feuil3!E192 -> 0 | G192: =Feuil3!F192 -> 0 | H192: =Feuil3!G192 -> 0 | I192: =Feuil3!H192 -> 0 | J192: =Feuil3!I192 -> 0 | AO192: 0
A193: =Feuil3!A193 -> 0 | B193: =Tableau1[[#This Row],[رقم الحساب]] ->  | C193: =Feuil3!B193 -> 0 | D193: =Feuil3!C193 -> 0 | E193: =Feuil3!D193 -> 0 | F193: =Feuil3!E193 -> 0 | G193: =Feuil3!F193 -> 0 | H193: =Feuil3!G193 -> 0 | I193: =Feuil3!H193 -> 0 | J193: =Feuil3!I193 -> 0 | AO193: 0
A194: =Feuil3!A194 -> 0 | B194: =Tableau1[[#This Row],[رقم الحساب]] ->  | C194: =Feuil3!B194 -> 0 | D194: =Feuil3!C194 -> 0 | E194: =Feuil3!D194 -> 0 | F194: =Feuil3!E194 -> 0 | G194: =Feuil3!F194 -> 0 | H194: =Feuil3!G194 -> 0 | I194: =Feuil3!H194 -> 0 | J194: =Feuil3!I194 -> 0 | AO194: 0
A195: =Feuil3!A195 -> 0 | B195: =Tableau1[[#This Row],[رقم الحساب]] ->  | C195: =Feuil3!B195 -> 0 | D195: =Feuil3!C195 -> 0 | E195: =Feuil3!D195 -> 0 | F195: =Feuil3!E195 -> 0 | G195: =Feuil3!F195 -> 0 | H195: =Feuil3!G195 -> 0 | I195: =Feuil3!H195 -> 0 | J195: =Feuil3!I195 -> 0 | AO195: =A195 -> 0
A196: =Feuil3!A196 -> 0 | B196: =Tableau1[[#This Row],[رقم الحساب]] ->  | C196: =Feuil3!B196 -> 0 | D196: =Feuil3!C196 -> 0 | E196: =Feuil3!D196 -> 0 | F196: =Feuil3!E196 -> 0 | G196: =Feuil3!F196 -> 0 | H196: =Feuil3!G196 -> 0 | I196: =Feuil3!H196 -> 0 | J196: =Feuil3!I196 -> 0 | AO196: 0
A197: =Feuil3!A197 -> 0 | B197: =Tableau1[[#This Row],[رقم الحساب]] ->  | C197: =Feuil3!B197 -> 0 | D197: =Feuil3!C197 -> 0 | E197: =Feuil3!D197 -> 0 | F197: =Feuil3!E197 -> 0 | G197: =Feuil3!F197 -> 0 | H197: =Feuil3!G197 -> 0 | I197: =Feuil3!H197 -> 0 | J197: =Feuil3!I197 -> 0 | AO197: 0
A198: =Feuil3!A198 -> 0 | B198: =Tableau1[[#This Row],[رقم الحساب]] ->  | C198: =Feuil3!B198 -> 0 | D198: =Feuil3!C198 -> 0 | E198: =Feuil3!D198 -> 0 | F198: =Feuil3!E198 -> 0 | G198: =Feuil3!F198 -> 0 | H198: =Feuil3!G198 -> 0 | I198: =Feuil3!H198 -> 0 | J198: =Feuil3!I198 -> 0 | AO198: 0
A199: =Feuil3!A199 -> 0 | B199: =Tableau1[[#This Row],[رقم الحساب]] ->  | C199: =Feuil3!B199 -> 0 | D199: =Feuil3!C199 -> 0 | E199: =Feuil3!D199 -> 0 | F199: =Feuil3!E199 -> 0 | G199: =Feuil3!F199 -> 0 | H199: =Feuil3!G199 -> 0 | I199: =Feuil3!H199 -> 0 | J199: =Feuil3!I199 -> 0 | AO199: 0
A200: =Feuil3!A200 -> 0 | B200: =Tableau1[[#This Row],[رقم الحساب]] ->  | C200: =Feuil3!B200 -> 0 | D200: =Feuil3!C200 -> 0 | E200: =Feuil3!D200 -> 0 | F200: =Feuil3!E200 -> 0 | G200: =Feuil3!F200 -> 0 | H200: =Feuil3!G200 -> 0 | I200: =Feuil3!H200 -> 0 | J200: =Feuil3!I200 -> 0 | AO200: 0
... 11 more rows

Sheet دخـــــــــــول
A5: GESTION DES PAIES
L6: بسم الله الرحمان الرحيم
L7: هذه النسخة التجريبية الاولى من برنامج تسيير كشف الراتب
L8: version 1,00
B12: Araba Charif
K16: A | L16: B | M16: T
D18: للطباعة ادخل رقم الحساب اسفله | J18: 1- bouton Microsoft office
D19: 1020 | J19: 2- Options Excel
J20: 3- Centre de gestion de la confidentialité
J21: 4- Paramètres du centre de gestion de la confidentialité
J22: 5- Paramètre des macros
J23: Activité toute les macros

Sheet Feuil6
A1: =Feuil1!A1 -> الجمهورية الجزائرية الديمقراطية الشعبية
A2: =Feuil1!A2 -> وزارة التربية الوطنية
A3: =Feuil1!A3 -> مديرية التربية
A4: =Feuil1!A4 -> مديرية التربية
A5: =Feuil1!A5 -> كشف الراتب لشهر:
A6: =Feuil1!A6 -> 2014 | D6: =Feuil1!D6 -> فيفري
A7: =Feuil1!A7 -> أعزب | B7: الحالة العائلية | E7: =Feuil1!E7 -> شريف | F7: الاســـــــــــــــــم
A8: =Feuil1!A8 -> 12 | B8: الدرجـــــــــة | E8: =Feuil1!E8 -> عرابة | F8: اللقــــــــــــــــــب
E9: =Feuil1!E9 -> 13 | F9: الصـــــــــــــــنف
A10: =Feuil1!A10 -> 1020 | B10: رقم الحساب | E10: =Feuil1!E10 -> طب | F10: الإطــــــــــــــــــار
E11: =Feuil1!E11 -> 14 | F11: القســــــــــــــــــم
A13: المبالــــــــــــــغ | B13: الاقتطاعــــــــــات | E13: المبالـــــــــــغ | F13: المنـــــــــــــــــح
A14: =Feuil1!A14 -> 1000 | B14: =Feuil1!B14 -> yynynynyn | E14: =Feuil1!E14 -> 12000 | F14: =Feuil1!F14 -> ujujuj
A15: =Feuil1!A15 -> 2000 | B15: =Feuil1!B15 -> nununu | E15: =Feuil1!E15 -> 20000 | F15: =Feuil1!F15 -> uj-uju-j
A16: =Feuil1!A16 -> 0 | B16: =Feuil1!B16 -> / | E16: =Feuil1!E16 -> 25000 | F16: =Feuil1!F16 -> -jrtgth
A17: =Feuil1!A17 -> 0 | B17: =Feuil1!B17 -> / | E17: =Feuil1!E17 -> 0 | F17: =Feuil1!F17 -> /
A18: =Feuil1!A18 -> 0 | B18: =Feuil1!B18 -> / | E18: =Feuil1!E18 -> 0 | F18: =Feuil1!F18 -> /
A19: =Feuil1!A19 -> 0 | B19: =Feuil1!B19 -> / | E19: =Feuil1!E19 -> 0 | F19: =Feuil1!F19 -> /
A20: =Feuil1!A20 -> 0 | B20: =Feuil1!B20 -> / | E20: =Feuil1!E20 -> 0 | F20: =Feuil1!F20 -> /
A21: =Feuil1!A21 -> 0 | B21: =Feuil1!B21 -> / | E21: =Feuil1!E21 -> 0 | F21: =Feuil1!F21 -> /
E22: =Feuil1!E22 -> 0 | F22: =Feuil1!F22 -> /
E23: =Feuil1!E23 -> 0 | F23: =Feuil1!F23 -> /
E24: =Feuil1!E24 -> 30000 | F24: =Feuil1!F24 -> 0
E25: =Feuil1!E25 -> 40000 | F25: =Feuil1!F25 -> 0
E26: =Feuil1!E26 -> 30000 | F26: =Feuil1!F26 -> 0
E27: =Feuil1!E27 -> 30000 | F27: =Feuil1!F27 -> 0
E28: =Feuil1!E28 -> 0 | F28: =Feuil1!F28 -> /
E29: =Feuil1!E29 -> 0 | F29: =Feuil1!F29 -> /
E30: =Feuil1!E30 -> 0 | F30: =Feuil1!F30 -> /
E31: =Feuil1!E31 -> 0 | F31: =Feuil1!F31 -> /
A32: =Feuil1!A32 -> 3000 | B32: =Feuil1!B32 -> مجمل الاقتطاعات | E32: =Feuil1!E32 -> 187000 | F32: =Feuil1!F32 -> المجموع الخام
A34: =Feuil1!A34 -> 184000 | E34: =Feuil1!E34 -> الراتب الشهري الصافي
F36: =Feuil1!F36 -> المقتصد
E37: =Feuil1!F37 -> عرابة شريف
B38: =Feuil1!B38 -> 2013-01-11

Sheet Feuil7
A1: الرقم | B1: المنحة | D1: الرقم | E1: الاقتطاع | G1: =Feuil2!G1 -> المؤسسة | H1: =Feuil2!H1 -> الجهة الوصية | I1: =Feuil2!I1 -> المقتصد | J1: =Feuil2!J1 -> الوزارة
A2: =Feuil2!A2 -> 1 | B2: =Feuil2!B2 -> ujujuj | D2: =Feuil2!D2 -> 1 | E2: =Feuil2!E2 -> yynynynyn | G2: =Feuil2!G2 -> مديرية التربية | H2: =Feuil2!H2 -> مديرية التربية | I2: =Feuil2!I2 -> عرابة شريف | J2: =Feuil2!J2 -> وزارة التربية الوطنية
A3: =Feuil2!A3 -> 2 | B3: =Feuil2!B3 -> uj-uju-j | D3: =Feuil2!D3 -> 2 | E3: =Feuil2!E3 -> nununu
A4: =Feuil2!A4 -> 3 | B4: =Feuil2!B4 -> -jrtgth | D4: =Feuil2!D4 -> 3 | E4: =Feuil2!E4 -> 0 | G4: =Feuil2!G12 -> 4 | H4: =Feuil2!H12 -> 3
A5: =Feuil2!A5 -> 4 | B5: =Feuil2!B5 -> 0 | D5: =Feuil2!D5 -> 0 | E5: =Feuil2!E5 -> 0
A6: =Feuil2!A6 -> 0 | B6: =Feuil2!B6 -> 0 | D6: =Feuil2!D6 -> 0 | E6: =Feuil2!E6 -> 0
A7: =Feuil2!A7 -> 0 | B7: =Feuil2!B7 -> 0 | D7: =Feuil2!D7 -> 0 | E7: =Feuil2!E7 -> 0
A8: =Feuil2!A8 -> 0 | B8: =Feuil2!B8 -> 0 | D8: =Feuil2!D8 -> 0 | E8: =Feuil2!E8 -> 0
A9: =Feuil2!A9 -> 0 | B9: =Feuil2!B9 -> 0 | D9: =Feuil2!D9 -> 0 | E9: =Feuil2!E9 -> 0
A10: =Feuil2!A10 -> 0 | B10: =Feuil2!B10 -> 0 | D10: =Feuil2!D10 -> 0 | E10: =Feuil2!E10 -> 0
A11: =Feuil2!A11 -> 0 | B11: =Feuil2!B11 -> 0
A12: =Feuil2!A12 -> 0 | B12: =Feuil2!B12 -> 0
A13: =Feuil2!A13 -> 0 | B13: =Feuil2!B13 -> 0
A14: =Feuil2!A14 -> 0 | B14: =Feuil2!B14 -> 0
A15: =Feuil2!A15 -> 0 | B15: =Feuil2!B15 -> 0
A16: =Feuil2!A16 -> 0 | B16: =Feuil2!B16 -> 0
A17: =Feuil2!A17 -> 0 | B17: =Feuil2!B17 -> 0
A18: =Feuil2!A18 -> 0 | B18: =Feuil2!B18 -> 0
A19: =Feuil2!A19 -> 0 | B19: =Feuil2!B19 -> 0

Sheet Feuil8
A1: الرقم | B1: الاسم | C1: اللقب | D1: الصنف | E1: الاطار | F1: القسم | G1: الحالة العائلية | H1: الدرجة | I1: رقم الحساب
A2: =Tableau1[[#This Row],[الرقم]] -> 1 | B2: =Tableau1[[#This Row],[الاسم]] -> شريف | C2: =Tableau1[[#This Row],[اللقب]] -> عرابة | D2: =Tableau1[[#This Row],[الصنف]] -> 13 | E2: =Tableau1[[#This Row],[الاطار]] -> طب | F2: =Tableau1[[#This Row],[القسم]] -> 14 | G2: =Tableau1[[#This Row],[الحالة العائلية]] -> أعزب | H2: =Tableau1[[#This Row],[الدرجة]] -> 12 | I2: =Tableau1[[#This Row],[رقم الحساب]] -> 1020
A3: =Tableau1[[#This Row],[الرقم]] -> 2 | B3: =Tableau1[[#This Row],[الاسم]] -> خالد | C3: =Tableau1[[#This Row],[اللقب]] -> اقتلقل | D3: =Tableau1[[#This Row],[الصنف]] -> 6 | E3: =Tableau1[[#This Row],[الاطار]] -> لاىتات | F3: =Tableau1[[#This Row],[القسم]] -> 2 | G3: =Tableau1[[#This Row],[الحالة العائلية]] -> متزوج | H3: =Tableau1[[#This Row],[الدرجة]] -> 12 | I3: =Tableau1[[#This Row],[رقم الحساب]] -> 1000
A4: =Tableau1[[#This Row],[الرقم]] -> 3 | B4: =Tableau1[[#This Row],[الاسم]] -> تجريب | C4: =Tableau1[[#This Row],[اللقب]] -> البرنامج | D4: =Tableau1[[#This Row],[الصنف]] -> 12 | E4: =Tableau1[[#This Row],[الاطار]] -> استاذ | F4: =Tableau1[[#This Row],[القسم]] -> 12 | G4: =Tableau1[[#This Row],[الحالة العائلية]] -> متزوج | H4: =Tableau1[[#This Row],[الدرجة]] -> 2 | I4: =Tableau1[[#This Row],[رقم الحساب]] -> 1230
A5: =Tableau1[[#This Row],[الرقم]] -> 4 | B5: =Tableau1[[#This Row],[الاسم]] -> 0 | C5: =Tableau1[[#This Row],[اللقب]] -> 0 | D5: =Tableau1[[#This Row],[الصنف]] -> 0 | E5: =Tableau1[[#This Row],[الاطار]] -> 0 | F5: =Tableau1[[#This Row],[القسم]] -> 0 | G5: =Tableau1[[#This Row],[الحالة العائلية]] -> 0 | H5: =Tableau1[[#This Row],[الدرجة]] -> 0 | I5: =Tableau1[[#This Row],[رقم الحساب]] -> 0
A6: =Tableau1[[#This Row],[الرقم]] ->  | B6: =Tableau1[[#This Row],[الاسم]] ->  | C6: =Tableau1[[#This Row],[اللقب]] ->  | D6: =Tableau1[[#This Row],[الصنف]] ->  | E6: =Tableau1[[#This Row],[الاطار]] ->  | F6: =Tableau1[[#This Row],[القسم]] ->  | G6: =Tableau1[[#This Row],[الحالة العائلية]] ->  | H6: =Tableau1[[#This Row],[الدرجة]] ->  | I6: =Tableau1[[#This Row],[رقم الحساب]] -> 
A7: =Tableau1[[#This Row],[الرقم]] ->  | B7: =Tableau1[[#This Row],[الاسم]] ->  | C7: =Tableau1[[#This Row],[اللقب]] ->  | D7: =Tableau1[[#This Row],[الصنف]] ->  | E7: =Tableau1[[#This Row],[الاطار]] ->  | F7: =Tableau1[[#This Row],[القسم]] ->  | G7: =Tableau1[[#This Row],[الحالة العائلية]] ->  | H7: =Tableau1[[#This Row],[الدرجة]] ->  | I7: =Tableau1[[#This Row],[رقم الحساب]] -> 
A8: =Tableau1[[#This Row],[الرقم]] ->  | B8: =Tableau1[[#This Row],[الاسم]] ->  | C8: =Tableau1[[#This Row],[اللقب]] ->  | D8: =Tableau1[[#This Row],[الصنف]] ->  | E8: =Tableau1[[#This Row],[الاطار]] ->  | F8: =Tableau1[[#This Row],[القسم]] ->  | G8: =Tableau1[[#This Row],[الحالة العائلية]] ->  | H8: =Tableau1[[#This Row],[الدرجة]] ->  | I8: =Tableau1[[#This Row],[رقم الحساب]] -> 
A9: =Tableau1[[#This Row],[الرقم]] ->  | B9: =Tableau1[[#This Row],[الاسم]] ->  | C9: =Tableau1[[#This Row],[اللقب]] ->  | D9: =Tableau1[[#This Row],[الصنف]] ->  | E9: =Tableau1[[#This Row],[الاطار]] ->  | F9: =Tableau1[[#This Row],[القسم]] ->  | G9: =Tableau1[[#This Row],[الحالة العائلية]] ->  | H9: =Tableau1[[#This Row],[الدرجة]] ->  | I9: =Tableau1[[#This Row],[رقم الحساب]] -> 
A10: =Tableau1[[#This Row],[الرقم]] ->  | B10: =Tableau1[[#This Row],[الاسم]] ->  | C10: =Tableau1[[#This Row],[اللقب]] ->  | D10: =Tableau1[[#This Row],[الصنف]] ->  | E10: =Tableau1[[#This Row],[الاطار]] ->  | F10: =Tableau1[[#This Row],[القسم]] ->  | G10: =Tableau1[[#This Row],[الحالة العائلية]] ->  | H10: =Tableau1[[#This Row],[الدرجة]] ->  | I10: =Tableau1[[#This Row],[رقم الحساب]] -> 
A11: =Tableau1[[#This Row],[الرقم]] ->  | B11: =Tableau1[[#This Row],[الاسم]] ->  | C11: =Tableau1[[#This Row],[اللقب]] ->  | D11: =Tableau1[[#This Row],[الصنف]] ->  | E11: =Tableau1[[#This Row],[الاطار]] ->  | F11: =Tableau1[[#This Row],[القسم]] ->  | G11: =Tableau1[[#This Row],[الحالة العائلية]] ->  | H11: =Tableau1[[#This Row],[الدرجة]] ->  | I11: =Tableau1[[#This Row],[رقم الحساب]] -> 
A12: =Tableau1[[#This Row],[الرقم]] ->  | B12: =Tableau1[[#This Row],[الاسم]] ->  | C12: =Tableau1[[#This Row],[اللقب]] ->  | D12: =Tableau1[[#This Row],[الصنف]] ->  | E12: =Tableau1[[#This Row],[الاطار]] ->  | F12: =Tableau1[[#This Row],[القسم]] ->  | G12: =Tableau1[[#This Row],[الحالة العائلية]] ->  | H12: =Tableau1[[#This Row],[الدرجة]] ->  | I12: =Tableau1[[#This Row],[رقم الحساب]] -> 
A13: =Tableau1[[#This Row],[الرقم]] ->  | B13: =Tableau1[[#This Row],[الاسم]] ->  | C13: =Tableau1[[#This Row],[اللقب]] ->  | D13: =Tableau1[[#This Row],[الصنف]] ->  | E13: =Tableau1[[#This Row],[الاطار]] ->  | F13: =Tableau1[[#This Row],[القسم]] ->  | G13: =Tableau1[[#This Row],[الحالة العائلية]] ->  | H13: =Tableau1[[#This Row],[الدرجة]] ->  | I13: =Tableau1[[#This Row],[رقم الحساب]] -> 
A14: =Tableau1[[#This Row],[الرقم]] ->  | B14: =Tableau1[[#This Row],[الاسم]] ->  | C14: =Tableau1[[#This Row],[اللقب]] ->  | D14: =Tableau1[[#This Row],[الصنف]] ->  | E14: =Tableau1[[#This Row],[الاطار]] ->  | F14: =Tableau1[[#This Row],[القسم]] ->  | G14: =Tableau1[[#This Row],[الحالة العائلية]] ->  | H14: =Tableau1[[#This Row],[الدرجة]] ->  | I14: =Tableau1[[#This Row],[رقم الحساب]] -> 
A15: =Tableau1[[#This Row],[الرقم]] ->  | B15: =Tableau1[[#This Row],[الاسم]] ->  | C15: =Tableau1[[#This Row],[اللقب]] ->  | D15: =Tableau1[[#This Row],[الصنف]] ->  | E15: =Tableau1[[#This Row],[الاطار]] ->  | F15: =Tableau1[[#This Row],[القسم]] ->  | G15: =Tableau1[[#This Row],[الحالة العائلية]] ->  | H15: =Tableau1[[#This Row],[الدرجة]] ->  | I15: =Tableau1[[#This Row],[رقم الحساب]] -> 
A16: =Tableau1[[#This Row],[الرقم]] ->  | B16: =Tableau1[[#This Row],[الاسم]] ->  | C16: =Tableau1[[#This Row],[اللقب]] ->  | D16: =Tableau1[[#This Row],[الصنف]] ->  | E16: =Tableau1[[#This Row],[الاطار]] ->  | F16: =Tableau1[[#This Row],[القسم]] ->  | G16: =Tableau1[[#This Row],[الحالة العائلية]] ->  | H16: =Tableau1[[#This Row],[الدرجة]] ->  | I16: =Tableau1[[#This Row],[رقم الحساب]] -> 
A17: =Tableau1[[#This Row],[الرقم]] ->  | B17: =Tableau1[[#This Row],[الاسم]] ->  | C17: =Tableau1[[#This Row],[اللقب]] ->  | D17: =Tableau1[[#This Row],[الصنف]] ->  | E17: =Tableau1[[#This Row],[الاطار]] ->  | F17: =Tableau1[[#This Row],[القسم]] ->  | G17: =Tableau1[[#This Row],[الحالة العائلية]] ->  | H17: =Tableau1[[#This Row],[الدرجة]] ->  | I17: =Tableau1[[#This Row],[رقم الحساب]] -> 
A18: =Tableau1[[#This Row],[الرقم]] ->  | B18: =Tableau1[[#This Row],[الاسم]] ->  | C18: =Tableau1[[#This Row],[اللقب]] ->  | D18: =Tableau1[[#This Row],[الصنف]] ->  | E18: =Tableau1[[#This Row],[الاطار]] ->  | F18: =Tableau1[[#This Row],[القسم]] ->  | G18: =Tableau1[[#This Row],[الحالة العائلية]] ->  | H18: =Tableau1[[#This Row],[الدرجة]] ->  | I18: =Tableau1[[#This Row],[رقم الحساب]] -> 
A19: =Tableau1[[#This Row],[الرقم]] ->  | B19: =Tableau1[[#This Row],[الاسم]] ->  | C19: =Tableau1[[#This Row],[اللقب]] ->  | D19: =Tableau1[[#This Row],[الصنف]] ->  | E19: =Tableau1[[#This Row],[الاطار]] ->  | F19: =Tableau1[[#This Row],[القسم]] ->  | G19: =Tableau1[[#This Row],[الحالة العائلية]] ->  | H19: =Tableau1[[#This Row],[الدرجة]] ->  | I19: =Tableau1[[#This Row],[رقم الحساب]] -> 
A20: =Tableau1[[#This Row],[الرقم]] ->  | B20: =Tableau1[[#This Row],[الاسم]] ->  | C20: =Tableau1[[#This Row],[اللقب]] ->  | D20: =Tableau1[[#This Row],[الصنف]] ->  | E20: =Tableau1[[#This Row],[الاطار]] ->  | F20: =Tableau1[[#This Row],[القسم]] ->  | G20: =Tableau1[[#This Row],[الحالة العائلية]] ->  | H20: =Tableau1[[#This Row],[الدرجة]] ->  | I20: =Tableau1[[#This Row],[رقم الحساب]] -> 
A21: =Tableau1[[#This Row],[الرقم]] ->  | B21: =Tableau1[[#This Row],[الاسم]] ->  | C21: =Tableau1[[#This Row],[اللقب]] ->  | D21: =Tableau1[[#This Row],[الصنف]] ->  | E21: =Tableau1[[#This Row],[الاطار]] ->  | F21: =Tableau1[[#This Row],[القسم]] ->  | G21: =Tableau1[[#This Row],[الحالة العائلية]] ->  | H21: =Tableau1[[#This Row],[الدرجة]] ->  | I21: =Tableau1[[#This Row],[رقم الحساب]] -> 
A22: =Tableau1[[#This Row],[الرقم]] ->  | B22: =Tableau1[[#This Row],[الاسم]] ->  | C22: =Tableau1[[#This Row],[اللقب]] ->  | D22: =Tableau1[[#This Row],[الصنف]] ->  | E22: =Tableau1[[#This Row],[الاطار]] ->  | F22: =Tableau1[[#This Row],[القسم]] ->  | G22: =Tableau1[[#This Row],[الحالة العائلية]] ->  | H22: =Tableau1[[#This Row],[الدرجة]] ->  | I22: =Tableau1[[#This Row],[رقم الحساب]] -> 
A23: =Tableau1[[#This Row],[الرقم]] ->  | B23: =Tableau1[[#This Row],[الاسم]] ->  | C23: =Tableau1[[#This Row],[اللقب]] ->  | D23: =Tableau1[[#This Row],[الصنف]] ->  | E23: =Tableau1[[#This Row],[الاطار]] ->  | F23: =Tableau1[[#This Row],[القسم]] ->  | G23: =Tableau1[[#This Row],[الحالة العائلية]] ->  | H23: =Tableau1[[#This Row],[الدرجة]] ->  | I23: =Tableau1[[#This Row],[رقم الحساب]] -> 
A24: =Tableau1[[#This Row],[الرقم]] ->  | B24: =Tableau1[[#This Row],[الاسم]] ->  | C24: =Tableau1[[#This Row],[اللقب]] ->  | D24: =Tableau1[[#This Row],[الصنف]] ->  | E24: =Tableau1[[#This Row],[الاطار]] ->  | F24: =Tableau1[[#This Row],[القسم]] ->  | G24: =Tableau1[[#This Row],[الحالة العائلية]] ->  | H24: =Tableau1[[#This Row],[الدرجة]] ->  | I24: =Tableau1[[#This Row],[رقم الحساب]] -> 
A25: =Tableau1[[#This Row],[الرقم]] ->  | B25: =Tableau1[[#This Row],[الاسم]] ->  | C25: =Tableau1[[#This Row],[اللقب]] ->  | D25: =Tableau1[[#This Row],[الصنف]] ->  | E25: =Tableau1[[#This Row],[الاطار]] ->  | F25: =Tableau1[[#This Row],[القسم]] ->  | G25: =Tableau1[[#This Row],[الحالة العائلية]] ->  | H25: =Tableau1[[#This Row],[الدرجة]] ->  | I25: =Tableau1[[#This Row],[رقم الحساب]] -> 
A26: =Tableau1[[#This Row],[الرقم]] ->  | B26: =Tableau1[[#This Row],[الاسم]] ->  | C26: =Tableau1[[#This Row],[اللقب]] ->  | D26: =Tableau1[[#This Row],[الصنف]] ->  | E26: =Tableau1[[#This Row],[الاطار]] ->  | F26: =Tableau1[[#This Row],[القسم]] ->  | G26: =Tableau1[[#This Row],[الحالة العائلية]] ->  | H26: =Tableau1[[#This Row],[الدرجة]] ->  | I26: =Tableau1[[#This Row],[رقم الحساب]] -> 
A27: =Tableau1[[#This Row],[الرقم]] ->  | B27: =Tableau1[[#This Row],[الاسم]] ->  | C27: =Tableau1[[#This Row],[اللقب]] ->  | D27: =Tableau1[[#This Row],[الصنف]] ->  | E27: =Tableau1[[#This Row],[الاطار]] ->  | F27: =Tableau1[[#This Row],[القسم]] ->  | G27: =Tableau1[[#This Row],[الحالة العائلية]] ->  | H27: =Tableau1[[#This Row],[الدرجة]] ->  | I27: =Tableau1[[#This Row],[رقم الحساب]] -> 
A28: =Tableau1[[#This Row],[الرقم]] ->  | B28: =Tableau1[[#This Row],[الاسم]] ->  | C28: =Tableau1[[#This Row],[اللقب]] ->  | D28: =Tableau1[[#This Row],[الصنف]] ->  | E28: =Tableau1[[#This Row],[الاطار]] ->  | F28: =Tableau1[[#This Row],[القسم]] ->  | G28: =Tableau1[[#This Row],[الحالة العائلية]] ->  | H28: =Tableau1[[#This Row],[الدرجة]] ->  | I28: =Tableau1[[#This Row],[رقم الحساب]] -> 
A29: =Tableau1[[#This Row],[الرقم]] ->  | B29: =Tableau1[[#This Row],[الاسم]] ->  | C29: =Tableau1[[#This Row],[اللقب]] ->  | D29: =Tableau1[[#This Row],[الصنف]] ->  | E29: =Tableau1[[#This Row],[الاطار]] ->  | F29: =Tableau1[[#This Row],[القسم]] ->  | G29: =Tableau1[[#This Row],[الحالة العائلية]] ->  | H29: =Tableau1[[#This Row],[الدرجة]] ->  | I29: =Tableau1[[#This Row],[رقم الحساب]] -> 
A30: =Tableau1[[#This Row],[الرقم]] ->  | B30: =Tableau1[[#This Row],[الاسم]] ->  | C30: =Tableau1[[#This Row],[اللقب]] ->  | D30: =Tableau1[[#This Row],[الصنف]] ->  | E30: =Tableau1[[#This Row],[الاطار]] ->  | F30: =Tableau1[[#This Row],[القسم]] ->  | G30: =Tableau1[[#This Row],[الحالة العائلية]] ->  | H30: =Tableau1[[#This Row],[الدرجة]] ->  | I30: =Tableau1[[#This Row],[رقم الحساب]] -> 
A31: =Tableau1[[#This Row],[الرقم]] ->  | B31: =Tableau1[[#This Row],[الاسم]] ->  | C31: =Tableau1[[#This Row],[اللقب]] ->  | D31: =Tableau1[[#This Row],[الصنف]] ->  | E31: =Tableau1[[#This Row],[الاطار]] ->  | F31: =Tableau1[[#This Row],[القسم]] ->  | G31: =Tableau1[[#This Row],[الحالة العائلية]] ->  | H31: =Tableau1[[#This Row],[الدرجة]] ->  | I31: =Tableau1[[#This Row],[رقم الحساب]] -> 
A32: =Tableau1[[#This Row],[الرقم]] ->  | B32: =Tableau1[[#This Row],[الاسم]] ->  | C32: =Tableau1[[#This Row],[اللقب]] ->  | D32: =Tableau1[[#This Row],[الصنف]] ->  | E32: =Tableau1[[#This Row],[الاطار]] ->  | F32: =Tableau1[[#This Row],[القسم]] ->  | G32: =Tableau1[[#This Row],[الحالة العائلية]] ->  | H32: =Tableau1[[#This Row],[الدرجة]] ->  | I32: =Tableau1[[#This Row],[رقم الحساب]] -> 
A33: =Tableau1[[#This Row],[الرقم]] ->  | B33: =Tableau1[[#This Row],[الاسم]] ->  | C33: =Tableau1[[#This Row],[اللقب]] ->  | D33: =Tableau1[[#This Row],[الصنف]] ->  | E33: =Tableau1[[#This Row],[الاطار]] ->  | F33: =Tableau1[[#This Row],[القسم]] ->  | G33: =Tableau1[[#This Row],[الحالة العائلية]] ->  | H33: =Tableau1[[#This Row],[الدرجة]] ->  | I33: =Tableau1[[#This Row],[رقم الحساب]] -> 
A34: =Tableau1[[#This Row],[الرقم]] ->  | B34: =Tableau1[[#This Row],[الاسم]] ->  | C34: =Tableau1[[#This Row],[اللقب]] ->  | D34: =Tableau1[[#This Row],[الصنف]] ->  | E34: =Tableau1[[#This Row],[الاطار]] ->  | F34: =Tableau1[[#This Row],[القسم]] ->  | G34: =Tableau1[[#This Row],[الحالة العائلية]] ->  | H34: =Tableau1[[#This Row],[الدرجة]] ->  | I34: =Tableau1[[#This Row],[رقم الحساب]] -> 
A35: =Tableau1[[#This Row],[الرقم]] ->  | B35: =Tableau1[[#This Row],[الاسم]] ->  | C35: =Tableau1[[#This Row],[اللقب]] ->  | D35: =Tableau1[[#This Row],[الصنف]] ->  | E35: =Tableau1[[#This Row],[الاطار]] ->  | F35: =Tableau1[[#This Row],[القسم]] ->  | G35: =Tableau1[[#This Row],[الحالة العائلية]] ->  | H35: =Tableau1[[#This Row],[الدرجة]] ->  | I35: =Tableau1[[#This Row],[رقم الحساب]] -> 
A36: =Tableau1[[#This Row],[الرقم]] ->  | B36: =Tableau1[[#This Row],[الاسم]] ->  | C36: =Tableau1[[#This Row],[اللقب]] ->  | D36: =Tableau1[[#This Row],[الصنف]] ->  | E36: =Tableau1[[#This Row],[الاطار]] ->  | F36: =Tableau1[[#This Row],[القسم]] ->  | G36: =Tableau1[[#This Row],[الحالة العائلية]] ->  | H36: =Tableau1[[#This Row],[الدرجة]] ->  | I36: =Tableau1[[#This Row],[رقم الحساب]] -> 
A37: =Tableau1[[#This Row],[الرقم]] ->  | B37: =Tableau1[[#This Row],[الاسم]] ->  | C37: =Tableau1[[#This Row],[اللقب]] ->  | D37: =Tableau1[[#This Row],[الصنف]] ->  | E37: =Tableau1[[#This Row],[الاطار]] ->  | F37: =Tableau1[[#This Row],[القسم]] ->  | G37: =Tableau1[[#This Row],[الحالة العائلية]] ->  | H37: =Tableau1[[#This Row],[الدرجة]] ->  | I37: =Tableau1[[#This Row],[رقم الحساب]] -> 
A38: =Tableau1[[#This Row],[الرقم]] ->  | B38: =Tableau1[[#This Row],[الاسم]] ->  | C38: =Tableau1[[#This Row],[اللقب]] ->  | D38: =Tableau1[[#This Row],[الصنف]] ->  | E38: =Tableau1[[#This Row],[الاطار]] ->  | F38: =Tableau1[[#This Row],[القسم]] ->  | G38: =Tableau1[[#This Row],[الحالة العائلية]] ->  | H38: =Tableau1[[#This Row],[الدرجة]] ->  | I38: =Tableau1[[#This Row],[رقم الحساب]] -> 
A39: =Tableau1[[#This Row],[الرقم]] ->  | B39: =Tableau1[[#This Row],[الاسم]] ->  | C39: =Tableau1[[#This Row],[اللقب]] ->  | D39: =Tableau1[[#This Row],[الصنف]] ->  | E39: =Tableau1[[#This Row],[الاطار]] ->  | F39: =Tableau1[[#This Row],[القسم]] ->  | G39: =Tableau1[[#This Row],[الحالة العائلية]] ->  | H39: =Tableau1[[#This Row],[الدرجة]] ->  | I39: =Tableau1[[#This Row],[رقم الحساب]] -> 
A40: =Tableau1[[#This Row],[الرقم]] ->  | B40: =Tableau1[[#This Row],[الاسم]] ->  | C40: =Tableau1[[#This Row],[اللقب]] ->  | D40: =Tableau1[[#This Row],[الصنف]] ->  | E40: =Tableau1[[#This Row],[الاطار]] ->  | F40: =Tableau1[[#This Row],[القسم]] ->  | G40: =Tableau1[[#This Row],[الحالة العائلية]] ->  | H40: =Tableau1[[#This Row],[الدرجة]] ->  | I40: =Tableau1[[#This Row],[رقم الحساب]] -> 
A41: =Tableau1[[#This Row],[الرقم]] ->  | B41: =Tableau1[[#This Row],[الاسم]] ->  | C41: =Tableau1[[#This Row],[اللقب]] ->  | D41: =Tableau1[[#This Row],[الصنف]] ->  | E41: =Tableau1[[#This Row],[الاطار]] ->  | F41: =Tableau1[[#This Row],[القسم]] ->  | G41: =Tableau1[[#This Row],[الحالة العائلية]] ->  | H41: =Tableau1[[#This Row],[الدرجة]] ->  | I41: =Tableau1[[#This Row],[رقم الحساب]] -> 
A42: =Tableau1[[#This Row],[الرقم]] ->  | B42: =Tableau1[[#This Row],[الاسم]] ->  | C42: =Tableau1[[#This Row],[اللقب]] ->  | D42: =Tableau1[[#This Row],[الصنف]] ->  | E42: =Tableau1[[#This Row],[الاطار]] ->  | F42: =Tableau1[[#This Row],[القسم]] ->  | G42: =Tableau1[[#This Row],[الحالة العائلية]] ->  | H42: =Tableau1[[#This Row],[الدرجة]] ->  | I42: =Tableau1[[#This Row],[رقم الحساب]] -> 
A43: =Tableau1[[#This Row],[الرقم]] ->  | B43: =Tableau1[[#This Row],[الاسم]] ->  | C43: =Tableau1[[#This Row],[اللقب]] ->  | D43: =Tableau1[[#This Row],[الصنف]] ->  | E43: =Tableau1[[#This Row],[الاطار]] ->  | F43: =Tableau1[[#This Row],[القسم]] ->  | G43: =Tableau1[[#This Row],[الحالة العائلية]] ->  | H43: =Tableau1[[#This Row],[الدرجة]] ->  | I43: =Tableau1[[#This Row],[رقم الحساب]] -> 
A44: =Tableau1[[#This Row],[الرقم]] ->  | B44: =Tableau1[[#This Row],[الاسم]] ->  | C44: =Tableau1[[#This Row],[اللقب]] ->  | D44: =Tableau1[[#This Row],[الصنف]] ->  | E44: =Tableau1[[#This Row],[الاطار]] ->  | F44: =Tableau1[[#This Row],[القسم]] ->  | G44: =Tableau1[[#This Row],[الحالة العائلية]] ->  | H44: =Tableau1[[#This Row],[الدرجة]] ->  | I44: =Tableau1[[#This Row],[رقم الحساب]] -> 
A45: =Tableau1[[#This Row],[الرقم]] ->  | B45: =Tableau1[[#This Row],[الاسم]] ->  | C45: =Tableau1[[#This Row],[اللقب]] ->  | D45: =Tableau1[[#This Row],[الصنف]] ->  | E45: =Tableau1[[#This Row],[الاطار]] ->  | F45: =Tableau1[[#This Row],[القسم]] ->  | G45: =Tableau1[[#This Row],[الحالة العائلية]] ->  | H45: =Tableau1[[#This Row],[الدرجة]] ->  | I45: =Tableau1[[#This Row],[رقم الحساب]] -> 
A46: =Tableau1[[#This Row],[الرقم]] ->  | B46: =Tableau1[[#This Row],[الاسم]] ->  | C46: =Tableau1[[#This Row],[اللقب]] ->  | D46: =Tableau1[[#This Row],[الصنف]] ->  | E46: =Tableau1[[#This Row],[الاطار]] ->  | F46: =Tableau1[[#This Row],[القسم]] ->  | G46: =Tableau1[[#This Row],[الحالة العائلية]] ->  | H46: =Tableau1[[#This Row],[الدرجة]] ->  | I46: =Tableau1[[#This Row],[رقم الحساب]] -> 
A47: =Tableau1[[#This Row],[الرقم]] ->  | B47: =Tableau1[[#This Row],[الاسم]] ->  | C47: =Tableau1[[#This Row],[اللقب]] ->  | D47: =Tableau1[[#This Row],[الصنف]] ->  | E47: =Tableau1[[#This Row],[الاطار]] ->  | F47: =Tableau1[[#This Row],[القسم]] ->  | G47: =Tableau1[[#This Row],[الحالة العائلية]] ->  | H47: =Tableau1[[#This Row],[الدرجة]] ->  | I47: =Tableau1[[#This Row],[رقم الحساب]] -> 
A48: =Tableau1[[#This Row],[الرقم]] ->  | B48: =Tableau1[[#This Row],[الاسم]] ->  | C48: =Tableau1[[#This Row],[اللقب]] ->  | D48: =Tableau1[[#This Row],[الصنف]] ->  | E48: =Tableau1[[#This Row],[الاطار]] ->  | F48: =Tableau1[[#This Row],[القسم]] ->  | G48: =Tableau1[[#This Row],[الحالة العائلية]] ->  | H48: =Tableau1[[#This Row],[الدرجة]] ->  | I48: =Tableau1[[#This Row],[رقم الحساب]] -> 
A49: =Tableau1[[#This Row],[الرقم]] ->  | B49: =Tableau1[[#This Row],[الاسم]] ->  | C49: =Tableau1[[#This Row],[اللقب]] ->  | D49: =Tableau1[[#This Row],[الصنف]] ->  | E49: =Tableau1[[#This Row],[الاطار]] ->  | F49: =Tableau1[[#This Row],[القسم]] ->  | G49: =Tableau1[[#This Row],[الحالة العائلية]] ->  | H49: =Tableau1[[#This Row],[الدرجة]] ->  | I49: =Tableau1[[#This Row],[رقم الحساب]] -> 
A50: =Tableau1[[#This Row],[الرقم]] ->  | B50: =Tableau1[[#This Row],[الاسم]] ->  | C50: =Tableau1[[#This Row],[اللقب]] ->  | D50: =Tableau1[[#This Row],[الصنف]] ->  | E50: =Tableau1[[#This Row],[الاطار]] ->  | F50: =Tableau1[[#This Row],[القسم]] ->  | G50: =Tableau1[[#This Row],[الحالة العائلية]] ->  | H50: =Tableau1[[#This Row],[الدرجة]] ->  | I50: =Tableau1[[#This Row],[رقم الحساب]] -> 
A51: =Tableau1[[#This Row],[الرقم]] ->  | B51: =Tableau1[[#This Row],[الاسم]] ->  | C51: =Tableau1[[#This Row],[اللقب]] ->  | D51: =Tableau1[[#This Row],[الصنف]] ->  | E51: =Tableau1[[#This Row],[الاطار]] ->  | F51: =Tableau1[[#This Row],[القسم]] ->  | G51: =Tableau1[[#This Row],[الحالة العائلية]] ->  | H51: =Tableau1[[#This Row],[الدرجة]] ->  | I51: =Tableau1[[#This Row],[رقم الحساب]] -> 
A52: =Tableau1[[#This Row],[الرقم]] ->  | B52: =Tableau1[[#This Row],[الاسم]] ->  | C52: =Tableau1[[#This Row],[اللقب]] ->  | D52: =Tableau1[[#This Row],[الصنف]] ->  | E52: =Tableau1[[#This Row],[الاطار]] ->  | F52: =Tableau1[[#This Row],[القسم]] ->  | G52: =Tableau1[[#This Row],[الحالة العائلية]] ->  | H52: =Tableau1[[#This Row],[الدرجة]] ->  | I52: =Tableau1[[#This Row],[رقم الحساب]] -> 
A53: =Tableau1[[#This Row],[الرقم]] ->  | B53: =Tableau1[[#This Row],[الاسم]] ->  | C53: =Tableau1[[#This Row],[اللقب]] ->  | D53: =Tableau1[[#This Row],[الصنف]] ->  | E53: =Tableau1[[#This Row],[الاطار]] ->  | F53: =Tableau1[[#This Row],[القسم]] ->  | G53: =Tableau1[[#This Row],[الحالة العائلية]] ->  | H53: =Tableau1[[#This Row],[الدرجة]] ->  | I53: =Tableau1[[#This Row],[رقم الحساب]] -> 
A54: =Tableau1[[#This Row],[الرقم]] ->  | B54: =Tableau1[[#This Row],[الاسم]] ->  | C54: =Tableau1[[#This Row],[اللقب]] ->  | D54: =Tableau1[[#This Row],[الصنف]] ->  | E54: =Tableau1[[#This Row],[الاطار]] ->  | F54: =Tableau1[[#This Row],[القسم]] ->  | G54: =Tableau1[[#This Row],[الحالة العائلية]] ->  | H54: =Tableau1[[#This Row],[الدرجة]] ->  | I54: =Tableau1[[#This Row],[رقم الحساب]] -> 
A55: =Tableau1[[#This Row],[الرقم]] ->  | B55: =Tableau1[[#This Row],[الاسم]] ->  | C55: =Tableau1[[#This Row],[اللقب]] ->  | D55: =Tableau1[[#This Row],[الصنف]] ->  | E55: =Tableau1[[#This Row],[الاطار]] ->  | F55: =Tableau1[[#This Row],[القسم]] ->  | G55: =Tableau1[[#This Row],[الحالة العائلية]] ->  | H55: =Tableau1[[#This Row],[الدرجة]] ->  | I55: =Tableau1[[#This Row],[رقم الحساب]] -> 
A56: =Tableau1[[#This Row],[الرقم]] ->  | B56: =Tableau1[[#This Row],[الاسم]] ->  | C56: =Tableau1[[#This Row],[اللقب]] ->  | D56: =Tableau1[[#This Row],[الصنف]] ->  | E56: =Tableau1[[#This Row],[الاطار]] ->  | F56: =Tableau1[[#This Row],[القسم]] ->  | G56: =Tableau1[[#This Row],[الحالة العائلية]] ->  | H56: =Tableau1[[#This Row],[الدرجة]] ->  | I56: =Tableau1[[#This Row],[رقم الحساب]] -> 
A57: =Tableau1[[#This Row],[الرقم]] ->  | B57: =Tableau1[[#This Row],[الاسم]] ->  | C57: =Tableau1[[#This Row],[اللقب]] ->  | D57: =Tableau1[[#This Row],[الصنف]] ->  | E57: =Tableau1[[#This Row],[الاطار]] ->  | F57: =Tableau1[[#This Row],[القسم]] ->  | G57: =Tableau1[[#This Row],[الحالة العائلية]] ->  | H57: =Tableau1[[#This Row],[الدرجة]] ->  | I57: =Tableau1[[#This Row],[رقم الحساب]] -> 
A58: =Tableau1[[#This Row],[الرقم]] ->  | B58: =Tableau1[[#This Row],[الاسم]] ->  | C58: =Tableau1[[#This Row],[اللقب]] ->  | D58: =Tableau1[[#This Row],[الصنف]] ->  | E58: =Tableau1[[#This Row],[الاطار]] ->  | F58: =Tableau1[[#This Row],[القسم]] ->  | G58: =Tableau1[[#This Row],[الحالة العائلية]] ->  | H58: =Tableau1[[#This Row],[الدرجة]] ->  | I58: =Tableau1[[#This Row],[رقم الحساب]] -> 
A59: =Tableau1[[#This Row],[الرقم]] ->  | B59: =Tableau1[[#This Row],[الاسم]] ->  | C59: =Tableau1[[#This Row],[اللقب]] ->  | D59: =Tableau1[[#This Row],[الصنف]] ->  | E59: =Tableau1[[#This Row],[الاطار]] ->  | F59: =Tableau1[[#This Row],[القسم]] ->  | G59: =Tableau1[[#This Row],[الحالة العائلية]] ->  | H59: =Tableau1[[#This Row],[الدرجة]] ->  | I59: =Tableau1[[#This Row],[رقم الحساب]] -> 
A60: =Tableau1[[#This Row],[الرقم]] ->  | B60: =Tableau1[[#This Row],[الاسم]] ->  | C60: =Tableau1[[#This Row],[اللقب]] ->  | D60: =Tableau1[[#This Row],[الصنف]] ->  | E60: =Tableau1[[#This Row],[الاطار]] ->  | F60: =Tableau1[[#This Row],[القسم]] ->  | G60: =Tableau1[[#This Row],[الحالة العائلية]] ->  | H60: =Tableau1[[#This Row],[الدرجة]] ->  | I60: =Tableau1[[#This Row],[رقم الحساب]] -> 
A61: =Tableau1[[#This Row],[الرقم]] ->  | B61: =Tableau1[[#This Row],[الاسم]] ->  | C61: =Tableau1[[#This Row],[اللقب]] ->  | D61: =Tableau1[[#This Row],[الصنف]] ->  | E61: =Tableau1[[#This Row],[الاطار]] ->  | F61: =Tableau1[[#This Row],[القسم]] ->  | G61: =Tableau1[[#This Row],[الحالة العائلية]] ->  | H61: =Tableau1[[#This Row],[الدرجة]] ->  | I61: =Tableau1[[#This Row],[رقم الحساب]] -> 
A62: =Tableau1[[#This Row],[الرقم]] ->  | B62: =Tableau1[[#This Row],[الاسم]] ->  | C62: =Tableau1[[#This Row],[اللقب]] ->  | D62: =Tableau1[[#This Row],[الصنف]] ->  | E62: =Tableau1[[#This Row],[الاطار]] ->  | F62: =Tableau1[[#This Row],[القسم]] ->  | G62: =Tableau1[[#This Row],[الحالة العائلية]] ->  | H62: =Tableau1[[#This Row],[الدرجة]] ->  | I62: =Tableau1[[#This Row],[رقم الحساب]] -> 
A63: =Tableau1[[#This Row],[الرقم]] ->  | B63: =Tableau1[[#This Row],[الاسم]] ->  | C63: =Tableau1[[#This Row],[اللقب]] ->  | D63: =Tableau1[[#This Row],[الصنف]] ->  | E63: =Tableau1[[#This Row],[الاطار]] ->  | F63: =Tableau1[[#This Row],[القسم]] ->  | G63: =Tableau1[[#This Row],[الحالة العائلية]] ->  | H63: =Tableau1[[#This Row],[الدرجة]] ->  | I63: =Tableau1[[#This Row],[رقم الحساب]] -> 
A64: =Tableau1[[#This Row],[الرقم]] ->  | B64: =Tableau1[[#This Row],[الاسم]] ->  | C64: =Tableau1[[#This Row],[اللقب]] ->  | D64: =Tableau1[[#This Row],[الصنف]] ->  | E64: =Tableau1[[#This Row],[الاطار]] ->  | F64: =Tableau1[[#This Row],[القسم]] ->  | G64: =Tableau1[[#This Row],[الحالة العائلية]] ->  | H64: =Tableau1[[#This Row],[الدرجة]] ->  | I64: =Tableau1[[#This Row],[رقم الحساب]] -> 
A65: =Tableau1[[#This Row],[الرقم]] ->  | B65: =Tableau1[[#This Row],[الاسم]] ->  | C65: =Tableau1[[#This Row],[اللقب]] ->  | D65: =Tableau1[[#This Row],[الصنف]] ->  | E65: =Tableau1[[#This Row],[الاطار]] ->  | F65: =Tableau1[[#This Row],[القسم]] ->  | G65: =Tableau1[[#This Row],[الحالة العائلية]] ->  | H65: =Tableau1[[#This Row],[الدرجة]] ->  | I65: =Tableau1[[#This Row],[رقم الحساب]] -> 
A66: =Tableau1[[#This Row],[الرقم]] ->  | B66: =Tableau1[[#This Row],[الاسم]] ->  | C66: =Tableau1[[#This Row],[اللقب]] ->  | D66: =Tableau1[[#This Row],[الصنف]] ->  | E66: =Tableau1[[#This Row],[الاطار]] ->  | F66: =Tableau1[[#This Row],[القسم]] ->  | G66: =Tableau1[[#This Row],[الحالة العائلية]] ->  | H66: =Tableau1[[#This Row],[الدرجة]] ->  | I66: =Tableau1[[#This Row],[رقم الحساب]] -> 
A67: =Tableau1[[#This Row],[الرقم]] ->  | B67: =Tableau1[[#This Row],[الاسم]] ->  | C67: =Tableau1[[#This Row],[اللقب]] ->  | D67: =Tableau1[[#This Row],[الصنف]] ->  | E67: =Tableau1[[#This Row],[الاطار]] ->  | F67: =Tableau1[[#This Row],[القسم]] ->  | G67: =Tableau1[[#This Row],[الحالة العائلية]] ->  | H67: =Tableau1[[#This Row],[الدرجة]] ->  | I67: =Tableau1[[#This Row],[رقم الحساب]] -> 
A68: =Tableau1[[#This Row],[الرقم]] ->  | B68: =Tableau1[[#This Row],[الاسم]] ->  | C68: =Tableau1[[#This Row],[اللقب]] ->  | D68: =Tableau1[[#This Row],[الصنف]] ->  | E68: =Tableau1[[#This Row],[الاطار]] ->  | F68: =Tableau1[[#This Row],[القسم]] ->  | G68: =Tableau1[[#This Row],[الحالة العائلية]] ->  | H68: =Tableau1[[#This Row],[الدرجة]] ->  | I68: =Tableau1[[#This Row],[رقم الحساب]] -> 
A69: =Tableau1[[#This Row],[الرقم]] ->  | B69: =Tableau1[[#This Row],[الاسم]] ->  | C69: =Tableau1[[#This Row],[اللقب]] ->  | D69: =Tableau1[[#This Row],[الصنف]] ->  | E69: =Tableau1[[#This Row],[الاطار]] ->  | F69: =Tableau1[[#This Row],[القسم]] ->  | G69: =Tableau1[[#This Row],[الحالة العائلية]] ->  | H69: =Tableau1[[#This Row],[الدرجة]] ->  | I69: =Tableau1[[#This Row],[رقم الحساب]] -> 
A70: =Tableau1[[#This Row],[الرقم]] ->  | B70: =Tableau1[[#This Row],[الاسم]] ->  | C70: =Tableau1[[#This Row],[اللقب]] ->  | D70: =Tableau1[[#This Row],[الصنف]] ->  | E70: =Tableau1[[#This Row],[الاطار]] ->  | F70: =Tableau1[[#This Row],[القسم]] ->  | G70: =Tableau1[[#This Row],[الحالة العائلية]] ->  | H70: =Tableau1[[#This Row],[الدرجة]] ->  | I70: =Tableau1[[#This Row],[رقم الحساب]] -> 
A71: =Tableau1[[#This Row],[الرقم]] ->  | B71: =Tableau1[[#This Row],[الاسم]] ->  | C71: =Tableau1[[#This Row],[اللقب]] ->  | D71: =Tableau1[[#This Row],[الصنف]] ->  | E71: =Tableau1[[#This Row],[الاطار]] ->  | F71: =Tableau1[[#This Row],[القسم]] ->  | G71: =Tableau1[[#This Row],[الحالة العائلية]] ->  | H71: =Tableau1[[#This Row],[الدرجة]] ->  | I71: =Tableau1[[#This Row],[رقم الحساب]] -> 
A72: =Tableau1[[#This Row],[الرقم]] ->  | B72: =Tableau1[[#This Row],[الاسم]] ->  | C72: =Tableau1[[#This Row],[اللقب]] ->  | D72: =Tableau1[[#This Row],[الصنف]] ->  | E72: =Tableau1[[#This Row],[الاطار]] ->  | F72: =Tableau1[[#This Row],[القسم]] ->  | G72: =Tableau1[[#This Row],[الحالة العائلية]] ->  | H72: =Tableau1[[#This Row],[الدرجة]] ->  | I72: =Tableau1[[#This Row],[رقم الحساب]] -> 
A73: =Tableau1[[#This Row],[الرقم]] ->  | B73: =Tableau1[[#This Row],[الاسم]] ->  | C73: =Tableau1[[#This Row],[اللقب]] ->  | D73: =Tableau1[[#This Row],[الصنف]] ->  | E73: =Tableau1[[#This Row],[الاطار]] ->  | F73: =Tableau1[[#This Row],[القسم]] ->  | G73: =Tableau1[[#This Row],[الحالة العائلية]] ->  | H73: =Tableau1[[#This Row],[الدرجة]] ->  | I73: =Tableau1[[#This Row],[رقم الحساب]] -> 
A74: =Tableau1[[#This Row],[الرقم]] ->  | B74: =Tableau1[[#This Row],[الاسم]] ->  | C74: =Tableau1[[#This Row],[اللقب]] ->  | D74: =Tableau1[[#This Row],[الصنف]] ->  | E74: =Tableau1[[#This Row],[الاطار]] ->  | F74: =Tableau1[[#This Row],[القسم]] ->  | G74: =Tableau1[[#This Row],[الحالة العائلية]] ->  | H74: =Tableau1[[#This Row],[الدرجة]] ->  | I74: =Tableau1[[#This Row],[رقم الحساب]] -> 
A75: =Tableau1[[#This Row],[الرقم]] ->  | B75: =Tableau1[[#This Row],[الاسم]] ->  | C75: =Tableau1[[#This Row],[اللقب]] ->  | D75: =Tableau1[[#This Row],[الصنف]] ->  | E75: =Tableau1[[#This Row],[الاطار]] ->  | F75: =Tableau1[[#This Row],[القسم]] ->  | G75: =Tableau1[[#This Row],[الحالة العائلية]] ->  | H75: =Tableau1[[#This Row],[الدرجة]] ->  | I75: =Tableau1[[#This Row],[رقم الحساب]] -> 
A76: =Tableau1[[#This Row],[الرقم]] ->  | B76: =Tableau1[[#This Row],[الاسم]] ->  | C76: =Tableau1[[#This Row],[اللقب]] ->  | D76: =Tableau1[[#This Row],[الصنف]] ->  | E76: =Tableau1[[#This Row],[الاطار]] ->  | F76: =Tableau1[[#This Row],[القسم]] ->  | G76: =Tableau1[[#This Row],[الحالة العائلية]] ->  | H76: =Tableau1[[#This Row],[الدرجة]] ->  | I76: =Tableau1[[#This Row],[رقم الحساب]] -> 
A77: =Tableau1[[#This Row],[الرقم]] ->  | B77: =Tableau1[[#This Row],[الاسم]] ->  | C77: =Tableau1[[#This Row],[اللقب]] ->  | D77: =Tableau1[[#This Row],[الصنف]] ->  | E77: =Tableau1[[#This Row],[الاطار]] ->  | F77: =Tableau1[[#This Row],[القسم]] ->  | G77: =Tableau1[[#This Row],[الحالة العائلية]] ->  | H77: =Tableau1[[#This Row],[الدرجة]] ->  | I77: =Tableau1[[#This Row],[رقم الحساب]] -> 
A78: =Tableau1[[#This Row],[الرقم]] ->  | B78: =Tableau1[[#This Row],[الاسم]] ->  | C78: =Tableau1[[#This Row],[اللقب]] ->  | D78: =Tableau1[[#This Row],[الصنف]] ->  | E78: =Tableau1[[#This Row],[الاطار]] ->  | F78: =Tableau1[[#This Row],[القسم]] ->  | G78: =Tableau1[[#This Row],[الحالة العائلية]] ->  | H78: =Tableau1[[#This Row],[الدرجة]] ->  | I78: =Tableau1[[#This Row],[رقم الحساب]] -> 
A79: =Tableau1[[#This Row],[الرقم]] ->  | B79: =Tableau1[[#This Row],[الاسم]] ->  | C79: =Tableau1[[#This Row],[اللقب]] ->  | D79: =Tableau1[[#This Row],[الصنف]] ->  | E79: =Tableau1[[#This Row],[الاطار]] ->  | F79: =Tableau1[[#This Row],[القسم]] ->  | G79: =Tableau1[[#This Row],[الحالة العائلية]] ->  | H79: =Tableau1[[#This Row],[الدرجة]] ->  | I79: =Tableau1[[#This Row],[رقم الحساب]] -> 
A80: =Tableau1[[#This Row],[الرقم]] ->  | B80: =Tableau1[[#This Row],[الاسم]] ->  | C80: =Tableau1[[#This Row],[اللقب]] ->  | D80: =Tableau1[[#This Row],[الصنف]] ->  | E80: =Tableau1[[#This Row],[الاطار]] ->  | F80: =Tableau1[[#This Row],[القسم]] ->  | G80: =Tableau1[[#This Row],[الحالة العائلية]] ->  | H80: =Tableau1[[#This Row],[الدرجة]] ->  | I80: =Tableau1[[#This Row],[رقم الحساب]] -> 
A81: =Tableau1[[#This Row],[الرقم]] ->  | B81: =Tableau1[[#This Row],[الاسم]] ->  | C81: =Tableau1[[#This Row],[اللقب]] ->  | D81: =Tableau1[[#This Row],[الصنف]] ->  | E81: =Tableau1[[#This Row],[الاطار]] ->  | F81: =Tableau1[[#This Row],[القسم]] ->  | G81: =Tableau1[[#This Row],[الحالة العائلية]] ->  | H81: =Tableau1[[#This Row],[الدرجة]] ->  | I81: =Tableau1[[#This Row],[رقم الحساب]] -> 
A82: =Tableau1[[#This Row],[الرقم]] ->  | B82: =Tableau1[[#This Row],[الاسم]] ->  | C82: =Tableau1[[#This Row],[اللقب]] ->  | D82: =Tableau1[[#This Row],[الصنف]] ->  | E82: =Tableau1[[#This Row],[الاطار]] ->  | F82: =Tableau1[[#This Row],[القسم]] ->  | G82: =Tableau1[[#This Row],[الحالة العائلية]] ->  | H82: =Tableau1[[#This Row],[الدرجة]] ->  | I82: =Tableau1[[#This Row],[رقم الحساب]] -> 
A83: =Tableau1[[#This Row],[الرقم]] ->  | B83: =Tableau1[[#This Row],[الاسم]] ->  | C83: =Tableau1[[#This Row],[اللقب]] ->  | D83: =Tableau1[[#This Row],[الصنف]] ->  | E83: =Tableau1[[#This Row],[الاطار]] ->  | F83: =Tableau1[[#This Row],[القسم]] ->  | G83: =Tableau1[[#This Row],[الحالة العائلية]] ->  | H83: =Tableau1[[#This Row],[الدرجة]] ->  | I83: =Tableau1[[#This Row],[رقم الحساب]] -> 
A84: =Tableau1[[#This Row],[الرقم]] ->  | B84: =Tableau1[[#This Row],[الاسم]] ->  | C84: =Tableau1[[#This Row],[اللقب]] ->  | D84: =Tableau1[[#This Row],[الصنف]] ->  | E84: =Tableau1[[#This Row],[الاطار]] ->  | F84: =Tableau1[[#This Row],[القسم]] ->  | G84: =Tableau1[[#This Row],[الحالة العائلية]] ->  | H84: =Tableau1[[#This Row],[الدرجة]] ->  | I84: =Tableau1[[#This Row],[رقم الحساب]] -> 
A85: =Tableau1[[#This Row],[الرقم]] ->  | B85: =Tableau1[[#This Row],[الاسم]] ->  | C85: =Tableau1[[#This Row],[اللقب]] ->  | D85: =Tableau1[[#This Row],[الصنف]] ->  | E85: =Tableau1[[#This Row],[الاطار]] ->  | F85: =Tableau1[[#This Row],[القسم]] ->  | G85: =Tableau1[[#This Row],[الحالة العائلية]] ->  | H85: =Tableau1[[#This Row],[الدرجة]] ->  | I85: =Tableau1[[#This Row],[رقم الحساب]] -> 
A86: =Tableau1[[#This Row],[الرقم]] ->  | B86: =Tableau1[[#This Row],[الاسم]] ->  | C86: =Tableau1[[#This Row],[اللقب]] ->  | D86: =Tableau1[[#This Row],[الصنف]] ->  | E86: =Tableau1[[#This Row],[الاطار]] ->  | F86: =Tableau1[[#This Row],[القسم]] ->  | G86: =Tableau1[[#This Row],[الحالة العائلية]] ->  | H86: =Tableau1[[#This Row],[الدرجة]] ->  | I86: =Tableau1[[#This Row],[رقم الحساب]] -> 
A87: =Tableau1[[#This Row],[الرقم]] ->  | B87: =Tableau1[[#This Row],[الاسم]] ->  | C87: =Tableau1[[#This Row],[اللقب]] ->  | D87: =Tableau1[[#This Row],[الصنف]] ->  | E87: =Tableau1[[#This Row],[الاطار]] ->  | F87: =Tableau1[[#This Row],[القسم]] ->  | G87: =Tableau1[[#This Row],[الحالة العائلية]] ->  | H87: =Tableau1[[#This Row],[الدرجة]] ->  | I87: =Tableau1[[#This Row],[رقم الحساب]] -> 
A88: =Tableau1[[#This Row],[الرقم]] ->  | B88: =Tableau1[[#This Row],[الاسم]] ->  | C88: =Tableau1[[#This Row],[اللقب]] ->  | D88: =Tableau1[[#This Row],[الصنف]] ->  | E88: =Tableau1[[#This Row],[الاطار]] ->  | F88: =Tableau1[[#This Row],[القسم]] ->  | G88: =Tableau1[[#This Row],[الحالة العائلية]] ->  | H88: =Tableau1[[#This Row],[الدرجة]] ->  | I88: =Tableau1[[#This Row],[رقم الحساب]] -> 
A89: =Tableau1[[#This Row],[الرقم]] ->  | B89: =Tableau1[[#This Row],[الاسم]] ->  | C89: =Tableau1[[#This Row],[اللقب]] ->  | D89: =Tableau1[[#This Row],[الصنف]] ->  | E89: =Tableau1[[#This Row],[الاطار]] ->  | F89: =Tableau1[[#This Row],[القسم]] ->  | G89: =Tableau1[[#This Row],[الحالة العائلية]] ->  | H89: =Tableau1[[#This Row],[الدرجة]] ->  | I89: =Tableau1[[#This Row],[رقم الحساب]] -> 
A90: =Tableau1[[#This Row],[الرقم]] ->  | B90: =Tableau1[[#This Row],[الاسم]] ->  | C90: =Tableau1[[#This Row],[اللقب]] ->  | D90: =Tableau1[[#This Row],[الصنف]] ->  | E90: =Tableau1[[#This Row],[الاطار]] ->  | F90: =Tableau1[[#This Row],[القسم]] ->  | G90: =Tableau1[[#This Row],[الحالة العائلية]] ->  | H90: =Tableau1[[#This Row],[الدرجة]] ->  | I90: =Tableau1[[#This Row],[رقم الحساب]] -> 
A91: =Tableau1[[#This Row],[الرقم]] ->  | B91: =Tableau1[[#This Row],[الاسم]] ->  | C91: =Tableau1[[#This Row],[اللقب]] ->  | D91: =Tableau1[[#This Row],[الصنف]] ->  | E91: =Tableau1[[#This Row],[الاطار]] ->  | F91: =Tableau1[[#This Row],[القسم]] ->  | G91: =Tableau1[[#This Row],[الحالة العائلية]] ->  | H91: =Tableau1[[#This Row],[الدرجة]] ->  | I91: =Tableau1[[#This Row],[رقم الحساب]] -> 
A92: =Tableau1[[#This Row],[الرقم]] ->  | B92: =Tableau1[[#This Row],[الاسم]] ->  | C92: =Tableau1[[#This Row],[اللقب]] ->  | D92: =Tableau1[[#This Row],[الصنف]] ->  | E92: =Tableau1[[#This Row],[الاطار]] ->  | F92: =Tableau1[[#This Row],[القسم]] ->  | G92: =Tableau1[[#This Row],[الحالة العائلية]] ->  | H92: =Tableau1[[#This Row],[الدرجة]] ->  | I92: =Tableau1[[#This Row],[رقم الحساب]] -> 
A93: =Tableau1[[#This Row],[الرقم]] ->  | B93: =Tableau1[[#This Row],[الاسم]] ->  | C93: =Tableau1[[#This Row],[اللقب]] ->  | D93: =Tableau1[[#This Row],[الصنف]] ->  | E93: =Tableau1[[#This Row],[الاطار]] ->  | F93: =Tableau1[[#This Row],[القسم]] ->  | G93: =Tableau1[[#This Row],[الحالة العائلية]] ->  | H93: =Tableau1[[#This Row],[الدرجة]] ->  | I93: =Tableau1[[#This Row],[رقم الحساب]] -> 
A94: =Tableau1[[#This Row],[الرقم]] ->  | B94: =Tableau1[[#This Row],[الاسم]] ->  | C94: =Tableau1[[#This Row],[اللقب]] ->  | D94: =Tableau1[[#This Row],[الصنف]] ->  | E94: =Tableau1[[#This Row],[الاطار]] ->  | F94: =Tableau1[[#This Row],[القسم]] ->  | G94: =Tableau1[[#This Row],[الحالة العائلية]] ->  | H94: =Tableau1[[#This Row],[الدرجة]] ->  | I94: =Tableau1[[#This Row],[رقم الحساب]] -> 
A95: =Tableau1[[#This Row],[الرقم]] ->  | B95: =Tableau1[[#This Row],[الاسم]] ->  | C95: =Tableau1[[#This Row],[اللقب]] ->  | D95: =Tableau1[[#This Row],[الصنف]] ->  | E95: =Tableau1[[#This Row],[الاطار]] ->  | F95: =Tableau1[[#This Row],[القسم]] ->  | G95: =Tableau1[[#This Row],[الحالة العائلية]] ->  | H95: =Tableau1[[#This Row],[الدرجة]] ->  | I95: =Tableau1[[#This Row],[رقم الحساب]] -> 
A96: =Tableau1[[#This Row],[الرقم]] ->  | B96: =Tableau1[[#This Row],[الاسم]] ->  | C96: =Tableau1[[#This Row],[اللقب]] ->  | D96: =Tableau1[[#This Row],[الصنف]] ->  | E96: =Tableau1[[#This Row],[الاطار]] ->  | F96: =Tableau1[[#This Row],[القسم]] ->  | G96: =Tableau1[[#This Row],[الحالة العائلية]] ->  | H96: =Tableau1[[#This Row],[الدرجة]] ->  | I96: =Tableau1[[#This Row],[رقم الحساب]] -> 
A97: =Tableau1[[#This Row],[الرقم]] ->  | B97: =Tableau1[[#This Row],[الاسم]] ->  | C97: =Tableau1[[#This Row],[اللقب]] ->  | D97: =Tableau1[[#This Row],[الصنف]] ->  | E97: =Tableau1[[#This Row],[الاطار]] ->  | F97: =Tableau1[[#This Row],[القسم]] ->  | G97: =Tableau1[[#This Row],[الحالة العائلية]] ->  | H97: =Tableau1[[#This Row],[الدرجة]] ->  | I97: =Tableau1[[#This Row],[رقم الحساب]] -> 
A98: =Tableau1[[#This Row],[الرقم]] ->  | B98: =Tableau1[[#This Row],[الاسم]] ->  | C98: =Tableau1[[#This Row],[اللقب]] ->  | D98: =Tableau1[[#This Row],[الصنف]] ->  | E98: =Tableau1[[#This Row],[الاطار]] ->  | F98: =Tableau1[[#This Row],[القسم]] ->  | G98: =Tableau1[[#This Row],[الحالة العائلية]] ->  | H98: =Tableau1[[#This Row],[الدرجة]] ->  | I98: =Tableau1[[#This Row],[رقم الحساب]] -> 
A99: =Tableau1[[#This Row],[الرقم]] ->  | B99: =Tableau1[[#This Row],[الاسم]] ->  | C99: =Tableau1[[#This Row],[اللقب]] ->  | D99: =Tableau1[[#This Row],[الصنف]] ->  | E99: =Tableau1[[#This Row],[الاطار]] ->  | F99: =Tableau1[[#This Row],[القسم]] ->  | G99: =Tableau1[[#This Row],[الحالة العائلية]] ->  | H99: =Tableau1[[#This Row],[الدرجة]] ->  | I99: =Tableau1[[#This Row],[رقم الحساب]] -> 
A100: =Tableau1[[#This Row],[الرقم]] ->  | B100: =Tableau1[[#This Row],[الاسم]] ->  | C100: =Tableau1[[#This Row],[اللقب]] ->  | D100: =Tableau1[[#This Row],[الصنف]] ->  | E100: =Tableau1[[#This Row],[الاطار]] ->  | F100: =Tableau1[[#This Row],[القسم]] ->  | G100: =Tableau1[[#This Row],[الحالة العائلية]] ->  | H100: =Tableau1[[#This Row],[الدرجة]] ->  | I100: =Tableau1[[#This Row],[رقم الحساب]] -> 
A101: =Tableau1[[#This Row],[الرقم]] ->  | B101: =Tableau1[[#This Row],[الاسم]] ->  | C101: =Tableau1[[#This Row],[اللقب]] ->  | D101: =Tableau1[[#This Row],[الصنف]] ->  | E101: =Tableau1[[#This Row],[الاطار]] ->  | F101: =Tableau1[[#This Row],[القسم]] ->  | G101: =Tableau1[[#This Row],[الحالة العائلية]] ->  | H101: =Tableau1[[#This Row],[الدرجة]] ->  | I101: =Tableau1[[#This Row],[رقم الحساب]] -> 
A102: =Tableau1[[#This Row],[الرقم]] ->  | B102: =Tableau1[[#This Row],[الاسم]] ->  | C102: =Tableau1[[#This Row],[اللقب]] ->  | D102: =Tableau1[[#This Row],[الصنف]] ->  | E102: =Tableau1[[#This Row],[الاطار]] ->  | F102: =Tableau1[[#This Row],[القسم]] ->  | G102: =Tableau1[[#This Row],[الحالة العائلية]] ->  | H102: =Tableau1[[#This Row],[الدرجة]] ->  | I102: =Tableau1[[#This Row],[رقم الحساب]] -> 
A103: =Tableau1[[#This Row],[الرقم]] ->  | B103: =Tableau1[[#This Row],[الاسم]] ->  | C103: =Tableau1[[#This Row],[اللقب]] ->  | D103: =Tableau1[[#This Row],[الصنف]] ->  | E103: =Tableau1[[#This Row],[الاطار]] ->  | F103: =Tableau1[[#This Row],[القسم]] ->  | G103: =Tableau1[[#This Row],[الحالة العائلية]] ->  | H103: =Tableau1[[#This Row],[الدرجة]] ->  | I103: =Tableau1[[#This Row],[رقم الحساب]] -> 
A104: =Tableau1[[#This Row],[الرقم]] ->  | B104: =Tableau1[[#This Row],[الاسم]] ->  | C104: =Tableau1[[#This Row],[اللقب]] ->  | D104: =Tableau1[[#This Row],[الصنف]] ->  | E104: =Tableau1[[#This Row],[الاطار]] ->  | F104: =Tableau1[[#This Row],[القسم]] ->  | G104: =Tableau1[[#This Row],[الحالة العائلية]] ->  | H104: =Tableau1[[#This Row],[الدرجة]] ->  | I104: =Tableau1[[#This Row],[رقم الحساب]] -> 
A105: =Tableau1[[#This Row],[الرقم]] ->  | B105: =Tableau1[[#This Row],[الاسم]] ->  | C105: =Tableau1[[#This Row],[اللقب]] ->  | D105: =Tableau1[[#This Row],[الصنف]] ->  | E105: =Tableau1[[#This Row],[الاطار]] ->  | F105: =Tableau1[[#This Row],[القسم]] ->  | G105: =Tableau1[[#This Row],[الحالة العائلية]] ->  | H105: =Tableau1[[#This Row],[الدرجة]] ->  | I105: =Tableau1[[#This Row],[رقم الحساب]] -> 
A106: =Tableau1[[#This Row],[الرقم]] ->  | B106: =Tableau1[[#This Row],[الاسم]] ->  | C106: =Tableau1[[#This Row],[اللقب]] ->  | D106: =Tableau1[[#This Row],[الصنف]] ->  | E106: =Tableau1[[#This Row],[الاطار]] ->  | F106: =Tableau1[[#This Row],[القسم]] ->  | G106: =Tableau1[[#This Row],[الحالة العائلية]] ->  | H106: =Tableau1[[#This Row],[الدرجة]] ->  | I106: =Tableau1[[#This Row],[رقم الحساب]] -> 
A107: =Tableau1[[#This Row],[الرقم]] ->  | B107: =Tableau1[[#This Row],[الاسم]] ->  | C107: =Tableau1[[#This Row],[اللقب]] ->  | D107: =Tableau1[[#This Row],[الصنف]] ->  | E107: =Tableau1[[#This Row],[الاطار]] ->  | F107: =Tableau1[[#This Row],[القسم]] ->  | G107: =Tableau1[[#This Row],[الحالة العائلية]] ->  | H107: =Tableau1[[#This Row],[الدرجة]] ->  | I107: =Tableau1[[#This Row],[رقم الحساب]] -> 
A108: =Tableau1[[#This Row],[الرقم]] ->  | B108: =Tableau1[[#This Row],[الاسم]] ->  | C108: =Tableau1[[#This Row],[اللقب]] ->  | D108: =Tableau1[[#This Row],[الصنف]] ->  | E108: =Tableau1[[#This Row],[الاطار]] ->  | F108: =Tableau1[[#This Row],[القسم]] ->  | G108: =Tableau1[[#This Row],[الحالة العائلية]] ->  | H108: =Tableau1[[#This Row],[الدرجة]] ->  | I108: =Tableau1[[#This Row],[رقم الحساب]] -> 
A109: =Tableau1[[#This Row],[الرقم]] ->  | B109: =Tableau1[[#This Row],[الاسم]] ->  | C109: =Tableau1[[#This Row],[اللقب]] ->  | D109: =Tableau1[[#This Row],[الصنف]] ->  | E109: =Tableau1[[#This Row],[الاطار]] ->  | F109: =Tableau1[[#This Row],[القسم]] ->  | G109: =Tableau1[[#This Row],[الحالة العائلية]] ->  | H109: =Tableau1[[#This Row],[الدرجة]] ->  | I109: =Tableau1[[#This Row],[رقم الحساب]] -> 
A110: =Tableau1[[#This Row],[الرقم]] ->  | B110: =Tableau1[[#This Row],[الاسم]] ->  | C110: =Tableau1[[#This Row],[اللقب]] ->  | D110: =Tableau1[[#This Row],[الصنف]] ->  | E110: =Tableau1[[#This Row],[الاطار]] ->  | F110: =Tableau1[[#This Row],[القسم]] ->  | G110: =Tableau1[[#This Row],[الحالة العائلية]] ->  | H110: =Tableau1[[#This Row],[الدرجة]] ->  | I110: =Tableau1[[#This Row],[رقم الحساب]] -> 
A111: =Tableau1[[#This Row],[الرقم]] ->  | B111: =Tableau1[[#This Row],[الاسم]] ->  | C111: =Tableau1[[#This Row],[اللقب]] ->  | D111: =Tableau1[[#This Row],[الصنف]] ->  | E111: =Tableau1[[#This Row],[الاطار]] ->  | F111: =Tableau1[[#This Row],[القسم]] ->  | G111: =Tableau1[[#This Row],[الحالة العائلية]] ->  | H111: =Tableau1[[#This Row],[الدرجة]] ->  | I111: =Tableau1[[#This Row],[رقم الحساب]] -> 
A112: =Tableau1[[#This Row],[الرقم]] ->  | B112: =Tableau1[[#This Row],[الاسم]] ->  | C112: =Tableau1[[#This Row],[اللقب]] ->  | D112: =Tableau1[[#This Row],[الصنف]] ->  | E112: =Tableau1[[#This Row],[الاطار]] ->  | F112: =Tableau1[[#This Row],[القسم]] ->  | G112: =Tableau1[[#This Row],[الحالة العائلية]] ->  | H112: =Tableau1[[#This Row],[الدرجة]] ->  | I112: =Tableau1[[#This Row],[رقم الحساب]] -> 
A113: =Tableau1[[#This Row],[الرقم]] ->  | B113: =Tableau1[[#This Row],[الاسم]] ->  | C113: =Tableau1[[#This Row],[اللقب]] ->  | D113: =Tableau1[[#This Row],[الصنف]] ->  | E113: =Tableau1[[#This Row],[الاطار]] ->  | F113: =Tableau1[[#This Row],[القسم]] ->  | G113: =Tableau1[[#This Row],[الحالة العائلية]] ->  | H113: =Tableau1[[#This Row],[الدرجة]] ->  | I113: =Tableau1[[#This Row],[رقم الحساب]] -> 
A114: =Tableau1[[#This Row],[الرقم]] ->  | B114: =Tableau1[[#This Row],[الاسم]] ->  | C114: =Tableau1[[#This Row],[اللقب]] ->  | D114: =Tableau1[[#This Row],[الصنف]] ->  | E114: =Tableau1[[#This Row],[الاطار]] ->  | F114: =Tableau1[[#This Row],[القسم]] ->  | G114: =Tableau1[[#This Row],[الحالة العائلية]] ->  | H114: =Tableau1[[#This Row],[الدرجة]] ->  | I114: =Tableau1[[#This Row],[رقم الحساب]] -> 
A115: =Tableau1[[#This Row],[الرقم]] ->  | B115: =Tableau1[[#This Row],[الاسم]] ->  | C115: =Tableau1[[#This Row],[اللقب]] ->  | D115: =Tableau1[[#This Row],[الصنف]] ->  | E115: =Tableau1[[#This Row],[الاطار]] ->  | F115: =Tableau1[[#This Row],[القسم]] ->  | G115: =Tableau1[[#This Row],[الحالة العائلية]] ->  | H115: =Tableau1[[#This Row],[الدرجة]] ->  | I115: =Tableau1[[#This Row],[رقم الحساب]] -> 
A116: =Tableau1[[#This Row],[الرقم]] ->  | B116: =Tableau1[[#This Row],[الاسم]] ->  | C116: =Tableau1[[#This Row],[اللقب]] ->  | D116: =Tableau1[[#This Row],[الصنف]] ->  | E116: =Tableau1[[#This Row],[الاطار]] ->  | F116: =Tableau1[[#This Row],[القسم]] ->  | G116: =Tableau1[[#This Row],[الحالة العائلية]] ->  | H116: =Tableau1[[#This Row],[الدرجة]] ->  | I116: =Tableau1[[#This Row],[رقم الحساب]] -> 
A117: =Tableau1[[#This Row],[الرقم]] ->  | B117: =Tableau1[[#This Row],[الاسم]] ->  | C117: =Tableau1[[#This Row],[اللقب]] ->  | D117: =Tableau1[[#This Row],[الصنف]] ->  | E117: =Tableau1[[#This Row],[الاطار]] ->  | F117: =Tableau1[[#This Row],[القسم]] ->  | G117: =Tableau1[[#This Row],[الحالة العائلية]] ->  | H117: =Tableau1[[#This Row],[الدرجة]] ->  | I117: =Tableau1[[#This Row],[رقم الحساب]] -> 
A118: =Tableau1[[#This Row],[الرقم]] ->  | B118: =Tableau1[[#This Row],[الاسم]] ->  | C118: =Tableau1[[#This Row],[اللقب]] ->  | D118: =Tableau1[[#This Row],[الصنف]] ->  | E118: =Tableau1[[#This Row],[الاطار]] ->  | F118: =Tableau1[[#This Row],[القسم]] ->  | G118: =Tableau1[[#This Row],[الحالة العائلية]] ->  | H118: =Tableau1[[#This Row],[الدرجة]] ->  | I118: =Tableau1[[#This Row],[رقم الحساب]] -> 
A119: =Tableau1[[#This Row],[الرقم]] ->  | B119: =Tableau1[[#This Row],[الاسم]] ->  | C119: =Tableau1[[#This Row],[اللقب]] ->  | D119: =Tableau1[[#This Row],[الصنف]] ->  | E119: =Tableau1[[#This Row],[الاطار]] ->  | F119: =Tableau1[[#This Row],[القسم]] ->  | G119: =Tableau1[[#This Row],[الحالة العائلية]] ->  | H119: =Tableau1[[#This Row],[الدرجة]] ->  | I119: =Tableau1[[#This Row],[رقم الحساب]] -> 
A120: =Tableau1[[#This Row],[الرقم]] ->  | B120: =Tableau1[[#This Row],[الاسم]] ->  | C120: =Tableau1[[#This Row],[اللقب]] ->  | D120: =Tableau1[[#This Row],[الصنف]] ->  | E120: =Tableau1[[#This Row],[الاطار]] ->  | F120: =Tableau1[[#This Row],[القسم]] ->  | G120: =Tableau1[[#This Row],[الحالة العائلية]] ->  | H120: =Tableau1[[#This Row],[الدرجة]] ->  | I120: =Tableau1[[#This Row],[رقم الحساب]] -> 
A121: =Tableau1[[#This Row],[الرقم]] ->  | B121: =Tableau1[[#This Row],[الاسم]] ->  | C121: =Tableau1[[#This Row],[اللقب]] ->  | D121: =Tableau1[[#This Row],[الصنف]] ->  | E121: =Tableau1[[#This Row],[الاطار]] ->  | F121: =Tableau1[[#This Row],[القسم]] ->  | G121: =Tableau1[[#This Row],[الحالة العائلية]] ->  | H121: =Tableau1[[#This Row],[الدرجة]] ->  | I121: =Tableau1[[#This Row],[رقم الحساب]] -> 
A122: =Tableau1[[#This Row],[الرقم]] ->  | B122: =Tableau1[[#This Row],[الاسم]] ->  | C122: =Tableau1[[#This Row],[اللقب]] ->  | D122: =Tableau1[[#This Row],[الصنف]] ->  | E122: =Tableau1[[#This Row],[الاطار]] ->  | F122: =Tableau1[[#This Row],[القسم]] ->  | G122: =Tableau1[[#This Row],[الحالة العائلية]] ->  | H122: =Tableau1[[#This Row],[الدرجة]] ->  | I122: =Tableau1[[#This Row],[رقم الحساب]] -> 
A123: =Tableau1[[#This Row],[الرقم]] ->  | B123: =Tableau1[[#This Row],[الاسم]] ->  | C123: =Tableau1[[#This Row],[اللقب]] ->  | D123: =Tableau1[[#This Row],[الصنف]] ->  | E123: =Tableau1[[#This Row],[الاطار]] ->  | F123: =Tableau1[[#This Row],[القسم]] ->  | G123: =Tableau1[[#This Row],[الحالة العائلية]] ->  | H123: =Tableau1[[#This Row],[الدرجة]] ->  | I123: =Tableau1[[#This Row],[رقم الحساب]] -> 
A124: =Tableau1[[#This Row],[الرقم]] ->  | B124: =Tableau1[[#This Row],[الاسم]] ->  | C124: =Tableau1[[#This Row],[اللقب]] ->  | D124: =Tableau1[[#This Row],[الصنف]] ->  | E124: =Tableau1[[#This Row],[الاطار]] ->  | F124: =Tableau1[[#This Row],[القسم]] ->  | G124: =Tableau1[[#This Row],[الحالة العائلية]] ->  | H124: =Tableau1[[#This Row],[الدرجة]] ->  | I124: =Tableau1[[#This Row],[رقم الحساب]] -> 
A125: =Tableau1[[#This Row],[الرقم]] ->  | B125: =Tableau1[[#This Row],[الاسم]] ->  | C125: =Tableau1[[#This Row],[اللقب]] ->  | D125: =Tableau1[[#This Row],[الصنف]] ->  | E125: =Tableau1[[#This Row],[الاطار]] ->  | F125: =Tableau1[[#This Row],[القسم]] ->  | G125: =Tableau1[[#This Row],[الحالة العائلية]] ->  | H125: =Tableau1[[#This Row],[الدرجة]] ->  | I125: =Tableau1[[#This Row],[رقم الحساب]] -> 
A126: =Tableau1[[#This Row],[الرقم]] ->  | B126: =Tableau1[[#This Row],[الاسم]] ->  | C126: =Tableau1[[#This Row],[اللقب]] ->  | D126: =Tableau1[[#This Row],[الصنف]] ->  | E126: =Tableau1[[#This Row],[الاطار]] ->  | F126: =Tableau1[[#This Row],[القسم]] ->  | G126: =Tableau1[[#This Row],[الحالة العائلية]] ->  | H126: =Tableau1[[#This Row],[الدرجة]] ->  | I126: =Tableau1[[#This Row],[رقم الحساب]] -> 
A127: =Tableau1[[#This Row],[الرقم]] ->  | B127: =Tableau1[[#This Row],[الاسم]] ->  | C127: =Tableau1[[#This Row],[اللقب]] ->  | D127: =Tableau1[[#This Row],[الصنف]] ->  | E127: =Tableau1[[#This Row],[الاطار]] ->  | F127: =Tableau1[[#This Row],[القسم]] ->  | G127: =Tableau1[[#This Row],[الحالة العائلية]] ->  | H127: =Tableau1[[#This Row],[الدرجة]] ->  | I127: =Tableau1[[#This Row],[رقم الحساب]] -> 
A128: =Tableau1[[#This Row],[الرقم]] ->  | B128: =Tableau1[[#This Row],[الاسم]] ->  | C128: =Tableau1[[#This Row],[اللقب]] ->  | D128: =Tableau1[[#This Row],[الصنف]] ->  | E128: =Tableau1[[#This Row],[الاطار]] ->  | F128: =Tableau1[[#This Row],[القسم]] ->  | G128: =Tableau1[[#This Row],[الحالة العائلية]] ->  | H128: =Tableau1[[#This Row],[الدرجة]] ->  | I128: =Tableau1[[#This Row],[رقم الحساب]] -> 
A129: =Tableau1[[#This Row],[الرقم]] ->  | B129: =Tableau1[[#This Row],[الاسم]] ->  | C129: =Tableau1[[#This Row],[اللقب]] ->  | D129: =Tableau1[[#This Row],[الصنف]] ->  | E129: =Tableau1[[#This Row],[الاطار]] ->  | F129: =Tableau1[[#This Row],[القسم]] ->  | G129: =Tableau1[[#This Row],[الحالة العائلية]] ->  | H129: =Tableau1[[#This Row],[الدرجة]] ->  | I129: =Tableau1[[#This Row],[رقم الحساب]] -> 
A130: =Tableau1[[#This Row],[الرقم]] ->  | B130: =Tableau1[[#This Row],[الاسم]] ->  | C130: =Tableau1[[#This Row],[اللقب]] ->  | D130: =Tableau1[[#This Row],[الصنف]] ->  | E130: =Tableau1[[#This Row],[الاطار]] ->  | F130: =Tableau1[[#This Row],[القسم]] ->  | G130: =Tableau1[[#This Row],[الحالة العائلية]] ->  | H130: =Tableau1[[#This Row],[الدرجة]] ->  | I130: =Tableau1[[#This Row],[رقم الحساب]] -> 
A131: =Tableau1[[#This Row],[الرقم]] ->  | B131: =Tableau1[[#This Row],[الاسم]] ->  | C131: =Tableau1[[#This Row],[اللقب]] ->  | D131: =Tableau1[[#This Row],[الصنف]] ->  | E131: =Tableau1[[#This Row],[الاطار]] ->  | F131: =Tableau1[[#This Row],[القسم]] ->  | G131: =Tableau1[[#This Row],[الحالة العائلية]] ->  | H131: =Tableau1[[#This Row],[الدرجة]] ->  | I131: =Tableau1[[#This Row],[رقم الحساب]] -> 
A132: =Tableau1[[#This Row],[الرقم]] ->  | B132: =Tableau1[[#This Row],[الاسم]] ->  | C132: =Tableau1[[#This Row],[اللقب]] ->  | D132: =Tableau1[[#This Row],[الصنف]] ->  | E132: =Tableau1[[#This Row],[الاطار]] ->  | F132: =Tableau1[[#This Row],[القسم]] ->  | G132: =Tableau1[[#This Row],[الحالة العائلية]] ->  | H132: =Tableau1[[#This Row],[الدرجة]] ->  | I132: =Tableau1[[#This Row],[رقم الحساب]] -> 
A133: =Tableau1[[#This Row],[الرقم]] ->  | B133: =Tableau1[[#This Row],[الاسم]] ->  | C133: =Tableau1[[#This Row],[اللقب]] ->  | D133: =Tableau1[[#This Row],[الصنف]] ->  | E133: =Tableau1[[#This Row],[الاطار]] ->  | F133: =Tableau1[[#This Row],[القسم]] ->  | G133: =Tableau1[[#This Row],[الحالة العائلية]] ->  | H133: =Tableau1[[#This Row],[الدرجة]] ->  | I133: =Tableau1[[#This Row],[رقم الحساب]] -> 
A134: =Tableau1[[#This Row],[الرقم]] ->  | B134: =Tableau1[[#This Row],[الاسم]] ->  | C134: =Tableau1[[#This Row],[اللقب]] ->  | D134: =Tableau1[[#This Row],[الصنف]] ->  | E134: =Tableau1[[#This Row],[الاطار]] ->  | F134: =Tableau1[[#This Row],[القسم]] ->  | G134: =Tableau1[[#This Row],[الحالة العائلية]] ->  | H134: =Tableau1[[#This Row],[الدرجة]] ->  | I134: =Tableau1[[#This Row],[رقم الحساب]] -> 
A135: =Tableau1[[#This Row],[الرقم]] ->  | B135: =Tableau1[[#This Row],[الاسم]] ->  | C135: =Tableau1[[#This Row],[اللقب]] ->  | D135: =Tableau1[[#This Row],[الصنف]] ->  | E135: =Tableau1[[#This Row],[الاطار]] ->  | F135: =Tableau1[[#This Row],[القسم]] ->  | G135: =Tableau1[[#This Row],[الحالة العائلية]] ->  | H135: =Tableau1[[#This Row],[الدرجة]] ->  | I135: =Tableau1[[#This Row],[رقم الحساب]] -> 
A136: =Tableau1[[#This Row],[الرقم]] ->  | B136: =Tableau1[[#This Row],[الاسم]] ->  | C136: =Tableau1[[#This Row],[اللقب]] ->  | D136: =Tableau1[[#This Row],[الصنف]] ->  | E136: =Tableau1[[#This Row],[الاطار]] ->  | F136: =Tableau1[[#This Row],[القسم]] ->  | G136: =Tableau1[[#This Row],[الحالة العائلية]] ->  | H136: =Tableau1[[#This Row],[الدرجة]] ->  | I136: =Tableau1[[#This Row],[رقم الحساب]] -> 
A137: =Tableau1[[#This Row],[الرقم]] ->  | B137: =Tableau1[[#This Row],[الاسم]] ->  | C137: =Tableau1[[#This Row],[اللقب]] ->  | D137: =Tableau1[[#This Row],[الصنف]] ->  | E137: =Tableau1[[#This Row],[الاطار]] ->  | F137: =Tableau1[[#This Row],[القسم]] ->  | G137: =Tableau1[[#This Row],[الحالة العائلية]] ->  | H137: =Tableau1[[#This Row],[الدرجة]] ->  | I137: =Tableau1[[#This Row],[رقم الحساب]] -> 
A138: =Tableau1[[#This Row],[الرقم]] ->  | B138: =Tableau1[[#This Row],[الاسم]] ->  | C138: =Tableau1[[#This Row],[اللقب]] ->  | D138: =Tableau1[[#This Row],[الصنف]] ->  | E138: =Tableau1[[#This Row],[الاطار]] ->  | F138: =Tableau1[[#This Row],[القسم]] ->  | G138: =Tableau1[[#This Row],[الحالة العائلية]] ->  | H138: =Tableau1[[#This Row],[الدرجة]] ->  | I138: =Tableau1[[#This Row],[رقم الحساب]] -> 
A139: =Tableau1[[#This Row],[الرقم]] ->  | B139: =Tableau1[[#This Row],[الاسم]] ->  | C139: =Tableau1[[#This Row],[اللقب]] ->  | D139: =Tableau1[[#This Row],[الصنف]] ->  | E139: =Tableau1[[#This Row],[الاطار]] ->  | F139: =Tableau1[[#This Row],[القسم]] ->  | G139: =Tableau1[[#This Row],[الحالة العائلية]] ->  | H139: =Tableau1[[#This Row],[الدرجة]] ->  | I139: =Tableau1[[#This Row],[رقم الحساب]] -> 
A140: =Tableau1[[#This Row],[الرقم]] ->  | B140: =Tableau1[[#This Row],[الاسم]] ->  | C140: =Tableau1[[#This Row],[اللقب]] ->  | D140: =Tableau1[[#This Row],[الصنف]] ->  | E140: =Tableau1[[#This Row],[الاطار]] ->  | F140: =Tableau1[[#This Row],[القسم]] ->  | G140: =Tableau1[[#This Row],[الحالة العائلية]] ->  | H140: =Tableau1[[#This Row],[الدرجة]] ->  | I140: =Tableau1[[#This Row],[رقم الحساب]] -> 
A141: =Tableau1[[#This Row],[الرقم]] ->  | B141: =Tableau1[[#This Row],[الاسم]] ->  | C141: =Tableau1[[#This Row],[اللقب]] ->  | D141: =Tableau1[[#This Row],[الصنف]] ->  | E141: =Tableau1[[#This Row],[الاطار]] ->  | F141: =Tableau1[[#This Row],[القسم]] ->  | G141: =Tableau1[[#This Row],[الحالة العائلية]] ->  | H141: =Tableau1[[#This Row],[الدرجة]] ->  | I141: =Tableau1[[#This Row],[رقم الحساب]] -> 
A142: =Tableau1[[#This Row],[الرقم]] ->  | B142: =Tableau1[[#This Row],[الاسم]] ->  | C142: =Tableau1[[#This Row],[اللقب]] ->  | D142: =Tableau1[[#This Row],[الصنف]] ->  | E142: =Tableau1[[#This Row],[الاطار]] ->  | F142: =Tableau1[[#This Row],[القسم]] ->  | G142: =Tableau1[[#This Row],[الحالة العائلية]] ->  | H142: =Tableau1[[#This Row],[الدرجة]] ->  | I142: =Tableau1[[#This Row],[رقم الحساب]] -> 
A143: =Tableau1[[#This Row],[الرقم]] ->  | B143: =Tableau1[[#This Row],[الاسم]] ->  | C143: =Tableau1[[#This Row],[اللقب]] ->  | D143: =Tableau1[[#This Row],[الصنف]] ->  | E143: =Tableau1[[#This Row],[الاطار]] ->  | F143: =Tableau1[[#This Row],[القسم]] ->  | G143: =Tableau1[[#This Row],[الحالة العائلية]] ->  | H143: =Tableau1[[#This Row],[الدرجة]] ->  | I143: =Tableau1[[#This Row],[رقم الحساب]] -> 
A144: =Tableau1[[#This Row],[الرقم]] ->  | B144: =Tableau1[[#This Row],[الاسم]] ->  | C144: =Tableau1[[#This Row],[اللقب]] ->  | D144: =Tableau1[[#This Row],[الصنف]] ->  | E144: =Tableau1[[#This Row],[الاطار]] ->  | F144: =Tableau1[[#This Row],[القسم]] ->  | G144: =Tableau1[[#This Row],[الحالة العائلية]] ->  | H144: =Tableau1[[#This Row],[الدرجة]] ->  | I144: =Tableau1[[#This Row],[رقم الحساب]] -> 
A145: =Tableau1[[#This Row],[الرقم]] ->  | B145: =Tableau1[[#This Row],[الاسم]] ->  | C145: =Tableau1[[#This Row],[اللقب]] ->  | D145: =Tableau1[[#This Row],[الصنف]] ->  | E145: =Tableau1[[#This Row],[الاطار]] ->  | F145: =Tableau1[[#This Row],[القسم]] ->  | G145: =Tableau1[[#This Row],[الحالة العائلية]] ->  | H145: =Tableau1[[#This Row],[الدرجة]] ->  | I145: =Tableau1[[#This Row],[رقم الحساب]] -> 
A146: =Tableau1[[#This Row],[الرقم]] ->  | B146: =Tableau1[[#This Row],[الاسم]] ->  | C146: =Tableau1[[#This Row],[اللقب]] ->  | D146: =Tableau1[[#This Row],[الصنف]] ->  | E146: =Tableau1[[#This Row],[الاطار]] ->  | F146: =Tableau1[[#This Row],[القسم]] ->  | G146: =Tableau1[[#This Row],[الحالة العائلية]] ->  | H146: =Tableau1[[#This Row],[الدرجة]] ->  | I146: =Tableau1[[#This Row],[رقم الحساب]] -> 
A147: =Tableau1[[#This Row],[الرقم]] ->  | B147: =Tableau1[[#This Row],[الاسم]] ->  | C147: =Tableau1[[#This Row],[اللقب]] ->  | D147: =Tableau1[[#This Row],[الصنف]] ->  | E147: =Tableau1[[#This Row],[الاطار]] ->  | F147: =Tableau1[[#This Row],[القسم]] ->  | G147: =Tableau1[[#This Row],[الحالة العائلية]] ->  | H147: =Tableau1[[#This Row],[الدرجة]] ->  | I147: =Tableau1[[#This Row],[رقم الحساب]] -> 
A148: =Tableau1[[#This Row],[الرقم]] ->  | B148: =Tableau1[[#This Row],[الاسم]] ->  | C148: =Tableau1[[#This Row],[اللقب]] ->  | D148: =Tableau1[[#This Row],[الصنف]] ->  | E148: =Tableau1[[#This Row],[الاطار]] ->  | F148: =Tableau1[[#This Row],[القسم]] ->  | G148: =Tableau1[[#This Row],[الحالة العائلية]] ->  | H148: =Tableau1[[#This Row],[الدرجة]] ->  | I148: =Tableau1[[#This Row],[رقم الحساب]] -> 
A149: =Tableau1[[#This Row],[الرقم]] ->  | B149: =Tableau1[[#This Row],[الاسم]] ->  | C149: =Tableau1[[#This Row],[اللقب]] ->  | D149: =Tableau1[[#This Row],[الصنف]] ->  | E149: =Tableau1[[#This Row],[الاطار]] ->  | F149: =Tableau1[[#This Row],[القسم]] ->  | G149: =Tableau1[[#This Row],[الحالة العائلية]] ->  | H149: =Tableau1[[#This Row],[الدرجة]] ->  | I149: =Tableau1[[#This Row],[رقم الحساب]] -> 
A150: =Tableau1[[#This Row],[الرقم]] ->  | B150: =Tableau1[[#This Row],[الاسم]] ->  | C150: =Tableau1[[#This Row],[اللقب]] ->  | D150: =Tableau1[[#This Row],[الصنف]] ->  | E150: =Tableau1[[#This Row],[الاطار]] ->  | F150: =Tableau1[[#This Row],[القسم]] ->  | G150: =Tableau1[[#This Row],[الحالة العائلية]] ->  | H150: =Tableau1[[#This Row],[الدرجة]] ->  | I150: =Tableau1[[#This Row],[رقم الحساب]] -> 
A151: =Tableau1[[#This Row],[الرقم]] ->  | B151: =Tableau1[[#This Row],[الاسم]] ->  | C151: =Tableau1[[#This Row],[اللقب]] ->  | D151: =Tableau1[[#This Row],[الصنف]] ->  | E151: =Tableau1[[#This Row],[الاطار]] ->  | F151: =Tableau1[[#This Row],[القسم]] ->  | G151: =Tableau1[[#This Row],[الحالة العائلية]] ->  | H151: =Tableau1[[#This Row],[الدرجة]] ->  | I151: =Tableau1[[#This Row],[رقم الحساب]] -> 
A152: =Tableau1[[#This Row],[الرقم]] ->  | B152: =Tableau1[[#This Row],[الاسم]] ->  | C152: =Tableau1[[#This Row],[اللقب]] ->  | D152: =Tableau1[[#This Row],[الصنف]] ->  | E152: =Tableau1[[#This Row],[الاطار]] ->  | F152: =Tableau1[[#This Row],[القسم]] ->  | G152: =Tableau1[[#This Row],[الحالة العائلية]] ->  | H152: =Tableau1[[#This Row],[الدرجة]] ->  | I152: =Tableau1[[#This Row],[رقم الحساب]] -> 
A153: =Tableau1[[#This Row],[الرقم]] ->  | B153: =Tableau1[[#This Row],[الاسم]] ->  | C153: =Tableau1[[#This Row],[اللقب]] ->  | D153: =Tableau1[[#This Row],[الصنف]] ->  | E153: =Tableau1[[#This Row],[الاطار]] ->  | F153: =Tableau1[[#This Row],[القسم]] ->  | G153: =Tableau1[[#This Row],[الحالة العائلية]] ->  | H153: =Tableau1[[#This Row],[الدرجة]] ->  | I153: =Tableau1[[#This Row],[رقم الحساب]] -> 
A154: =Tableau1[[#This Row],[الرقم]] ->  | B154: =Tableau1[[#This Row],[الاسم]] ->  | C154: =Tableau1[[#This Row],[اللقب]] ->  | D154: =Tableau1[[#This Row],[الصنف]] ->  | E154: =Tableau1[[#This Row],[الاطار]] ->  | F154: =Tableau1[[#This Row],[القسم]] ->  | G154: =Tableau1[[#This Row],[الحالة العائلية]] ->  | H154: =Tableau1[[#This Row],[الدرجة]] ->  | I154: =Tableau1[[#This Row],[رقم الحساب]] -> 
A155: =Tableau1[[#This Row],[الرقم]] ->  | B155: =Tableau1[[#This Row],[الاسم]] ->  | C155: =Tableau1[[#This Row],[اللقب]] ->  | D155: =Tableau1[[#This Row],[الصنف]] ->  | E155: =Tableau1[[#This Row],[الاطار]] ->  | F155: =Tableau1[[#This Row],[القسم]] ->  | G155: =Tableau1[[#This Row],[الحالة العائلية]] ->  | H155: =Tableau1[[#This Row],[الدرجة]] ->  | I155: =Tableau1[[#This Row],[رقم الحساب]] -> 
A156: =Tableau1[[#This Row],[الرقم]] ->  | B156: =Tableau1[[#This Row],[الاسم]] ->  | C156: =Tableau1[[#This Row],[اللقب]] ->  | D156: =Tableau1[[#This Row],[الصنف]] ->  | E156: =Tableau1[[#This Row],[الاطار]] ->  | F156: =Tableau1[[#This Row],[القسم]] ->  | G156: =Tableau1[[#This Row],[الحالة العائلية]] ->  | H156: =Tableau1[[#This Row],[الدرجة]] ->  | I156: =Tableau1[[#This Row],[رقم الحساب]] -> 
A157: =Tableau1[[#This Row],[الرقم]] ->  | B157: =Tableau1[[#This Row],[الاسم]] ->  | C157: =Tableau1[[#This Row],[اللقب]] ->  | D157: =Tableau1[[#This Row],[الصنف]] ->  | E157: =Tableau1[[#This Row],[الاطار]] ->  | F157: =Tableau1[[#This Row],[القسم]] ->  | G157: =Tableau1[[#This Row],[الحالة العائلية]] ->  | H157: =Tableau1[[#This Row],[الدرجة]] ->  | I157: =Tableau1[[#This Row],[رقم الحساب]] -> 
A158: =Tableau1[[#This Row],[الرقم]] ->  | B158: =Tableau1[[#This Row],[الاسم]] ->  | C158: =Tableau1[[#This Row],[اللقب]] ->  | D158: =Tableau1[[#This Row],[الصنف]] ->  | E158: =Tableau1[[#This Row],[الاطار]] ->  | F158: =Tableau1[[#This Row],[القسم]] ->  | G158: =Tableau1[[#This Row],[الحالة العائلية]] ->  | H158: =Tableau1[[#This Row],[الدرجة]] ->  | I158: =Tableau1[[#This Row],[رقم الحساب]] -> 
A159: =Tableau1[[#This Row],[الرقم]] ->  | B159: =Tableau1[[#This Row],[الاسم]] ->  | C159: =Tableau1[[#This Row],[اللقب]] ->  | D159: =Tableau1[[#This Row],[الصنف]] ->  | E159: =Tableau1[[#This Row],[الاطار]] ->  | F159: =Tableau1[[#This Row],[القسم]] ->  | G159: =Tableau1[[#This Row],[الحالة العائلية]] ->  | H159: =Tableau1[[#This Row],[الدرجة]] ->  | I159: =Tableau1[[#This Row],[رقم الحساب]] -> 
A160: =Tableau1[[#This Row],[الرقم]] ->  | B160: =Tableau1[[#This Row],[الاسم]] ->  | C160: =Tableau1[[#This Row],[اللقب]] ->  | D160: =Tableau1[[#This Row],[الصنف]] ->  | E160: =Tableau1[[#This Row],[الاطار]] ->  | F160: =Tableau1[[#This Row],[القسم]] ->  | G160: =Tableau1[[#This Row],[الحالة العائلية]] ->  | H160: =Tableau1[[#This Row],[الدرجة]] ->  | I160: =Tableau1[[#This Row],[رقم الحساب]] -> 
A161: =Tableau1[[#This Row],[الرقم]] ->  | B161: =Tableau1[[#This Row],[الاسم]] ->  | C161: =Tableau1[[#This Row],[اللقب]] ->  | D161: =Tableau1[[#This Row],[الصنف]] ->  | E161: =Tableau1[[#This Row],[الاطار]] ->  | F161: =Tableau1[[#This Row],[القسم]] ->  | G161: =Tableau1[[#This Row],[الحالة العائلية]] ->  | H161: =Tableau1[[#This Row],[الدرجة]] ->  | I161: =Tableau1[[#This Row],[رقم الحساب]] -> 
A162: =Tableau1[[#This Row],[الرقم]] ->  | B162: =Tableau1[[#This Row],[الاسم]] ->  | C162: =Tableau1[[#This Row],[اللقب]] ->  | D162: =Tableau1[[#This Row],[الصنف]] ->  | E162: =Tableau1[[#This Row],[الاطار]] ->  | F162: =Tableau1[[#This Row],[القسم]] ->  | G162: =Tableau1[[#This Row],[الحالة العائلية]] ->  | H162: =Tableau1[[#This Row],[الدرجة]] ->  | I162: =Tableau1[[#This Row],[رقم الحساب]] -> 
A163: =Tableau1[[#This Row],[الرقم]] ->  | B163: =Tableau1[[#This Row],[الاسم]] ->  | C163: =Tableau1[[#This Row],[اللقب]] ->  | D163: =Tableau1[[#This Row],[الصنف]] ->  | E163: =Tableau1[[#This Row],[الاطار]] ->  | F163: =Tableau1[[#This Row],[القسم]] ->  | G163: =Tableau1[[#This Row],[الحالة العائلية]] ->  | H163: =Tableau1[[#This Row],[الدرجة]] ->  | I163: =Tableau1[[#This Row],[رقم الحساب]] -> 
A164: =Tableau1[[#This Row],[الرقم]] ->  | B164: =Tableau1[[#This Row],[الاسم]] ->  | C164: =Tableau1[[#This Row],[اللقب]] ->  | D164: =Tableau1[[#This Row],[الصنف]] ->  | E164: =Tableau1[[#This Row],[الاطار]] ->  | F164: =Tableau1[[#This Row],[القسم]] ->  | G164: =Tableau1[[#This Row],[الحالة العائلية]] ->  | H164: =Tableau1[[#This Row],[الدرجة]] ->  | I164: =Tableau1[[#This Row],[رقم الحساب]] -> 
A165: =Tableau1[[#This Row],[الرقم]] ->  | B165: =Tableau1[[#This Row],[الاسم]] ->  | C165: =Tableau1[[#This Row],[اللقب]] ->  | D165: =Tableau1[[#This Row],[الصنف]] ->  | E165: =Tableau1[[#This Row],[الاطار]] ->  | F165: =Tableau1[[#This Row],[القسم]] ->  | G165: =Tableau1[[#This Row],[الحالة العائلية]] ->  | H165: =Tableau1[[#This Row],[الدرجة]] ->  | I165: =Tableau1[[#This Row],[رقم الحساب]] -> 
A166: =Tableau1[[#This Row],[الرقم]] ->  | B166: =Tableau1[[#This Row],[الاسم]] ->  | C166: =Tableau1[[#This Row],[اللقب]] ->  | D166: =Tableau1[[#This Row],[الصنف]] ->  | E166: =Tableau1[[#This Row],[الاطار]] ->  | F166: =Tableau1[[#This Row],[القسم]] ->  | G166: =Tableau1[[#This Row],[الحالة العائلية]] ->  | H166: =Tableau1[[#This Row],[الدرجة]] ->  | I166: =Tableau1[[#This Row],[رقم الحساب]] -> 
A167: =Tableau1[[#This Row],[الرقم]] ->  | B167: =Tableau1[[#This Row],[الاسم]] ->  | C167: =Tableau1[[#This Row],[اللقب]] ->  | D167: =Tableau1[[#This Row],[الصنف]] ->  | E167: =Tableau1[[#This Row],[الاطار]] ->  | F167: =Tableau1[[#This Row],[القسم]] ->  | G167: =Tableau1[[#This Row],[الحالة العائلية]] ->  | H167: =Tableau1[[#This Row],[الدرجة]] ->  | I167: =Tableau1[[#This Row],[رقم الحساب]] -> 
A168: =Tableau1[[#This Row],[الرقم]] ->  | B168: =Tableau1[[#This Row],[الاسم]] ->  | C168: =Tableau1[[#This Row],[اللقب]] ->  | D168: =Tableau1[[#This Row],[الصنف]] ->  | E168: =Tableau1[[#This Row],[الاطار]] ->  | F168: =Tableau1[[#This Row],[القسم]] ->  | G168: =Tableau1[[#This Row],[الحالة العائلية]] ->  | H168: =Tableau1[[#This Row],[الدرجة]] ->  | I168: =Tableau1[[#This Row],[رقم الحساب]] -> 
A169: =Tableau1[[#This Row],[الرقم]] ->  | B169: =Tableau1[[#This Row],[الاسم]] ->  | C169: =Tableau1[[#This Row],[اللقب]] ->  | D169: =Tableau1[[#This Row],[الصنف]] ->  | E169: =Tableau1[[#This Row],[الاطار]] ->  | F169: =Tableau1[[#This Row],[القسم]] ->  | G169: =Tableau1[[#This Row],[الحالة العائلية]] ->  | H169: =Tableau1[[#This Row],[الدرجة]] ->  | I169: =Tableau1[[#This Row],[رقم الحساب]] -> 
A170: =Tableau1[[#This Row],[الرقم]] ->  | B170: =Tableau1[[#This Row],[الاسم]] ->  | C170: =Tableau1[[#This Row],[اللقب]] ->  | D170: =Tableau1[[#This Row],[الصنف]] ->  | E170: =Tableau1[[#This Row],[الاطار]] ->  | F170: =Tableau1[[#This Row],[القسم]] ->  | G170: =Tableau1[[#This Row],[الحالة العائلية]] ->  | H170: =Tableau1[[#This Row],[الدرجة]] ->  | I170: =Tableau1[[#This Row],[رقم الحساب]] -> 
A171: =Tableau1[[#This Row],[الرقم]] ->  | B171: =Tableau1[[#This Row],[الاسم]] ->  | C171: =Tableau1[[#This Row],[اللقب]] ->  | D171: =Tableau1[[#This Row],[الصنف]] ->  | E171: =Tableau1[[#This Row],[الاطار]] ->  | F171: =Tableau1[[#This Row],[القسم]] ->  | G171: =Tableau1[[#This Row],[الحالة العائلية]] ->  | H171: =Tableau1[[#This Row],[الدرجة]] ->  | I171: =Tableau1[[#This Row],[رقم الحساب]] -> 
A172: =Tableau1[[#This Row],[الرقم]] ->  | B172: =Tableau1[[#This Row],[الاسم]] ->  | C172: =Tableau1[[#This Row],[اللقب]] ->  | D172: =Tableau1[[#This Row],[الصنف]] ->  | E172: =Tableau1[[#This Row],[الاطار]] ->  | F172: =Tableau1[[#This Row],[القسم]] ->  | G172: =Tableau1[[#This Row],[الحالة العائلية]] ->  | H172: =Tableau1[[#This Row],[الدرجة]] ->  | I172: =Tableau1[[#This Row],[رقم الحساب]] -> 
A173: =Tableau1[[#This Row],[الرقم]] ->  | B173: =Tableau1[[#This Row],[الاسم]] ->  | C173: =Tableau1[[#This Row],[اللقب]] ->  | D173: =Tableau1[[#This Row],[الصنف]] ->  | E173: =Tableau1[[#This Row],[الاطار]] ->  | F173: =Tableau1[[#This Row],[القسم]] ->  | G173: =Tableau1[[#This Row],[الحالة العائلية]] ->  | H173: =Tableau1[[#This Row],[الدرجة]] ->  | I173: =Tableau1[[#This Row],[رقم الحساب]] -> 
A174: =Tableau1[[#This Row],[الرقم]] ->  | B174: =Tableau1[[#This Row],[الاسم]] ->  | C174: =Tableau1[[#This Row],[اللقب]] ->  | D174: =Tableau1[[#This Row],[الصنف]] ->  | E174: =Tableau1[[#This Row],[الاطار]] ->  | F174: =Tableau1[[#This Row],[القسم]] ->  | G174: =Tableau1[[#This Row],[الحالة العائلية]] ->  | H174: =Tableau1[[#This Row],[الدرجة]] ->  | I174: =Tableau1[[#This Row],[رقم الحساب]] -> 
A175: =Tableau1[[#This Row],[الرقم]] ->  | B175: =Tableau1[[#This Row],[الاسم]] ->  | C175: =Tableau1[[#This Row],[اللقب]] ->  | D175: =Tableau1[[#This Row],[الصنف]] ->  | E175: =Tableau1[[#This Row],[الاطار]] ->  | F175: =Tableau1[[#This Row],[القسم]] ->  | G175: =Tableau1[[#This Row],[الحالة العائلية]] ->  | H175: =Tableau1[[#This Row],[الدرجة]] ->  | I175: =Tableau1[[#This Row],[رقم الحساب]] -> 
A176: =Tableau1[[#This Row],[الرقم]] ->  | B176: =Tableau1[[#This Row],[الاسم]] ->  | C176: =Tableau1[[#This Row],[اللقب]] ->  | D176: =Tableau1[[#This Row],[الصنف]] ->  | E176: =Tableau1[[#This Row],[الاطار]] ->  | F176: =Tableau1[[#This Row],[القسم]] ->  | G176: =Tableau1[[#This Row],[الحالة العائلية]] ->  | H176: =Tableau1[[#This Row],[الدرجة]] ->  | I176: =Tableau1[[#This Row],[رقم الحساب]] -> 
A177: =Tableau1[[#This Row],[الرقم]] ->  | B177: =Tableau1[[#This Row],[الاسم]] ->  | C177: =Tableau1[[#This Row],[اللقب]] ->  | D177: =Tableau1[[#This Row],[الصنف]] ->  | E177: =Tableau1[[#This Row],[الاطار]] ->  | F177: =Tableau1[[#This Row],[القسم]] ->  | G177: =Tableau1[[#This Row],[الحالة العائلية]] ->  | H177: =Tableau1[[#This Row],[الدرجة]] ->  | I177: =Tableau1[[#This Row],[رقم الحساب]] -> 
A178: =Tableau1[[#This Row],[الرقم]] ->  | B178: =Tableau1[[#This Row],[الاسم]] ->  | C178: =Tableau1[[#This Row],[اللقب]] ->  | D178: =Tableau1[[#This Row],[الصنف]] ->  | E178: =Tableau1[[#This Row],[الاطار]] ->  | F178: =Tableau1[[#This Row],[القسم]] ->  | G178: =Tableau1[[#This Row],[الحالة العائلية]] ->  | H178: =Tableau1[[#This Row],[الدرجة]] ->  | I178: =Tableau1[[#This Row],[رقم الحساب]] -> 
A179: =Tableau1[[#This Row],[الرقم]] ->  | B179: =Tableau1[[#This Row],[الاسم]] ->  | C179: =Tableau1[[#This Row],[اللقب]] ->  | D179: =Tableau1[[#This Row],[الصنف]] ->  | E179: =Tableau1[[#This Row],[الاطار]] ->  | F179: =Tableau1[[#This Row],[القسم]] ->  | G179: =Tableau1[[#This Row],[الحالة العائلية]] ->  | H179: =Tableau1[[#This Row],[الدرجة]] ->  | I179: =Tableau1[[#This Row],[رقم الحساب]] -> 
A180: =Tableau1[[#This Row],[الرقم]] ->  | B180: =Tableau1[[#This Row],[الاسم]] ->  | C180: =Tableau1[[#This Row],[اللقب]] ->  | D180: =Tableau1[[#This Row],[الصنف]] ->  | E180: =Tableau1[[#This Row],[الاطار]] ->  | F180: =Tableau1[[#This Row],[القسم]] ->  | G180: =Tableau1[[#This Row],[الحالة العائلية]] ->  | H180: =Tableau1[[#This Row],[الدرجة]] ->  | I180: =Tableau1[[#This Row],[رقم الحساب]] -> 
A181: =Tableau1[[#This Row],[الرقم]] ->  | B181: =Tableau1[[#This Row],[الاسم]] ->  | C181: =Tableau1[[#This Row],[اللقب]] ->  | D181: =Tableau1[[#This Row],[الصنف]] ->  | E181: =Tableau1[[#This Row],[الاطار]] ->  | F181: =Tableau1[[#This Row],[القسم]] ->  | G181: =Tableau1[[#This Row],[الحالة العائلية]] ->  | H181: =Tableau1[[#This Row],[الدرجة]] ->  | I181: =Tableau1[[#This Row],[رقم الحساب]] -> 
A182: =Tableau1[[#This Row],[الرقم]] ->  | B182: =Tableau1[[#This Row],[الاسم]] ->  | C182: =Tableau1[[#This Row],[اللقب]] ->  | D182: =Tableau1[[#This Row],[الصنف]] ->  | E182: =Tableau1[[#This Row],[الاطار]] ->  | F182: =Tableau1[[#This Row],[القسم]] ->  | G182: =Tableau1[[#This Row],[الحالة العائلية]] ->  | H182: =Tableau1[[#This Row],[الدرجة]] ->  | I182: =Tableau1[[#This Row],[رقم الحساب]] -> 
A183: =Tableau1[[#This Row],[الرقم]] ->  | B183: =Tableau1[[#This Row],[الاسم]] ->  | C183: =Tableau1[[#This Row],[اللقب]] ->  | D183: =Tableau1[[#This Row],[الصنف]] ->  | E183: =Tableau1[[#This Row],[الاطار]] ->  | F183: =Tableau1[[#This Row],[القسم]] ->  | G183: =Tableau1[[#This Row],[الحالة العائلية]] ->  | H183: =Tableau1[[#This Row],[الدرجة]] ->  | I183: =Tableau1[[#This Row],[رقم الحساب]] -> 
A184: =Tableau1[[#This Row],[الرقم]] ->  | B184: =Tableau1[[#This Row],[الاسم]] ->  | C184: =Tableau1[[#This Row],[اللقب]] ->  | D184: =Tableau1[[#This Row],[الصنف]] ->  | E184: =Tableau1[[#This Row],[الاطار]] ->  | F184: =Tableau1[[#This Row],[القسم]] ->  | G184: =Tableau1[[#This Row],[الحالة العائلية]] ->  | H184: =Tableau1[[#This Row],[الدرجة]] ->  | I184: =Tableau1[[#This Row],[رقم الحساب]] -> 
A185: =Tableau1[[#This Row],[الرقم]] ->  | B185: =Tableau1[[#This Row],[الاسم]] ->  | C185: =Tableau1[[#This Row],[اللقب]] ->  | D185: =Tableau1[[#This Row],[الصنف]] ->  | E185: =Tableau1[[#This Row],[الاطار]] ->  | F185: =Tableau1[[#This Row],[القسم]] ->  | G185: =Tableau1[[#This Row],[الحالة العائلية]] ->  | H185: =Tableau1[[#This Row],[الدرجة]] ->  | I185: =Tableau1[[#This Row],[رقم الحساب]] -> 
A186: =Tableau1[[#This Row],[الرقم]] ->  | B186: =Tableau1[[#This Row],[الاسم]] ->  | C186: =Tableau1[[#This Row],[اللقب]] ->  | D186: =Tableau1[[#This Row],[الصنف]] ->  | E186: =Tableau1[[#This Row],[الاطار]] ->  | F186: =Tableau1[[#This Row],[القسم]] ->  | G186: =Tableau1[[#This Row],[الحالة العائلية]] ->  | H186: =Tableau1[[#This Row],[الدرجة]] ->  | I186: =Tableau1[[#This Row],[رقم الحساب]] -> 
A187: =Tableau1[[#This Row],[الرقم]] ->  | B187: =Tableau1[[#This Row],[الاسم]] ->  | C187: =Tableau1[[#This Row],[اللقب]] ->  | D187: =Tableau1[[#This Row],[الصنف]] ->  | E187: =Tableau1[[#This Row],[الاطار]] ->  | F187: =Tableau1[[#This Row],[القسم]] ->  | G187: =Tableau1[[#This Row],[الحالة العائلية]] ->  | H187: =Tableau1[[#This Row],[الدرجة]] ->  | I187: =Tableau1[[#This Row],[رقم الحساب]] -> 
A188: =Tableau1[[#This Row],[الرقم]] ->  | B188: =Tableau1[[#This Row],[الاسم]] ->  | C188: =Tableau1[[#This Row],[اللقب]] ->  | D188: =Tableau1[[#This Row],[الصنف]] ->  | E188: =Tableau1[[#This Row],[الاطار]] ->  | F188: =Tableau1[[#This Row],[القسم]] ->  | G188: =Tableau1[[#This Row],[الحالة العائلية]] ->  | H188: =Tableau1[[#This Row],[الدرجة]] ->  | I188: =Tableau1[[#This Row],[رقم الحساب]] -> 
A189: =Tableau1[[#This Row],[الرقم]] ->  | B189: =Tableau1[[#This Row],[الاسم]] ->  | C189: =Tableau1[[#This Row],[اللقب]] ->  | D189: =Tableau1[[#This Row],[الصنف]] ->  | E189: =Tableau1[[#This Row],[الاطار]] ->  | F189: =Tableau1[[#This Row],[القسم]] ->  | G189: =Tableau1[[#This Row],[الحالة العائلية]] ->  | H189: =Tableau1[[#This Row],[الدرجة]] ->  | I189: =Tableau1[[#This Row],[رقم الحساب]] -> 
A190: =Tableau1[[#This Row],[الرقم]] ->  | B190: =Tableau1[[#This Row],[الاسم]] ->  | C190: =Tableau1[[#This Row],[اللقب]] ->  | D190: =Tableau1[[#This Row],[الصنف]] ->  | E190: =Tableau1[[#This Row],[الاطار]] ->  | F190: =Tableau1[[#This Row],[القسم]] ->  | G190: =Tableau1[[#This Row],[الحالة العائلية]] ->  | H190: =Tableau1[[#This Row],[الدرجة]] ->  | I190: =Tableau1[[#This Row],[رقم الحساب]] -> 
A191: =Tableau1[[#This Row],[الرقم]] ->  | B191: =Tableau1[[#This Row],[الاسم]] ->  | C191: =Tableau1[[#This Row],[اللقب]] ->  | D191: =Tableau1[[#This Row],[الصنف]] ->  | E191: =Tableau1[[#This Row],[الاطار]] ->  | F191: =Tableau1[[#This Row],[القسم]] ->  | G191: =Tableau1[[#This Row],[الحالة العائلية]] ->  | H191: =Tableau1[[#This Row],[الدرجة]] ->  | I191: =Tableau1[[#This Row],[رقم الحساب]] -> 
A192: =Tableau1[[#This Row],[الرقم]] ->  | B192: =Tableau1[[#This Row],[الاسم]] ->  | C192: =Tableau1[[#This Row],[اللقب]] ->  | D192: =Tableau1[[#This Row],[الصنف]] ->  | E192: =Tableau1[[#This Row],[الاطار]] ->  | F192: =Tableau1[[#This Row],[القسم]] ->  | G192: =Tableau1[[#This Row],[الحالة العائلية]] ->  | H192: =Tableau1[[#This Row],[الدرجة]] ->  | I192: =Tableau1[[#This Row],[رقم الحساب]] -> 
A193: =Tableau1[[#This Row],[الرقم]] ->  | B193: =Tableau1[[#This Row],[الاسم]] ->  | C193: =Tableau1[[#This Row],[اللقب]] ->  | D193: =Tableau1[[#This Row],[الصنف]] ->  | E193: =Tableau1[[#This Row],[الاطار]] ->  | F193: =Tableau1[[#This Row],[القسم]] ->  | G193: =Tableau1[[#This Row],[الحالة العائلية]] ->  | H193: =Tableau1[[#This Row],[الدرجة]] ->  | I193: =Tableau1[[#This Row],[رقم الحساب]] -> 
A194: =Tableau1[[#This Row],[الرقم]] ->  | B194: =Tableau1[[#This Row],[الاسم]] ->  | C194: =Tableau1[[#This Row],[اللقب]] ->  | D194: =Tableau1[[#This Row],[الصنف]] ->  | E194: =Tableau1[[#This Row],[الاطار]] ->  | F194: =Tableau1[[#This Row],[القسم]] ->  | G194: =Tableau1[[#This Row],[الحالة العائلية]] ->  | H194: =Tableau1[[#This Row],[الدرجة]] ->  | I194: =Tableau1[[#This Row],[رقم الحساب]] -> 
A195: =Tableau1[[#This Row],[الرقم]] ->  | B195: =Tableau1[[#This Row],[الاسم]] ->  | C195: =Tableau1[[#This Row],[اللقب]] ->  | D195: =Tableau1[[#This Row],[الصنف]] ->  | E195: =Tableau1[[#This Row],[الاطار]] ->  | F195: =Tableau1[[#This Row],[القسم]] ->  | G195: =Tableau1[[#This Row],[الحالة العائلية]] ->  | H195: =Tableau1[[#This Row],[الدرجة]] ->  | I195: =Tableau1[[#This Row],[رقم الحساب]] -> 
A196: =Tableau1[[#This Row],[الرقم]] ->  | B196: =Tableau1[[#This Row],[الاسم]] ->  | C196: =Tableau1[[#This Row],[اللقب]] ->  | D196: =Tableau1[[#This Row],[الصنف]] ->  | E196: =Tableau1[[#This Row],[الاطار]] ->  | F196: =Tableau1[[#This Row],[القسم]] ->  | G196: =Tableau1[[#This Row],[الحالة العائلية]] ->  | H196: =Tableau1[[#This Row],[الدرجة]] ->  | I196: =Tableau1[[#This Row],[رقم الحساب]] -> 
A197: =Tableau1[[#This Row],[الرقم]] ->  | B197: =Tableau1[[#This Row],[الاسم]] ->  | C197: =Tableau1[[#This Row],[اللقب]] ->  | D197: =Tableau1[[#This Row],[الصنف]] ->  | E197: =Tableau1[[#This Row],[الاطار]] ->  | F197: =Tableau1[[#This Row],[القسم]] ->  | G197: =Tableau1[[#This Row],[الحالة العائلية]] ->  | H197: =Tableau1[[#This Row],[الدرجة]] ->  | I197: =Tableau1[[#This Row],[رقم الحساب]] -> 
A198: =Tableau1[[#This Row],[الرقم]] ->  | B198: =Tableau1[[#This Row],[الاسم]] ->  | C198: =Tableau1[[#This Row],[اللقب]] ->  | D198: =Tableau1[[#This Row],[الصنف]] ->  | E198: =Tableau1[[#This Row],[الاطار]] ->  | F198: =Tableau1[[#This Row],[القسم]] ->  | G198: =Tableau1[[#This Row],[الحالة العائلية]] ->  | H198: =Tableau1[[#This Row],[الدرجة]] ->  | I198: =Tableau1[[#This Row],[رقم الحساب]] -> 
A199: =Tableau1[[#This Row],[الرقم]] ->  | B199: =Tableau1[[#This Row],[الاسم]] ->  | C199: =Tableau1[[#This Row],[اللقب]] ->  | D199: =Tableau1[[#This Row],[الصنف]] ->  | E199: =Tableau1[[#This Row],[الاطار]] ->  | F199: =Tableau1[[#This Row],[القسم]] ->  | G199: =Tableau1[[#This Row],[الحالة العائلية]] ->  | H199: =Tableau1[[#This Row],[الدرجة]] ->  | I199: =Tableau1[[#This Row],[رقم الحساب]] -> 
A200: =Tableau1[[#This Row],[الرقم]] ->  | B200: =Tableau1[[#This Row],[الاسم]] ->  | C200: =Tableau1[[#This Row],[اللقب]] ->  | D200: =Tableau1[[#This Row],[الصنف]] ->  | E200: =Tableau1[[#This Row],[الاطار]] ->  | F200: =Tableau1[[#This Row],[القسم]] ->  | G200: =Tableau1[[#This Row],[الحالة العائلية]] ->  | H200: =Tableau1[[#This Row],[الدرجة]] ->  | I200: =Tableau1[[#This Row],[رقم الحساب]] -> 

Sheet Feuil9
A1: الرقم | B1: رقم الحساب | C1: =Feuil3!B1 -> الاسم | D1: =Feuil3!C1 -> اللقب | E1: =Feuil3!D1 -> الصنف | F1: =Feuil3!E1 -> الاطار | G1: =Feuil3!F1 -> القسم | H1: =Feuil3!G1 -> الحالة العائلية | I1: =Feuil3!H1 -> الدرجة | J1: =Feuil3!I1 -> رقم الحساب | K1: =Feuil2!B2 -> ujujuj | L1: =Feuil2!B3 -> uj-uju-j | M1: =Feuil2!B4 -> -jrtgth | N1: =Feuil2!B5 -> 0 | O1: =Feuil2!B6 -> 0 | P1: =Feuil2!B7 -> 0 | Q1: =Feuil2!B14 -> 0 | R1: =Feuil2!B15 -> 0 | S1: =Feuil2!B16 -> 0 | T1: =Feuil2!B17 -> 0 | U1: =Feuil2!B24 -> 0 | V1: =Feuil2!B25 -> 0 | W1: =Feuil2!B26 -> 0 | X1: =Feuil2!B28 -> 0 | Y1: =Feuil2!B29 -> 0 | Z1: =Feuil2!B30 -> 0 | AA1: =Feuil2!B31 -> 0 | AB1: =Feuil2!B32 -> 0 | AC1: =Feuil2!E2 -> yynynynyn | AD1: =Feuil2!E3 -> nununu | AE1: =Feuil2!E17 -> 0 | AF1: =Feuil2!E18 -> 0 | AG1: =Feuil2!E19 -> 0 | AH1: =Feuil2!E20 -> 0 | AI1: =Feuil2!E21 -> 0 | AJ1: =Feuil2!E22 -> 0 | AK1: =Feuil2!E23 -> 0 | AL1: الشهر | AM1: السنة | AN1: التاريخ | AO1: =Feuil4!AO1 -> رقم الموظف المدخل | AP1: =Feuil4!AP1 -> val_resul | AQ1: =Feuil4!AQ1 -> val_cher
A2: =Feuil4!A2 -> 1 | B2: =Feuil4!B2 -> 1020 | C2: =Feuil4!C2 -> شريف | D2: =Feuil4!D2 -> عرابة | E2: =Feuil4!E2 -> 13 | F2: =Feuil4!F2 -> طب | G2: =Feuil4!G2 -> 14 | H2: =Feuil4!H2 -> أعزب | I2: =Feuil4!I2 -> 12 | J2: =Feuil4!J2 -> 1020 | K2: =Feuil4!K2 -> 12000 | L2: =Feuil4!L2 -> 20000 | M2: =Feuil4!M2 -> 25000 | N2: =Feuil4!N2 -> 0 | O2: =Feuil4!O2 -> 0 | P2: =Feuil4!P2 -> 0 | Q2: =Feuil4!Q2 -> 0 | R2: =Feuil4!R2 -> 0 | S2: =Feuil4!S2 -> 0 | T2: =Feuil4!T2 -> 0 | U2: =Feuil4!U2 -> 30000 | V2: =Feuil4!V2 -> 40000 | W2: =Feuil4!W2 -> 30000 | X2: =Feuil4!X2 -> 30000 | Y2: =Feuil4!Y2 -> 0 | Z2: =Feuil4!Z2 -> 0 | AA2: =Feuil4!AA2 -> 0 | AB2: =Feuil4!AB2 -> 0 | AC2: =Feuil4!AC2 -> 1000 | AD2: =Feuil4!AD2 -> 2000 | AE2: =Feuil4!AE2 -> 0 | AF2: =Feuil4!AF2 -> 0 | AG2: =Feuil4!AG2 -> 0 | AH2: =Feuil4!AH2 -> 0 | AI2: =Feuil4!AI2 -> 0 | AJ2: =Feuil4!AJ2 -> 0 | AK2: =Feuil4!AK2 -> 0 | AL2: =Feuil4!AL2 -> فيفري | AM2: =Feuil4!AM2 -> 2014 | AN2: =Feuil4!AN2 -> 2013-01-11 | AO2: =Feuil4!AO2 -> 1 | AP2: =Feuil4!AP2 -> 4 | AQ2: =Feuil4!AQ2 -> 0
A3: =Feuil4!A3 -> 2 | B3: =Feuil4!B3 -> 1000 | C3: =Feuil4!C3 -> خالد | D3: =Feuil4!D3 -> اقتلقل | E3: =Feuil4!E3 -> 6 | F3: =Feuil4!F3 -> لاىتات | G3: =Feuil4!G3 -> 2 | H3: =Feuil4!H3 -> متزوج | I3: =Feuil4!I3 -> 12 | J3: =Feuil4!J3 -> 1000 | K3: =Feuil4!K3 -> 1 | L3: =Feuil4!L3 -> 2 | M3: =Feuil4!M3 -> 3 | N3: =Feuil4!N3 -> 4 | O3: =Feuil4!O3 -> 5 | P3: =Feuil4!P3 -> 6 | Q3: =Feuil4!Q3 -> 7 | R3: =Feuil4!R3 -> 8 | S3: =Feuil4!S3 -> 9 | T3: =Feuil4!T3 -> 10 | U3: =Feuil4!U3 -> 11 | V3: =Feuil4!V3 -> 12 | W3: =Feuil4!W3 -> 13 | X3: =Feuil4!X3 -> 14 | Y3: =Feuil4!Y3 -> 0 | Z3: =Feuil4!Z3 -> 0 | AA3: =Feuil4!AA3 -> 0 | AB3: =Feuil4!AB3 -> 0 | AC3: =Feuil4!AC3 -> 15 | AD3: =Feuil4!AD3 -> 16 | AE3: =Feuil4!AE3 -> 17 | AF3: =Feuil4!AF3 -> 18 | AG3: =Feuil4!AG3 -> 0 | AH3: =Feuil4!AH3 -> 0 | AI3: =Feuil4!AI3 -> 0 | AJ3: =Feuil4!AJ3 -> 0 | AK3: =Feuil4!AK3 -> 0 | AL3: =Feuil4!AL3 -> مارس | AM3: =Feuil4!AM3 -> 2016 | AN3: =Feuil4!AN3 -> 00:00:00 | AO3: =Feuil4!AO3 -> 2
A4: =Feuil4!A4 -> 3 | B4: =Feuil4!B4 -> 1230 | C4: =Feuil4!C4 -> تجريب | D4: =Feuil4!D4 -> البرنامج | E4: =Feuil4!E4 -> 12 | F4: =Feuil4!F4 -> استاذ | G4: =Feuil4!G4 -> 12 | H4: =Feuil4!H4 -> متزوج | I4: =Feuil4!I4 -> 2 | J4: =Feuil4!J4 -> 1230 | K4: =Feuil4!K4 -> 12000 | L4: =Feuil4!L4 -> 14000 | M4: =Feuil4!M4 -> 16000 | N4: =Feuil4!N4 -> 18000 | O4: =Feuil4!O4 -> 20000 | P4: =Feuil4!P4 -> 22000 | Q4: =Feuil4!Q4 -> 24000 | R4: =Feuil4!R4 -> 26000 | S4: =Feuil4!S4 -> 28000 | T4: =Feuil4!T4 -> 30000 | U4: =Feuil4!U4 -> 32000 | V4: =Feuil4!V4 -> 34000 | W4: =Feuil4!W4 -> 36000 | X4: =Feuil4!X4 -> 38000 | Y4: =Feuil4!Y4 -> 0 | Z4: =Feuil4!Z4 -> 0 | AA4: =Feuil4!AA4 -> 0 | AB4: =Feuil4!AB4 -> 0 | AC4: =Feuil4!AC4 -> 40000 | AD4: =Feuil4!AD4 -> 42000 | AE4: =Feuil4!AE4 -> 44000 | AF4: =Feuil4!AF4 -> 46000 | AG4: =Feuil4!AG4 -> 48000 | AH4: =Feuil4!AH4 -> 50000 | AI4: =Feuil4!AI4 -> 52000 | AJ4: =Feuil4!AJ4 -> 54000 | AK4: =Feuil4!AK4 -> 56000 | AL4: =Feuil4!AL4 -> جويلية | AM4: =Feuil4!AM4 -> 2017 | AN4: =Feuil4!AN4 -> 14/11/2013 | AO4: =Feuil4!AO4 -> 3 | BI4: 2
A5: =Feuil4!A5 -> 4 | B5: =Feuil4!B5 -> 0 | C5: =Feuil4!C5 -> 0 | D5: =Feuil4!D5 -> 0 | E5: =Feuil4!E5 -> 0 | F5: =Feuil4!F5 -> 0 | G5: =Feuil4!G5 -> 0 | H5: =Feuil4!H5 -> 0 | I5: =Feuil4!I5 -> 0 | J5: =Feuil4!J5 -> 0 | K5: =Feuil4!K5 -> 0 | L5: =Feuil4!L5 -> 0 | M5: =Feuil4!M5 -> 0 | N5: =Feuil4!N5 -> 0 | O5: =Feuil4!O5 -> 0 | P5: =Feuil4!P5 -> 0 | Q5: =Feuil4!Q5 -> 0 | R5: =Feuil4!R5 -> 0 | S5: =Feuil4!S5 -> 0 | T5: =Feuil4!T5 -> 0 | U5: =Feuil4!U5 -> 0 | V5: =Feuil4!V5 -> 0 | W5: =Feuil4!W5 -> 0 | X5: =Feuil4!X5 -> 0 | Y5: =Feuil4!Y5 -> 0 | Z5: =Feuil4!Z5 -> 0 | AA5: =Feuil4!AA5 -> 0 | AB5: =Feuil4!AB5 -> 0 | AC5: =Feuil4!AC5 -> 0 | AD5: =Feuil4!AD5 -> 0 | AE5: =Feuil4!AE5 -> 0 | AF5: =Feuil4!AF5 -> 0 | AG5: =Feuil4!AG5 -> 0 | AH5: =Feuil4!AH5 -> 0 | AI5: =Feuil4!AI5 -> 0 | AJ5: =Feuil4!AJ5 -> 0 | AK5: =Feuil4!AK5 -> 0 | AL5: =Feuil4!AL5 -> جانفي | AM5: =Feuil4!AM5 -> Label30 | AN5: =Feuil4!AN5 -> 2013-11-12 | AO5: =Feuil4!AO5 -> 4
A6: =Feuil4!A6 -> 0 | B6: =Feuil4!B6 ->  | C6: =Feuil4!C6 -> 0 | D6: =Feuil4!D6 -> 0 | E6: =Feuil4!E6 -> 0 | F6: =Feuil4!F6 -> 0 | G6: =Feuil4!G6 -> 0 | H6: =Feuil4!H6 -> 0 | I6: =Feuil4!I6 -> 0 | J6: =Feuil4!J6 -> 0 | K6: =Feuil4!K6 -> 1 | L6: =Feuil4!L6 -> 2 | M6: =Feuil4!M6 -> 3 | N6: =Feuil4!N6 -> 0 | O6: =Feuil4!O6 -> 5 | P6: =Feuil4!P6 -> 6 | Q6: =Feuil4!Q6 -> 7 | R6: =Feuil4!R6 -> 8 | S6: =Feuil4!S6 -> 9 | T6: =Feuil4!T6 -> 10 | U6: =Feuil4!U6 -> 11 | V6: =Feuil4!V6 -> 12 | W6: =Feuil4!W6 -> 13 | X6: =Feuil4!X6 -> 14 | Y6: =Feuil4!Y6 -> 0 | Z6: =Feuil4!Z6 -> 0 | AA6: =Feuil4!AA6 -> 0 | AB6: =Feuil4!AB6 -> 0 | AC6: =Feuil4!AC6 -> 0 | AD6: =Feuil4!AD6 -> 0 | AE6: =Feuil4!AE6 -> 0 | AF6: =Feuil4!AF6 -> 0 | AG6: =Feuil4!AG6 -> 0 | AH6: =Feuil4!AH6 -> 0 | AI6: =Feuil4!AI6 -> 0 | AJ6: =Feuil4!AJ6 -> 0 | AK6: =Feuil4!AK6 -> 0 | AL6: =Feuil4!AL6 -> 0 | AM6: =Feuil4!AM6 -> Label30 | AN6: =Feuil4!AN6 -> 2013-01-11 | AO6: =Feuil4!AO6 -> 0
A7: =Feuil4!A7 -> 0 | B7: =Feuil4!B7 ->  | C7: =Feuil4!C7 -> 0 | D7: =Feuil4!D7 -> 0 | E7: =Feuil4!E7 -> 0 | F7: =Feuil4!F7 -> 0 | G7: =Feuil4!G7 -> 0 | H7: =Feuil4!H7 -> 0 | I7: =Feuil4!I7 -> 0 | J7: =Feuil4!J7 -> 0 | K7: =Feuil4!K7 -> 0 | L7: =Feuil4!L7 -> 0 | M7: =Feuil4!M7 -> 0 | N7: =Feuil4!N7 -> 0 | O7: =Feuil4!O7 -> 0 | P7: =Feuil4!P7 -> 0 | Q7: =Feuil4!Q7 -> 0 | R7: =Feuil4!R7 -> 0 | S7: =Feuil4!S7 -> 0 | T7: =Feuil4!T7 -> 0 | U7: =Feuil4!U7 -> 0 | V7: =Feuil4!V7 -> 0 | W7: =Feuil4!W7 -> 0 | X7: =Feuil4!X7 -> 0 | Y7: =Feuil4!Y7 -> 0 | Z7: =Feuil4!Z7 -> 0 | AA7: =Feuil4!AA7 -> 0 | AB7: =Feuil4!AB7 -> 0 | AC7: =Feuil4!AC7 -> 0 | AD7: =Feuil4!AD7 -> 0 | AE7: =Feuil4!AE7 -> 0 | AF7: =Feuil4!AF7 -> 0 | AG7: =Feuil4!AG7 -> 0 | AH7: =Feuil4!AH7 -> 0 | AI7: =Feuil4!AI7 -> 0 | AJ7: =Feuil4!AJ7 -> 0 | AK7: =Feuil4!AK7 -> 0 | AL7: =Feuil4!AL7 -> 0 | AM7: =Feuil4!AM7 -> Label30 | AN7: =Feuil4!AN7 -> 2013-05-11 | AO7: =Feuil4!AO7 -> 0
A8: =Feuil4!A8 -> 0 | B8: =Feuil4!B8 ->  | C8: =Feuil4!C8 -> 0 | D8: =Feuil4!D8 -> 0 | E8: =Feuil4!E8 -> 0 | F8: =Feuil4!F8 -> 0 | G8: =Feuil4!G8 -> 0 | H8: =Feuil4!H8 -> 0 | I8: =Feuil4!I8 -> 0 | J8: =Feuil4!J8 -> 0 | K8: =Feuil4!K8 -> 0 | L8: =Feuil4!L8 -> 0 | M8: =Feuil4!M8 -> 0 | N8: =Feuil4!N8 -> 0 | O8: =Feuil4!O8 -> 0 | P8: =Feuil4!P8 -> 0 | Q8: =Feuil4!Q8 -> 0 | R8: =Feuil4!R8 -> 0 | S8: =Feuil4!S8 -> 0 | T8: =Feuil4!T8 -> 0 | U8: =Feuil4!U8 -> 0 | V8: =Feuil4!V8 -> 0 | W8: =Feuil4!W8 -> 0 | X8: =Feuil4!X8 -> 0 | Y8: =Feuil4!Y8 -> 0 | Z8: =Feuil4!Z8 -> 0 | AA8: =Feuil4!AA8 -> 0 | AB8: =Feuil4!AB8 -> 0 | AC8: =Feuil4!AC8 -> 0 | AD8: =Feuil4!AD8 -> 0 | AE8: =Feuil4!AE8 -> 0 | AF8: =Feuil4!AF8 -> 0 | AG8: =Feuil4!AG8 -> 0 | AH8: =Feuil4!AH8 -> 0 | AI8: =Feuil4!AI8 -> 0 | AJ8: =Feuil4!AJ8 -> 0 | AK8: =Feuil4!AK8 -> 0 | AL8: =Feuil4!AL8 -> 0 | AM8: =Feuil4!AM8 -> Label30 | AN8: =Feuil4!AN8 -> 2013-05-11 | AO8: =Feuil4!AO8 -> 0
A9: =Feuil4!A9 -> 0 | B9: =Feuil4!B9 ->  | C9: =Feuil4!C9 -> 0 | D9: =Feuil4!D9 -> 0 | E9: =Feuil4!E9 -> 0 | F9: =Feuil4!F9 -> 0 | G9: =Feuil4!G9 -> 0 | H9: =Feuil4!H9 -> 0 | I9: =Feuil4!I9 -> 0 | J9: =Feuil4!J9 -> 0 | K9: =Feuil4!K9 -> 0 | L9: =Feuil4!L9 -> 0 | M9: =Feuil4!M9 -> 0 | N9: =Feuil4!N9 -> 0 | O9: =Feuil4!O9 -> 0 | P9: =Feuil4!P9 -> 0 | Q9: =Feuil4!Q9 -> 0 | R9: =Feuil4!R9 -> 0 | S9: =Feuil4!S9 -> 0 | T9: =Feuil4!T9 -> 0 | U9: =Feuil4!U9 -> 0 | V9: =Feuil4!V9 -> 0 | W9: =Feuil4!W9 -> 0 | X9: =Feuil4!X9 -> 0 | Y9: =Feuil4!Y9 -> 0 | Z9: =Feuil4!Z9 -> 0 | AA9: =Feuil4!AA9 -> 0 | AB9: =Feuil4!AB9 -> 0 | AC9: =Feuil4!AC9 -> 0 | AD9: =Feuil4!AD9 -> 0 | AE9: =Feuil4!AE9 -> 0 | AF9: =Feuil4!AF9 -> 0 | AG9: =Feuil4!AG9 -> 0 | AH9: =Feuil4!AH9 -> 0 | AI9: =Feuil4!AI9 -> 0 | AJ9: =Feuil4!AJ9 -> 0 | AK9: =Feuil4!AK9 -> 0 | AL9: =Feuil4!AL9 -> 0 | AM9: =Feuil4!AM9 -> 0 | AN9: =Feuil4!AN9 -> 00:00:00 | AO9: =Feuil4!AO9 -> 0
A10: =Feuil4!A10 -> 0 | B10: =Feuil4!B10 ->  | C10: =Feuil4!C10 -> 0 | D10: =Feuil4!D10 -> 0 | E10: =Feuil4!E10 -> 0 | F10: =Feuil4!F10 -> 0 | G10: =Feuil4!G10 -> 0 | H10: =Feuil4!H10 -> 0 | I10: =Feuil4!I10 -> 0 | J10: =Feuil4!J10 -> 0 | K10: =Feuil4!K10 -> 0 | L10: =Feuil4!L10 -> 0 | M10: =Feuil4!M10 -> 0 | N10: =Feuil4!N10 -> 0 | O10: =Feuil4!O10 -> 0 | P10: =Feuil4!P10 -> 0 | Q10: =Feuil4!Q10 -> 0 | R10: =Feuil4!R10 -> 0 | S10: =Feuil4!S10 -> 0 | T10: =Feuil4!T10 -> 0 | U10: =Feuil4!U10 -> 0 | V10: =Feuil4!V10 -> 0 | W10: =Feuil4!W10 -> 0 | X10: =Feuil4!X10 -> 0 | Y10: =Feuil4!Y10 -> 0 | Z10: =Feuil4!Z10 -> 0 | AA10: =Feuil4!AA10 -> 0 | AB10: =Feuil4!AB10 -> 0 | AC10: =Feuil4!AC10 -> 0 | AD10: =Feuil4!AD10 -> 0 | AE10: =Feuil4!AE10 -> 0 | AF10: =Feuil4!AF10 -> 0 | AG10: =Feuil4!AG10 -> 0 | AH10: =Feuil4!AH10 -> 0 | AI10: =Feuil4!AI10 -> 0 | AJ10: =Feuil4!AJ10 -> 0 | AK10: =Feuil4!AK10 -> 0 | AL10: =Feuil4!AL10 -> 0 | AM10: =Feuil4!AM10 -> 0 | AN10: =Feuil4!AN10 -> 00:00:00 | AO10: =Feuil4!AO10 -> 0
A11: =Feuil4!A11 -> 0 | B11: =Feuil4!B11 ->  | C11: =Feuil4!C11 -> 0 | D11: =Feuil4!D11 -> 0 | E11: =Feuil4!E11 -> 0 | F11: =Feuil4!F11 -> 0 | G11: =Feuil4!G11 -> 0 | H11: =Feuil4!H11 -> 0 | I11: =Feuil4!I11 -> 0 | J11: =Feuil4!J11 -> 0 | K11: =Feuil4!K11 -> 0 | L11: =Feuil4!L11 -> 0 | M11: =Feuil4!M11 -> 0 | N11: =Feuil4!N11 -> 0 | O11: =Feuil4!O11 -> 0 | P11: =Feuil4!P11 -> 0 | Q11: =Feuil4!Q11 -> 0 | R11: =Feuil4!R11 -> 0 | S11: =Feuil4!S11 -> 0 | T11: =Feuil4!T11 -> 0 | U11: =Feuil4!U11 -> 0 | V11: =Feuil4!V11 -> 0 | W11: =Feuil4!W11 -> 0 | X11: =Feuil4!X11 -> 0 | Y11: =Feuil4!Y11 -> 0 | Z11: =Feuil4!Z11 -> 0 | AA11: =Feuil4!AA11 -> 0 | AB11: =Feuil4!AB11 -> 0 | AC11: =Feuil4!AC11 -> 0 | AD11: =Feuil4!AD11 -> 0 | AE11: =Feuil4!AE11 -> 0 | AF11: =Feuil4!AF11 -> 0 | AG11: =Feuil4!AG11 -> 0 | AH11: =Feuil4!AH11 -> 0 | AI11: =Feuil4!AI11 -> 0 | AJ11: =Feuil4!AJ11 -> 0 | AK11: =Feuil4!AK11 -> 0 | AL11: =Feuil4!AL11 -> 0 | AM11: =Feuil4!AM11 -> 0 | AN11: =Feuil4!AN11 -> 00:00:00 | AO11: =Feuil4!AO11 -> 0
A12: =Feuil4!A12 -> 0 | B12: =Feuil4!B12 ->  | C12: =Feuil4!C12 -> 0 | D12: =Feuil4!D12 -> 0 | E12: =Feuil4!E12 -> 0 | F12: =Feuil4!F12 -> 0 | G12: =Feuil4!G12 -> 0 | H12: =Feuil4!H12 -> 0 | I12: =Feuil4!I12 -> 0 | J12: =Feuil4!J12 -> 0 | K12: =Feuil4!K12 -> 0 | L12: =Feuil4!L12 -> 0 | M12: =Feuil4!M12 -> 0 | N12: =Feuil4!N12 -> 0 | O12: =Feuil4!O12 -> 0 | P12: =Feuil4!P12 -> 0 | Q12: =Feuil4!Q12 -> 0 | R12: =Feuil4!R12 -> 0 | S12: =Feuil4!S12 -> 0 | T12: =Feuil4!T12 -> 0 | U12: =Feuil4!U12 -> 0 | V12: =Feuil4!V12 -> 0 | W12: =Feuil4!W12 -> 0 | X12: =Feuil4!X12 -> 0 | Y12: =Feuil4!Y12 -> 0 | Z12: =Feuil4!Z12 -> 0 | AA12: =Feuil4!AA12 -> 0 | AB12: =Feuil4!AB12 -> 0 | AC12: =Feuil4!AC12 -> 0 | AD12: =Feuil4!AD12 -> 0 | AE12: =Feuil4!AE12 -> 0 | AF12: =Feuil4!AF12 -> 0 | AG12: =Feuil4!AG12 -> 0 | AH12: =Feuil4!AH12 -> 0 | AI12: =Feuil4!AI12 -> 0 | AJ12: =Feuil4!AJ12 -> 0 | AK12: =Feuil4!AK12 -> 0 | AL12: =Feuil4!AL12 -> 0 | AM12: =Feuil4!AM12 -> 0 | AN12: =Feuil4!AN12 -> 00:00:00 | AO12: =Feuil4!AO12 -> 0
A13: =Feuil4!A13 -> 0 | B13: =Feuil4!B13 ->  | C13: =Feuil4!C13 -> 0 | D13: =Feuil4!D13 -> 0 | E13: =Feuil4!E13 -> 0 | F13: =Feuil4!F13 -> 0 | G13: =Feuil4!G13 -> 0 | H13: =Feuil4!H13 -> 0 | I13: =Feuil4!I13 -> 0 | J13: =Feuil4!J13 -> 0 | K13: =Feuil4!K13 -> 0 | L13: =Feuil4!L13 -> 0 | M13: =Feuil4!M13 -> 0 | N13: =Feuil4!N13 -> 0 | O13: =Feuil4!O13 -> 0 | P13: =Feuil4!P13 -> 0 | Q13: =Feuil4!Q13 -> 0 | R13: =Feuil4!R13 -> 0 | S13: =Feuil4!S13 -> 0 | T13: =Feuil4!T13 -> 0 | U13: =Feuil4!U13 -> 0 | V13: =Feuil4!V13 -> 0 | W13: =Feuil4!W13 -> 0 | X13: =Feuil4!X13 -> 0 | Y13: =Feuil4!Y13 -> 0 | Z13: =Feuil4!Z13 -> 0 | AA13: =Feuil4!AA13 -> 0 | AB13: =Feuil4!AB13 -> 0 | AC13: =Feuil4!AC13 -> 0 | AD13: =Feuil4!AD13 -> 0 | AE13: =Feuil4!AE13 -> 0 | AF13: =Feuil4!AF13 -> 0 | AG13: =Feuil4!AG13 -> 0 | AH13: =Feuil4!AH13 -> 0 | AI13: =Feuil4!AI13 -> 0 | AJ13: =Feuil4!AJ13 -> 0 | AK13: =Feuil4!AK13 -> 0 | AL13: =Feuil4!AL13 -> 0 | AM13: =Feuil4!AM13 -> 0 | AN13: =Feuil4!AN13 -> 00:00:00 | AO13: =Feuil4!AO13 -> 0
A14: =Feuil4!A14 -> 0 | B14: =Feuil4!B14 ->  | C14: =Feuil4!C14 -> 0 | D14: =Feuil4!D14 -> 0 | E14: =Feuil4!E14 -> 0 | F14: =Feuil4!F14 -> 0 | G14: =Feuil4!G14 -> 0 | H14: =Feuil4!H14 -> 0 | I14: =Feuil4!I14 -> 0 | J14: =Feuil4!J14 -> 0 | K14: =Feuil4!K14 -> 0 | L14: =Feuil4!L14 -> 0 | M14: =Feuil4!M14 -> 0 | N14: =Feuil4!N14 -> 0 | O14: =Feuil4!O14 -> 0 | P14: =Feuil4!P14 -> 0 | Q14: =Feuil4!Q14 -> 0 | R14: =Feuil4!R14 -> 0 | S14: =Feuil4!S14 -> 0 | T14: =Feuil4!T14 -> 0 | U14: =Feuil4!U14 -> 0 | V14: =Feuil4!V14 -> 0 | W14: =Feuil4!W14 -> 0 | X14: =Feuil4!X14 -> 0 | Y14: =Feuil4!Y14 -> 0 | Z14: =Feuil4!Z14 -> 0 | AA14: =Feuil4!AA14 -> 0 | AB14: =Feuil4!AB14 -> 0 | AC14: =Feuil4!AC14 -> 0 | AD14: =Feuil4!AD14 -> 0 | AE14: =Feuil4!AE14 -> 0 | AF14: =Feuil4!AF14 -> 0 | AG14: =Feuil4!AG14 -> 0 | AH14: =Feuil4!AH14 -> 0 | AI14: =Feuil4!AI14 -> 0 | AJ14: =Feuil4!AJ14 -> 0 | AK14: =Feuil4!AK14 -> 0 | AL14: =Feuil4!AL14 -> 0 | AM14: =Feuil4!AM14 -> 0 | AN14: =Feuil4!AN14 -> 00:00:00 | AO14: =Feuil4!AO14 -> 0
A15: =Feuil4!A15 -> 0 | B15: =Feuil4!B15 ->  | C15: =Feuil4!C15 -> 0 | D15: =Feuil4!D15 -> 0 | E15: =Feuil4!E15 -> 0 | F15: =Feuil4!F15 -> 0 | G15: =Feuil4!G15 -> 0 | H15: =Feuil4!H15 -> 0 | I15: =Feuil4!I15 -> 0 | J15: =Feuil4!J15 -> 0 | K15: =Feuil4!K15 -> 0 | L15: =Feuil4!L15 -> 0 | M15: =Feuil4!M15 -> 0 | N15: =Feuil4!N15 -> 0 | O15: =Feuil4!O15 -> 0 | P15: =Feuil4!P15 -> 0 | Q15: =Feuil4!Q15 -> 0 | R15: =Feuil4!R15 -> 0 | S15: =Feuil4!S15 -> 0 | T15: =Feuil4!T15 -> 0 | U15: =Feuil4!U15 -> 0 | V15: =Feuil4!V15 -> 0 | W15: =Feuil4!W15 -> 0 | X15: =Feuil4!X15 -> 0 | Y15: =Feuil4!Y15 -> 0 | Z15: =Feuil4!Z15 -> 0 | AA15: =Feuil4!AA15 -> 0 | AB15: =Feuil4!AB15 -> 0 | AC15: =Feuil4!AC15 -> 0 | AD15: =Feuil4!AD15 -> 0 | AE15: =Feuil4!AE15 -> 0 | AF15: =Feuil4!AF15 -> 0 | AG15: =Feuil4!AG15 -> 0 | AH15: =Feuil4!AH15 -> 0 | AI15: =Feuil4!AI15 -> 0 | AJ15: =Feuil4!AJ15 -> 0 | AK15: =Feuil4!AK15 -> 0 | AL15: =Feuil4!AL15 -> 0 | AM15: =Feuil4!AM15 -> 0 | AN15: =Feuil4!AN15 -> 00:00:00 | AO15: =Feuil4!AO15 -> 0
A16: =Feuil4!A16 -> 0 | B16: =Feuil4!B16 ->  | C16: =Feuil4!C16 -> 0 | D16: =Feuil4!D16 -> 0 | E16: =Feuil4!E16 -> 0 | F16: =Feuil4!F16 -> 0 | G16: =Feuil4!G16 -> 0 | H16: =Feuil4!H16 -> 0 | I16: =Feuil4!I16 -> 0 | J16: =Feuil4!J16 -> 0 | K16: =Feuil4!K16 -> 0 | L16: =Feuil4!L16 -> 0 | M16: =Feuil4!M16 -> 0 | N16: =Feuil4!N16 -> 0 | O16: =Feuil4!O16 -> 0 | P16: =Feuil4!P16 -> 0 | Q16: =Feuil4!Q16 -> 0 | R16: =Feuil4!R16 -> 0 | S16: =Feuil4!S16 -> 0 | T16: =Feuil4!T16 -> 0 | U16: =Feuil4!U16 -> 0 | V16: =Feuil4!V16 -> 0 | W16: =Feuil4!W16 -> 0 | X16: =Feuil4!X16 -> 0 | Y16: =Feuil4!Y16 -> 0 | Z16: =Feuil4!Z16 -> 0 | AA16: =Feuil4!AA16 -> 0 | AB16: =Feuil4!AB16 -> 0 | AC16: =Feuil4!AC16 -> 0 | AD16: =Feuil4!AD16 -> 0 | AE16: =Feuil4!AE16 -> 0 | AF16: =Feuil4!AF16 -> 0 | AG16: =Feuil4!AG16 -> 0 | AH16: =Feuil4!AH16 -> 0 | AI16: =Feuil4!AI16 -> 0 | AJ16: =Feuil4!AJ16 -> 0 | AK16: =Feuil4!AK16 -> 0 | AL16: =Feuil4!AL16 -> 0 | AM16: =Feuil4!AM16 -> 0 | AN16: =Feuil4!AN16 -> 00:00:00 | AO16: =Feuil4!AO16 -> 0
A17: =Feuil4!A17 -> 0 | B17: =Feuil4!B17 ->  | C17: =Feuil4!C17 -> 0 | D17: =Feuil4!D17 -> 0 | E17: =Feuil4!E17 -> 0 | F17: =Feuil4!F17 -> 0 | G17: =Feuil4!G17 -> 0 | H17: =Feuil4!H17 -> 0 | I17: =Feuil4!I17 -> 0 | J17: =Feuil4!J17 -> 0 | K17: =Feuil4!K17 -> 0 | L17: =Feuil4!L17 -> 0 | M17: =Feuil4!M17 -> 0 | N17: =Feuil4!N17 -> 0 | O17: =Feuil4!O17 -> 0 | P17: =Feuil4!P17 -> 0 | Q17: =Feuil4!Q17 -> 0 | R17: =Feuil4!R17 -> 0 | S17: =Feuil4!S17 -> 0 | T17: =Feuil4!T17 -> 0 | U17: =Feuil4!U17 -> 0 | V17: =Feuil4!V17 -> 0 | W17: =Feuil4!W17 -> 0 | X17: =Feuil4!X17 -> 0 | Y17: =Feuil4!Y17 -> 0 | Z17: =Feuil4!Z17 -> 0 | AA17: =Feuil4!AA17 -> 0 | AB17: =Feuil4!AB17 -> 0 | AC17: =Feuil4!AC17 -> 0 | AD17: =Feuil4!AD17 -> 0 | AE17: =Feuil4!AE17 -> 0 | AF17: =Feuil4!AF17 -> 0 | AG17: =Feuil4!AG17 -> 0 | AH17: =Feuil4!AH17 -> 0 | AI17: =Feuil4!AI17 -> 0 | AJ17: =Feuil4!AJ17 -> 0 | AK17: =Feuil4!AK17 -> 0 | AL17: =Feuil4!AL17 -> 0 | AM17: =Feuil4!AM17 -> 0 | AN17: =Feuil4!AN17 -> 00:00:00 | AO17: =Feuil4!AO17 -> 0
A18: =Feuil4!A18 -> 0 | B18: =Feuil4!B18 ->  | C18: =Feuil4!C18 -> 0 | D18: =Feuil4!D18 -> 0 | E18: =Feuil4!E18 -> 0 | F18: =Feuil4!F18 -> 0 | G18: =Feuil4!G18 -> 0 | H18: =Feuil4!H18 -> 0 | I18: =Feuil4!I18 -> 0 | J18: =Feuil4!J18 -> 0 | K18: =Feuil4!K18 -> 0 | L18: =Feuil4!L18 -> 0 | M18: =Feuil4!M18 -> 0 | N18: =Feuil4!N18 -> 0 | O18: =Feuil4!O18 -> 0 | P18: =Feuil4!P18 -> 0 | Q18: =Feuil4!Q18 -> 0 | R18: =Feuil4!R18 -> 0 | S18: =Feuil4!S18 -> 0 | T18: =Feuil4!T18 -> 0 | U18: =Feuil4!U18 -> 0 | V18: =Feuil4!V18 -> 0 | W18: =Feuil4!W18 -> 0 | X18: =Feuil4!X18 -> 0 | Y18: =Feuil4!Y18 -> 0 | Z18: =Feuil4!Z18 -> 0 | AA18: =Feuil4!AA18 -> 0 | AB18: =Feuil4!AB18 -> 0 | AC18: =Feuil4!AC18 -> 0 | AD18: =Feuil4!AD18 -> 0 | AE18: =Feuil4!AE18 -> 0 | AF18: =Feuil4!AF18 -> 0 | AG18: =Feuil4!AG18 -> 0 | AH18: =Feuil4!AH18 -> 0 | AI18: =Feuil4!AI18 -> 0 | AJ18: =Feuil4!AJ18 -> 0 | AK18: =Feuil4!AK18 -> 0 | AL18: =Feuil4!AL18 -> 0 | AM18: =Feuil4!AM18 -> 0 | AN18: =Feuil4!AN18 -> 00:00:00 | AO18: =Feuil4!AO18 -> 0
A19: =Feuil4!A19 -> 0 | B19: =Feuil4!B19 ->  | C19: =Feuil4!C19 -> 0 | D19: =Feuil4!D19 -> 0 | E19: =Feuil4!E19 -> 0 | F19: =Feuil4!F19 -> 0 | G19: =Feuil4!G19 -> 0 | H19: =Feuil4!H19 -> 0 | I19: =Feuil4!I19 -> 0 | J19: =Feuil4!J19 -> 0 | K19: =Feuil4!K19 -> 0 | L19: =Feuil4!L19 -> 0 | M19: =Feuil4!M19 -> 0 | N19: =Feuil4!N19 -> 0 | O19: =Feuil4!O19 -> 0 | P19: =Feuil4!P19 -> 0 | Q19: =Feuil4!Q19 -> 0 | R19: =Feuil4!R19 -> 0 | S19: =Feuil4!S19 -> 0 | T19: =Feuil4!T19 -> 0 | U19: =Feuil4!U19 -> 0 | V19: =Feuil4!V19 -> 0 | W19: =Feuil4!W19 -> 0 | X19: =Feuil4!X19 -> 0 | Y19: =Feuil4!Y19 -> 0 | Z19: =Feuil4!Z19 -> 0 | AA19: =Feuil4!AA19 -> 0 | AB19: =Feuil4!AB19 -> 0 | AC19: =Feuil4!AC19 -> 0 | AD19: =Feuil4!AD19 -> 0 | AE19: =Feuil4!AE19 -> 0 | AF19: =Feuil4!AF19 -> 0 | AG19: =Feuil4!AG19 -> 0 | AH19: =Feuil4!AH19 -> 0 | AI19: =Feuil4!AI19 -> 0 | AJ19: =Feuil4!AJ19 -> 0 | AK19: =Feuil4!AK19 -> 0 | AL19: =Feuil4!AL19 -> 0 | AM19: =Feuil4!AM19 -> 0 | AN19: =Feuil4!AN19 -> 00:00:00 | AO19: =Feuil4!AO19 -> 0
A20: =Feuil4!A20 -> 0 | B20: =Feuil4!B20 ->  | C20: =Feuil4!C20 -> 0 | D20: =Feuil4!D20 -> 0 | E20: =Feuil4!E20 -> 0 | F20: =Feuil4!F20 -> 0 | G20: =Feuil4!G20 -> 0 | H20: =Feuil4!H20 -> 0 | I20: =Feuil4!I20 -> 0 | J20: =Feuil4!J20 -> 0 | K20: =Feuil4!K20 -> 0 | L20: =Feuil4!L20 -> 0 | M20: =Feuil4!M20 -> 0 | N20: =Feuil4!N20 -> 0 | O20: =Feuil4!O20 -> 0 | P20: =Feuil4!P20 -> 0 | Q20: =Feuil4!Q20 -> 0 | R20: =Feuil4!R20 -> 0 | S20: =Feuil4!S20 -> 0 | T20: =Feuil4!T20 -> 0 | U20: =Feuil4!U20 -> 0 | V20: =Feuil4!V20 -> 0 | W20: =Feuil4!W20 -> 0 | X20: =Feuil4!X20 -> 0 | Y20: =Feuil4!Y20 -> 0 | Z20: =Feuil4!Z20 -> 0 | AA20: =Feuil4!AA20 -> 0 | AB20: =Feuil4!AB20 -> 0 | AC20: =Feuil4!AC20 -> 0 | AD20: =Feuil4!AD20 -> 0 | AE20: =Feuil4!AE20 -> 0 | AF20: =Feuil4!AF20 -> 0 | AG20: =Feuil4!AG20 -> 0 | AH20: =Feuil4!AH20 -> 0 | AI20: =Feuil4!AI20 -> 0 | AJ20: =Feuil4!AJ20 -> 0 | AK20: =Feuil4!AK20 -> 0 | AL20: =Feuil4!AL20 -> 0 | AM20: =Feuil4!AM20 -> 0 | AN20: =Feuil4!AN20 -> 00:00:00 | AO20: =Feuil4!AO20 -> 0
A21: =Feuil4!A21 -> 0 | B21: =Feuil4!B21 ->  | C21: =Feuil4!C21 -> 0 | D21: =Feuil4!D21 -> 0 | E21: =Feuil4!E21 -> 0 | F21: =Feuil4!F21 -> 0 | G21: =Feuil4!G21 -> 0 | H21: =Feuil4!H21 -> 0 | I21: =Feuil4!I21 -> 0 | J21: =Feuil4!J21 -> 0 | K21: =Feuil4!K21 -> 0 | L21: =Feuil4!L21 -> 0 | M21: =Feuil4!M21 -> 0 | N21: =Feuil4!N21 -> 0 | O21: =Feuil4!O21 -> 0 | P21: =Feuil4!P21 -> 0 | Q21: =Feuil4!Q21 -> 0 | R21: =Feuil4!R21 -> 0 | S21: =Feuil4!S21 -> 0 | T21: =Feuil4!T21 -> 0 | U21: =Feuil4!U21 -> 0 | V21: =Feuil4!V21 -> 0 | W21: =Feuil4!W21 -> 0 | X21: =Feuil4!X21 -> 0 | Y21: =Feuil4!Y21 -> 0 | Z21: =Feuil4!Z21 -> 0 | AA21: =Feuil4!AA21 -> 0 | AB21: =Feuil4!AB21 -> 0 | AC21: =Feuil4!AC21 -> 0 | AD21: =Feuil4!AD21 -> 0 | AE21: =Feuil4!AE21 -> 0 | AF21: =Feuil4!AF21 -> 0 | AG21: =Feuil4!AG21 -> 0 | AH21: =Feuil4!AH21 -> 0 | AI21: =Feuil4!AI21 -> 0 | AJ21: =Feuil4!AJ21 -> 0 | AK21: =Feuil4!AK21 -> 0 | AL21: =Feuil4!AL21 -> 0 | AM21: =Feuil4!AM21 -> 0 | AN21: =Feuil4!AN21 -> 00:00:00 | AO21: =Feuil4!AO21 -> 0
A22: =Feuil4!A22 -> 0 | B22: =Feuil4!B22 ->  | C22: =Feuil4!C22 -> 0 | D22: =Feuil4!D22 -> 0 | E22: =Feuil4!E22 -> 0 | F22: =Feuil4!F22 -> 0 | G22: =Feuil4!G22 -> 0 | H22: =Feuil4!H22 -> 0 | I22: =Feuil4!I22 -> 0 | J22: =Feuil4!J22 -> 0 | K22: =Feuil4!K22 -> 0 | L22: =Feuil4!L22 -> 0 | M22: =Feuil4!M22 -> 0 | N22: =Feuil4!N22 -> 0 | O22: =Feuil4!O22 -> 0 | P22: =Feuil4!P22 -> 0 | Q22: =Feuil4!Q22 -> 0 | R22: =Feuil4!R22 -> 0 | S22: =Feuil4!S22 -> 0 | T22: =Feuil4!T22 -> 0 | U22: =Feuil4!U22 -> 0 | V22: =Feuil4!V22 -> 0 | W22: =Feuil4!W22 -> 0 | X22: =Feuil4!X22 -> 0 | Y22: =Feuil4!Y22 -> 0 | Z22: =Feuil4!Z22 -> 0 | AA22: =Feuil4!AA22 -> 0 | AB22: =Feuil4!AB22 -> 0 | AC22: =Feuil4!AC22 -> 0 | AD22: =Feuil4!AD22 -> 0 | AE22: =Feuil4!AE22 -> 0 | AF22: =Feuil4!AF22 -> 0 | AG22: =Feuil4!AG22 -> 0 | AH22: =Feuil4!AH22 -> 0 | AI22: =Feuil4!AI22 -> 0 | AJ22: =Feuil4!AJ22 -> 0 | AK22: =Feuil4!AK22 -> 0 | AL22: =Feuil4!AL22 -> 0 | AM22: =Feuil4!AM22 -> 0 | AN22: =Feuil4!AN22 -> 00:00:00 | AO22: =Feuil4!AO22 -> 0
A23: =Feuil4!A23 -> 0 | B23: =Feuil4!B23 ->  | C23: =Feuil4!C23 -> 0 | D23: =Feuil4!D23 -> 0 | E23: =Feuil4!E23 -> 0 | F23: =Feuil4!F23 -> 0 | G23: =Feuil4!G23 -> 0 | H23: =Feuil4!H23 -> 0 | I23: =Feuil4!I23 -> 0 | J23: =Feuil4!J23 -> 0 | K23: =Feuil4!K23 -> 0 | L23: =Feuil4!L23 -> 0 | M23: =Feuil4!M23 -> 0 | N23: =Feuil4!N23 -> 0 | O23: =Feuil4!O23 -> 0 | P23: =Feuil4!P23 -> 0 | Q23: =Feuil4!Q23 -> 0 | R23: =Feuil4!R23 -> 0 | S23: =Feuil4!S23 -> 0 | T23: =Feuil4!T23 -> 0 | U23: =Feuil4!U23 -> 0 | V23: =Feuil4!V23 -> 0 | W23: =Feuil4!W23 -> 0 | X23: =Feuil4!X23 -> 0 | Y23: =Feuil4!Y23 -> 0 | Z23: =Feuil4!Z23 -> 0 | AA23: =Feuil4!AA23 -> 0 | AB23: =Feuil4!AB23 -> 0 | AC23: =Feuil4!AC23 -> 0 | AD23: =Feuil4!AD23 -> 0 | AE23: =Feuil4!AE23 -> 0 | AF23: =Feuil4!AF23 -> 0 | AG23: =Feuil4!AG23 -> 0 | AH23: =Feuil4!AH23 -> 0 | AI23: =Feuil4!AI23 -> 0 | AJ23: =Feuil4!AJ23 -> 0 | AK23: =Feuil4!AK23 -> 0 | AL23: =Feuil4!AL23 -> 0 | AM23: =Feuil4!AM23 -> 0 | AN23: =Feuil4!AN23 -> 00:00:00 | AO23: =Feuil4!AO23 -> 0
A24: =Feuil4!A24 -> 0 | B24: =Feuil4!B24 ->  | C24: =Feuil4!C24 -> 0 | D24: =Feuil4!D24 -> 0 | E24: =Feuil4!E24 -> 0 | F24: =Feuil4!F24 -> 0 | G24: =Feuil4!G24 -> 0 | H24: =Feuil4!H24 -> 0 | I24: =Feuil4!I24 -> 0 | J24: =Feuil4!J24 -> 0 | K24: =Feuil4!K24 -> 0 | L24: =Feuil4!L24 -> 0 | M24: =Feuil4!M24 -> 0 | N24: =Feuil4!N24 -> 0 | O24: =Feuil4!O24 -> 0 | P24: =Feuil4!P24 -> 0 | Q24: =Feuil4!Q24 -> 0 | R24: =Feuil4!R24 -> 0 | S24: =Feuil4!S24 -> 0 | T24: =Feuil4!T24 -> 0 | U24: =Feuil4!U24 -> 0 | V24: =Feuil4!V24 -> 0 | W24: =Feuil4!W24 -> 0 | X24: =Feuil4!X24 -> 0 | Y24: =Feuil4!Y24 -> 0 | Z24: =Feuil4!Z24 -> 0 | AA24: =Feuil4!AA24 -> 0 | AB24: =Feuil4!AB24 -> 0 | AC24: =Feuil4!AC24 -> 0 | AD24: =Feuil4!AD24 -> 0 | AE24: =Feuil4!AE24 -> 0 | AF24: =Feuil4!AF24 -> 0 | AG24: =Feuil4!AG24 -> 0 | AH24: =Feuil4!AH24 -> 0 | AI24: =Feuil4!AI24 -> 0 | AJ24: =Feuil4!AJ24 -> 0 | AK24: =Feuil4!AK24 -> 0 | AL24: =Feuil4!AL24 -> 0 | AM24: =Feuil4!AM24 -> 0 | AN24: =Feuil4!AN24 -> 00:00:00 | AO24: =Feuil4!AO24 -> 0
A25: =Feuil4!A25 -> 0 | B25: =Feuil4!B25 ->  | C25: =Feuil4!C25 -> 0 | D25: =Feuil4!D25 -> 0 | E25: =Feuil4!E25 -> 0 | F25: =Feuil4!F25 -> 0 | G25: =Feuil4!G25 -> 0 | H25: =Feuil4!H25 -> 0 | I25: =Feuil4!I25 -> 0 | J25: =Feuil4!J25 -> 0 | K25: =Feuil4!K25 -> 0 | L25: =Feuil4!L25 -> 0 | M25: =Feuil4!M25 -> 0 | N25: =Feuil4!N25 -> 0 | O25: =Feuil4!O25 -> 0 | P25: =Feuil4!P25 -> 0 | Q25: =Feuil4!Q25 -> 0 | R25: =Feuil4!R25 -> 0 | S25: =Feuil4!S25 -> 0 | T25: =Feuil4!T25 -> 0 | U25: =Feuil4!U25 -> 0 | V25: =Feuil4!V25 -> 0 | W25: =Feuil4!W25 -> 0 | X25: =Feuil4!X25 -> 0 | Y25: =Feuil4!Y25 -> 0 | Z25: =Feuil4!Z25 -> 0 | AA25: =Feuil4!AA25 -> 0 | AB25: =Feuil4!AB25 -> 0 | AC25: =Feuil4!AC25 -> 0 | AD25: =Feuil4!AD25 -> 0 | AE25: =Feuil4!AE25 -> 0 | AF25: =Feuil4!AF25 -> 0 | AG25: =Feuil4!AG25 -> 0 | AH25: =Feuil4!AH25 -> 0 | AI25: =Feuil4!AI25 -> 0 | AJ25: =Feuil4!AJ25 -> 0 | AK25: =Feuil4!AK25 -> 0 | AL25: =Feuil4!AL25 -> 0 | AM25: =Feuil4!AM25 -> 0 | AN25: =Feuil4!AN25 -> 00:00:00 | AO25: =Feuil4!AO25 -> 0
A26: =Feuil4!A26 -> 0 | B26: =Feuil4!B26 ->  | C26: =Feuil4!C26 -> 0 | D26: =Feuil4!D26 -> 0 | E26: =Feuil4!E26 -> 0 | F26: =Feuil4!F26 -> 0 | G26: =Feuil4!G26 -> 0 | H26: =Feuil4!H26 -> 0 | I26: =Feuil4!I26 -> 0 | J26: =Feuil4!J26 -> 0 | K26: =Feuil4!K26 -> 0 | L26: =Feuil4!L26 -> 0 | M26: =Feuil4!M26 -> 0 | N26: =Feuil4!N26 -> 0 | O26: =Feuil4!O26 -> 0 | P26: =Feuil4!P26 -> 0 | Q26: =Feuil4!Q26 -> 0 | R26: =Feuil4!R26 -> 0 | S26: =Feuil4!S26 -> 0 | T26: =Feuil4!T26 -> 0 | U26: =Feuil4!U26 -> 0 | V26: =Feuil4!V26 -> 0 | W26: =Feuil4!W26 -> 0 | X26: =Feuil4!X26 -> 0 | Y26: =Feuil4!Y26 -> 0 | Z26: =Feuil4!Z26 -> 0 | AA26: =Feuil4!AA26 -> 0 | AB26: =Feuil4!AB26 -> 0 | AC26: =Feuil4!AC26 -> 0 | AD26: =Feuil4!AD26 -> 0 | AE26: =Feuil4!AE26 -> 0 | AF26: =Feuil4!AF26 -> 0 | AG26: =Feuil4!AG26 -> 0 | AH26: =Feuil4!AH26 -> 0 | AI26: =Feuil4!AI26 -> 0 | AJ26: =Feuil4!AJ26 -> 0 | AK26: =Feuil4!AK26 -> 0 | AL26: =Feuil4!AL26 -> 0 | AM26: =Feuil4!AM26 -> 0 | AN26: =Feuil4!AN26 -> 00:00:00 | AO26: =Feuil4!AO26 -> 0
A27: =Feuil4!A27 -> 0 | B27: =Feuil4!B27 ->  | C27: =Feuil4!C27 -> 0 | D27: =Feuil4!D27 -> 0 | E27: =Feuil4!E27 -> 0 | F27: =Feuil4!F27 -> 0 | G27: =Feuil4!G27 -> 0 | H27: =Feuil4!H27 -> 0 | I27: =Feuil4!I27 -> 0 | J27: =Feuil4!J27 -> 0 | K27: =Feuil4!K27 -> 0 | L27: =Feuil4!L27 -> 0 | M27: =Feuil4!M27 -> 0 | N27: =Feuil4!N27 -> 0 | O27: =Feuil4!O27 -> 0 | P27: =Feuil4!P27 -> 0 | Q27: =Feuil4!Q27 -> 0 | R27: =Feuil4!R27 -> 0 | S27: =Feuil4!S27 -> 0 | T27: =Feuil4!T27 -> 0 | U27: =Feuil4!U27 -> 0 | V27: =Feuil4!V27 -> 0 | W27: =Feuil4!W27 -> 0 | X27: =Feuil4!X27 -> 0 | Y27: =Feuil4!Y27 -> 0 | Z27: =Feuil4!Z27 -> 0 | AA27: =Feuil4!AA27 -> 0 | AB27: =Feuil4!AB27 -> 0 | AC27: =Feuil4!AC27 -> 0 | AD27: =Feuil4!AD27 -> 0 | AE27: =Feuil4!AE27 -> 0 | AF27: =Feuil4!AF27 -> 0 | AG27: =Feuil4!AG27 -> 0 | AH27: =Feuil4!AH27 -> 0 | AI27: =Feuil4!AI27 -> 0 | AJ27: =Feuil4!AJ27 -> 0 | AK27: =Feuil4!AK27 -> 0 | AL27: =Feuil4!AL27 -> 0 | AM27: =Feuil4!AM27 -> 0 | AN27: =Feuil4!AN27 -> 00:00:00 | AO27: =Feuil4!AO27 -> 0
A28: =Feuil4!A28 -> 0 | B28: =Feuil4!B28 ->  | C28: =Feuil4!C28 -> 0 | D28: =Feuil4!D28 -> 0 | E28: =Feuil4!E28 -> 0 | F28: =Feuil4!F28 -> 0 | G28: =Feuil4!G28 -> 0 | H28: =Feuil4!H28 -> 0 | I28: =Feuil4!I28 -> 0 | J28: =Feuil4!J28 -> 0 | K28: =Feuil4!K28 -> 0 | L28: =Feuil4!L28 -> 0 | M28: =Feuil4!M28 -> 0 | N28: =Feuil4!N28 -> 0 | O28: =Feuil4!O28 -> 0 | P28: =Feuil4!P28 -> 0 | Q28: =Feuil4!Q28 -> 0 | R28: =Feuil4!R28 -> 0 | S28: =Feuil4!S28 -> 0 | T28: =Feuil4!T28 -> 0 | U28: =Feuil4!U28 -> 0 | V28: =Feuil4!V28 -> 0 | W28: =Feuil4!W28 -> 0 | X28: =Feuil4!X28 -> 0 | Y28: =Feuil4!Y28 -> 0 | Z28: =Feuil4!Z28 -> 0 | AA28: =Feuil4!AA28 -> 0 | AB28: =Feuil4!AB28 -> 0 | AC28: =Feuil4!AC28 -> 0 | AD28: =Feuil4!AD28 -> 0 | AE28: =Feuil4!AE28 -> 0 | AF28: =Feuil4!AF28 -> 0 | AG28: =Feuil4!AG28 -> 0 | AH28: =Feuil4!AH28 -> 0 | AI28: =Feuil4!AI28 -> 0 | AJ28: =Feuil4!AJ28 -> 0 | AK28: =Feuil4!AK28 -> 0 | AL28: =Feuil4!AL28 -> 0 | AM28: =Feuil4!AM28 -> 0 | AN28: =Feuil4!AN28 -> 00:00:00 | AO28: =Feuil4!AO28 -> 0
A29: =Feuil4!A29 -> 0 | B29: =Feuil4!B29 ->  | C29: =Feuil4!C29 -> 0 | D29: =Feuil4!D29 -> 0 | E29: =Feuil4!E29 -> 0 | F29: =Feuil4!F29 -> 0 | G29: =Feuil4!G29 -> 0 | H29: =Feuil4!H29 -> 0 | I29: =Feuil4!I29 -> 0 | J29: =Feuil4!J29 -> 0 | K29: =Feuil4!K29 -> 0 | L29: =Feuil4!L29 -> 0 | M29: =Feuil4!M29 -> 0 | N29: =Feuil4!N29 -> 0 | O29: =Feuil4!O29 -> 0 | P29: =Feuil4!P29 -> 0 | Q29: =Feuil4!Q29 -> 0 | R29: =Feuil4!R29 -> 0 | S29: =Feuil4!S29 -> 0 | T29: =Feuil4!T29 -> 0 | U29: =Feuil4!U29 -> 0 | V29: =Feuil4!V29 -> 0 | W29: =Feuil4!W29 -> 0 | X29: =Feuil4!X29 -> 0 | Y29: =Feuil4!Y29 -> 0 | Z29: =Feuil4!Z29 -> 0 | AA29: =Feuil4!AA29 -> 0 | AB29: =Feuil4!AB29 -> 0 | AC29: =Feuil4!AC29 -> 0 | AD29: =Feuil4!AD29 -> 0 | AE29: =Feuil4!AE29 -> 0 | AF29: =Feuil4!AF29 -> 0 | AG29: =Feuil4!AG29 -> 0 | AH29: =Feuil4!AH29 -> 0 | AI29: =Feuil4!AI29 -> 0 | AJ29: =Feuil4!AJ29 -> 0 | AK29: =Feuil4!AK29 -> 0 | AL29: =Feuil4!AL29 -> 0 | AM29: =Feuil4!AM29 -> 0 | AN29: =Feuil4!AN29 -> 00:00:00 | AO29: =Feuil4!AO29 -> 0
A30: =Feuil4!A30 -> 0 | B30: =Feuil4!B30 ->  | C30: =Feuil4!C30 -> 0 | D30: =Feuil4!D30 -> 0 | E30: =Feuil4!E30 -> 0 | F30: =Feuil4!F30 -> 0 | G30: =Feuil4!G30 -> 0 | H30: =Feuil4!H30 -> 0 | I30: =Feuil4!I30 -> 0 | J30: =Feuil4!J30 -> 0 | K30: =Feuil4!K30 -> 0 | L30: =Feuil4!L30 -> 0 | M30: =Feuil4!M30 -> 0 | N30: =Feuil4!N30 -> 0 | O30: =Feuil4!O30 -> 0 | P30: =Feuil4!P30 -> 0 | Q30: =Feuil4!Q30 -> 0 | R30: =Feuil4!R30 -> 0 | S30: =Feuil4!S30 -> 0 | T30: =Feuil4!T30 -> 0 | U30: =Feuil4!U30 -> 0 | V30: =Feuil4!V30 -> 0 | W30: =Feuil4!W30 -> 0 | X30: =Feuil4!X30 -> 0 | Y30: =Feuil4!Y30 -> 0 | Z30: =Feuil4!Z30 -> 0 | AA30: =Feuil4!AA30 -> 0 | AB30: =Feuil4!AB30 -> 0 | AC30: =Feuil4!AC30 -> 0 | AD30: =Feuil4!AD30 -> 0 | AE30: =Feuil4!AE30 -> 0 | AF30: =Feuil4!AF30 -> 0 | AG30: =Feuil4!AG30 -> 0 | AH30: =Feuil4!AH30 -> 0 | AI30: =Feuil4!AI30 -> 0 | AJ30: =Feuil4!AJ30 -> 0 | AK30: =Feuil4!AK30 -> 0 | AL30: =Feuil4!AL30 -> 0 | AM30: =Feuil4!AM30 -> 0 | AN30: =Feuil4!AN30 -> 00:00:00 | AO30: =Feuil4!AO30 -> 0
A31: =Feuil4!A31 -> 0 | B31: =Feuil4!B31 ->  | C31: =Feuil4!C31 -> 0 | D31: =Feuil4!D31 -> 0 | E31: =Feuil4!E31 -> 0 | F31: =Feuil4!F31 -> 0 | G31: =Feuil4!G31 -> 0 | H31: =Feuil4!H31 -> 0 | I31: =Feuil4!I31 -> 0 | J31: =Feuil4!J31 -> 0 | K31: =Feuil4!K31 -> 0 | L31: =Feuil4!L31 -> 0 | M31: =Feuil4!M31 -> 0 | N31: =Feuil4!N31 -> 0 | O31: =Feuil4!O31 -> 0 | P31: =Feuil4!P31 -> 0 | Q31: =Feuil4!Q31 -> 0 | R31: =Feuil4!R31 -> 0 | S31: =Feuil4!S31 -> 0 | T31: =Feuil4!T31 -> 0 | U31: =Feuil4!U31 -> 0 | V31: =Feuil4!V31 -> 0 | W31: =Feuil4!W31 -> 0 | X31: =Feuil4!X31 -> 0 | Y31: =Feuil4!Y31 -> 0 | Z31: =Feuil4!Z31 -> 0 | AA31: =Feuil4!AA31 -> 0 | AB31: =Feuil4!AB31 -> 0 | AC31: =Feuil4!AC31 -> 0 | AD31: =Feuil4!AD31 -> 0 | AE31: =Feuil4!AE31 -> 0 | AF31: =Feuil4!AF31 -> 0 | AG31: =Feuil4!AG31 -> 0 | AH31: =Feuil4!AH31 -> 0 | AI31: =Feuil4!AI31 -> 0 | AJ31: =Feuil4!AJ31 -> 0 | AK31: =Feuil4!AK31 -> 0 | AL31: =Feuil4!AL31 -> 0 | AM31: =Feuil4!AM31 -> 0 | AN31: =Feuil4!AN31 -> 00:00:00 | AO31: =Feuil4!AO31 -> 0
A32: =Feuil4!A32 -> 0 | B32: =Feuil4!B32 ->  | C32: =Feuil4!C32 -> 0 | D32: =Feuil4!D32 -> 0 | E32: =Feuil4!E32 -> 0 | F32: =Feuil4!F32 -> 0 | G32: =Feuil4!G32 -> 0 | H32: =Feuil4!H32 -> 0 | I32: =Feuil4!I32 -> 0 | J32: =Feuil4!J32 -> 0 | K32: =Feuil4!K32 -> 0 | L32: =Feuil4!L32 -> 0 | M32: =Feuil4!M32 -> 0 | N32: =Feuil4!N32 -> 0 | O32: =Feuil4!O32 -> 0 | P32: =Feuil4!P32 -> 0 | Q32: =Feuil4!Q32 -> 0 | R32: =Feuil4!R32 -> 0 | S32: =Feuil4!S32 -> 0 | T32: =Feuil4!T32 -> 0 | U32: =Feuil4!U32 -> 0 | V32: =Feuil4!V32 -> 0 | W32: =Feuil4!W32 -> 0 | X32: =Feuil4!X32 -> 0 | Y32: =Feuil4!Y32 -> 0 | Z32: =Feuil4!Z32 -> 0 | AA32: =Feuil4!AA32 -> 0 | AB32: =Feuil4!AB32 -> 0 | AC32: =Feuil4!AC32 -> 0 | AD32: =Feuil4!AD32 -> 0 | AE32: =Feuil4!AE32 -> 0 | AF32: =Feuil4!AF32 -> 0 | AG32: =Feuil4!AG32 -> 0 | AH32: =Feuil4!AH32 -> 0 | AI32: =Feuil4!AI32 -> 0 | AJ32: =Feuil4!AJ32 -> 0 | AK32: =Feuil4!AK32 -> 0 | AL32: =Feuil4!AL32 -> 0 | AM32: =Feuil4!AM32 -> 0 | AN32: =Feuil4!AN32 -> 00:00:00 | AO32: =Feuil4!AO32 -> 0
A33: =Feuil4!A33 -> 0 | B33: =Feuil4!B33 ->  | C33: =Feuil4!C33 -> 0 | D33: =Feuil4!D33 -> 0 | E33: =Feuil4!E33 -> 0 | F33: =Feuil4!F33 -> 0 | G33: =Feuil4!G33 -> 0 | H33: =Feuil4!H33 -> 0 | I33: =Feuil4!I33 -> 0 | J33: =Feuil4!J33 -> 0 | K33: =Feuil4!K33 -> 0 | L33: =Feuil4!L33 -> 0 | M33: =Feuil4!M33 -> 0 | N33: =Feuil4!N33 -> 0 | O33: =Feuil4!O33 -> 0 | P33: =Feuil4!P33 -> 0 | Q33: =Feuil4!Q33 -> 0 | R33: =Feuil4!R33 -> 0 | S33: =Feuil4!S33 -> 0 | T33: =Feuil4!T33 -> 0 | U33: =Feuil4!U33 -> 0 | V33: =Feuil4!V33 -> 0 | W33: =Feuil4!W33 -> 0 | X33: =Feuil4!X33 -> 0 | Y33: =Feuil4!Y33 -> 0 | Z33: =Feuil4!Z33 -> 0 | AA33: =Feuil4!AA33 -> 0 | AB33: =Feuil4!AB33 -> 0 | AC33: =Feuil4!AC33 -> 0 | AD33: =Feuil4!AD33 -> 0 | AE33: =Feuil4!AE33 -> 0 | AF33: =Feuil4!AF33 -> 0 | AG33: =Feuil4!AG33 -> 0 | AH33: =Feuil4!AH33 -> 0 | AI33: =Feuil4!AI33 -> 0 | AJ33: =Feuil4!AJ33 -> 0 | AK33: =Feuil4!AK33 -> 0 | AL33: =Feuil4!AL33 -> 0 | AM33: =Feuil4!AM33 -> 0 | AN33: =Feuil4!AN33 -> 00:00:00 | AO33: =Feuil4!AO33 -> 0
A34: =Feuil4!A34 -> 0 | B34: =Feuil4!B34 ->  | C34: =Feuil4!C34 -> 0 | D34: =Feuil4!D34 -> 0 | E34: =Feuil4!E34 -> 0 | F34: =Feuil4!F34 -> 0 | G34: =Feuil4!G34 -> 0 | H34: =Feuil4!H34 -> 0 | I34: =Feuil4!I34 -> 0 | J34: =Feuil4!J34 -> 0 | K34: =Feuil4!K34 -> 0 | L34: =Feuil4!L34 -> 0 | M34: =Feuil4!M34 -> 0 | N34: =Feuil4!N34 -> 0 | O34: =Feuil4!O34 -> 0 | P34: =Feuil4!P34 -> 0 | Q34: =Feuil4!Q34 -> 0 | R34: =Feuil4!R34 -> 0 | S34: =Feuil4!S34 -> 0 | T34: =Feuil4!T34 -> 0 | U34: =Feuil4!U34 -> 0 | V34: =Feuil4!V34 -> 0 | W34: =Feuil4!W34 -> 0 | X34: =Feuil4!X34 -> 0 | Y34: =Feuil4!Y34 -> 0 | Z34: =Feuil4!Z34 -> 0 | AA34: =Feuil4!AA34 -> 0 | AB34: =Feuil4!AB34 -> 0 | AC34: =Feuil4!AC34 -> 0 | AD34: =Feuil4!AD34 -> 0 | AE34: =Feuil4!AE34 -> 0 | AF34: =Feuil4!AF34 -> 0 | AG34: =Feuil4!AG34 -> 0 | AH34: =Feuil4!AH34 -> 0 | AI34: =Feuil4!AI34 -> 0 | AJ34: =Feuil4!AJ34 -> 0 | AK34: =Feuil4!AK34 -> 0 | AL34: =Feuil4!AL34 -> 0 | AM34: =Feuil4!AM34 -> 0 | AN34: =Feuil4!AN34 -> 00:00:00 | AO34: =Feuil4!AO34 -> 0
A35: =Feuil4!A35 -> 0 | B35: =Feuil4!B35 ->  | C35: =Feuil4!C35 -> 0 | D35: =Feuil4!D35 -> 0 | E35: =Feuil4!E35 -> 0 | F35: =Feuil4!F35 -> 0 | G35: =Feuil4!G35 -> 0 | H35: =Feuil4!H35 -> 0 | I35: =Feuil4!I35 -> 0 | J35: =Feuil4!J35 -> 0 | K35: =Feuil4!K35 -> 0 | L35: =Feuil4!L35 -> 0 | M35: =Feuil4!M35 -> 0 | N35: =Feuil4!N35 -> 0 | O35: =Feuil4!O35 -> 0 | P35: =Feuil4!P35 -> 0 | Q35: =Feuil4!Q35 -> 0 | R35: =Feuil4!R35 -> 0 | S35: =Feuil4!S35 -> 0 | T35: =Feuil4!T35 -> 0 | U35: =Feuil4!U35 -> 0 | V35: =Feuil4!V35 -> 0 | W35: =Feuil4!W35 -> 0 | X35: =Feuil4!X35 -> 0 | Y35: =Feuil4!Y35 -> 0 | Z35: =Feuil4!Z35 -> 0 | AA35: =Feuil4!AA35 -> 0 | AB35: =Feuil4!AB35 -> 0 | AC35: =Feuil4!AC35 -> 0 | AD35: =Feuil4!AD35 -> 0 | AE35: =Feuil4!AE35 -> 0 | AF35: =Feuil4!AF35 -> 0 | AG35: =Feuil4!AG35 -> 0 | AH35: =Feuil4!AH35 -> 0 | AI35: =Feuil4!AI35 -> 0 | AJ35: =Feuil4!AJ35 -> 0 | AK35: =Feuil4!AK35 -> 0 | AL35: =Feuil4!AL35 -> 0 | AM35: =Feuil4!AM35 -> 0 | AN35: =Feuil4!AN35 -> 00:00:00 | AO35: =Feuil4!AO35 -> 0
A36: =Feuil4!A36 -> 0 | B36: =Feuil4!B36 ->  | C36: =Feuil4!C36 -> 0 | D36: =Feuil4!D36 -> 0 | E36: =Feuil4!E36 -> 0 | F36: =Feuil4!F36 -> 0 | G36: =Feuil4!G36 -> 0 | H36: =Feuil4!H36 -> 0 | I36: =Feuil4!I36 -> 0 | J36: =Feuil4!J36 -> 0 | K36: =Feuil4!K36 -> 0 | L36: =Feuil4!L36 -> 0 | M36: =Feuil4!M36 -> 0 | N36: =Feuil4!N36 -> 0 | O36: =Feuil4!O36 -> 0 | P36: =Feuil4!P36 -> 0 | Q36: =Feuil4!Q36 -> 0 | R36: =Feuil4!R36 -> 0 | S36: =Feuil4!S36 -> 0 | T36: =Feuil4!T36 -> 0 | U36: =Feuil4!U36 -> 0 | V36: =Feuil4!V36 -> 0 | W36: =Feuil4!W36 -> 0 | X36: =Feuil4!X36 -> 0 | Y36: =Feuil4!Y36 -> 0 | Z36: =Feuil4!Z36 -> 0 | AA36: =Feuil4!AA36 -> 0 | AB36: =Feuil4!AB36 -> 0 | AC36: =Feuil4!AC36 -> 0 | AD36: =Feuil4!AD36 -> 0 | AE36: =Feuil4!AE36 -> 0 | AF36: =Feuil4!AF36 -> 0 | AG36: =Feuil4!AG36 -> 0 | AH36: =Feuil4!AH36 -> 0 | AI36: =Feuil4!AI36 -> 0 | AJ36: =Feuil4!AJ36 -> 0 | AK36: =Feuil4!AK36 -> 0 | AL36: =Feuil4!AL36 -> 0 | AM36: =Feuil4!AM36 -> 0 | AN36: =Feuil4!AN36 -> 00:00:00 | AO36: =Feuil4!AO36 -> 0
A37: =Feuil4!A37 -> 0 | B37: =Feuil4!B37 ->  | C37: =Feuil4!C37 -> 0 | D37: =Feuil4!D37 -> 0 | E37: =Feuil4!E37 -> 0 | F37: =Feuil4!F37 -> 0 | G37: =Feuil4!G37 -> 0 | H37: =Feuil4!H37 -> 0 | I37: =Feuil4!I37 -> 0 | J37: =Feuil4!J37 -> 0 | K37: =Feuil4!K37 -> 0 | L37: =Feuil4!L37 -> 0 | M37: =Feuil4!M37 -> 0 | N37: =Feuil4!N37 -> 0 | O37: =Feuil4!O37 -> 0 | P37: =Feuil4!P37 -> 0 | Q37: =Feuil4!Q37 -> 0 | R37: =Feuil4!R37 -> 0 | S37: =Feuil4!S37 -> 0 | T37: =Feuil4!T37 -> 0 | U37: =Feuil4!U37 -> 0 | V37: =Feuil4!V37 -> 0 | W37: =Feuil4!W37 -> 0 | X37: =Feuil4!X37 -> 0 | Y37: =Feuil4!Y37 -> 0 | Z37: =Feuil4!Z37 -> 0 | AA37: =Feuil4!AA37 -> 0 | AB37: =Feuil4!AB37 -> 0 | AC37: =Feuil4!AC37 -> 0 | AD37: =Feuil4!AD37 -> 0 | AE37: =Feuil4!AE37 -> 0 | AF37: =Feuil4!AF37 -> 0 | AG37: =Feuil4!AG37 -> 0 | AH37: =Feuil4!AH37 -> 0 | AI37: =Feuil4!AI37 -> 0 | AJ37: =Feuil4!AJ37 -> 0 | AK37: =Feuil4!AK37 -> 0 | AL37: =Feuil4!AL37 -> 0 | AM37: =Feuil4!AM37 -> 0 | AN37: =Feuil4!AN37 -> 00:00:00 | AO37: =Feuil4!AO37 -> 0
A38: =Feuil4!A38 -> 0 | B38: =Feuil4!B38 ->  | C38: =Feuil4!C38 -> 0 | D38: =Feuil4!D38 -> 0 | E38: =Feuil4!E38 -> 0 | F38: =Feuil4!F38 -> 0 | G38: =Feuil4!G38 -> 0 | H38: =Feuil4!H38 -> 0 | I38: =Feuil4!I38 -> 0 | J38: =Feuil4!J38 -> 0 | K38: =Feuil4!K38 -> 0 | L38: =Feuil4!L38 -> 0 | M38: =Feuil4!M38 -> 0 | N38: =Feuil4!N38 -> 0 | O38: =Feuil4!O38 -> 0 | P38: =Feuil4!P38 -> 0 | Q38: =Feuil4!Q38 -> 0 | R38: =Feuil4!R38 -> 0 | S38: =Feuil4!S38 -> 0 | T38: =Feuil4!T38 -> 0 | U38: =Feuil4!U38 -> 0 | V38: =Feuil4!V38 -> 0 | W38: =Feuil4!W38 -> 0 | X38: =Feuil4!X38 -> 0 | Y38: =Feuil4!Y38 -> 0 | Z38: =Feuil4!Z38 -> 0 | AA38: =Feuil4!AA38 -> 0 | AB38: =Feuil4!AB38 -> 0 | AC38: =Feuil4!AC38 -> 0 | AD38: =Feuil4!AD38 -> 0 | AE38: =Feuil4!AE38 -> 0 | AF38: =Feuil4!AF38 -> 0 | AG38: =Feuil4!AG38 -> 0 | AH38: =Feuil4!AH38 -> 0 | AI38: =Feuil4!AI38 -> 0 | AJ38: =Feuil4!AJ38 -> 0 | AK38: =Feuil4!AK38 -> 0 | AL38: =Feuil4!AL38 -> 0 | AM38: =Feuil4!AM38 -> 0 | AN38: =Feuil4!AN38 -> 00:00:00 | AO38: =Feuil4!AO38 -> 0
A39: =Feuil4!A39 -> 0 | B39: =Feuil4!B39 ->  | C39: =Feuil4!C39 -> 0 | D39: =Feuil4!D39 -> 0 | E39: =Feuil4!E39 -> 0 | F39: =Feuil4!F39 -> 0 | G39: =Feuil4!G39 -> 0 | H39: =Feuil4!H39 -> 0 | I39: =Feuil4!I39 -> 0 | J39: =Feuil4!J39 -> 0 | K39: =Feuil4!K39 -> 0 | L39: =Feuil4!L39 -> 0 | M39: =Feuil4!M39 -> 0 | N39: =Feuil4!N39 -> 0 | O39: =Feuil4!O39 -> 0 | P39: =Feuil4!P39 -> 0 | Q39: =Feuil4!Q39 -> 0 | R39: =Feuil4!R39 -> 0 | S39: =Feuil4!S39 -> 0 | T39: =Feuil4!T39 -> 0 | U39: =Feuil4!U39 -> 0 | V39: =Feuil4!V39 -> 0 | W39: =Feuil4!W39 -> 0 | X39: =Feuil4!X39 -> 0 | Y39: =Feuil4!Y39 -> 0 | Z39: =Feuil4!Z39 -> 0 | AA39: =Feuil4!AA39 -> 0 | AB39: =Feuil4!AB39 -> 0 | AC39: =Feuil4!AC39 -> 0 | AD39: =Feuil4!AD39 -> 0 | AE39: =Feuil4!AE39 -> 0 | AF39: =Feuil4!AF39 -> 0 | AG39: =Feuil4!AG39 -> 0 | AH39: =Feuil4!AH39 -> 0 | AI39: =Feuil4!AI39 -> 0 | AJ39: =Feuil4!AJ39 -> 0 | AK39: =Feuil4!AK39 -> 0 | AL39: =Feuil4!AL39 -> 0 | AM39: =Feuil4!AM39 -> 0 | AN39: =Feuil4!AN39 -> 00:00:00 | AO39: =Feuil4!AO39 -> 0
A40: =Feuil4!A40 -> 0 | B40: =Feuil4!B40 ->  | C40: =Feuil4!C40 -> 0 | D40: =Feuil4!D40 -> 0 | E40: =Feuil4!E40 -> 0 | F40: =Feuil4!F40 -> 0 | G40: =Feuil4!G40 -> 0 | H40: =Feuil4!H40 -> 0 | I40: =Feuil4!I40 -> 0 | J40: =Feuil4!J40 -> 0 | K40: =Feuil4!K40 -> 0 | L40: =Feuil4!L40 -> 0 | M40: =Feuil4!M40 -> 0 | N40: =Feuil4!N40 -> 0 | O40: =Feuil4!O40 -> 0 | P40: =Feuil4!P40 -> 0 | Q40: =Feuil4!Q40 -> 0 | R40: =Feuil4!R40 -> 0 | S40: =Feuil4!S40 -> 0 | T40: =Feuil4!T40 -> 0 | U40: =Feuil4!U40 -> 0 | V40: =Feuil4!V40 -> 0 | W40: =Feuil4!W40 -> 0 | X40: =Feuil4!X40 -> 0 | Y40: =Feuil4!Y40 -> 0 | Z40: =Feuil4!Z40 -> 0 | AA40: =Feuil4!AA40 -> 0 | AB40: =Feuil4!AB40 -> 0 | AC40: =Feuil4!AC40 -> 0 | AD40: =Feuil4!AD40 -> 0 | AE40: =Feuil4!AE40 -> 0 | AF40: =Feuil4!AF40 -> 0 | AG40: =Feuil4!AG40 -> 0 | AH40: =Feuil4!AH40 -> 0 | AI40: =Feuil4!AI40 -> 0 | AJ40: =Feuil4!AJ40 -> 0 | AK40: =Feuil4!AK40 -> 0 | AL40: =Feuil4!AL40 -> 0 | AM40: =Feuil4!AM40 -> 0 | AN40: =Feuil4!AN40 -> 00:00:00 | AO40: =Feuil4!AO40 -> 0
A41: =Feuil4!A41 -> 0 | B41: =Feuil4!B41 ->  | C41: =Feuil4!C41 -> 0 | D41: =Feuil4!D41 -> 0 | E41: =Feuil4!E41 -> 0 | F41: =Feuil4!F41 -> 0 | G41: =Feuil4!G41 -> 0 | H41: =Feuil4!H41 -> 0 | I41: =Feuil4!I41 -> 0 | J41: =Feuil4!J41 -> 0 | K41: =Feuil4!K41 -> 0 | L41: =Feuil4!L41 -> 0 | M41: =Feuil4!M41 -> 0 | N41: =Feuil4!N41 -> 0 | O41: =Feuil4!O41 -> 0 | P41: =Feuil4!P41 -> 0 | Q41: =Feuil4!Q41 -> 0 | R41: =Feuil4!R41 -> 0 | S41: =Feuil4!S41 -> 0 | T41: =Feuil4!T41 -> 0 | U41: =Feuil4!U41 -> 0 | V41: =Feuil4!V41 -> 0 | W41: =Feuil4!W41 -> 0 | X41: =Feuil4!X41 -> 0 | Y41: =Feuil4!Y41 -> 0 | Z41: =Feuil4!Z41 -> 0 | AA41: =Feuil4!AA41 -> 0 | AB41: =Feuil4!AB41 -> 0 | AC41: =Feuil4!AC41 -> 0 | AD41: =Feuil4!AD41 -> 0 | AE41: =Feuil4!AE41 -> 0 | AF41: =Feuil4!AF41 -> 0 | AG41: =Feuil4!AG41 -> 0 | AH41: =Feuil4!AH41 -> 0 | AI41: =Feuil4!AI41 -> 0 | AJ41: =Feuil4!AJ41 -> 0 | AK41: =Feuil4!AK41 -> 0 | AL41: =Feuil4!AL41 -> 0 | AM41: =Feuil4!AM41 -> 0 | AN41: =Feuil4!AN41 -> 00:00:00 | AO41: =Feuil4!AO41 -> 0
A42: =Feuil4!A42 -> 0 | B42: =Feuil4!B42 ->  | C42: =Feuil4!C42 -> 0 | D42: =Feuil4!D42 -> 0 | E42: =Feuil4!E42 -> 0 | F42: =Feuil4!F42 -> 0 | G42: =Feuil4!G42 -> 0 | H42: =Feuil4!H42 -> 0 | I42: =Feuil4!I42 -> 0 | J42: =Feuil4!J42 -> 0 | K42: =Feuil4!K42 -> 0 | L42: =Feuil4!L42 -> 0 | M42: =Feuil4!M42 -> 0 | N42: =Feuil4!N42 -> 0 | O42: =Feuil4!O42 -> 0 | P42: =Feuil4!P42 -> 0 | Q42: =Feuil4!Q42 -> 0 | R42: =Feuil4!R42 -> 0 | S42: =Feuil4!S42 -> 0 | T42: =Feuil4!T42 -> 0 | U42: =Feuil4!U42 -> 0 | V42: =Feuil4!V42 -> 0 | W42: =Feuil4!W42 -> 0 | X42: =Feuil4!X42 -> 0 | Y42: =Feuil4!Y42 -> 0 | Z42: =Feuil4!Z42 -> 0 | AA42: =Feuil4!AA42 -> 0 | AB42: =Feuil4!AB42 -> 0 | AC42: =Feuil4!AC42 -> 0 | AD42: =Feuil4!AD42 -> 0 | AE42: =Feuil4!AE42 -> 0 | AF42: =Feuil4!AF42 -> 0 | AG42: =Feuil4!AG42 -> 0 | AH42: =Feuil4!AH42 -> 0 | AI42: =Feuil4!AI42 -> 0 | AJ42: =Feuil4!AJ42 -> 0 | AK42: =Feuil4!AK42 -> 0 | AL42: =Feuil4!AL42 -> 0 | AM42: =Feuil4!AM42 -> 0 | AN42: =Feuil4!AN42 -> 00:00:00 | AO42: =Feuil4!AO42 -> 0
A43: =Feuil4!A43 -> 0 | B43: =Feuil4!B43 ->  | C43: =Feuil4!C43 -> 0 | D43: =Feuil4!D43 -> 0 | E43: =Feuil4!E43 -> 0 | F43: =Feuil4!F43 -> 0 | G43: =Feuil4!G43 -> 0 | H43: =Feuil4!H43 -> 0 | I43: =Feuil4!I43 -> 0 | J43: =Feuil4!J43 -> 0 | K43: =Feuil4!K43 -> 0 | L43: =Feuil4!L43 -> 0 | M43: =Feuil4!M43 -> 0 | N43: =Feuil4!N43 -> 0 | O43: =Feuil4!O43 -> 0 | P43: =Feuil4!P43 -> 0 | Q43: =Feuil4!Q43 -> 0 | R43: =Feuil4!R43 -> 0 | S43: =Feuil4!S43 -> 0 | T43: =Feuil4!T43 -> 0 | U43: =Feuil4!U43 -> 0 | V43: =Feuil4!V43 -> 0 | W43: =Feuil4!W43 -> 0 | X43: =Feuil4!X43 -> 0 | Y43: =Feuil4!Y43 -> 0 | Z43: =Feuil4!Z43 -> 0 | AA43: =Feuil4!AA43 -> 0 | AB43: =Feuil4!AB43 -> 0 | AC43: =Feuil4!AC43 -> 0 | AD43: =Feuil4!AD43 -> 0 | AE43: =Feuil4!AE43 -> 0 | AF43: =Feuil4!AF43 -> 0 | AG43: =Feuil4!AG43 -> 0 | AH43: =Feuil4!AH43 -> 0 | AI43: =Feuil4!AI43 -> 0 | AJ43: =Feuil4!AJ43 -> 0 | AK43: =Feuil4!AK43 -> 0 | AL43: =Feuil4!AL43 -> 0 | AM43: =Feuil4!AM43 -> 0 | AN43: =Feuil4!AN43 -> 00:00:00 | AO43: =Feuil4!AO43 -> 0
A44: =Feuil4!A44 -> 0 | B44: =Feuil4!B44 ->  | C44: =Feuil4!C44 -> 0 | D44: =Feuil4!D44 -> 0 | E44: =Feuil4!E44 -> 0 | F44: =Feuil4!F44 -> 0 | G44: =Feuil4!G44 -> 0 | H44: =Feuil4!H44 -> 0 | I44: =Feuil4!I44 -> 0 | J44: =Feuil4!J44 -> 0 | K44: =Feuil4!K44 -> 0 | L44: =Feuil4!L44 -> 0 | M44: =Feuil4!M44 -> 0 | N44: =Feuil4!N44 -> 0 | O44: =Feuil4!O44 -> 0 | P44: =Feuil4!P44 -> 0 | Q44: =Feuil4!Q44 -> 0 | R44: =Feuil4!R44 -> 0 | S44: =Feuil4!S44 -> 0 | T44: =Feuil4!T44 -> 0 | U44: =Feuil4!U44 -> 0 | V44: =Feuil4!V44 -> 0 | W44: =Feuil4!W44 -> 0 | X44: =Feuil4!X44 -> 0 | Y44: =Feuil4!Y44 -> 0 | Z44: =Feuil4!Z44 -> 0 | AA44: =Feuil4!AA44 -> 0 | AB44: =Feuil4!AB44 -> 0 | AC44: =Feuil4!AC44 -> 0 | AD44: =Feuil4!AD44 -> 0 | AE44: =Feuil4!AE44 -> 0 | AF44: =Feuil4!AF44 -> 0 | AG44: =Feuil4!AG44 -> 0 | AH44: =Feuil4!AH44 -> 0 | AI44: =Feuil4!AI44 -> 0 | AJ44: =Feuil4!AJ44 -> 0 | AK44: =Feuil4!AK44 -> 0 | AL44: =Feuil4!AL44 -> 0 | AM44: =Feuil4!AM44 -> 0 | AN44: =Feuil4!AN44 -> 00:00:00 | AO44: =Feuil4!AO44 -> 0
A45: =Feuil4!A45 -> 0 | B45: =Feuil4!B45 ->  | C45: =Feuil4!C45 -> 0 | D45: =Feuil4!D45 -> 0 | E45: =Feuil4!E45 -> 0 | F45: =Feuil4!F45 -> 0 | G45: =Feuil4!G45 -> 0 | H45: =Feuil4!H45 -> 0 | I45: =Feuil4!I45 -> 0 | J45: =Feuil4!J45 -> 0 | K45: =Feuil4!K45 -> 0 | L45: =Feuil4!L45 -> 0 | M45: =Feuil4!M45 -> 0 | N45: =Feuil4!N45 -> 0 | O45: =Feuil4!O45 -> 0 | P45: =Feuil4!P45 -> 0 | Q45: =Feuil4!Q45 -> 0 | R45: =Feuil4!R45 -> 0 | S45: =Feuil4!S45 -> 0 | T45: =Feuil4!T45 -> 0 | U45: =Feuil4!U45 -> 0 | V45: =Feuil4!V45 -> 0 | W45: =Feuil4!W45 -> 0 | X45: =Feuil4!X45 -> 0 | Y45: =Feuil4!Y45 -> 0 | Z45: =Feuil4!Z45 -> 0 | AA45: =Feuil4!AA45 -> 0 | AB45: =Feuil4!AB45 -> 0 | AC45: =Feuil4!AC45 -> 0 | AD45: =Feuil4!AD45 -> 0 | AE45: =Feuil4!AE45 -> 0 | AF45: =Feuil4!AF45 -> 0 | AG45: =Feuil4!AG45 -> 0 | AH45: =Feuil4!AH45 -> 0 | AI45: =Feuil4!AI45 -> 0 | AJ45: =Feuil4!AJ45 -> 0 | AK45: =Feuil4!AK45 -> 0 | AL45: =Feuil4!AL45 -> 0 | AM45: =Feuil4!AM45 -> 0 | AN45: =Feuil4!AN45 -> 00:00:00 | AO45: =Feuil4!AO45 -> 0
A46: =Feuil4!A46 -> 0 | B46: =Feuil4!B46 ->  | C46: =Feuil4!C46 -> 0 | D46: =Feuil4!D46 -> 0 | E46: =Feuil4!E46 -> 0 | F46: =Feuil4!F46 -> 0 | G46: =Feuil4!G46 -> 0 | H46: =Feuil4!H46 -> 0 | I46: =Feuil4!I46 -> 0 | J46: =Feuil4!J46 -> 0 | K46: =Feuil4!K46 -> 0 | L46: =Feuil4!L46 -> 0 | M46: =Feuil4!M46 -> 0 | N46: =Feuil4!N46 -> 0 | O46: =Feuil4!O46 -> 0 | P46: =Feuil4!P46 -> 0 | Q46: =Feuil4!Q46 -> 0 | R46: =Feuil4!R46 -> 0 | S46: =Feuil4!S46 -> 0 | T46: =Feuil4!T46 -> 0 | U46: =Feuil4!U46 -> 0 | V46: =Feuil4!V46 -> 0 | W46: =Feuil4!W46 -> 0 | X46: =Feuil4!X46 -> 0 | Y46: =Feuil4!Y46 -> 0 | Z46: =Feuil4!Z46 -> 0 | AA46: =Feuil4!AA46 -> 0 | AB46: =Feuil4!AB46 -> 0 | AC46: =Feuil4!AC46 -> 0 | AD46: =Feuil4!AD46 -> 0 | AE46: =Feuil4!AE46 -> 0 | AF46: =Feuil4!AF46 -> 0 | AG46: =Feuil4!AG46 -> 0 | AH46: =Feuil4!AH46 -> 0 | AI46: =Feuil4!AI46 -> 0 | AJ46: =Feuil4!AJ46 -> 0 | AK46: =Feuil4!AK46 -> 0 | AL46: =Feuil4!AL46 -> 0 | AM46: =Feuil4!AM46 -> 0 | AN46: =Feuil4!AN46 -> 00:00:00 | AO46: =Feuil4!AO46 -> 0
A47: =Feuil4!A47 -> 0 | B47: =Feuil4!B47 ->  | C47: =Feuil4!C47 -> 0 | D47: =Feuil4!D47 -> 0 | E47: =Feuil4!E47 -> 0 | F47: =Feuil4!F47 -> 0 | G47: =Feuil4!G47 -> 0 | H47: =Feuil4!H47 -> 0 | I47: =Feuil4!I47 -> 0 | J47: =Feuil4!J47 -> 0 | K47: =Feuil4!K47 -> 0 | L47: =Feuil4!L47 -> 0 | M47: =Feuil4!M47 -> 0 | N47: =Feuil4!N47 -> 0 | O47: =Feuil4!O47 -> 0 | P47: =Feuil4!P47 -> 0 | Q47: =Feuil4!Q47 -> 0 | R47: =Feuil4!R47 -> 0 | S47: =Feuil4!S47 -> 0 | T47: =Feuil4!T47 -> 0 | U47: =Feuil4!U47 -> 0 | V47: =Feuil4!V47 -> 0 | W47: =Feuil4!W47 -> 0 | X47: =Feuil4!X47 -> 0 | Y47: =Feuil4!Y47 -> 0 | Z47: =Feuil4!Z47 -> 0 | AA47: =Feuil4!AA47 -> 0 | AB47: =Feuil4!AB47 -> 0 | AC47: =Feuil4!AC47 -> 0 | AD47: =Feuil4!AD47 -> 0 | AE47: =Feuil4!AE47 -> 0 | AF47: =Feuil4!AF47 -> 0 | AG47: =Feuil4!AG47 -> 0 | AH47: =Feuil4!AH47 -> 0 | AI47: =Feuil4!AI47 -> 0 | AJ47: =Feuil4!AJ47 -> 0 | AK47: =Feuil4!AK47 -> 0 | AL47: =Feuil4!AL47 -> 0 | AM47: =Feuil4!AM47 -> 0 | AN47: =Feuil4!AN47 -> 00:00:00 | AO47: =Feuil4!AO47 -> 0
A48: =Feuil4!A48 -> 0 | B48: =Feuil4!B48 ->  | C48: =Feuil4!C48 -> 0 | D48: =Feuil4!D48 -> 0 | E48: =Feuil4!E48 -> 0 | F48: =Feuil4!F48 -> 0 | G48: =Feuil4!G48 -> 0 | H48: =Feuil4!H48 -> 0 | I48: =Feuil4!I48 -> 0 | J48: =Feuil4!J48 -> 0 | K48: =Feuil4!K48 -> 0 | L48: =Feuil4!L48 -> 0 | M48: =Feuil4!M48 -> 0 | N48: =Feuil4!N48 -> 0 | O48: =Feuil4!O48 -> 0 | P48: =Feuil4!P48 -> 0 | Q48: =Feuil4!Q48 -> 0 | R48: =Feuil4!R48 -> 0 | S48: =Feuil4!S48 -> 0 | T48: =Feuil4!T48 -> 0 | U48: =Feuil4!U48 -> 0 | V48: =Feuil4!V48 -> 0 | W48: =Feuil4!W48 -> 0 | X48: =Feuil4!X48 -> 0 | Y48: =Feuil4!Y48 -> 0 | Z48: =Feuil4!Z48 -> 0 | AA48: =Feuil4!AA48 -> 0 | AB48: =Feuil4!AB48 -> 0 | AC48: =Feuil4!AC48 -> 0 | AD48: =Feuil4!AD48 -> 0 | AE48: =Feuil4!AE48 -> 0 | AF48: =Feuil4!AF48 -> 0 | AG48: =Feuil4!AG48 -> 0 | AH48: =Feuil4!AH48 -> 0 | AI48: =Feuil4!AI48 -> 0 | AJ48: =Feuil4!AJ48 -> 0 | AK48: =Feuil4!AK48 -> 0 | AL48: =Feuil4!AL48 -> 0 | AM48: =Feuil4!AM48 -> 0 | AN48: =Feuil4!AN48 -> 00:00:00 | AO48: =Feuil4!AO48 -> 0
A49: =Feuil4!A49 -> 0 | B49: =Feuil4!B49 ->  | C49: =Feuil4!C49 -> 0 | D49: =Feuil4!D49 -> 0 | E49: =Feuil4!E49 -> 0 | F49: =Feuil4!F49 -> 0 | G49: =Feuil4!G49 -> 0 | H49: =Feuil4!H49 -> 0 | I49: =Feuil4!I49 -> 0 | J49: =Feuil4!J49 -> 0 | K49: =Feuil4!K49 -> 0 | L49: =Feuil4!L49 -> 0 | M49: =Feuil4!M49 -> 0 | N49: =Feuil4!N49 -> 0 | O49: =Feuil4!O49 -> 0 | P49: =Feuil4!P49 -> 0 | Q49: =Feuil4!Q49 -> 0 | R49: =Feuil4!R49 -> 0 | S49: =Feuil4!S49 -> 0 | T49: =Feuil4!T49 -> 0 | U49: =Feuil4!U49 -> 0 | V49: =Feuil4!V49 -> 0 | W49: =Feuil4!W49 -> 0 | X49: =Feuil4!X49 -> 0 | Y49: =Feuil4!Y49 -> 0 | Z49: =Feuil4!Z49 -> 0 | AA49: =Feuil4!AA49 -> 0 | AB49: =Feuil4!AB49 -> 0 | AC49: =Feuil4!AC49 -> 0 | AD49: =Feuil4!AD49 -> 0 | AE49: =Feuil4!AE49 -> 0 | AF49: =Feuil4!AF49 -> 0 | AG49: =Feuil4!AG49 -> 0 | AH49: =Feuil4!AH49 -> 0 | AI49: =Feuil4!AI49 -> 0 | AJ49: =Feuil4!AJ49 -> 0 | AK49: =Feuil4!AK49 -> 0 | AL49: =Feuil4!AL49 -> 0 | AM49: =Feuil4!AM49 -> 0 | AN49: =Feuil4!AN49 -> 00:00:00 | AO49: =Feuil4!AO49 -> 0
A50: =Feuil4!A50 -> 0 | B50: =Feuil4!B50 ->  | C50: =Feuil4!C50 -> 0 | D50: =Feuil4!D50 -> 0 | E50: =Feuil4!E50 -> 0 | F50: =Feuil4!F50 -> 0 | G50: =Feuil4!G50 -> 0 | H50: =Feuil4!H50 -> 0 | I50: =Feuil4!I50 -> 0 | J50: =Feuil4!J50 -> 0 | K50: =Feuil4!K50 -> 0 | L50: =Feuil4!L50 -> 0 | M50: =Feuil4!M50 -> 0 | N50: =Feuil4!N50 -> 0 | O50: =Feuil4!O50 -> 0 | P50: =Feuil4!P50 -> 0 | Q50: =Feuil4!Q50 -> 0 | R50: =Feuil4!R50 -> 0 | S50: =Feuil4!S50 -> 0 | T50: =Feuil4!T50 -> 0 | U50: =Feuil4!U50 -> 0 | V50: =Feuil4!V50 -> 0 | W50: =Feuil4!W50 -> 0 | X50: =Feuil4!X50 -> 0 | Y50: =Feuil4!Y50 -> 0 | Z50: =Feuil4!Z50 -> 0 | AA50: =Feuil4!AA50 -> 0 | AB50: =Feuil4!AB50 -> 0 | AC50: =Feuil4!AC50 -> 0 | AD50: =Feuil4!AD50 -> 0 | AE50: =Feuil4!AE50 -> 0 | AF50: =Feuil4!AF50 -> 0 | AG50: =Feuil4!AG50 -> 0 | AH50: =Feuil4!AH50 -> 0 | AI50: =Feuil4!AI50 -> 0 | AJ50: =Feuil4!AJ50 -> 0 | AK50: =Feuil4!AK50 -> 0 | AL50: =Feuil4!AL50 -> 0 | AM50: =Feuil4!AM50 -> 0 | AN50: =Feuil4!AN50 -> 00:00:00 | AO50: =Feuil4!AO50 -> 0
A51: =Feuil4!A51 -> 0 | B51: =Feuil4!B51 ->  | C51: =Feuil4!C51 -> 0 | D51: =Feuil4!D51 -> 0 | E51: =Feuil4!E51 -> 0 | F51: =Feuil4!F51 -> 0 | G51: =Feuil4!G51 -> 0 | H51: =Feuil4!H51 -> 0 | I51: =Feuil4!I51 -> 0 | J51: =Feuil4!J51 -> 0 | K51: =Feuil4!K51 -> 0 | L51: =Feuil4!L51 -> 0 | M51: =Feuil4!M51 -> 0 | N51: =Feuil4!N51 -> 0 | O51: =Feuil4!O51 -> 0 | P51: =Feuil4!P51 -> 0 | Q51: =Feuil4!Q51 -> 0 | R51: =Feuil4!R51 -> 0 | S51: =Feuil4!S51 -> 0 | T51: =Feuil4!T51 -> 0 | U51: =Feuil4!U51 -> 0 | V51: =Feuil4!V51 -> 0 | W51: =Feuil4!W51 -> 0 | X51: =Feuil4!X51 -> 0 | Y51: =Feuil4!Y51 -> 0 | Z51: =Feuil4!Z51 -> 0 | AA51: =Feuil4!AA51 -> 0 | AB51: =Feuil4!AB51 -> 0 | AC51: =Feuil4!AC51 -> 0 | AD51: =Feuil4!AD51 -> 0 | AE51: =Feuil4!AE51 -> 0 | AF51: =Feuil4!AF51 -> 0 | AG51: =Feuil4!AG51 -> 0 | AH51: =Feuil4!AH51 -> 0 | AI51: =Feuil4!AI51 -> 0 | AJ51: =Feuil4!AJ51 -> 0 | AK51: =Feuil4!AK51 -> 0 | AL51: =Feuil4!AL51 -> 0 | AM51: =Feuil4!AM51 -> 0 | AN51: =Feuil4!AN51 -> 00:00:00 | AO51: =Feuil4!AO51 -> 0
A52: =Feuil4!A52 -> 0 | B52: =Feuil4!B52 ->  | C52: =Feuil4!C52 -> 0 | D52: =Feuil4!D52 -> 0 | E52: =Feuil4!E52 -> 0 | F52: =Feuil4!F52 -> 0 | G52: =Feuil4!G52 -> 0 | H52: =Feuil4!H52 -> 0 | I52: =Feuil4!I52 -> 0 | J52: =Feuil4!J52 -> 0 | K52: =Feuil4!K52 -> 0 | L52: =Feuil4!L52 -> 0 | M52: =Feuil4!M52 -> 0 | N52: =Feuil4!N52 -> 0 | O52: =Feuil4!O52 -> 0 | P52: =Feuil4!P52 -> 0 | Q52: =Feuil4!Q52 -> 0 | R52: =Feuil4!R52 -> 0 | S52: =Feuil4!S52 -> 0 | T52: =Feuil4!T52 -> 0 | U52: =Feuil4!U52 -> 0 | V52: =Feuil4!V52 -> 0 | W52: =Feuil4!W52 -> 0 | X52: =Feuil4!X52 -> 0 | Y52: =Feuil4!Y52 -> 0 | Z52: =Feuil4!Z52 -> 0 | AA52: =Feuil4!AA52 -> 0 | AB52: =Feuil4!AB52 -> 0 | AC52: =Feuil4!AC52 -> 0 | AD52: =Feuil4!AD52 -> 0 | AE52: =Feuil4!AE52 -> 0 | AF52: =Feuil4!AF52 -> 0 | AG52: =Feuil4!AG52 -> 0 | AH52: =Feuil4!AH52 -> 0 | AI52: =Feuil4!AI52 -> 0 | AJ52: =Feuil4!AJ52 -> 0 | AK52: =Feuil4!AK52 -> 0 | AL52: =Feuil4!AL52 -> 0 | AM52: =Feuil4!AM52 -> 0 | AN52: =Feuil4!AN52 -> 00:00:00 | AO52: =Feuil4!AO52 -> 0
A53: =Feuil4!A53 -> 0 | B53: =Feuil4!B53 ->  | C53: =Feuil4!C53 -> 0 | D53: =Feuil4!D53 -> 0 | E53: =Feuil4!E53 -> 0 | F53: =Feuil4!F53 -> 0 | G53: =Feuil4!G53 -> 0 | H53: =Feuil4!H53 -> 0 | I53: =Feuil4!I53 -> 0 | J53: =Feuil4!J53 -> 0 | K53: =Feuil4!K53 -> 0 | L53: =Feuil4!L53 -> 0 | M53: =Feuil4!M53 -> 0 | N53: =Feuil4!N53 -> 0 | O53: =Feuil4!O53 -> 0 | P53: =Feuil4!P53 -> 0 | Q53: =Feuil4!Q53 -> 0 | R53: =Feuil4!R53 -> 0 | S53: =Feuil4!S53 -> 0 | T53: =Feuil4!T53 -> 0 | U53: =Feuil4!U53 -> 0 | V53: =Feuil4!V53 -> 0 | W53: =Feuil4!W53 -> 0 | X53: =Feuil4!X53 -> 0 | Y53: =Feuil4!Y53 -> 0 | Z53: =Feuil4!Z53 -> 0 | AA53: =Feuil4!AA53 -> 0 | AB53: =Feuil4!AB53 -> 0 | AC53: =Feuil4!AC53 -> 0 | AD53: =Feuil4!AD53 -> 0 | AE53: =Feuil4!AE53 -> 0 | AF53: =Feuil4!AF53 -> 0 | AG53: =Feuil4!AG53 -> 0 | AH53: =Feuil4!AH53 -> 0 | AI53: =Feuil4!AI53 -> 0 | AJ53: =Feuil4!AJ53 -> 0 | AK53: =Feuil4!AK53 -> 0 | AL53: =Feuil4!AL53 -> 0 | AM53: =Feuil4!AM53 -> 0 | AN53: =Feuil4!AN53 -> 00:00:00 | AO53: =Feuil4!AO53 -> 0
A54: =Feuil4!A54 -> 0 | B54: =Feuil4!B54 ->  | C54: =Feuil4!C54 -> 0 | D54: =Feuil4!D54 -> 0 | E54: =Feuil4!E54 -> 0 | F54: =Feuil4!F54 -> 0 | G54: =Feuil4!G54 -> 0 | H54: =Feuil4!H54 -> 0 | I54: =Feuil4!I54 -> 0 | J54: =Feuil4!J54 -> 0 | K54: =Feuil4!K54 -> 0 | L54: =Feuil4!L54 -> 0 | M54: =Feuil4!M54 -> 0 | N54: =Feuil4!N54 -> 0 | O54: =Feuil4!O54 -> 0 | P54: =Feuil4!P54 -> 0 | Q54: =Feuil4!Q54 -> 0 | R54: =Feuil4!R54 -> 0 | S54: =Feuil4!S54 -> 0 | T54: =Feuil4!T54 -> 0 | U54: =Feuil4!U54 -> 0 | V54: =Feuil4!V54 -> 0 | W54: =Feuil4!W54 -> 0 | X54: =Feuil4!X54 -> 0 | Y54: =Feuil4!Y54 -> 0 | Z54: =Feuil4!Z54 -> 0 | AA54: =Feuil4!AA54 -> 0 | AB54: =Feuil4!AB54 -> 0 | AC54: =Feuil4!AC54 -> 0 | AD54: =Feuil4!AD54 -> 0 | AE54: =Feuil4!AE54 -> 0 | AF54: =Feuil4!AF54 -> 0 | AG54: =Feuil4!AG54 -> 0 | AH54: =Feuil4!AH54 -> 0 | AI54: =Feuil4!AI54 -> 0 | AJ54: =Feuil4!AJ54 -> 0 | AK54: =Feuil4!AK54 -> 0 | AL54: =Feuil4!AL54 -> 0 | AM54: =Feuil4!AM54 -> 0 | AN54: =Feuil4!AN54 -> 00:00:00 | AO54: =Feuil4!AO54 -> 0
A55: =Feuil4!A55 -> 0 | B55: =Feuil4!B55 ->  | C55: =Feuil4!C55 -> 0 | D55: =Feuil4!D55 -> 0 | E55: =Feuil4!E55 -> 0 | F55: =Feuil4!F55 -> 0 | G55: =Feuil4!G55 -> 0 | H55: =Feuil4!H55 -> 0 | I55: =Feuil4!I55 -> 0 | J55: =Feuil4!J55 -> 0 | K55: =Feuil4!K55 -> 0 | L55: =Feuil4!L55 -> 0 | M55: =Feuil4!M55 -> 0 | N55: =Feuil4!N55 -> 0 | O55: =Feuil4!O55 -> 0 | P55: =Feuil4!P55 -> 0 | Q55: =Feuil4!Q55 -> 0 | R55: =Feuil4!R55 -> 0 | S55: =Feuil4!S55 -> 0 | T55: =Feuil4!T55 -> 0 | U55: =Feuil4!U55 -> 0 | V55: =Feuil4!V55 -> 0 | W55: =Feuil4!W55 -> 0 | X55: =Feuil4!X55 -> 0 | Y55: =Feuil4!Y55 -> 0 | Z55: =Feuil4!Z55 -> 0 | AA55: =Feuil4!AA55 -> 0 | AB55: =Feuil4!AB55 -> 0 | AC55: =Feuil4!AC55 -> 0 | AD55: =Feuil4!AD55 -> 0 | AE55: =Feuil4!AE55 -> 0 | AF55: =Feuil4!AF55 -> 0 | AG55: =Feuil4!AG55 -> 0 | AH55: =Feuil4!AH55 -> 0 | AI55: =Feuil4!AI55 -> 0 | AJ55: =Feuil4!AJ55 -> 0 | AK55: =Feuil4!AK55 -> 0 | AL55: =Feuil4!AL55 -> 0 | AM55: =Feuil4!AM55 -> 0 | AN55: =Feuil4!AN55 -> 00:00:00 | AO55: =Feuil4!AO55 -> 0
A56: =Feuil4!A56 -> 0 | B56: =Feuil4!B56 ->  | C56: =Feuil4!C56 -> 0 | D56: =Feuil4!D56 -> 0 | E56: =Feuil4!E56 -> 0 | F56: =Feuil4!F56 -> 0 | G56: =Feuil4!G56 -> 0 | H56: =Feuil4!H56 -> 0 | I56: =Feuil4!I56 -> 0 | J56: =Feuil4!J56 -> 0 | K56: =Feuil4!K56 -> 0 | L56: =Feuil4!L56 -> 0 | M56: =Feuil4!M56 -> 0 | N56: =Feuil4!N56 -> 0 | O56: =Feuil4!O56 -> 0 | P56: =Feuil4!P56 -> 0 | Q56: =Feuil4!Q56 -> 0 | R56: =Feuil4!R56 -> 0 | S56: =Feuil4!S56 -> 0 | T56: =Feuil4!T56 -> 0 | U56: =Feuil4!U56 -> 0 | V56: =Feuil4!V56 -> 0 | W56: =Feuil4!W56 -> 0 | X56: =Feuil4!X56 -> 0 | Y56: =Feuil4!Y56 -> 0 | Z56: =Feuil4!Z56 -> 0 | AA56: =Feuil4!AA56 -> 0 | AB56: =Feuil4!AB56 -> 0 | AC56: =Feuil4!AC56 -> 0 | AD56: =Feuil4!AD56 -> 0 | AE56: =Feuil4!AE56 -> 0 | AF56: =Feuil4!AF56 -> 0 | AG56: =Feuil4!AG56 -> 0 | AH56: =Feuil4!AH56 -> 0 | AI56: =Feuil4!AI56 -> 0 | AJ56: =Feuil4!AJ56 -> 0 | AK56: =Feuil4!AK56 -> 0 | AL56: =Feuil4!AL56 -> 0 | AM56: =Feuil4!AM56 -> 0 | AN56: =Feuil4!AN56 -> 00:00:00 | AO56: =Feuil4!AO56 -> 0
A57: =Feuil4!A57 -> 0 | B57: =Feuil4!B57 ->  | C57: =Feuil4!C57 -> 0 | D57: =Feuil4!D57 -> 0 | E57: =Feuil4!E57 -> 0 | F57: =Feuil4!F57 -> 0 | G57: =Feuil4!G57 -> 0 | H57: =Feuil4!H57 -> 0 | I57: =Feuil4!I57 -> 0 | J57: =Feuil4!J57 -> 0 | K57: =Feuil4!K57 -> 0 | L57: =Feuil4!L57 -> 0 | M57: =Feuil4!M57 -> 0 | N57: =Feuil4!N57 -> 0 | O57: =Feuil4!O57 -> 0 | P57: =Feuil4!P57 -> 0 | Q57: =Feuil4!Q57 -> 0 | R57: =Feuil4!R57 -> 0 | S57: =Feuil4!S57 -> 0 | T57: =Feuil4!T57 -> 0 | U57: =Feuil4!U57 -> 0 | V57: =Feuil4!V57 -> 0 | W57: =Feuil4!W57 -> 0 | X57: =Feuil4!X57 -> 0 | Y57: =Feuil4!Y57 -> 0 | Z57: =Feuil4!Z57 -> 0 | AA57: =Feuil4!AA57 -> 0 | AB57: =Feuil4!AB57 -> 0 | AC57: =Feuil4!AC57 -> 0 | AD57: =Feuil4!AD57 -> 0 | AE57: =Feuil4!AE57 -> 0 | AF57: =Feuil4!AF57 -> 0 | AG57: =Feuil4!AG57 -> 0 | AH57: =Feuil4!AH57 -> 0 | AI57: =Feuil4!AI57 -> 0 | AJ57: =Feuil4!AJ57 -> 0 | AK57: =Feuil4!AK57 -> 0 | AL57: =Feuil4!AL57 -> 0 | AM57: =Feuil4!AM57 -> 0 | AN57: =Feuil4!AN57 -> 00:00:00 | AO57: =Feuil4!AO57 -> 0
A58: =Feuil4!A58 -> 0 | B58: =Feuil4!B58 ->  | C58: =Feuil4!C58 -> 0 | D58: =Feuil4!D58 -> 0 | E58: =Feuil4!E58 -> 0 | F58: =Feuil4!F58 -> 0 | G58: =Feuil4!G58 -> 0 | H58: =Feuil4!H58 -> 0 | I58: =Feuil4!I58 -> 0 | J58: =Feuil4!J58 -> 0 | K58: =Feuil4!K58 -> 0 | L58: =Feuil4!L58 -> 0 | M58: =Feuil4!M58 -> 0 | N58: =Feuil4!N58 -> 0 | O58: =Feuil4!O58 -> 0 | P58: =Feuil4!P58 -> 0 | Q58: =Feuil4!Q58 -> 0 | R58: =Feuil4!R58 -> 0 | S58: =Feuil4!S58 -> 0 | T58: =Feuil4!T58 -> 0 | U58: =Feuil4!U58 -> 0 | V58: =Feuil4!V58 -> 0 | W58: =Feuil4!W58 -> 0 | X58: =Feuil4!X58 -> 0 | Y58: =Feuil4!Y58 -> 0 | Z58: =Feuil4!Z58 -> 0 | AA58: =Feuil4!AA58 -> 0 | AB58: =Feuil4!AB58 -> 0 | AC58: =Feuil4!AC58 -> 0 | AD58: =Feuil4!AD58 -> 0 | AE58: =Feuil4!AE58 -> 0 | AF58: =Feuil4!AF58 -> 0 | AG58: =Feuil4!AG58 -> 0 | AH58: =Feuil4!AH58 -> 0 | AI58: =Feuil4!AI58 -> 0 | AJ58: =Feuil4!AJ58 -> 0 | AK58: =Feuil4!AK58 -> 0 | AL58: =Feuil4!AL58 -> 0 | AM58: =Feuil4!AM58 -> 0 | AN58: =Feuil4!AN58 -> 00:00:00 | AO58: =Feuil4!AO58 -> 0
A59: =Feuil4!A59 -> 0 | B59: =Feuil4!B59 ->  | C59: =Feuil4!C59 -> 0 | D59: =Feuil4!D59 -> 0 | E59: =Feuil4!E59 -> 0 | F59: =Feuil4!F59 -> 0 | G59: =Feuil4!G59 -> 0 | H59: =Feuil4!H59 -> 0 | I59: =Feuil4!I59 -> 0 | J59: =Feuil4!J59 -> 0 | K59: =Feuil4!K59 -> 0 | L59: =Feuil4!L59 -> 0 | M59: =Feuil4!M59 -> 0 | N59: =Feuil4!N59 -> 0 | O59: =Feuil4!O59 -> 0 | P59: =Feuil4!P59 -> 0 | Q59: =Feuil4!Q59 -> 0 | R59: =Feuil4!R59 -> 0 | S59: =Feuil4!S59 -> 0 | T59: =Feuil4!T59 -> 0 | U59: =Feuil4!U59 -> 0 | V59: =Feuil4!V59 -> 0 | W59: =Feuil4!W59 -> 0 | X59: =Feuil4!X59 -> 0 | Y59: =Feuil4!Y59 -> 0 | Z59: =Feuil4!Z59 -> 0 | AA59: =Feuil4!AA59 -> 0 | AB59: =Feuil4!AB59 -> 0 | AC59: =Feuil4!AC59 -> 0 | AD59: =Feuil4!AD59 -> 0 | AE59: =Feuil4!AE59 -> 0 | AF59: =Feuil4!AF59 -> 0 | AG59: =Feuil4!AG59 -> 0 | AH59: =Feuil4!AH59 -> 0 | AI59: =Feuil4!AI59 -> 0 | AJ59: =Feuil4!AJ59 -> 0 | AK59: =Feuil4!AK59 -> 0 | AL59: =Feuil4!AL59 -> 0 | AM59: =Feuil4!AM59 -> 0 | AN59: =Feuil4!AN59 -> 00:00:00 | AO59: =Feuil4!AO59 -> 0
A60: =Feuil4!A60 -> 0 | B60: =Feuil4!B60 ->  | C60: =Feuil4!C60 -> 0 | D60: =Feuil4!D60 -> 0 | E60: =Feuil4!E60 -> 0 | F60: =Feuil4!F60 -> 0 | G60: =Feuil4!G60 -> 0 | H60: =Feuil4!H60 -> 0 | I60: =Feuil4!I60 -> 0 | J60: =Feuil4!J60 -> 0 | K60: =Feuil4!K60 -> 0 | L60: =Feuil4!L60 -> 0 | M60: =Feuil4!M60 -> 0 | N60: =Feuil4!N60 -> 0 | O60: =Feuil4!O60 -> 0 | P60: =Feuil4!P60 -> 0 | Q60: =Feuil4!Q60 -> 0 | R60: =Feuil4!R60 -> 0 | S60: =Feuil4!S60 -> 0 | T60: =Feuil4!T60 -> 0 | U60: =Feuil4!U60 -> 0 | V60: =Feuil4!V60 -> 0 | W60: =Feuil4!W60 -> 0 | X60: =Feuil4!X60 -> 0 | Y60: =Feuil4!Y60 -> 0 | Z60: =Feuil4!Z60 -> 0 | AA60: =Feuil4!AA60 -> 0 | AB60: =Feuil4!AB60 -> 0 | AC60: =Feuil4!AC60 -> 0 | AD60: =Feuil4!AD60 -> 0 | AE60: =Feuil4!AE60 -> 0 | AF60: =Feuil4!AF60 -> 0 | AG60: =Feuil4!AG60 -> 0 | AH60: =Feuil4!AH60 -> 0 | AI60: =Feuil4!AI60 -> 0 | AJ60: =Feuil4!AJ60 -> 0 | AK60: =Feuil4!AK60 -> 0 | AL60: =Feuil4!AL60 -> 0 | AM60: =Feuil4!AM60 -> 0 | AN60: =Feuil4!AN60 -> 00:00:00 | AO60: =Feuil4!AO60 -> 0
A61: =Feuil4!A61 -> 0 | B61: =Feuil4!B61 ->  | C61: =Feuil4!C61 -> 0 | D61: =Feuil4!D61 -> 0 | E61: =Feuil4!E61 -> 0 | F61: =Feuil4!F61 -> 0 | G61: =Feuil4!G61 -> 0 | H61: =Feuil4!H61 -> 0 | I61: =Feuil4!I61 -> 0 | J61: =Feuil4!J61 -> 0 | K61: =Feuil4!K61 -> 0 | L61: =Feuil4!L61 -> 0 | M61: =Feuil4!M61 -> 0 | N61: =Feuil4!N61 -> 0 | O61: =Feuil4!O61 -> 0 | P61: =Feuil4!P61 -> 0 | Q61: =Feuil4!Q61 -> 0 | R61: =Feuil4!R61 -> 0 | S61: =Feuil4!S61 -> 0 | T61: =Feuil4!T61 -> 0 | U61: =Feuil4!U61 -> 0 | V61: =Feuil4!V61 -> 0 | W61: =Feuil4!W61 -> 0 | X61: =Feuil4!X61 -> 0 | Y61: =Feuil4!Y61 -> 0 | Z61: =Feuil4!Z61 -> 0 | AA61: =Feuil4!AA61 -> 0 | AB61: =Feuil4!AB61 -> 0 | AC61: =Feuil4!AC61 -> 0 | AD61: =Feuil4!AD61 -> 0 | AE61: =Feuil4!AE61 -> 0 | AF61: =Feuil4!AF61 -> 0 | AG61: =Feuil4!AG61 -> 0 | AH61: =Feuil4!AH61 -> 0 | AI61: =Feuil4!AI61 -> 0 | AJ61: =Feuil4!AJ61 -> 0 | AK61: =Feuil4!AK61 -> 0 | AL61: =Feuil4!AL61 -> 0 | AM61: =Feuil4!AM61 -> 0 | AN61: =Feuil4!AN61 -> 00:00:00 | AO61: =Feuil4!AO61 -> 0
A62: =Feuil4!A62 -> 0 | B62: =Feuil4!B62 ->  | C62: =Feuil4!C62 -> 0 | D62: =Feuil4!D62 -> 0 | E62: =Feuil4!E62 -> 0 | F62: =Feuil4!F62 -> 0 | G62: =Feuil4!G62 -> 0 | H62: =Feuil4!H62 -> 0 | I62: =Feuil4!I62 -> 0 | J62: =Feuil4!J62 -> 0 | K62: =Feuil4!K62 -> 0 | L62: =Feuil4!L62 -> 0 | M62: =Feuil4!M62 -> 0 | N62: =Feuil4!N62 -> 0 | O62: =Feuil4!O62 -> 0 | P62: =Feuil4!P62 -> 0 | Q62: =Feuil4!Q62 -> 0 | R62: =Feuil4!R62 -> 0 | S62: =Feuil4!S62 -> 0 | T62: =Feuil4!T62 -> 0 | U62: =Feuil4!U62 -> 0 | V62: =Feuil4!V62 -> 0 | W62: =Feuil4!W62 -> 0 | X62: =Feuil4!X62 -> 0 | Y62: =Feuil4!Y62 -> 0 | Z62: =Feuil4!Z62 -> 0 | AA62: =Feuil4!AA62 -> 0 | AB62: =Feuil4!AB62 -> 0 | AC62: =Feuil4!AC62 -> 0 | AD62: =Feuil4!AD62 -> 0 | AE62: =Feuil4!AE62 -> 0 | AF62: =Feuil4!AF62 -> 0 | AG62: =Feuil4!AG62 -> 0 | AH62: =Feuil4!AH62 -> 0 | AI62: =Feuil4!AI62 -> 0 | AJ62: =Feuil4!AJ62 -> 0 | AK62: =Feuil4!AK62 -> 0 | AL62: =Feuil4!AL62 -> 0 | AM62: =Feuil4!AM62 -> 0 | AN62: =Feuil4!AN62 -> 00:00:00 | AO62: =Feuil4!AO62 -> 0
A63: =Feuil4!A63 -> 0 | B63: =Feuil4!B63 ->  | C63: =Feuil4!C63 -> 0 | D63: =Feuil4!D63 -> 0 | E63: =Feuil4!E63 -> 0 | F63: =Feuil4!F63 -> 0 | G63: =Feuil4!G63 -> 0 | H63: =Feuil4!H63 -> 0 | I63: =Feuil4!I63 -> 0 | J63: =Feuil4!J63 -> 0 | K63: =Feuil4!K63 -> 0 | L63: =Feuil4!L63 -> 0 | M63: =Feuil4!M63 -> 0 | N63: =Feuil4!N63 -> 0 | O63: =Feuil4!O63 -> 0 | P63: =Feuil4!P63 -> 0 | Q63: =Feuil4!Q63 -> 0 | R63: =Feuil4!R63 -> 0 | S63: =Feuil4!S63 -> 0 | T63: =Feuil4!T63 -> 0 | U63: =Feuil4!U63 -> 0 | V63: =Feuil4!V63 -> 0 | W63: =Feuil4!W63 -> 0 | X63: =Feuil4!X63 -> 0 | Y63: =Feuil4!Y63 -> 0 | Z63: =Feuil4!Z63 -> 0 | AA63: =Feuil4!AA63 -> 0 | AB63: =Feuil4!AB63 -> 0 | AC63: =Feuil4!AC63 -> 0 | AD63: =Feuil4!AD63 -> 0 | AE63: =Feuil4!AE63 -> 0 | AF63: =Feuil4!AF63 -> 0 | AG63: =Feuil4!AG63 -> 0 | AH63: =Feuil4!AH63 -> 0 | AI63: =Feuil4!AI63 -> 0 | AJ63: =Feuil4!AJ63 -> 0 | AK63: =Feuil4!AK63 -> 0 | AL63: =Feuil4!AL63 -> 0 | AM63: =Feuil4!AM63 -> 0 | AN63: =Feuil4!AN63 -> 00:00:00 | AO63: =Feuil4!AO63 -> 0
A64: =Feuil4!A64 -> 0 | B64: =Feuil4!B64 ->  | C64: =Feuil4!C64 -> 0 | D64: =Feuil4!D64 -> 0 | E64: =Feuil4!E64 -> 0 | F64: =Feuil4!F64 -> 0 | G64: =Feuil4!G64 -> 0 | H64: =Feuil4!H64 -> 0 | I64: =Feuil4!I64 -> 0 | J64: =Feuil4!J64 -> 0 | K64: =Feuil4!K64 -> 0 | L64: =Feuil4!L64 -> 0 | M64: =Feuil4!M64 -> 0 | N64: =Feuil4!N64 -> 0 | O64: =Feuil4!O64 -> 0 | P64: =Feuil4!P64 -> 0 | Q64: =Feuil4!Q64 -> 0 | R64: =Feuil4!R64 -> 0 | S64: =Feuil4!S64 -> 0 | T64: =Feuil4!T64 -> 0 | U64: =Feuil4!U64 -> 0 | V64: =Feuil4!V64 -> 0 | W64: =Feuil4!W64 -> 0 | X64: =Feuil4!X64 -> 0 | Y64: =Feuil4!Y64 -> 0 | Z64: =Feuil4!Z64 -> 0 | AA64: =Feuil4!AA64 -> 0 | AB64: =Feuil4!AB64 -> 0 | AC64: =Feuil4!AC64 -> 0 | AD64: =Feuil4!AD64 -> 0 | AE64: =Feuil4!AE64 -> 0 | AF64: =Feuil4!AF64 -> 0 | AG64: =Feuil4!AG64 -> 0 | AH64: =Feuil4!AH64 -> 0 | AI64: =Feuil4!AI64 -> 0 | AJ64: =Feuil4!AJ64 -> 0 | AK64: =Feuil4!AK64 -> 0 | AL64: =Feuil4!AL64 -> 0 | AM64: =Feuil4!AM64 -> 0 | AN64: =Feuil4!AN64 -> 00:00:00 | AO64: =Feuil4!AO64 -> 0
A65: =Feuil4!A65 -> 0 | B65: =Feuil4!B65 ->  | C65: =Feuil4!C65 -> 0 | D65: =Feuil4!D65 -> 0 | E65: =Feuil4!E65 -> 0 | F65: =Feuil4!F65 -> 0 | G65: =Feuil4!G65 -> 0 | H65: =Feuil4!H65 -> 0 | I65: =Feuil4!I65 -> 0 | J65: =Feuil4!J65 -> 0 | K65: =Feuil4!K65 -> 0 | L65: =Feuil4!L65 -> 0 | M65: =Feuil4!M65 -> 0 | N65: =Feuil4!N65 -> 0 | O65: =Feuil4!O65 -> 0 | P65: =Feuil4!P65 -> 0 | Q65: =Feuil4!Q65 -> 0 | R65: =Feuil4!R65 -> 0 | S65: =Feuil4!S65 -> 0 | T65: =Feuil4!T65 -> 0 | U65: =Feuil4!U65 -> 0 | V65: =Feuil4!V65 -> 0 | W65: =Feuil4!W65 -> 0 | X65: =Feuil4!X65 -> 0 | Y65: =Feuil4!Y65 -> 0 | Z65: =Feuil4!Z65 -> 0 | AA65: =Feuil4!AA65 -> 0 | AB65: =Feuil4!AB65 -> 0 | AC65: =Feuil4!AC65 -> 0 | AD65: =Feuil4!AD65 -> 0 | AE65: =Feuil4!AE65 -> 0 | AF65: =Feuil4!AF65 -> 0 | AG65: =Feuil4!AG65 -> 0 | AH65: =Feuil4!AH65 -> 0 | AI65: =Feuil4!AI65 -> 0 | AJ65: =Feuil4!AJ65 -> 0 | AK65: =Feuil4!AK65 -> 0 | AL65: =Feuil4!AL65 -> 0 | AM65: =Feuil4!AM65 -> 0 | AN65: =Feuil4!AN65 -> 00:00:00 | AO65: =Feuil4!AO65 -> 0
A66: =Feuil4!A66 -> 0 | B66: =Feuil4!B66 ->  | C66: =Feuil4!C66 -> 0 | D66: =Feuil4!D66 -> 0 | E66: =Feuil4!E66 -> 0 | F66: =Feuil4!F66 -> 0 | G66: =Feuil4!G66 -> 0 | H66: =Feuil4!H66 -> 0 | I66: =Feuil4!I66 -> 0 | J66: =Feuil4!J66 -> 0 | K66: =Feuil4!K66 -> 0 | L66: =Feuil4!L66 -> 0 | M66: =Feuil4!M66 -> 0 | N66: =Feuil4!N66 -> 0 | O66: =Feuil4!O66 -> 0 | P66: =Feuil4!P66 -> 0 | Q66: =Feuil4!Q66 -> 0 | R66: =Feuil4!R66 -> 0 | S66: =Feuil4!S66 -> 0 | T66: =Feuil4!T66 -> 0 | U66: =Feuil4!U66 -> 0 | V66: =Feuil4!V66 -> 0 | W66: =Feuil4!W66 -> 0 | X66: =Feuil4!X66 -> 0 | Y66: =Feuil4!Y66 -> 0 | Z66: =Feuil4!Z66 -> 0 | AA66: =Feuil4!AA66 -> 0 | AB66: =Feuil4!AB66 -> 0 | AC66: =Feuil4!AC66 -> 0 | AD66: =Feuil4!AD66 -> 0 | AE66: =Feuil4!AE66 -> 0 | AF66: =Feuil4!AF66 -> 0 | AG66: =Feuil4!AG66 -> 0 | AH66: =Feuil4!AH66 -> 0 | AI66: =Feuil4!AI66 -> 0 | AJ66: =Feuil4!AJ66 -> 0 | AK66: =Feuil4!AK66 -> 0 | AL66: =Feuil4!AL66 -> 0 | AM66: =Feuil4!AM66 -> 0 | AN66: =Feuil4!AN66 -> 00:00:00 | AO66: =Feuil4!AO66 -> 0
A67: =Feuil4!A67 -> 0 | B67: =Feuil4!B67 ->  | C67: =Feuil4!C67 -> 0 | D67: =Feuil4!D67 -> 0 | E67: =Feuil4!E67 -> 0 | F67: =Feuil4!F67 -> 0 | G67: =Feuil4!G67 -> 0 | H67: =Feuil4!H67 -> 0 | I67: =Feuil4!I67 -> 0 | J67: =Feuil4!J67 -> 0 | K67: =Feuil4!K67 -> 0 | L67: =Feuil4!L67 -> 0 | M67: =Feuil4!M67 -> 0 | N67: =Feuil4!N67 -> 0 | O67: =Feuil4!O67 -> 0 | P67: =Feuil4!P67 -> 0 | Q67: =Feuil4!Q67 -> 0 | R67: =Feuil4!R67 -> 0 | S67: =Feuil4!S67 -> 0 | T67: =Feuil4!T67 -> 0 | U67: =Feuil4!U67 -> 0 | V67: =Feuil4!V67 -> 0 | W67: =Feuil4!W67 -> 0 | X67: =Feuil4!X67 -> 0 | Y67: =Feuil4!Y67 -> 0 | Z67: =Feuil4!Z67 -> 0 | AA67: =Feuil4!AA67 -> 0 | AB67: =Feuil4!AB67 -> 0 | AC67: =Feuil4!AC67 -> 0 | AD67: =Feuil4!AD67 -> 0 | AE67: =Feuil4!AE67 -> 0 | AF67: =Feuil4!AF67 -> 0 | AG67: =Feuil4!AG67 -> 0 | AH67: =Feuil4!AH67 -> 0 | AI67: =Feuil4!AI67 -> 0 | AJ67: =Feuil4!AJ67 -> 0 | AK67: =Feuil4!AK67 -> 0 | AL67: =Feuil4!AL67 -> 0 | AM67: =Feuil4!AM67 -> 0 | AN67: =Feuil4!AN67 -> 00:00:00 | AO67: =Feuil4!AO67 -> 0
A68: =Feuil4!A68 -> 0 | B68: =Feuil4!B68 ->  | C68: =Feuil4!C68 -> 0 | D68: =Feuil4!D68 -> 0 | E68: =Feuil4!E68 -> 0 | F68: =Feuil4!F68 -> 0 | G68: =Feuil4!G68 -> 0 | H68: =Feuil4!H68 -> 0 | I68: =Feuil4!I68 -> 0 | J68: =Feuil4!J68 -> 0 | K68: =Feuil4!K68 -> 0 | L68: =Feuil4!L68 -> 0 | M68: =Feuil4!M68 -> 0 | N68: =Feuil4!N68 -> 0 | O68: =Feuil4!O68 -> 0 | P68: =Feuil4!P68 -> 0 | Q68: =Feuil4!Q68 -> 0 | R68: =Feuil4!R68 -> 0 | S68: =Feuil4!S68 -> 0 | T68: =Feuil4!T68 -> 0 | U68: =Feuil4!U68 -> 0 | V68: =Feuil4!V68 -> 0 | W68: =Feuil4!W68 -> 0 | X68: =Feuil4!X68 -> 0 | Y68: =Feuil4!Y68 -> 0 | Z68: =Feuil4!Z68 -> 0 | AA68: =Feuil4!AA68 -> 0 | AB68: =Feuil4!AB68 -> 0 | AC68: =Feuil4!AC68 -> 0 | AD68: =Feuil4!AD68 -> 0 | AE68: =Feuil4!AE68 -> 0 | AF68: =Feuil4!AF68 -> 0 | AG68: =Feuil4!AG68 -> 0 | AH68: =Feuil4!AH68 -> 0 | AI68: =Feuil4!AI68 -> 0 | AJ68: =Feuil4!AJ68 -> 0 | AK68: =Feuil4!AK68 -> 0 | AL68: =Feuil4!AL68 -> 0 | AM68: =Feuil4!AM68 -> 0 | AN68: =Feuil4!AN68 -> 00:00:00 | AO68: =Feuil4!AO68 -> 0
A69: =Feuil4!A69 -> 0 | B69: =Feuil4!B69 ->  | C69: =Feuil4!C69 -> 0 | D69: =Feuil4!D69 -> 0 | E69: =Feuil4!E69 -> 0 | F69: =Feuil4!F69 -> 0 | G69: =Feuil4!G69 -> 0 | H69: =Feuil4!H69 -> 0 | I69: =Feuil4!I69 -> 0 | J69: =Feuil4!J69 -> 0 | K69: =Feuil4!K69 -> 0 | L69: =Feuil4!L69 -> 0 | M69: =Feuil4!M69 -> 0 | N69: =Feuil4!N69 -> 0 | O69: =Feuil4!O69 -> 0 | P69: =Feuil4!P69 -> 0 | Q69: =Feuil4!Q69 -> 0 | R69: =Feuil4!R69 -> 0 | S69: =Feuil4!S69 -> 0 | T69: =Feuil4!T69 -> 0 | U69: =Feuil4!U69 -> 0 | V69: =Feuil4!V69 -> 0 | W69: =Feuil4!W69 -> 0 | X69: =Feuil4!X69 -> 0 | Y69: =Feuil4!Y69 -> 0 | Z69: =Feuil4!Z69 -> 0 | AA69: =Feuil4!AA69 -> 0 | AB69: =Feuil4!AB69 -> 0 | AC69: =Feuil4!AC69 -> 0 | AD69: =Feuil4!AD69 -> 0 | AE69: =Feuil4!AE69 -> 0 | AF69: =Feuil4!AF69 -> 0 | AG69: =Feuil4!AG69 -> 0 | AH69: =Feuil4!AH69 -> 0 | AI69: =Feuil4!AI69 -> 0 | AJ69: =Feuil4!AJ69 -> 0 | AK69: =Feuil4!AK69 -> 0 | AL69: =Feuil4!AL69 -> 0 | AM69: =Feuil4!AM69 -> 0 | AN69: =Feuil4!AN69 -> 00:00:00 | AO69: =Feuil4!AO69 -> 0
A70: =Feuil4!A70 -> 0 | B70: =Feuil4!B70 ->  | C70: =Feuil4!C70 -> 0 | D70: =Feuil4!D70 -> 0 | E70: =Feuil4!E70 -> 0 | F70: =Feuil4!F70 -> 0 | G70: =Feuil4!G70 -> 0 | H70: =Feuil4!H70 -> 0 | I70: =Feuil4!I70 -> 0 | J70: =Feuil4!J70 -> 0 | K70: =Feuil4!K70 -> 0 | L70: =Feuil4!L70 -> 0 | M70: =Feuil4!M70 -> 0 | N70: =Feuil4!N70 -> 0 | O70: =Feuil4!O70 -> 0 | P70: =Feuil4!P70 -> 0 | Q70: =Feuil4!Q70 -> 0 | R70: =Feuil4!R70 -> 0 | S70: =Feuil4!S70 -> 0 | T70: =Feuil4!T70 -> 0 | U70: =Feuil4!U70 -> 0 | V70: =Feuil4!V70 -> 0 | W70: =Feuil4!W70 -> 0 | X70: =Feuil4!X70 -> 0 | Y70: =Feuil4!Y70 -> 0 | Z70: =Feuil4!Z70 -> 0 | AA70: =Feuil4!AA70 -> 0 | AB70: =Feuil4!AB70 -> 0 | AC70: =Feuil4!AC70 -> 0 | AD70: =Feuil4!AD70 -> 0 | AE70: =Feuil4!AE70 -> 0 | AF70: =Feuil4!AF70 -> 0 | AG70: =Feuil4!AG70 -> 0 | AH70: =Feuil4!AH70 -> 0 | AI70: =Feuil4!AI70 -> 0 | AJ70: =Feuil4!AJ70 -> 0 | AK70: =Feuil4!AK70 -> 0 | AL70: =Feuil4!AL70 -> 0 | AM70: =Feuil4!AM70 -> 0 | AN70: =Feuil4!AN70 -> 00:00:00 | AO70: =Feuil4!AO70 -> 0
A71: =Feuil4!A71 -> 0 | B71: =Feuil4!B71 ->  | C71: =Feuil4!C71 -> 0 | D71: =Feuil4!D71 -> 0 | E71: =Feuil4!E71 -> 0 | F71: =Feuil4!F71 -> 0 | G71: =Feuil4!G71 -> 0 | H71: =Feuil4!H71 -> 0 | I71: =Feuil4!I71 -> 0 | J71: =Feuil4!J71 -> 0 | K71: =Feuil4!K71 -> 0 | L71: =Feuil4!L71 -> 0 | M71: =Feuil4!M71 -> 0 | N71: =Feuil4!N71 -> 0 | O71: =Feuil4!O71 -> 0 | P71: =Feuil4!P71 -> 0 | Q71: =Feuil4!Q71 -> 0 | R71: =Feuil4!R71 -> 0 | S71: =Feuil4!S71 -> 0 | T71: =Feuil4!T71 -> 0 | U71: =Feuil4!U71 -> 0 | V71: =Feuil4!V71 -> 0 | W71: =Feuil4!W71 -> 0 | X71: =Feuil4!X71 -> 0 | Y71: =Feuil4!Y71 -> 0 | Z71: =Feuil4!Z71 -> 0 | AA71: =Feuil4!AA71 -> 0 | AB71: =Feuil4!AB71 -> 0 | AC71: =Feuil4!AC71 -> 0 | AD71: =Feuil4!AD71 -> 0 | AE71: =Feuil4!AE71 -> 0 | AF71: =Feuil4!AF71 -> 0 | AG71: =Feuil4!AG71 -> 0 | AH71: =Feuil4!AH71 -> 0 | AI71: =Feuil4!AI71 -> 0 | AJ71: =Feuil4!AJ71 -> 0 | AK71: =Feuil4!AK71 -> 0 | AL71: =Feuil4!AL71 -> 0 | AM71: =Feuil4!AM71 -> 0 | AN71: =Feuil4!AN71 -> 00:00:00 | AO71: =Feuil4!AO71 -> 0
A72: =Feuil4!A72 -> 0 | B72: =Feuil4!B72 ->  | C72: =Feuil4!C72 -> 0 | D72: =Feuil4!D72 -> 0 | E72: =Feuil4!E72 -> 0 | F72: =Feuil4!F72 -> 0 | G72: =Feuil4!G72 -> 0 | H72: =Feuil4!H72 -> 0 | I72: =Feuil4!I72 -> 0 | J72: =Feuil4!J72 -> 0 | K72: =Feuil4!K72 -> 0 | L72: =Feuil4!L72 -> 0 | M72: =Feuil4!M72 -> 0 | N72: =Feuil4!N72 -> 0 | O72: =Feuil4!O72 -> 0 | P72: =Feuil4!P72 -> 0 | Q72: =Feuil4!Q72 -> 0 | R72: =Feuil4!R72 -> 0 | S72: =Feuil4!S72 -> 0 | T72: =Feuil4!T72 -> 0 | U72: =Feuil4!U72 -> 0 | V72: =Feuil4!V72 -> 0 | W72: =Feuil4!W72 -> 0 | X72: =Feuil4!X72 -> 0 | Y72: =Feuil4!Y72 -> 0 | Z72: =Feuil4!Z72 -> 0 | AA72: =Feuil4!AA72 -> 0 | AB72: =Feuil4!AB72 -> 0 | AC72: =Feuil4!AC72 -> 0 | AD72: =Feuil4!AD72 -> 0 | AE72: =Feuil4!AE72 -> 0 | AF72: =Feuil4!AF72 -> 0 | AG72: =Feuil4!AG72 -> 0 | AH72: =Feuil4!AH72 -> 0 | AI72: =Feuil4!AI72 -> 0 | AJ72: =Feuil4!AJ72 -> 0 | AK72: =Feuil4!AK72 -> 0 | AL72: =Feuil4!AL72 -> 0 | AM72: =Feuil4!AM72 -> 0 | AN72: =Feuil4!AN72 -> 00:00:00 | AO72: =Feuil4!AO72 -> 0
A73: =Feuil4!A73 -> 0 | B73: =Feuil4!B73 ->  | C73: =Feuil4!C73 -> 0 | D73: =Feuil4!D73 -> 0 | E73: =Feuil4!E73 -> 0 | F73: =Feuil4!F73 -> 0 | G73: =Feuil4!G73 -> 0 | H73: =Feuil4!H73 -> 0 | I73: =Feuil4!I73 -> 0 | J73: =Feuil4!J73 -> 0 | K73: =Feuil4!K73 -> 0 | L73: =Feuil4!L73 -> 0 | M73: =Feuil4!M73 -> 0 | N73: =Feuil4!N73 -> 0 | O73: =Feuil4!O73 -> 0 | P73: =Feuil4!P73 -> 0 | Q73: =Feuil4!Q73 -> 0 | R73: =Feuil4!R73 -> 0 | S73: =Feuil4!S73 -> 0 | T73: =Feuil4!T73 -> 0 | U73: =Feuil4!U73 -> 0 | V73: =Feuil4!V73 -> 0 | W73: =Feuil4!W73 -> 0 | X73: =Feuil4!X73 -> 0 | Y73: =Feuil4!Y73 -> 0 | Z73: =Feuil4!Z73 -> 0 | AA73: =Feuil4!AA73 -> 0 | AB73: =Feuil4!AB73 -> 0 | AC73: =Feuil4!AC73 -> 0 | AD73: =Feuil4!AD73 -> 0 | AE73: =Feuil4!AE73 -> 0 | AF73: =Feuil4!AF73 -> 0 | AG73: =Feuil4!AG73 -> 0 | AH73: =Feuil4!AH73 -> 0 | AI73: =Feuil4!AI73 -> 0 | AJ73: =Feuil4!AJ73 -> 0 | AK73: =Feuil4!AK73 -> 0 | AL73: =Feuil4!AL73 -> 0 | AM73: =Feuil4!AM73 -> 0 | AN73: =Feuil4!AN73 -> 00:00:00 | AO73: =Feuil4!AO73 -> 0
A74: =Feuil4!A74 -> 0 | B74: =Feuil4!B74 ->  | C74: =Feuil4!C74 -> 0 | D74: =Feuil4!D74 -> 0 | E74: =Feuil4!E74 -> 0 | F74: =Feuil4!F74 -> 0 | G74: =Feuil4!G74 -> 0 | H74: =Feuil4!H74 -> 0 | I74: =Feuil4!I74 -> 0 | J74: =Feuil4!J74 -> 0 | K74: =Feuil4!K74 -> 0 | L74: =Feuil4!L74 -> 0 | M74: =Feuil4!M74 -> 0 | N74: =Feuil4!N74 -> 0 | O74: =Feuil4!O74 -> 0 | P74: =Feuil4!P74 -> 0 | Q74: =Feuil4!Q74 -> 0 | R74: =Feuil4!R74 -> 0 | S74: =Feuil4!S74 -> 0 | T74: =Feuil4!T74 -> 0 | U74: =Feuil4!U74 -> 0 | V74: =Feuil4!V74 -> 0 | W74: =Feuil4!W74 -> 0 | X74: =Feuil4!X74 -> 0 | Y74: =Feuil4!Y74 -> 0 | Z74: =Feuil4!Z74 -> 0 | AA74: =Feuil4!AA74 -> 0 | AB74: =Feuil4!AB74 -> 0 | AC74: =Feuil4!AC74 -> 0 | AD74: =Feuil4!AD74 -> 0 | AE74: =Feuil4!AE74 -> 0 | AF74: =Feuil4!AF74 -> 0 | AG74: =Feuil4!AG74 -> 0 | AH74: =Feuil4!AH74 -> 0 | AI74: =Feuil4!AI74 -> 0 | AJ74: =Feuil4!AJ74 -> 0 | AK74: =Feuil4!AK74 -> 0 | AL74: =Feuil4!AL74 -> 0 | AM74: =Feuil4!AM74 -> 0 | AN74: =Feuil4!AN74 -> 00:00:00 | AO74: =Feuil4!AO74 -> 0
A75: =Feuil4!A75 -> 0 | B75: =Feuil4!B75 ->  | C75: =Feuil4!C75 -> 0 | D75: =Feuil4!D75 -> 0 | E75: =Feuil4!E75 -> 0 | F75: =Feuil4!F75 -> 0 | G75: =Feuil4!G75 -> 0 | H75: =Feuil4!H75 -> 0 | I75: =Feuil4!I75 -> 0 | J75: =Feuil4!J75 -> 0 | K75: =Feuil4!K75 -> 0 | L75: =Feuil4!L75 -> 0 | M75: =Feuil4!M75 -> 0 | N75: =Feuil4!N75 -> 0 | O75: =Feuil4!O75 -> 0 | P75: =Feuil4!P75 -> 0 | Q75: =Feuil4!Q75 -> 0 | R75: =Feuil4!R75 -> 0 | S75: =Feuil4!S75 -> 0 | T75: =Feuil4!T75 -> 0 | U75: =Feuil4!U75 -> 0 | V75: =Feuil4!V75 -> 0 | W75: =Feuil4!W75 -> 0 | X75: =Feuil4!X75 -> 0 | Y75: =Feuil4!Y75 -> 0 | Z75: =Feuil4!Z75 -> 0 | AA75: =Feuil4!AA75 -> 0 | AB75: =Feuil4!AB75 -> 0 | AC75: =Feuil4!AC75 -> 0 | AD75: =Feuil4!AD75 -> 0 | AE75: =Feuil4!AE75 -> 0 | AF75: =Feuil4!AF75 -> 0 | AG75: =Feuil4!AG75 -> 0 | AH75: =Feuil4!AH75 -> 0 | AI75: =Feuil4!AI75 -> 0 | AJ75: =Feuil4!AJ75 -> 0 | AK75: =Feuil4!AK75 -> 0 | AL75: =Feuil4!AL75 -> 0 | AM75: =Feuil4!AM75 -> 0 | AN75: =Feuil4!AN75 -> 00:00:00 | AO75: =Feuil4!AO75 -> 0
A76: =Feuil4!A76 -> 0 | B76: =Feuil4!B76 ->  | C76: =Feuil4!C76 -> 0 | D76: =Feuil4!D76 -> 0 | E76: =Feuil4!E76 -> 0 | F76: =Feuil4!F76 -> 0 | G76: =Feuil4!G76 -> 0 | H76: =Feuil4!H76 -> 0 | I76: =Feuil4!I76 -> 0 | J76: =Feuil4!J76 -> 0 | K76: =Feuil4!K76 -> 0 | L76: =Feuil4!L76 -> 0 | M76: =Feuil4!M76 -> 0 | N76: =Feuil4!N76 -> 0 | O76: =Feuil4!O76 -> 0 | P76: =Feuil4!P76 -> 0 | Q76: =Feuil4!Q76 -> 0 | R76: =Feuil4!R76 -> 0 | S76: =Feuil4!S76 -> 0 | T76: =Feuil4!T76 -> 0 | U76: =Feuil4!U76 -> 0 | V76: =Feuil4!V76 -> 0 | W76: =Feuil4!W76 -> 0 | X76: =Feuil4!X76 -> 0 | Y76: =Feuil4!Y76 -> 0 | Z76: =Feuil4!Z76 -> 0 | AA76: =Feuil4!AA76 -> 0 | AB76: =Feuil4!AB76 -> 0 | AC76: =Feuil4!AC76 -> 0 | AD76: =Feuil4!AD76 -> 0 | AE76: =Feuil4!AE76 -> 0 | AF76: =Feuil4!AF76 -> 0 | AG76: =Feuil4!AG76 -> 0 | AH76: =Feuil4!AH76 -> 0 | AI76: =Feuil4!AI76 -> 0 | AJ76: =Feuil4!AJ76 -> 0 | AK76: =Feuil4!AK76 -> 0 | AL76: =Feuil4!AL76 -> 0 | AM76: =Feuil4!AM76 -> 0 | AN76: =Feuil4!AN76 -> 00:00:00 | AO76: =Feuil4!AO76 -> 0
A77: =Feuil4!A77 -> 0 | B77: =Feuil4!B77 ->  | C77: =Feuil4!C77 -> 0 | D77: =Feuil4!D77 -> 0 | E77: =Feuil4!E77 -> 0 | F77: =Feuil4!F77 -> 0 | G77: =Feuil4!G77 -> 0 | H77: =Feuil4!H77 -> 0 | I77: =Feuil4!I77 -> 0 | J77: =Feuil4!J77 -> 0 | K77: =Feuil4!K77 -> 0 | L77: =Feuil4!L77 -> 0 | M77: =Feuil4!M77 -> 0 | N77: =Feuil4!N77 -> 0 | O77: =Feuil4!O77 -> 0 | P77: =Feuil4!P77 -> 0 | Q77: =Feuil4!Q77 -> 0 | R77: =Feuil4!R77 -> 0 | S77: =Feuil4!S77 -> 0 | T77: =Feuil4!T77 -> 0 | U77: =Feuil4!U77 -> 0 | V77: =Feuil4!V77 -> 0 | W77: =Feuil4!W77 -> 0 | X77: =Feuil4!X77 -> 0 | Y77: =Feuil4!Y77 -> 0 | Z77: =Feuil4!Z77 -> 0 | AA77: =Feuil4!AA77 -> 0 | AB77: =Feuil4!AB77 -> 0 | AC77: =Feuil4!AC77 -> 0 | AD77: =Feuil4!AD77 -> 0 | AE77: =Feuil4!AE77 -> 0 | AF77: =Feuil4!AF77 -> 0 | AG77: =Feuil4!AG77 -> 0 | AH77: =Feuil4!AH77 -> 0 | AI77: =Feuil4!AI77 -> 0 | AJ77: =Feuil4!AJ77 -> 0 | AK77: =Feuil4!AK77 -> 0 | AL77: =Feuil4!AL77 -> 0 | AM77: =Feuil4!AM77 -> 0 | AN77: =Feuil4!AN77 -> 00:00:00 | AO77: =Feuil4!AO77 -> 0
A78: =Feuil4!A78 -> 0 | B78: =Feuil4!B78 ->  | C78: =Feuil4!C78 -> 0 | D78: =Feuil4!D78 -> 0 | E78: =Feuil4!E78 -> 0 | F78: =Feuil4!F78 -> 0 | G78: =Feuil4!G78 -> 0 | H78: =Feuil4!H78 -> 0 | I78: =Feuil4!I78 -> 0 | J78: =Feuil4!J78 -> 0 | K78: =Feuil4!K78 -> 0 | L78: =Feuil4!L78 -> 0 | M78: =Feuil4!M78 -> 0 | N78: =Feuil4!N78 -> 0 | O78: =Feuil4!O78 -> 0 | P78: =Feuil4!P78 -> 0 | Q78: =Feuil4!Q78 -> 0 | R78: =Feuil4!R78 -> 0 | S78: =Feuil4!S78 -> 0 | T78: =Feuil4!T78 -> 0 | U78: =Feuil4!U78 -> 0 | V78: =Feuil4!V78 -> 0 | W78: =Feuil4!W78 -> 0 | X78: =Feuil4!X78 -> 0 | Y78: =Feuil4!Y78 -> 0 | Z78: =Feuil4!Z78 -> 0 | AA78: =Feuil4!AA78 -> 0 | AB78: =Feuil4!AB78 -> 0 | AC78: =Feuil4!AC78 -> 0 | AD78: =Feuil4!AD78 -> 0 | AE78: =Feuil4!AE78 -> 0 | AF78: =Feuil4!AF78 -> 0 | AG78: =Feuil4!AG78 -> 0 | AH78: =Feuil4!AH78 -> 0 | AI78: =Feuil4!AI78 -> 0 | AJ78: =Feuil4!AJ78 -> 0 | AK78: =Feuil4!AK78 -> 0 | AL78: =Feuil4!AL78 -> 0 | AM78: =Feuil4!AM78 -> 0 | AN78: =Feuil4!AN78 -> 00:00:00 | AO78: =Feuil4!AO78 -> 0
A79: =Feuil4!A79 -> 0 | B79: =Feuil4!B79 ->  | C79: =Feuil4!C79 -> 0 | D79: =Feuil4!D79 -> 0 | E79: =Feuil4!E79 -> 0 | F79: =Feuil4!F79 -> 0 | G79: =Feuil4!G79 -> 0 | H79: =Feuil4!H79 -> 0 | I79: =Feuil4!I79 -> 0 | J79: =Feuil4!J79 -> 0 | K79: =Feuil4!K79 -> 0 | L79: =Feuil4!L79 -> 0 | M79: =Feuil4!M79 -> 0 | N79: =Feuil4!N79 -> 0 | O79: =Feuil4!O79 -> 0 | P79: =Feuil4!P79 -> 0 | Q79: =Feuil4!Q79 -> 0 | R79: =Feuil4!R79 -> 0 | S79: =Feuil4!S79 -> 0 | T79: =Feuil4!T79 -> 0 | U79: =Feuil4!U79 -> 0 | V79: =Feuil4!V79 -> 0 | W79: =Feuil4!W79 -> 0 | X79: =Feuil4!X79 -> 0 | Y79: =Feuil4!Y79 -> 0 | Z79: =Feuil4!Z79 -> 0 | AA79: =Feuil4!AA79 -> 0 | AB79: =Feuil4!AB79 -> 0 | AC79: =Feuil4!AC79 -> 0 | AD79: =Feuil4!AD79 -> 0 | AE79: =Feuil4!AE79 -> 0 | AF79: =Feuil4!AF79 -> 0 | AG79: =Feuil4!AG79 -> 0 | AH79: =Feuil4!AH79 -> 0 | AI79: =Feuil4!AI79 -> 0 | AJ79: =Feuil4!AJ79 -> 0 | AK79: =Feuil4!AK79 -> 0 | AL79: =Feuil4!AL79 -> 0 | AM79: =Feuil4!AM79 -> 0 | AN79: =Feuil4!AN79 -> 00:00:00 | AO79: =Feuil4!AO79 -> 0
A80: =Feuil4!A80 -> 0 | B80: =Feuil4!B80 ->  | C80: =Feuil4!C80 -> 0 | D80: =Feuil4!D80 -> 0 | E80: =Feuil4!E80 -> 0 | F80: =Feuil4!F80 -> 0 | G80: =Feuil4!G80 -> 0 | H80: =Feuil4!H80 -> 0 | I80: =Feuil4!I80 -> 0 | J80: =Feuil4!J80 -> 0 | K80: =Feuil4!K80 -> 0 | L80: =Feuil4!L80 -> 0 | M80: =Feuil4!M80 -> 0 | N80: =Feuil4!N80 -> 0 | O80: =Feuil4!O80 -> 0 | P80: =Feuil4!P80 -> 0 | Q80: =Feuil4!Q80 -> 0 | R80: =Feuil4!R80 -> 0 | S80: =Feuil4!S80 -> 0 | T80: =Feuil4!T80 -> 0 | U80: =Feuil4!U80 -> 0 | V80: =Feuil4!V80 -> 0 | W80: =Feuil4!W80 -> 0 | X80: =Feuil4!X80 -> 0 | Y80: =Feuil4!Y80 -> 0 | Z80: =Feuil4!Z80 -> 0 | AA80: =Feuil4!AA80 -> 0 | AB80: =Feuil4!AB80 -> 0 | AC80: =Feuil4!AC80 -> 0 | AD80: =Feuil4!AD80 -> 0 | AE80: =Feuil4!AE80 -> 0 | AF80: =Feuil4!AF80 -> 0 | AG80: =Feuil4!AG80 -> 0 | AH80: =Feuil4!AH80 -> 0 | AI80: =Feuil4!AI80 -> 0 | AJ80: =Feuil4!AJ80 -> 0 | AK80: =Feuil4!AK80 -> 0 | AL80: =Feuil4!AL80 -> 0 | AM80: =Feuil4!AM80 -> 0 | AN80: =Feuil4!AN80 -> 00:00:00 | AO80: =Feuil4!AO80 -> 0
A81: =Feuil4!A81 -> 0 | B81: =Feuil4!B81 ->  | C81: =Feuil4!C81 -> 0 | D81: =Feuil4!D81 -> 0 | E81: =Feuil4!E81 -> 0 | F81: =Feuil4!F81 -> 0 | G81: =Feuil4!G81 -> 0 | H81: =Feuil4!H81 -> 0 | I81: =Feuil4!I81 -> 0 | J81: =Feuil4!J81 -> 0 | K81: =Feuil4!K81 -> 0 | L81: =Feuil4!L81 -> 0 | M81: =Feuil4!M81 -> 0 | N81: =Feuil4!N81 -> 0 | O81: =Feuil4!O81 -> 0 | P81: =Feuil4!P81 -> 0 | Q81: =Feuil4!Q81 -> 0 | R81: =Feuil4!R81 -> 0 | S81: =Feuil4!S81 -> 0 | T81: =Feuil4!T81 -> 0 | U81: =Feuil4!U81 -> 0 | V81: =Feuil4!V81 -> 0 | W81: =Feuil4!W81 -> 0 | X81: =Feuil4!X81 -> 0 | Y81: =Feuil4!Y81 -> 0 | Z81: =Feuil4!Z81 -> 0 | AA81: =Feuil4!AA81 -> 0 | AB81: =Feuil4!AB81 -> 0 | AC81: =Feuil4!AC81 -> 0 | AD81: =Feuil4!AD81 -> 0 | AE81: =Feuil4!AE81 -> 0 | AF81: =Feuil4!AF81 -> 0 | AG81: =Feuil4!AG81 -> 0 | AH81: =Feuil4!AH81 -> 0 | AI81: =Feuil4!AI81 -> 0 | AJ81: =Feuil4!AJ81 -> 0 | AK81: =Feuil4!AK81 -> 0 | AL81: =Feuil4!AL81 -> 0 | AM81: =Feuil4!AM81 -> 0 | AN81: =Feuil4!AN81 -> 00:00:00 | AO81: =Feuil4!AO81 -> 0
A82: =Feuil4!A82 -> 0 | B82: =Feuil4!B82 ->  | C82: =Feuil4!C82 -> 0 | D82: =Feuil4!D82 -> 0 | E82: =Feuil4!E82 -> 0 | F82: =Feuil4!F82 -> 0 | G82: =Feuil4!G82 -> 0 | H82: =Feuil4!H82 -> 0 | I82: =Feuil4!I82 -> 0 | J82: =Feuil4!J82 -> 0 | K82: =Feuil4!K82 -> 0 | L82: =Feuil4!L82 -> 0 | M82: =Feuil4!M82 -> 0 | N82: =Feuil4!N82 -> 0 | O82: =Feuil4!O82 -> 0 | P82: =Feuil4!P82 -> 0 | Q82: =Feuil4!Q82 -> 0 | R82: =Feuil4!R82 -> 0 | S82: =Feuil4!S82 -> 0 | T82: =Feuil4!T82 -> 0 | U82: =Feuil4!U82 -> 0 | V82: =Feuil4!V82 -> 0 | W82: =Feuil4!W82 -> 0 | X82: =Feuil4!X82 -> 0 | Y82: =Feuil4!Y82 -> 0 | Z82: =Feuil4!Z82 -> 0 | AA82: =Feuil4!AA82 -> 0 | AB82: =Feuil4!AB82 -> 0 | AC82: =Feuil4!AC82 -> 0 | AD82: =Feuil4!AD82 -> 0 | AE82: =Feuil4!AE82 -> 0 | AF82: =Feuil4!AF82 -> 0 | AG82: =Feuil4!AG82 -> 0 | AH82: =Feuil4!AH82 -> 0 | AI82: =Feuil4!AI82 -> 0 | AJ82: =Feuil4!AJ82 -> 0 | AK82: =Feuil4!AK82 -> 0 | AL82: =Feuil4!AL82 -> 0 | AM82: =Feuil4!AM82 -> 0 | AN82: =Feuil4!AN82 -> 00:00:00 | AO82: =Feuil4!AO82 -> 0
A83: =Feuil4!A83 -> 0 | B83: =Feuil4!B83 ->  | C83: =Feuil4!C83 -> 0 | D83: =Feuil4!D83 -> 0 | E83: =Feuil4!E83 -> 0 | F83: =Feuil4!F83 -> 0 | G83: =Feuil4!G83 -> 0 | H83: =Feuil4!H83 -> 0 | I83: =Feuil4!I83 -> 0 | J83: =Feuil4!J83 -> 0 | K83: =Feuil4!K83 -> 0 | L83: =Feuil4!L83 -> 0 | M83: =Feuil4!M83 -> 0 | N83: =Feuil4!N83 -> 0 | O83: =Feuil4!O83 -> 0 | P83: =Feuil4!P83 -> 0 | Q83: =Feuil4!Q83 -> 0 | R83: =Feuil4!R83 -> 0 | S83: =Feuil4!S83 -> 0 | T83: =Feuil4!T83 -> 0 | U83: =Feuil4!U83 -> 0 | V83: =Feuil4!V83 -> 0 | W83: =Feuil4!W83 -> 0 | X83: =Feuil4!X83 -> 0 | Y83: =Feuil4!Y83 -> 0 | Z83: =Feuil4!Z83 -> 0 | AA83: =Feuil4!AA83 -> 0 | AB83: =Feuil4!AB83 -> 0 | AC83: =Feuil4!AC83 -> 0 | AD83: =Feuil4!AD83 -> 0 | AE83: =Feuil4!AE83 -> 0 | AF83: =Feuil4!AF83 -> 0 | AG83: =Feuil4!AG83 -> 0 | AH83: =Feuil4!AH83 -> 0 | AI83: =Feuil4!AI83 -> 0 | AJ83: =Feuil4!AJ83 -> 0 | AK83: =Feuil4!AK83 -> 0 | AL83: =Feuil4!AL83 -> 0 | AM83: =Feuil4!AM83 -> 0 | AN83: =Feuil4!AN83 -> 00:00:00 | AO83: =Feuil4!AO83 -> 0
A84: =Feuil4!A84 -> 0 | B84: =Feuil4!B84 ->  | C84: =Feuil4!C84 -> 0 | D84: =Feuil4!D84 -> 0 | E84: =Feuil4!E84 -> 0 | F84: =Feuil4!F84 -> 0 | G84: =Feuil4!G84 -> 0 | H84: =Feuil4!H84 -> 0 | I84: =Feuil4!I84 -> 0 | J84: =Feuil4!J84 -> 0 | K84: =Feuil4!K84 -> 0 | L84: =Feuil4!L84 -> 0 | M84: =Feuil4!M84 -> 0 | N84: =Feuil4!N84 -> 0 | O84: =Feuil4!O84 -> 0 | P84: =Feuil4!P84 -> 0 | Q84: =Feuil4!Q84 -> 0 | R84: =Feuil4!R84 -> 0 | S84: =Feuil4!S84 -> 0 | T84: =Feuil4!T84 -> 0 | U84: =Feuil4!U84 -> 0 | V84: =Feuil4!V84 -> 0 | W84: =Feuil4!W84 -> 0 | X84: =Feuil4!X84 -> 0 | Y84: =Feuil4!Y84 -> 0 | Z84: =Feuil4!Z84 -> 0 | AA84: =Feuil4!AA84 -> 0 | AB84: =Feuil4!AB84 -> 0 | AC84: =Feuil4!AC84 -> 0 | AD84: =Feuil4!AD84 -> 0 | AE84: =Feuil4!AE84 -> 0 | AF84: =Feuil4!AF84 -> 0 | AG84: =Feuil4!AG84 -> 0 | AH84: =Feuil4!AH84 -> 0 | AI84: =Feuil4!AI84 -> 0 | AJ84: =Feuil4!AJ84 -> 0 | AK84: =Feuil4!AK84 -> 0 | AL84: =Feuil4!AL84 -> 0 | AM84: =Feuil4!AM84 -> 0 | AN84: =Feuil4!AN84 -> 00:00:00 | AO84: =Feuil4!AO84 -> 0
A85: =Feuil4!A85 -> 0 | B85: =Feuil4!B85 ->  | C85: =Feuil4!C85 -> 0 | D85: =Feuil4!D85 -> 0 | E85: =Feuil4!E85 -> 0 | F85: =Feuil4!F85 -> 0 | G85: =Feuil4!G85 -> 0 | H85: =Feuil4!H85 -> 0 | I85: =Feuil4!I85 -> 0 | J85: =Feuil4!J85 -> 0 | K85: =Feuil4!K85 -> 0 | L85: =Feuil4!L85 -> 0 | M85: =Feuil4!M85 -> 0 | N85: =Feuil4!N85 -> 0 | O85: =Feuil4!O85 -> 0 | P85: =Feuil4!P85 -> 0 | Q85: =Feuil4!Q85 -> 0 | R85: =Feuil4!R85 -> 0 | S85: =Feuil4!S85 -> 0 | T85: =Feuil4!T85 -> 0 | U85: =Feuil4!U85 -> 0 | V85: =Feuil4!V85 -> 0 | W85: =Feuil4!W85 -> 0 | X85: =Feuil4!X85 -> 0 | Y85: =Feuil4!Y85 -> 0 | Z85: =Feuil4!Z85 -> 0 | AA85: =Feuil4!AA85 -> 0 | AB85: =Feuil4!AB85 -> 0 | AC85: =Feuil4!AC85 -> 0 | AD85: =Feuil4!AD85 -> 0 | AE85: =Feuil4!AE85 -> 0 | AF85: =Feuil4!AF85 -> 0 | AG85: =Feuil4!AG85 -> 0 | AH85: =Feuil4!AH85 -> 0 | AI85: =Feuil4!AI85 -> 0 | AJ85: =Feuil4!AJ85 -> 0 | AK85: =Feuil4!AK85 -> 0 | AL85: =Feuil4!AL85 -> 0 | AM85: =Feuil4!AM85 -> 0 | AN85: =Feuil4!AN85 -> 00:00:00 | AO85: =Feuil4!AO85 -> 0
A86: =Feuil4!A86 -> 0 | B86: =Feuil4!B86 ->  | C86: =Feuil4!C86 -> 0 | D86: =Feuil4!D86 -> 0 | E86: =Feuil4!E86 -> 0 | F86: =Feuil4!F86 -> 0 | G86: =Feuil4!G86 -> 0 | H86: =Feuil4!H86 -> 0 | I86: =Feuil4!I86 -> 0 | J86: =Feuil4!J86 -> 0 | K86: =Feuil4!K86 -> 0 | L86: =Feuil4!L86 -> 0 | M86: =Feuil4!M86 -> 0 | N86: =Feuil4!N86 -> 0 | O86: =Feuil4!O86 -> 0 | P86: =Feuil4!P86 -> 0 | Q86: =Feuil4!Q86 -> 0 | R86: =Feuil4!R86 -> 0 | S86: =Feuil4!S86 -> 0 | T86: =Feuil4!T86 -> 0 | U86: =Feuil4!U86 -> 0 | V86: =Feuil4!V86 -> 0 | W86: =Feuil4!W86 -> 0 | X86: =Feuil4!X86 -> 0 | Y86: =Feuil4!Y86 -> 0 | Z86: =Feuil4!Z86 -> 0 | AA86: =Feuil4!AA86 -> 0 | AB86: =Feuil4!AB86 -> 0 | AC86: =Feuil4!AC86 -> 0 | AD86: =Feuil4!AD86 -> 0 | AE86: =Feuil4!AE86 -> 0 | AF86: =Feuil4!AF86 -> 0 | AG86: =Feuil4!AG86 -> 0 | AH86: =Feuil4!AH86 -> 0 | AI86: =Feuil4!AI86 -> 0 | AJ86: =Feuil4!AJ86 -> 0 | AK86: =Feuil4!AK86 -> 0 | AL86: =Feuil4!AL86 -> 0 | AM86: =Feuil4!AM86 -> 0 | AN86: =Feuil4!AN86 -> 00:00:00 | AO86: =Feuil4!AO86 -> 0
A87: =Feuil4!A87 -> 0 | B87: =Feuil4!B87 ->  | C87: =Feuil4!C87 -> 0 | D87: =Feuil4!D87 -> 0 | E87: =Feuil4!E87 -> 0 | F87: =Feuil4!F87 -> 0 | G87: =Feuil4!G87 -> 0 | H87: =Feuil4!H87 -> 0 | I87: =Feuil4!I87 -> 0 | J87: =Feuil4!J87 -> 0 | K87: =Feuil4!K87 -> 0 | L87: =Feuil4!L87 -> 0 | M87: =Feuil4!M87 -> 0 | N87: =Feuil4!N87 -> 0 | O87: =Feuil4!O87 -> 0 | P87: =Feuil4!P87 -> 0 | Q87: =Feuil4!Q87 -> 0 | R87: =Feuil4!R87 -> 0 | S87: =Feuil4!S87 -> 0 | T87: =Feuil4!T87 -> 0 | U87: =Feuil4!U87 -> 0 | V87: =Feuil4!V87 -> 0 | W87: =Feuil4!W87 -> 0 | X87: =Feuil4!X87 -> 0 | Y87: =Feuil4!Y87 -> 0 | Z87: =Feuil4!Z87 -> 0 | AA87: =Feuil4!AA87 -> 0 | AB87: =Feuil4!AB87 -> 0 | AC87: =Feuil4!AC87 -> 0 | AD87: =Feuil4!AD87 -> 0 | AE87: =Feuil4!AE87 -> 0 | AF87: =Feuil4!AF87 -> 0 | AG87: =Feuil4!AG87 -> 0 | AH87: =Feuil4!AH87 -> 0 | AI87: =Feuil4!AI87 -> 0 | AJ87: =Feuil4!AJ87 -> 0 | AK87: =Feuil4!AK87 -> 0 | AL87: =Feuil4!AL87 -> 0 | AM87: =Feuil4!AM87 -> 0 | AN87: =Feuil4!AN87 -> 00:00:00 | AO87: =Feuil4!AO87 -> 0
A88: =Feuil4!A88 -> 0 | B88: =Feuil4!B88 ->  | C88: =Feuil4!C88 -> 0 | D88: =Feuil4!D88 -> 0 | E88: =Feuil4!E88 -> 0 | F88: =Feuil4!F88 -> 0 | G88: =Feuil4!G88 -> 0 | H88: =Feuil4!H88 -> 0 | I88: =Feuil4!I88 -> 0 | J88: =Feuil4!J88 -> 0 | K88: =Feuil4!K88 -> 0 | L88: =Feuil4!L88 -> 0 | M88: =Feuil4!M88 -> 0 | N88: =Feuil4!N88 -> 0 | O88: =Feuil4!O88 -> 0 | P88: =Feuil4!P88 -> 0 | Q88: =Feuil4!Q88 -> 0 | R88: =Feuil4!R88 -> 0 | S88: =Feuil4!S88 -> 0 | T88: =Feuil4!T88 -> 0 | U88: =Feuil4!U88 -> 0 | V88: =Feuil4!V88 -> 0 | W88: =Feuil4!W88 -> 0 | X88: =Feuil4!X88 -> 0 | Y88: =Feuil4!Y88 -> 0 | Z88: =Feuil4!Z88 -> 0 | AA88: =Feuil4!AA88 -> 0 | AB88: =Feuil4!AB88 -> 0 | AC88: =Feuil4!AC88 -> 0 | AD88: =Feuil4!AD88 -> 0 | AE88: =Feuil4!AE88 -> 0 | AF88: =Feuil4!AF88 -> 0 | AG88: =Feuil4!AG88 -> 0 | AH88: =Feuil4!AH88 -> 0 | AI88: =Feuil4!AI88 -> 0 | AJ88: =Feuil4!AJ88 -> 0 | AK88: =Feuil4!AK88 -> 0 | AL88: =Feuil4!AL88 -> 0 | AM88: =Feuil4!AM88 -> 0 | AN88: =Feuil4!AN88 -> 00:00:00 | AO88: =Feuil4!AO88 -> 0
A89: =Feuil4!A89 -> 0 | B89: =Feuil4!B89 ->  | C89: =Feuil4!C89 -> 0 | D89: =Feuil4!D89 -> 0 | E89: =Feuil4!E89 -> 0 | F89: =Feuil4!F89 -> 0 | G89: =Feuil4!G89 -> 0 | H89: =Feuil4!H89 -> 0 | I89: =Feuil4!I89 -> 0 | J89: =Feuil4!J89 -> 0 | K89: =Feuil4!K89 -> 0 | L89: =Feuil4!L89 -> 0 | M89: =Feuil4!M89 -> 0 | N89: =Feuil4!N89 -> 0 | O89: =Feuil4!O89 -> 0 | P89: =Feuil4!P89 -> 0 | Q89: =Feuil4!Q89 -> 0 | R89: =Feuil4!R89 -> 0 | S89: =Feuil4!S89 -> 0 | T89: =Feuil4!T89 -> 0 | U89: =Feuil4!U89 -> 0 | V89: =Feuil4!V89 -> 0 | W89: =Feuil4!W89 -> 0 | X89: =Feuil4!X89 -> 0 | Y89: =Feuil4!Y89 -> 0 | Z89: =Feuil4!Z89 -> 0 | AA89: =Feuil4!AA89 -> 0 | AB89: =Feuil4!AB89 -> 0 | AC89: =Feuil4!AC89 -> 0 | AD89: =Feuil4!AD89 -> 0 | AE89: =Feuil4!AE89 -> 0 | AF89: =Feuil4!AF89 -> 0 | AG89: =Feuil4!AG89 -> 0 | AH89: =Feuil4!AH89 -> 0 | AI89: =Feuil4!AI89 -> 0 | AJ89: =Feuil4!AJ89 -> 0 | AK89: =Feuil4!AK89 -> 0 | AL89: =Feuil4!AL89 -> 0 | AM89: =Feuil4!AM89 -> 0 | AN89: =Feuil4!AN89 -> 00:00:00 | AO89: =Feuil4!AO89 -> 0
A90: =Feuil4!A90 -> 0 | B90: =Feuil4!B90 ->  | C90: =Feuil4!C90 -> 0 | D90: =Feuil4!D90 -> 0 | E90: =Feuil4!E90 -> 0 | F90: =Feuil4!F90 -> 0 | G90: =Feuil4!G90 -> 0 | H90: =Feuil4!H90 -> 0 | I90: =Feuil4!I90 -> 0 | J90: =Feuil4!J90 -> 0 | K90: =Feuil4!K90 -> 0 | L90: =Feuil4!L90 -> 0 | M90: =Feuil4!M90 -> 0 | N90: =Feuil4!N90 -> 0 | O90: =Feuil4!O90 -> 0 | P90: =Feuil4!P90 -> 0 | Q90: =Feuil4!Q90 -> 0 | R90: =Feuil4!R90 -> 0 | S90: =Feuil4!S90 -> 0 | T90: =Feuil4!T90 -> 0 | U90: =Feuil4!U90 -> 0 | V90: =Feuil4!V90 -> 0 | W90: =Feuil4!W90 -> 0 | X90: =Feuil4!X90 -> 0 | Y90: =Feuil4!Y90 -> 0 | Z90: =Feuil4!Z90 -> 0 | AA90: =Feuil4!AA90 -> 0 | AB90: =Feuil4!AB90 -> 0 | AC90: =Feuil4!AC90 -> 0 | AD90: =Feuil4!AD90 -> 0 | AE90: =Feuil4!AE90 -> 0 | AF90: =Feuil4!AF90 -> 0 | AG90: =Feuil4!AG90 -> 0 | AH90: =Feuil4!AH90 -> 0 | AI90: =Feuil4!AI90 -> 0 | AJ90: =Feuil4!AJ90 -> 0 | AK90: =Feuil4!AK90 -> 0 | AL90: =Feuil4!AL90 -> 0 | AM90: =Feuil4!AM90 -> 0 | AN90: =Feuil4!AN90 -> 00:00:00 | AO90: =Feuil4!AO90 -> 0
A91: =Feuil4!A91 -> 0 | B91: =Feuil4!B91 ->  | C91: =Feuil4!C91 -> 0 | D91: =Feuil4!D91 -> 0 | E91: =Feuil4!E91 -> 0 | F91: =Feuil4!F91 -> 0 | G91: =Feuil4!G91 -> 0 | H91: =Feuil4!H91 -> 0 | I91: =Feuil4!I91 -> 0 | J91: =Feuil4!J91 -> 0 | K91: =Feuil4!K91 -> 0 | L91: =Feuil4!L91 -> 0 | M91: =Feuil4!M91 -> 0 | N91: =Feuil4!N91 -> 0 | O91: =Feuil4!O91 -> 0 | P91: =Feuil4!P91 -> 0 | Q91: =Feuil4!Q91 -> 0 | R91: =Feuil4!R91 -> 0 | S91: =Feuil4!S91 -> 0 | T91: =Feuil4!T91 -> 0 | U91: =Feuil4!U91 -> 0 | V91: =Feuil4!V91 -> 0 | W91: =Feuil4!W91 -> 0 | X91: =Feuil4!X91 -> 0 | Y91: =Feuil4!Y91 -> 0 | Z91: =Feuil4!Z91 -> 0 | AA91: =Feuil4!AA91 -> 0 | AB91: =Feuil4!AB91 -> 0 | AC91: =Feuil4!AC91 -> 0 | AD91: =Feuil4!AD91 -> 0 | AE91: =Feuil4!AE91 -> 0 | AF91: =Feuil4!AF91 -> 0 | AG91: =Feuil4!AG91 -> 0 | AH91: =Feuil4!AH91 -> 0 | AI91: =Feuil4!AI91 -> 0 | AJ91: =Feuil4!AJ91 -> 0 | AK91: =Feuil4!AK91 -> 0 | AL91: =Feuil4!AL91 -> 0 | AM91: =Feuil4!AM91 -> 0 | AN91: =Feuil4!AN91 -> 00:00:00 | AO91: =Feuil4!AO91 -> 0
A92: =Feuil4!A92 -> 0 | B92: =Feuil4!B92 ->  | C92: =Feuil4!C92 -> 0 | D92: =Feuil4!D92 -> 0 | E92: =Feuil4!E92 -> 0 | F92: =Feuil4!F92 -> 0 | G92: =Feuil4!G92 -> 0 | H92: =Feuil4!H92 -> 0 | I92: =Feuil4!I92 -> 0 | J92: =Feuil4!J92 -> 0 | K92: =Feuil4!K92 -> 0 | L92: =Feuil4!L92 -> 0 | M92: =Feuil4!M92 -> 0 | N92: =Feuil4!N92 -> 0 | O92: =Feuil4!O92 -> 0 | P92: =Feuil4!P92 -> 0 | Q92: =Feuil4!Q92 -> 0 | R92: =Feuil4!R92 -> 0 | S92: =Feuil4!S92 -> 0 | T92: =Feuil4!T92 -> 0 | U92: =Feuil4!U92 -> 0 | V92: =Feuil4!V92 -> 0 | W92: =Feuil4!W92 -> 0 | X92: =Feuil4!X92 -> 0 | Y92: =Feuil4!Y92 -> 0 | Z92: =Feuil4!Z92 -> 0 | AA92: =Feuil4!AA92 -> 0 | AB92: =Feuil4!AB92 -> 0 | AC92: =Feuil4!AC92 -> 0 | AD92: =Feuil4!AD92 -> 0 | AE92: =Feuil4!AE92 -> 0 | AF92: =Feuil4!AF92 -> 0 | AG92: =Feuil4!AG92 -> 0 | AH92: =Feuil4!AH92 -> 0 | AI92: =Feuil4!AI92 -> 0 | AJ92: =Feuil4!AJ92 -> 0 | AK92: =Feuil4!AK92 -> 0 | AL92: =Feuil4!AL92 -> 0 | AM92: =Feuil4!AM92 -> 0 | AN92: =Feuil4!AN92 -> 00:00:00 | AO92: =Feuil4!AO92 -> 0
A93: =Feuil4!A93 -> 0 | B93: =Feuil4!B93 ->  | C93: =Feuil4!C93 -> 0 | D93: =Feuil4!D93 -> 0 | E93: =Feuil4!E93 -> 0 | F93: =Feuil4!F93 -> 0 | G93: =Feuil4!G93 -> 0 | H93: =Feuil4!H93 -> 0 | I93: =Feuil4!I93 -> 0 | J93: =Feuil4!J93 -> 0 | K93: =Feuil4!K93 -> 0 | L93: =Feuil4!L93 -> 0 | M93: =Feuil4!M93 -> 0 | N93: =Feuil4!N93 -> 0 | O93: =Feuil4!O93 -> 0 | P93: =Feuil4!P93 -> 0 | Q93: =Feuil4!Q93 -> 0 | R93: =Feuil4!R93 -> 0 | S93: =Feuil4!S93 -> 0 | T93: =Feuil4!T93 -> 0 | U93: =Feuil4!U93 -> 0 | V93: =Feuil4!V93 -> 0 | W93: =Feuil4!W93 -> 0 | X93: =Feuil4!X93 -> 0 | Y93: =Feuil4!Y93 -> 0 | Z93: =Feuil4!Z93 -> 0 | AA93: =Feuil4!AA93 -> 0 | AB93: =Feuil4!AB93 -> 0 | AC93: =Feuil4!AC93 -> 0 | AD93: =Feuil4!AD93 -> 0 | AE93: =Feuil4!AE93 -> 0 | AF93: =Feuil4!AF93 -> 0 | AG93: =Feuil4!AG93 -> 0 | AH93: =Feuil4!AH93 -> 0 | AI93: =Feuil4!AI93 -> 0 | AJ93: =Feuil4!AJ93 -> 0 | AK93: =Feuil4!AK93 -> 0 | AL93: =Feuil4!AL93 -> 0 | AM93: =Feuil4!AM93 -> 0 | AN93: =Feuil4!AN93 -> 00:00:00 | AO93: =Feuil4!AO93 -> 0
A94: =Feuil4!A94 -> 0 | B94: =Feuil4!B94 ->  | C94: =Feuil4!C94 -> 0 | D94: =Feuil4!D94 -> 0 | E94: =Feuil4!E94 -> 0 | F94: =Feuil4!F94 -> 0 | G94: =Feuil4!G94 -> 0 | H94: =Feuil4!H94 -> 0 | I94: =Feuil4!I94 -> 0 | J94: =Feuil4!J94 -> 0 | K94: =Feuil4!K94 -> 0 | L94: =Feuil4!L94 -> 0 | M94: =Feuil4!M94 -> 0 | N94: =Feuil4!N94 -> 0 | O94: =Feuil4!O94 -> 0 | P94: =Feuil4!P94 -> 0 | Q94: =Feuil4!Q94 -> 0 | R94: =Feuil4!R94 -> 0 | S94: =Feuil4!S94 -> 0 | T94: =Feuil4!T94 -> 0 | U94: =Feuil4!U94 -> 0 | V94: =Feuil4!V94 -> 0 | W94: =Feuil4!W94 -> 0 | X94: =Feuil4!X94 -> 0 | Y94: =Feuil4!Y94 -> 0 | Z94: =Feuil4!Z94 -> 0 | AA94: =Feuil4!AA94 -> 0 | AB94: =Feuil4!AB94 -> 0 | AC94: =Feuil4!AC94 -> 0 | AD94: =Feuil4!AD94 -> 0 | AE94: =Feuil4!AE94 -> 0 | AF94: =Feuil4!AF94 -> 0 | AG94: =Feuil4!AG94 -> 0 | AH94: =Feuil4!AH94 -> 0 | AI94: =Feuil4!AI94 -> 0 | AJ94: =Feuil4!AJ94 -> 0 | AK94: =Feuil4!AK94 -> 0 | AL94: =Feuil4!AL94 -> 0 | AM94: =Feuil4!AM94 -> 0 | AN94: =Feuil4!AN94 -> 00:00:00 | AO94: =Feuil4!AO94 -> 0
A95: =Feuil4!A95 -> 0 | B95: =Feuil4!B95 ->  | C95: =Feuil4!C95 -> 0 | D95: =Feuil4!D95 -> 0 | E95: =Feuil4!E95 -> 0 | F95: =Feuil4!F95 -> 0 | G95: =Feuil4!G95 -> 0 | H95: =Feuil4!H95 -> 0 | I95: =Feuil4!I95 -> 0 | J95: =Feuil4!J95 -> 0 | K95: =Feuil4!K95 -> 0 | L95: =Feuil4!L95 -> 0 | M95: =Feuil4!M95 -> 0 | N95: =Feuil4!N95 -> 0 | O95: =Feuil4!O95 -> 0 | P95: =Feuil4!P95 -> 0 | Q95: =Feuil4!Q95 -> 0 | R95: =Feuil4!R95 -> 0 | S95: =Feuil4!S95 -> 0 | T95: =Feuil4!T95 -> 0 | U95: =Feuil4!U95 -> 0 | V95: =Feuil4!V95 -> 0 | W95: =Feuil4!W95 -> 0 | X95: =Feuil4!X95 -> 0 | Y95: =Feuil4!Y95 -> 0 | Z95: =Feuil4!Z95 -> 0 | AA95: =Feuil4!AA95 -> 0 | AB95: =Feuil4!AB95 -> 0 | AC95: =Feuil4!AC95 -> 0 | AD95: =Feuil4!AD95 -> 0 | AE95: =Feuil4!AE95 -> 0 | AF95: =Feuil4!AF95 -> 0 | AG95: =Feuil4!AG95 -> 0 | AH95: =Feuil4!AH95 -> 0 | AI95: =Feuil4!AI95 -> 0 | AJ95: =Feuil4!AJ95 -> 0 | AK95: =Feuil4!AK95 -> 0 | AL95: =Feuil4!AL95 -> 0 | AM95: =Feuil4!AM95 -> 0 | AN95: =Feuil4!AN95 -> 00:00:00 | AO95: =Feuil4!AO95 -> 0
A96: =Feuil4!A96 -> 0 | B96: =Feuil4!B96 ->  | C96: =Feuil4!C96 -> 0 | D96: =Feuil4!D96 -> 0 | E96: =Feuil4!E96 -> 0 | F96: =Feuil4!F96 -> 0 | G96: =Feuil4!G96 -> 0 | H96: =Feuil4!H96 -> 0 | I96: =Feuil4!I96 -> 0 | J96: =Feuil4!J96 -> 0 | K96: =Feuil4!K96 -> 0 | L96: =Feuil4!L96 -> 0 | M96: =Feuil4!M96 -> 0 | N96: =Feuil4!N96 -> 0 | O96: =Feuil4!O96 -> 0 | P96: =Feuil4!P96 -> 0 | Q96: =Feuil4!Q96 -> 0 | R96: =Feuil4!R96 -> 0 | S96: =Feuil4!S96 -> 0 | T96: =Feuil4!T96 -> 0 | U96: =Feuil4!U96 -> 0 | V96: =Feuil4!V96 -> 0 | W96: =Feuil4!W96 -> 0 | X96: =Feuil4!X96 -> 0 | Y96: =Feuil4!Y96 -> 0 | Z96: =Feuil4!Z96 -> 0 | AA96: =Feuil4!AA96 -> 0 | AB96: =Feuil4!AB96 -> 0 | AC96: =Feuil4!AC96 -> 0 | AD96: =Feuil4!AD96 -> 0 | AE96: =Feuil4!AE96 -> 0 | AF96: =Feuil4!AF96 -> 0 | AG96: =Feuil4!AG96 -> 0 | AH96: =Feuil4!AH96 -> 0 | AI96: =Feuil4!AI96 -> 0 | AJ96: =Feuil4!AJ96 -> 0 | AK96: =Feuil4!AK96 -> 0 | AL96: =Feuil4!AL96 -> 0 | AM96: =Feuil4!AM96 -> 0 | AN96: =Feuil4!AN96 -> 00:00:00 | AO96: =Feuil4!AO96 -> 0
A97: =Feuil4!A97 -> 0 | B97: =Feuil4!B97 ->  | C97: =Feuil4!C97 -> 0 | D97: =Feuil4!D97 -> 0 | E97: =Feuil4!E97 -> 0 | F97: =Feuil4!F97 -> 0 | G97: =Feuil4!G97 -> 0 | H97: =Feuil4!H97 -> 0 | I97: =Feuil4!I97 -> 0 | J97: =Feuil4!J97 -> 0 | K97: =Feuil4!K97 -> 0 | L97: =Feuil4!L97 -> 0 | M97: =Feuil4!M97 -> 0 | N97: =Feuil4!N97 -> 0 | O97: =Feuil4!O97 -> 0 | P97: =Feuil4!P97 -> 0 | Q97: =Feuil4!Q97 -> 0 | R97: =Feuil4!R97 -> 0 | S97: =Feuil4!S97 -> 0 | T97: =Feuil4!T97 -> 0 | U97: =Feuil4!U97 -> 0 | V97: =Feuil4!V97 -> 0 | W97: =Feuil4!W97 -> 0 | X97: =Feuil4!X97 -> 0 | Y97: =Feuil4!Y97 -> 0 | Z97: =Feuil4!Z97 -> 0 | AA97: =Feuil4!AA97 -> 0 | AB97: =Feuil4!AB97 -> 0 | AC97: =Feuil4!AC97 -> 0 | AD97: =Feuil4!AD97 -> 0 | AE97: =Feuil4!AE97 -> 0 | AF97: =Feuil4!AF97 -> 0 | AG97: =Feuil4!AG97 -> 0 | AH97: =Feuil4!AH97 -> 0 | AI97: =Feuil4!AI97 -> 0 | AJ97: =Feuil4!AJ97 -> 0 | AK97: =Feuil4!AK97 -> 0 | AL97: =Feuil4!AL97 -> 0 | AM97: =Feuil4!AM97 -> 0 | AN97: =Feuil4!AN97 -> 00:00:00 | AO97: =Feuil4!AO97 -> 0
A98: =Feuil4!A98 -> 0 | B98: =Feuil4!B98 ->  | C98: =Feuil4!C98 -> 0 | D98: =Feuil4!D98 -> 0 | E98: =Feuil4!E98 -> 0 | F98: =Feuil4!F98 -> 0 | G98: =Feuil4!G98 -> 0 | H98: =Feuil4!H98 -> 0 | I98: =Feuil4!I98 -> 0 | J98: =Feuil4!J98 -> 0 | K98: =Feuil4!K98 -> 0 | L98: =Feuil4!L98 -> 0 | M98: =Feuil4!M98 -> 0 | N98: =Feuil4!N98 -> 0 | O98: =Feuil4!O98 -> 0 | P98: =Feuil4!P98 -> 0 | Q98: =Feuil4!Q98 -> 0 | R98: =Feuil4!R98 -> 0 | S98: =Feuil4!S98 -> 0 | T98: =Feuil4!T98 -> 0 | U98: =Feuil4!U98 -> 0 | V98: =Feuil4!V98 -> 0 | W98: =Feuil4!W98 -> 0 | X98: =Feuil4!X98 -> 0 | Y98: =Feuil4!Y98 -> 0 | Z98: =Feuil4!Z98 -> 0 | AA98: =Feuil4!AA98 -> 0 | AB98: =Feuil4!AB98 -> 0 | AC98: =Feuil4!AC98 -> 0 | AD98: =Feuil4!AD98 -> 0 | AE98: =Feuil4!AE98 -> 0 | AF98: =Feuil4!AF98 -> 0 | AG98: =Feuil4!AG98 -> 0 | AH98: =Feuil4!AH98 -> 0 | AI98: =Feuil4!AI98 -> 0 | AJ98: =Feuil4!AJ98 -> 0 | AK98: =Feuil4!AK98 -> 0 | AL98: =Feuil4!AL98 -> 0 | AM98: =Feuil4!AM98 -> 0 | AN98: =Feuil4!AN98 -> 00:00:00 | AO98: =Feuil4!AO98 -> 0
A99: =Feuil4!A99 -> 0 | B99: =Feuil4!B99 ->  | C99: =Feuil4!C99 -> 0 | D99: =Feuil4!D99 -> 0 | E99: =Feuil4!E99 -> 0 | F99: =Feuil4!F99 -> 0 | G99: =Feuil4!G99 -> 0 | H99: =Feuil4!H99 -> 0 | I99: =Feuil4!I99 -> 0 | J99: =Feuil4!J99 -> 0 | K99: =Feuil4!K99 -> 0 | L99: =Feuil4!L99 -> 0 | M99: =Feuil4!M99 -> 0 | N99: =Feuil4!N99 -> 0 | O99: =Feuil4!O99 -> 0 | P99: =Feuil4!P99 -> 0 | Q99: =Feuil4!Q99 -> 0 | R99: =Feuil4!R99 -> 0 | S99: =Feuil4!S99 -> 0 | T99: =Feuil4!T99 -> 0 | U99: =Feuil4!U99 -> 0 | V99: =Feuil4!V99 -> 0 | W99: =Feuil4!W99 -> 0 | X99: =Feuil4!X99 -> 0 | Y99: =Feuil4!Y99 -> 0 | Z99: =Feuil4!Z99 -> 0 | AA99: =Feuil4!AA99 -> 0 | AB99: =Feuil4!AB99 -> 0 | AC99: =Feuil4!AC99 -> 0 | AD99: =Feuil4!AD99 -> 0 | AE99: =Feuil4!AE99 -> 0 | AF99: =Feuil4!AF99 -> 0 | AG99: =Feuil4!AG99 -> 0 | AH99: =Feuil4!AH99 -> 0 | AI99: =Feuil4!AI99 -> 0 | AJ99: =Feuil4!AJ99 -> 0 | AK99: =Feuil4!AK99 -> 0 | AL99: =Feuil4!AL99 -> 0 | AM99: =Feuil4!AM99 -> 0 | AN99: =Feuil4!AN99 -> 00:00:00 | AO99: =Feuil4!AO99 -> 0
A100: =Feuil4!A100 -> 0 | B100: =Feuil4!B100 ->  | C100: =Feuil4!C100 -> 0 | D100: =Feuil4!D100 -> 0 | E100: =Feuil4!E100 -> 0 | F100: =Feuil4!F100 -> 0 | G100: =Feuil4!G100 -> 0 | H100: =Feuil4!H100 -> 0 | I100: =Feuil4!I100 -> 0 | J100: =Feuil4!J100 -> 0 | K100: =Feuil4!K100 -> 0 | L100: =Feuil4!L100 -> 0 | M100: =Feuil4!M100 -> 0 | N100: =Feuil4!N100 -> 0 | O100: =Feuil4!O100 -> 0 | P100: =Feuil4!P100 -> 0 | Q100: =Feuil4!Q100 -> 0 | R100: =Feuil4!R100 -> 0 | S100: =Feuil4!S100 -> 0 | T100: =Feuil4!T100 -> 0 | U100: =Feuil4!U100 -> 0 | V100: =Feuil4!V100 -> 0 | W100: =Feuil4!W100 -> 0 | X100: =Feuil4!X100 -> 0 | Y100: =Feuil4!Y100 -> 0 | Z100: =Feuil4!Z100 -> 0 | AA100: =Feuil4!AA100 -> 0 | AB100: =Feuil4!AB100 -> 0 | AC100: =Feuil4!AC100 -> 0 | AD100: =Feuil4!AD100 -> 0 | AE100: =Feuil4!AE100 -> 0 | AF100: =Feuil4!AF100 -> 0 | AG100: =Feuil4!AG100 -> 0 | AH100: =Feuil4!AH100 -> 0 | AI100: =Feuil4!AI100 -> 0 | AJ100: =Feuil4!AJ100 -> 0 | AK100: =Feuil4!AK100 -> 0 | AL100: =Feuil4!AL100 -> 0 | AM100: =Feuil4!AM100 -> 0 | AN100: =Feuil4!AN100 -> 00:00:00 | AO100: =Feuil4!AO100 -> 0
A101: =Feuil4!A101 -> 0 | B101: =Feuil4!B101 ->  | C101: =Feuil4!C101 -> 0 | D101: =Feuil4!D101 -> 0 | E101: =Feuil4!E101 -> 0 | F101: =Feuil4!F101 -> 0 | G101: =Feuil4!G101 -> 0 | H101: =Feuil4!H101 -> 0 | I101: =Feuil4!I101 -> 0 | J101: =Feuil4!J101 -> 0 | K101: =Feuil4!K101 -> 0 | L101: =Feuil4!L101 -> 0 | M101: =Feuil4!M101 -> 0 | N101: =Feuil4!N101 -> 0 | O101: =Feuil4!O101 -> 0 | P101: =Feuil4!P101 -> 0 | Q101: =Feuil4!Q101 -> 0 | R101: =Feuil4!R101 -> 0 | S101: =Feuil4!S101 -> 0 | T101: =Feuil4!T101 -> 0 | U101: =Feuil4!U101 -> 0 | V101: =Feuil4!V101 -> 0 | W101: =Feuil4!W101 -> 0 | X101: =Feuil4!X101 -> 0 | Y101: =Feuil4!Y101 -> 0 | Z101: =Feuil4!Z101 -> 0 | AA101: =Feuil4!AA101 -> 0 | AB101: =Feuil4!AB101 -> 0 | AC101: =Feuil4!AC101 -> 0 | AD101: =Feuil4!AD101 -> 0 | AE101: =Feuil4!AE101 -> 0 | AF101: =Feuil4!AF101 -> 0 | AG101: =Feuil4!AG101 -> 0 | AH101: =Feuil4!AH101 -> 0 | AI101: =Feuil4!AI101 -> 0 | AJ101: =Feuil4!AJ101 -> 0 | AK101: =Feuil4!AK101 -> 0 | AL101: =Feuil4!AL101 -> 0 | AM101: =Feuil4!AM101 -> 0 | AN101: =Feuil4!AN101 -> 00:00:00 | AO101: =Feuil4!AO101 -> 0
A102: =Feuil4!A102 -> 0 | B102: =Feuil4!B102 ->  | C102: =Feuil4!C102 -> 0 | D102: =Feuil4!D102 -> 0 | E102: =Feuil4!E102 -> 0 | F102: =Feuil4!F102 -> 0 | G102: =Feuil4!G102 -> 0 | H102: =Feuil4!H102 -> 0 | I102: =Feuil4!I102 -> 0 | J102: =Feuil4!J102 -> 0 | K102: =Feuil4!K102 -> 0 | L102: =Feuil4!L102 -> 0 | M102: =Feuil4!M102 -> 0 | N102: =Feuil4!N102 -> 0 | O102: =Feuil4!O102 -> 0 | P102: =Feuil4!P102 -> 0 | Q102: =Feuil4!Q102 -> 0 | R102: =Feuil4!R102 -> 0 | S102: =Feuil4!S102 -> 0 | T102: =Feuil4!T102 -> 0 | U102: =Feuil4!U102 -> 0 | V102: =Feuil4!V102 -> 0 | W102: =Feuil4!W102 -> 0 | X102: =Feuil4!X102 -> 0 | Y102: =Feuil4!Y102 -> 0 | Z102: =Feuil4!Z102 -> 0 | AA102: =Feuil4!AA102 -> 0 | AB102: =Feuil4!AB102 -> 0 | AC102: =Feuil4!AC102 -> 0 | AD102: =Feuil4!AD102 -> 0 | AE102: =Feuil4!AE102 -> 0 | AF102: =Feuil4!AF102 -> 0 | AG102: =Feuil4!AG102 -> 0 | AH102: =Feuil4!AH102 -> 0 | AI102: =Feuil4!AI102 -> 0 | AJ102: =Feuil4!AJ102 -> 0 | AK102: =Feuil4!AK102 -> 0 | AL102: =Feuil4!AL102 -> 0 | AM102: =Feuil4!AM102 -> 0 | AN102: =Feuil4!AN102 -> 00:00:00 | AO102: =Feuil4!AO102 -> 0
A103: =Feuil4!A103 -> 0 | B103: =Feuil4!B103 ->  | C103: =Feuil4!C103 -> 0 | D103: =Feuil4!D103 -> 0 | E103: =Feuil4!E103 -> 0 | F103: =Feuil4!F103 -> 0 | G103: =Feuil4!G103 -> 0 | H103: =Feuil4!H103 -> 0 | I103: =Feuil4!I103 -> 0 | J103: =Feuil4!J103 -> 0 | K103: =Feuil4!K103 -> 0 | L103: =Feuil4!L103 -> 0 | M103: =Feuil4!M103 -> 0 | N103: =Feuil4!N103 -> 0 | O103: =Feuil4!O103 -> 0 | P103: =Feuil4!P103 -> 0 | Q103: =Feuil4!Q103 -> 0 | R103: =Feuil4!R103 -> 0 | S103: =Feuil4!S103 -> 0 | T103: =Feuil4!T103 -> 0 | U103: =Feuil4!U103 -> 0 | V103: =Feuil4!V103 -> 0 | W103: =Feuil4!W103 -> 0 | X103: =Feuil4!X103 -> 0 | Y103: =Feuil4!Y103 -> 0 | Z103: =Feuil4!Z103 -> 0 | AA103: =Feuil4!AA103 -> 0 | AB103: =Feuil4!AB103 -> 0 | AC103: =Feuil4!AC103 -> 0 | AD103: =Feuil4!AD103 -> 0 | AE103: =Feuil4!AE103 -> 0 | AF103: =Feuil4!AF103 -> 0 | AG103: =Feuil4!AG103 -> 0 | AH103: =Feuil4!AH103 -> 0 | AI103: =Feuil4!AI103 -> 0 | AJ103: =Feuil4!AJ103 -> 0 | AK103: =Feuil4!AK103 -> 0 | AL103: =Feuil4!AL103 -> 0 | AM103: =Feuil4!AM103 -> 0 | AN103: =Feuil4!AN103 -> 00:00:00 | AO103: =Feuil4!AO103 -> 0
A104: =Feuil4!A104 -> 0 | B104: =Feuil4!B104 ->  | C104: =Feuil4!C104 -> 0 | D104: =Feuil4!D104 -> 0 | E104: =Feuil4!E104 -> 0 | F104: =Feuil4!F104 -> 0 | G104: =Feuil4!G104 -> 0 | H104: =Feuil4!H104 -> 0 | I104: =Feuil4!I104 -> 0 | J104: =Feuil4!J104 -> 0 | K104: =Feuil4!K104 -> 0 | L104: =Feuil4!L104 -> 0 | M104: =Feuil4!M104 -> 0 | N104: =Feuil4!N104 -> 0 | O104: =Feuil4!O104 -> 0 | P104: =Feuil4!P104 -> 0 | Q104: =Feuil4!Q104 -> 0 | R104: =Feuil4!R104 -> 0 | S104: =Feuil4!S104 -> 0 | T104: =Feuil4!T104 -> 0 | U104: =Feuil4!U104 -> 0 | V104: =Feuil4!V104 -> 0 | W104: =Feuil4!W104 -> 0 | X104: =Feuil4!X104 -> 0 | Y104: =Feuil4!Y104 -> 0 | Z104: =Feuil4!Z104 -> 0 | AA104: =Feuil4!AA104 -> 0 | AB104: =Feuil4!AB104 -> 0 | AC104: =Feuil4!AC104 -> 0 | AD104: =Feuil4!AD104 -> 0 | AE104: =Feuil4!AE104 -> 0 | AF104: =Feuil4!AF104 -> 0 | AG104: =Feuil4!AG104 -> 0 | AH104: =Feuil4!AH104 -> 0 | AI104: =Feuil4!AI104 -> 0 | AJ104: =Feuil4!AJ104 -> 0 | AK104: =Feuil4!AK104 -> 0 | AL104: =Feuil4!AL104 -> 0 | AM104: =Feuil4!AM104 -> 0 | AN104: =Feuil4!AN104 -> 00:00:00 | AO104: =Feuil4!AO104 -> 0
A105: =Feuil4!A105 -> 0 | B105: =Feuil4!B105 ->  | C105: =Feuil4!C105 -> 0 | D105: =Feuil4!D105 -> 0 | E105: =Feuil4!E105 -> 0 | F105: =Feuil4!F105 -> 0 | G105: =Feuil4!G105 -> 0 | H105: =Feuil4!H105 -> 0 | I105: =Feuil4!I105 -> 0 | J105: =Feuil4!J105 -> 0 | K105: =Feuil4!K105 -> 0 | L105: =Feuil4!L105 -> 0 | M105: =Feuil4!M105 -> 0 | N105: =Feuil4!N105 -> 0 | O105: =Feuil4!O105 -> 0 | P105: =Feuil4!P105 -> 0 | Q105: =Feuil4!Q105 -> 0 | R105: =Feuil4!R105 -> 0 | S105: =Feuil4!S105 -> 0 | T105: =Feuil4!T105 -> 0 | U105: =Feuil4!U105 -> 0 | V105: =Feuil4!V105 -> 0 | W105: =Feuil4!W105 -> 0 | X105: =Feuil4!X105 -> 0 | Y105: =Feuil4!Y105 -> 0 | Z105: =Feuil4!Z105 -> 0 | AA105: =Feuil4!AA105 -> 0 | AB105: =Feuil4!AB105 -> 0 | AC105: =Feuil4!AC105 -> 0 | AD105: =Feuil4!AD105 -> 0 | AE105: =Feuil4!AE105 -> 0 | AF105: =Feuil4!AF105 -> 0 | AG105: =Feuil4!AG105 -> 0 | AH105: =Feuil4!AH105 -> 0 | AI105: =Feuil4!AI105 -> 0 | AJ105: =Feuil4!AJ105 -> 0 | AK105: =Feuil4!AK105 -> 0 | AL105: =Feuil4!AL105 -> 0 | AM105: =Feuil4!AM105 -> 0 | AN105: =Feuil4!AN105 -> 00:00:00 | AO105: =Feuil4!AO105 -> 0
A106: =Feuil4!A106 -> 0 | B106: =Feuil4!B106 ->  | C106: =Feuil4!C106 -> 0 | D106: =Feuil4!D106 -> 0 | E106: =Feuil4!E106 -> 0 | F106: =Feuil4!F106 -> 0 | G106: =Feuil4!G106 -> 0 | H106: =Feuil4!H106 -> 0 | I106: =Feuil4!I106 -> 0 | J106: =Feuil4!J106 -> 0 | K106: =Feuil4!K106 -> 0 | L106: =Feuil4!L106 -> 0 | M106: =Feuil4!M106 -> 0 | N106: =Feuil4!N106 -> 0 | O106: =Feuil4!O106 -> 0 | P106: =Feuil4!P106 -> 0 | Q106: =Feuil4!Q106 -> 0 | R106: =Feuil4!R106 -> 0 | S106: =Feuil4!S106 -> 0 | T106: =Feuil4!T106 -> 0 | U106: =Feuil4!U106 -> 0 | V106: =Feuil4!V106 -> 0 | W106: =Feuil4!W106 -> 0 | X106: =Feuil4!X106 -> 0 | Y106: =Feuil4!Y106 -> 0 | Z106: =Feuil4!Z106 -> 0 | AA106: =Feuil4!AA106 -> 0 | AB106: =Feuil4!AB106 -> 0 | AC106: =Feuil4!AC106 -> 0 | AD106: =Feuil4!AD106 -> 0 | AE106: =Feuil4!AE106 -> 0 | AF106: =Feuil4!AF106 -> 0 | AG106: =Feuil4!AG106 -> 0 | AH106: =Feuil4!AH106 -> 0 | AI106: =Feuil4!AI106 -> 0 | AJ106: =Feuil4!AJ106 -> 0 | AK106: =Feuil4!AK106 -> 0 | AL106: =Feuil4!AL106 -> 0 | AM106: =Feuil4!AM106 -> 0 | AN106: =Feuil4!AN106 -> 00:00:00 | AO106: =Feuil4!AO106 -> 0
A107: =Feuil4!A107 -> 0 | B107: =Feuil4!B107 ->  | C107: =Feuil4!C107 -> 0 | D107: =Feuil4!D107 -> 0 | E107: =Feuil4!E107 -> 0 | F107: =Feuil4!F107 -> 0 | G107: =Feuil4!G107 -> 0 | H107: =Feuil4!H107 -> 0 | I107: =Feuil4!I107 -> 0 | J107: =Feuil4!J107 -> 0 | K107: =Feuil4!K107 -> 0 | L107: =Feuil4!L107 -> 0 | M107: =Feuil4!M107 -> 0 | N107: =Feuil4!N107 -> 0 | O107: =Feuil4!O107 -> 0 | P107: =Feuil4!P107 -> 0 | Q107: =Feuil4!Q107 -> 0 | R107: =Feuil4!R107 -> 0 | S107: =Feuil4!S107 -> 0 | T107: =Feuil4!T107 -> 0 | U107: =Feuil4!U107 -> 0 | V107: =Feuil4!V107 -> 0 | W107: =Feuil4!W107 -> 0 | X107: =Feuil4!X107 -> 0 | Y107: =Feuil4!Y107 -> 0 | Z107: =Feuil4!Z107 -> 0 | AA107: =Feuil4!AA107 -> 0 | AB107: =Feuil4!AB107 -> 0 | AC107: =Feuil4!AC107 -> 0 | AD107: =Feuil4!AD107 -> 0 | AE107: =Feuil4!AE107 -> 0 | AF107: =Feuil4!AF107 -> 0 | AG107: =Feuil4!AG107 -> 0 | AH107: =Feuil4!AH107 -> 0 | AI107: =Feuil4!AI107 -> 0 | AJ107: =Feuil4!AJ107 -> 0 | AK107: =Feuil4!AK107 -> 0 | AL107: =Feuil4!AL107 -> 0 | AM107: =Feuil4!AM107 -> 0 | AN107: =Feuil4!AN107 -> 00:00:00 | AO107: =Feuil4!AO107 -> 0
A108: =Feuil4!A108 -> 0 | B108: =Feuil4!B108 ->  | C108: =Feuil4!C108 -> 0 | D108: =Feuil4!D108 -> 0 | E108: =Feuil4!E108 -> 0 | F108: =Feuil4!F108 -> 0 | G108: =Feuil4!G108 -> 0 | H108: =Feuil4!H108 -> 0 | I108: =Feuil4!I108 -> 0 | J108: =Feuil4!J108 -> 0 | K108: =Feuil4!K108 -> 0 | L108: =Feuil4!L108 -> 0 | M108: =Feuil4!M108 -> 0 | N108: =Feuil4!N108 -> 0 | O108: =Feuil4!O108 -> 0 | P108: =Feuil4!P108 -> 0 | Q108: =Feuil4!Q108 -> 0 | R108: =Feuil4!R108 -> 0 | S108: =Feuil4!S108 -> 0 | T108: =Feuil4!T108 -> 0 | U108: =Feuil4!U108 -> 0 | V108: =Feuil4!V108 -> 0 | W108: =Feuil4!W108 -> 0 | X108: =Feuil4!X108 -> 0 | Y108: =Feuil4!Y108 -> 0 | Z108: =Feuil4!Z108 -> 0 | AA108: =Feuil4!AA108 -> 0 | AB108: =Feuil4!AB108 -> 0 | AC108: =Feuil4!AC108 -> 0 | AD108: =Feuil4!AD108 -> 0 | AE108: =Feuil4!AE108 -> 0 | AF108: =Feuil4!AF108 -> 0 | AG108: =Feuil4!AG108 -> 0 | AH108: =Feuil4!AH108 -> 0 | AI108: =Feuil4!AI108 -> 0 | AJ108: =Feuil4!AJ108 -> 0 | AK108: =Feuil4!AK108 -> 0 | AL108: =Feuil4!AL108 -> 0 | AM108: =Feuil4!AM108 -> 0 | AN108: =Feuil4!AN108 -> 00:00:00 | AO108: =Feuil4!AO108 -> 0
A109: =Feuil4!A109 -> 0 | B109: =Feuil4!B109 ->  | C109: =Feuil4!C109 -> 0 | D109: =Feuil4!D109 -> 0 | E109: =Feuil4!E109 -> 0 | F109: =Feuil4!F109 -> 0 | G109: =Feuil4!G109 -> 0 | H109: =Feuil4!H109 -> 0 | I109: =Feuil4!I109 -> 0 | J109: =Feuil4!J109 -> 0 | K109: =Feuil4!K109 -> 0 | L109: =Feuil4!L109 -> 0 | M109: =Feuil4!M109 -> 0 | N109: =Feuil4!N109 -> 0 | O109: =Feuil4!O109 -> 0 | P109: =Feuil4!P109 -> 0 | Q109: =Feuil4!Q109 -> 0 | R109: =Feuil4!R109 -> 0 | S109: =Feuil4!S109 -> 0 | T109: =Feuil4!T109 -> 0 | U109: =Feuil4!U109 -> 0 | V109: =Feuil4!V109 -> 0 | W109: =Feuil4!W109 -> 0 | X109: =Feuil4!X109 -> 0 | Y109: =Feuil4!Y109 -> 0 | Z109: =Feuil4!Z109 -> 0 | AA109: =Feuil4!AA109 -> 0 | AB109: =Feuil4!AB109 -> 0 | AC109: =Feuil4!AC109 -> 0 | AD109: =Feuil4!AD109 -> 0 | AE109: =Feuil4!AE109 -> 0 | AF109: =Feuil4!AF109 -> 0 | AG109: =Feuil4!AG109 -> 0 | AH109: =Feuil4!AH109 -> 0 | AI109: =Feuil4!AI109 -> 0 | AJ109: =Feuil4!AJ109 -> 0 | AK109: =Feuil4!AK109 -> 0 | AL109: =Feuil4!AL109 -> 0 | AM109: =Feuil4!AM109 -> 0 | AN109: =Feuil4!AN109 -> 00:00:00 | AO109: =Feuil4!AO109 -> 0
A110: =Feuil4!A110 -> 0 | B110: =Feuil4!B110 ->  | C110: =Feuil4!C110 -> 0 | D110: =Feuil4!D110 -> 0 | E110: =Feuil4!E110 -> 0 | F110: =Feuil4!F110 -> 0 | G110: =Feuil4!G110 -> 0 | H110: =Feuil4!H110 -> 0 | I110: =Feuil4!I110 -> 0 | J110: =Feuil4!J110 -> 0 | K110: =Feuil4!K110 -> 0 | L110: =Feuil4!L110 -> 0 | M110: =Feuil4!M110 -> 0 | N110: =Feuil4!N110 -> 0 | O110: =Feuil4!O110 -> 0 | P110: =Feuil4!P110 -> 0 | Q110: =Feuil4!Q110 -> 0 | R110: =Feuil4!R110 -> 0 | S110: =Feuil4!S110 -> 0 | T110: =Feuil4!T110 -> 0 | U110: =Feuil4!U110 -> 0 | V110: =Feuil4!V110 -> 0 | W110: =Feuil4!W110 -> 0 | X110: =Feuil4!X110 -> 0 | Y110: =Feuil4!Y110 -> 0 | Z110: =Feuil4!Z110 -> 0 | AA110: =Feuil4!AA110 -> 0 | AB110: =Feuil4!AB110 -> 0 | AC110: =Feuil4!AC110 -> 0 | AD110: =Feuil4!AD110 -> 0 | AE110: =Feuil4!AE110 -> 0 | AF110: =Feuil4!AF110 -> 0 | AG110: =Feuil4!AG110 -> 0 | AH110: =Feuil4!AH110 -> 0 | AI110: =Feuil4!AI110 -> 0 | AJ110: =Feuil4!AJ110 -> 0 | AK110: =Feuil4!AK110 -> 0 | AL110: =Feuil4!AL110 -> 0 | AM110: =Feuil4!AM110 -> 0 | AN110: =Feuil4!AN110 -> 00:00:00 | AO110: =Feuil4!AO110 -> 0
A111: =Feuil4!A111 -> 0 | B111: =Feuil4!B111 ->  | C111: =Feuil4!C111 -> 0 | D111: =Feuil4!D111 -> 0 | E111: =Feuil4!E111 -> 0 | F111: =Feuil4!F111 -> 0 | G111: =Feuil4!G111 -> 0 | H111: =Feuil4!H111 -> 0 | I111: =Feuil4!I111 -> 0 | J111: =Feuil4!J111 -> 0 | K111: =Feuil4!K111 -> 0 | L111: =Feuil4!L111 -> 0 | M111: =Feuil4!M111 -> 0 | N111: =Feuil4!N111 -> 0 | O111: =Feuil4!O111 -> 0 | P111: =Feuil4!P111 -> 0 | Q111: =Feuil4!Q111 -> 0 | R111: =Feuil4!R111 -> 0 | S111: =Feuil4!S111 -> 0 | T111: =Feuil4!T111 -> 0 | U111: =Feuil4!U111 -> 0 | V111: =Feuil4!V111 -> 0 | W111: =Feuil4!W111 -> 0 | X111: =Feuil4!X111 -> 0 | Y111: =Feuil4!Y111 -> 0 | Z111: =Feuil4!Z111 -> 0 | AA111: =Feuil4!AA111 -> 0 | AB111: =Feuil4!AB111 -> 0 | AC111: =Feuil4!AC111 -> 0 | AD111: =Feuil4!AD111 -> 0 | AE111: =Feuil4!AE111 -> 0 | AF111: =Feuil4!AF111 -> 0 | AG111: =Feuil4!AG111 -> 0 | AH111: =Feuil4!AH111 -> 0 | AI111: =Feuil4!AI111 -> 0 | AJ111: =Feuil4!AJ111 -> 0 | AK111: =Feuil4!AK111 -> 0 | AL111: =Feuil4!AL111 -> 0 | AM111: =Feuil4!AM111 -> 0 | AN111: =Feuil4!AN111 -> 00:00:00 | AO111: =Feuil4!AO111 -> 0
A112: =Feuil4!A112 -> 0 | B112: =Feuil4!B112 ->  | C112: =Feuil4!C112 -> 0 | D112: =Feuil4!D112 -> 0 | E112: =Feuil4!E112 -> 0 | F112: =Feuil4!F112 -> 0 | G112: =Feuil4!G112 -> 0 | H112: =Feuil4!H112 -> 0 | I112: =Feuil4!I112 -> 0 | J112: =Feuil4!J112 -> 0 | K112: =Feuil4!K112 -> 0 | L112: =Feuil4!L112 -> 0 | M112: =Feuil4!M112 -> 0 | N112: =Feuil4!N112 -> 0 | O112: =Feuil4!O112 -> 0 | P112: =Feuil4!P112 -> 0 | Q112: =Feuil4!Q112 -> 0 | R112: =Feuil4!R112 -> 0 | S112: =Feuil4!S112 -> 0 | T112: =Feuil4!T112 -> 0 | U112: =Feuil4!U112 -> 0 | V112: =Feuil4!V112 -> 0 | W112: =Feuil4!W112 -> 0 | X112: =Feuil4!X112 -> 0 | Y112: =Feuil4!Y112 -> 0 | Z112: =Feuil4!Z112 -> 0 | AA112: =Feuil4!AA112 -> 0 | AB112: =Feuil4!AB112 -> 0 | AC112: =Feuil4!AC112 -> 0 | AD112: =Feuil4!AD112 -> 0 | AE112: =Feuil4!AE112 -> 0 | AF112: =Feuil4!AF112 -> 0 | AG112: =Feuil4!AG112 -> 0 | AH112: =Feuil4!AH112 -> 0 | AI112: =Feuil4!AI112 -> 0 | AJ112: =Feuil4!AJ112 -> 0 | AK112: =Feuil4!AK112 -> 0 | AL112: =Feuil4!AL112 -> 0 | AM112: =Feuil4!AM112 -> 0 | AN112: =Feuil4!AN112 -> 00:00:00 | AO112: =Feuil4!AO112 -> 0
A113: =Feuil4!A113 -> 0 | B113: =Feuil4!B113 ->  | C113: =Feuil4!C113 -> 0 | D113: =Feuil4!D113 -> 0 | E113: =Feuil4!E113 -> 0 | F113: =Feuil4!F113 -> 0 | G113: =Feuil4!G113 -> 0 | H113: =Feuil4!H113 -> 0 | I113: =Feuil4!I113 -> 0 | J113: =Feuil4!J113 -> 0 | K113: =Feuil4!K113 -> 0 | L113: =Feuil4!L113 -> 0 | M113: =Feuil4!M113 -> 0 | N113: =Feuil4!N113 -> 0 | O113: =Feuil4!O113 -> 0 | P113: =Feuil4!P113 -> 0 | Q113: =Feuil4!Q113 -> 0 | R113: =Feuil4!R113 -> 0 | S113: =Feuil4!S113 -> 0 | T113: =Feuil4!T113 -> 0 | U113: =Feuil4!U113 -> 0 | V113: =Feuil4!V113 -> 0 | W113: =Feuil4!W113 -> 0 | X113: =Feuil4!X113 -> 0 | Y113: =Feuil4!Y113 -> 0 | Z113: =Feuil4!Z113 -> 0 | AA113: =Feuil4!AA113 -> 0 | AB113: =Feuil4!AB113 -> 0 | AC113: =Feuil4!AC113 -> 0 | AD113: =Feuil4!AD113 -> 0 | AE113: =Feuil4!AE113 -> 0 | AF113: =Feuil4!AF113 -> 0 | AG113: =Feuil4!AG113 -> 0 | AH113: =Feuil4!AH113 -> 0 | AI113: =Feuil4!AI113 -> 0 | AJ113: =Feuil4!AJ113 -> 0 | AK113: =Feuil4!AK113 -> 0 | AL113: =Feuil4!AL113 -> 0 | AM113: =Feuil4!AM113 -> 0 | AN113: =Feuil4!AN113 -> 00:00:00 | AO113: =Feuil4!AO113 -> 0
A114: =Feuil4!A114 -> 0 | B114: =Feuil4!B114 ->  | C114: =Feuil4!C114 -> 0 | D114: =Feuil4!D114 -> 0 | E114: =Feuil4!E114 -> 0 | F114: =Feuil4!F114 -> 0 | G114: =Feuil4!G114 -> 0 | H114: =Feuil4!H114 -> 0 | I114: =Feuil4!I114 -> 0 | J114: =Feuil4!J114 -> 0 | K114: =Feuil4!K114 -> 0 | L114: =Feuil4!L114 -> 0 | M114: =Feuil4!M114 -> 0 | N114: =Feuil4!N114 -> 0 | O114: =Feuil4!O114 -> 0 | P114: =Feuil4!P114 -> 0 | Q114: =Feuil4!Q114 -> 0 | R114: =Feuil4!R114 -> 0 | S114: =Feuil4!S114 -> 0 | T114: =Feuil4!T114 -> 0 | U114: =Feuil4!U114 -> 0 | V114: =Feuil4!V114 -> 0 | W114: =Feuil4!W114 -> 0 | X114: =Feuil4!X114 -> 0 | Y114: =Feuil4!Y114 -> 0 | Z114: =Feuil4!Z114 -> 0 | AA114: =Feuil4!AA114 -> 0 | AB114: =Feuil4!AB114 -> 0 | AC114: =Feuil4!AC114 -> 0 | AD114: =Feuil4!AD114 -> 0 | AE114: =Feuil4!AE114 -> 0 | AF114: =Feuil4!AF114 -> 0 | AG114: =Feuil4!AG114 -> 0 | AH114: =Feuil4!AH114 -> 0 | AI114: =Feuil4!AI114 -> 0 | AJ114: =Feuil4!AJ114 -> 0 | AK114: =Feuil4!AK114 -> 0 | AL114: =Feuil4!AL114 -> 0 | AM114: =Feuil4!AM114 -> 0 | AN114: =Feuil4!AN114 -> 00:00:00 | AO114: =Feuil4!AO114 -> 0
A115: =Feuil4!A115 -> 0 | B115: =Feuil4!B115 ->  | C115: =Feuil4!C115 -> 0 | D115: =Feuil4!D115 -> 0 | E115: =Feuil4!E115 -> 0 | F115: =Feuil4!F115 -> 0 | G115: =Feuil4!G115 -> 0 | H115: =Feuil4!H115 -> 0 | I115: =Feuil4!I115 -> 0 | J115: =Feuil4!J115 -> 0 | K115: =Feuil4!K115 -> 0 | L115: =Feuil4!L115 -> 0 | M115: =Feuil4!M115 -> 0 | N115: =Feuil4!N115 -> 0 | O115: =Feuil4!O115 -> 0 | P115: =Feuil4!P115 -> 0 | Q115: =Feuil4!Q115 -> 0 | R115: =Feuil4!R115 -> 0 | S115: =Feuil4!S115 -> 0 | T115: =Feuil4!T115 -> 0 | U115: =Feuil4!U115 -> 0 | V115: =Feuil4!V115 -> 0 | W115: =Feuil4!W115 -> 0 | X115: =Feuil4!X115 -> 0 | Y115: =Feuil4!Y115 -> 0 | Z115: =Feuil4!Z115 -> 0 | AA115: =Feuil4!AA115 -> 0 | AB115: =Feuil4!AB115 -> 0 | AC115: =Feuil4!AC115 -> 0 | AD115: =Feuil4!AD115 -> 0 | AE115: =Feuil4!AE115 -> 0 | AF115: =Feuil4!AF115 -> 0 | AG115: =Feuil4!AG115 -> 0 | AH115: =Feuil4!AH115 -> 0 | AI115: =Feuil4!AI115 -> 0 | AJ115: =Feuil4!AJ115 -> 0 | AK115: =Feuil4!AK115 -> 0 | AL115: =Feuil4!AL115 -> 0 | AM115: =Feuil4!AM115 -> 0 | AN115: =Feuil4!AN115 -> 00:00:00 | AO115: =Feuil4!AO115 -> 0
A116: =Feuil4!A116 -> 0 | B116: =Feuil4!B116 ->  | C116: =Feuil4!C116 -> 0 | D116: =Feuil4!D116 -> 0 | E116: =Feuil4!E116 -> 0 | F116: =Feuil4!F116 -> 0 | G116: =Feuil4!G116 -> 0 | H116: =Feuil4!H116 -> 0 | I116: =Feuil4!I116 -> 0 | J116: =Feuil4!J116 -> 0 | K116: =Feuil4!K116 -> 0 | L116: =Feuil4!L116 -> 0 | M116: =Feuil4!M116 -> 0 | N116: =Feuil4!N116 -> 0 | O116: =Feuil4!O116 -> 0 | P116: =Feuil4!P116 -> 0 | Q116: =Feuil4!Q116 -> 0 | R116: =Feuil4!R116 -> 0 | S116: =Feuil4!S116 -> 0 | T116: =Feuil4!T116 -> 0 | U116: =Feuil4!U116 -> 0 | V116: =Feuil4!V116 -> 0 | W116: =Feuil4!W116 -> 0 | X116: =Feuil4!X116 -> 0 | Y116: =Feuil4!Y116 -> 0 | Z116: =Feuil4!Z116 -> 0 | AA116: =Feuil4!AA116 -> 0 | AB116: =Feuil4!AB116 -> 0 | AC116: =Feuil4!AC116 -> 0 | AD116: =Feuil4!AD116 -> 0 | AE116: =Feuil4!AE116 -> 0 | AF116: =Feuil4!AF116 -> 0 | AG116: =Feuil4!AG116 -> 0 | AH116: =Feuil4!AH116 -> 0 | AI116: =Feuil4!AI116 -> 0 | AJ116: =Feuil4!AJ116 -> 0 | AK116: =Feuil4!AK116 -> 0 | AL116: =Feuil4!AL116 -> 0 | AM116: =Feuil4!AM116 -> 0 | AN116: =Feuil4!AN116 -> 00:00:00 | AO116: =Feuil4!AO116 -> 0
A117: =Feuil4!A117 -> 0 | B117: =Feuil4!B117 ->  | C117: =Feuil4!C117 -> 0 | D117: =Feuil4!D117 -> 0 | E117: =Feuil4!E117 -> 0 | F117: =Feuil4!F117 -> 0 | G117: =Feuil4!G117 -> 0 | H117: =Feuil4!H117 -> 0 | I117: =Feuil4!I117 -> 0 | J117: =Feuil4!J117 -> 0 | K117: =Feuil4!K117 -> 0 | L117: =Feuil4!L117 -> 0 | M117: =Feuil4!M117 -> 0 | N117: =Feuil4!N117 -> 0 | O117: =Feuil4!O117 -> 0 | P117: =Feuil4!P117 -> 0 | Q117: =Feuil4!Q117 -> 0 | R117: =Feuil4!R117 -> 0 | S117: =Feuil4!S117 -> 0 | T117: =Feuil4!T117 -> 0 | U117: =Feuil4!U117 -> 0 | V117: =Feuil4!V117 -> 0 | W117: =Feuil4!W117 -> 0 | X117: =Feuil4!X117 -> 0 | Y117: =Feuil4!Y117 -> 0 | Z117: =Feuil4!Z117 -> 0 | AA117: =Feuil4!AA117 -> 0 | AB117: =Feuil4!AB117 -> 0 | AC117: =Feuil4!AC117 -> 0 | AD117: =Feuil4!AD117 -> 0 | AE117: =Feuil4!AE117 -> 0 | AF117: =Feuil4!AF117 -> 0 | AG117: =Feuil4!AG117 -> 0 | AH117: =Feuil4!AH117 -> 0 | AI117: =Feuil4!AI117 -> 0 | AJ117: =Feuil4!AJ117 -> 0 | AK117: =Feuil4!AK117 -> 0 | AL117: =Feuil4!AL117 -> 0 | AM117: =Feuil4!AM117 -> 0 | AN117: =Feuil4!AN117 -> 00:00:00 | AO117: =Feuil4!AO117 -> 0
A118: =Feuil4!A118 -> 0 | B118: =Feuil4!B118 ->  | C118: =Feuil4!C118 -> 0 | D118: =Feuil4!D118 -> 0 | E118: =Feuil4!E118 -> 0 | F118: =Feuil4!F118 -> 0 | G118: =Feuil4!G118 -> 0 | H118: =Feuil4!H118 -> 0 | I118: =Feuil4!I118 -> 0 | J118: =Feuil4!J118 -> 0 | K118: =Feuil4!K118 -> 0 | L118: =Feuil4!L118 -> 0 | M118: =Feuil4!M118 -> 0 | N118: =Feuil4!N118 -> 0 | O118: =Feuil4!O118 -> 0 | P118: =Feuil4!P118 -> 0 | Q118: =Feuil4!Q118 -> 0 | R118: =Feuil4!R118 -> 0 | S118: =Feuil4!S118 -> 0 | T118: =Feuil4!T118 -> 0 | U118: =Feuil4!U118 -> 0 | V118: =Feuil4!V118 -> 0 | W118: =Feuil4!W118 -> 0 | X118: =Feuil4!X118 -> 0 | Y118: =Feuil4!Y118 -> 0 | Z118: =Feuil4!Z118 -> 0 | AA118: =Feuil4!AA118 -> 0 | AB118: =Feuil4!AB118 -> 0 | AC118: =Feuil4!AC118 -> 0 | AD118: =Feuil4!AD118 -> 0 | AE118: =Feuil4!AE118 -> 0 | AF118: =Feuil4!AF118 -> 0 | AG118: =Feuil4!AG118 -> 0 | AH118: =Feuil4!AH118 -> 0 | AI118: =Feuil4!AI118 -> 0 | AJ118: =Feuil4!AJ118 -> 0 | AK118: =Feuil4!AK118 -> 0 | AL118: =Feuil4!AL118 -> 0 | AM118: =Feuil4!AM118 -> 0 | AN118: =Feuil4!AN118 -> 00:00:00 | AO118: =Feuil4!AO118 -> 0
A119: =Feuil4!A119 -> 0 | B119: =Feuil4!B119 ->  | C119: =Feuil4!C119 -> 0 | D119: =Feuil4!D119 -> 0 | E119: =Feuil4!E119 -> 0 | F119: =Feuil4!F119 -> 0 | G119: =Feuil4!G119 -> 0 | H119: =Feuil4!H119 -> 0 | I119: =Feuil4!I119 -> 0 | J119: =Feuil4!J119 -> 0 | K119: =Feuil4!K119 -> 0 | L119: =Feuil4!L119 -> 0 | M119: =Feuil4!M119 -> 0 | N119: =Feuil4!N119 -> 0 | O119: =Feuil4!O119 -> 0 | P119: =Feuil4!P119 -> 0 | Q119: =Feuil4!Q119 -> 0 | R119: =Feuil4!R119 -> 0 | S119: =Feuil4!S119 -> 0 | T119: =Feuil4!T119 -> 0 | U119: =Feuil4!U119 -> 0 | V119: =Feuil4!V119 -> 0 | W119: =Feuil4!W119 -> 0 | X119: =Feuil4!X119 -> 0 | Y119: =Feuil4!Y119 -> 0 | Z119: =Feuil4!Z119 -> 0 | AA119: =Feuil4!AA119 -> 0 | AB119: =Feuil4!AB119 -> 0 | AC119: =Feuil4!AC119 -> 0 | AD119: =Feuil4!AD119 -> 0 | AE119: =Feuil4!AE119 -> 0 | AF119: =Feuil4!AF119 -> 0 | AG119: =Feuil4!AG119 -> 0 | AH119: =Feuil4!AH119 -> 0 | AI119: =Feuil4!AI119 -> 0 | AJ119: =Feuil4!AJ119 -> 0 | AK119: =Feuil4!AK119 -> 0 | AL119: =Feuil4!AL119 -> 0 | AM119: =Feuil4!AM119 -> 0 | AN119: =Feuil4!AN119 -> 00:00:00 | AO119: =Feuil4!AO119 -> 0
A120: =Feuil4!A120 -> 0 | B120: =Feuil4!B120 ->  | C120: =Feuil4!C120 -> 0 | D120: =Feuil4!D120 -> 0 | E120: =Feuil4!E120 -> 0 | F120: =Feuil4!F120 -> 0 | G120: =Feuil4!G120 -> 0 | H120: =Feuil4!H120 -> 0 | I120: =Feuil4!I120 -> 0 | J120: =Feuil4!J120 -> 0 | K120: =Feuil4!K120 -> 0 | L120: =Feuil4!L120 -> 0 | M120: =Feuil4!M120 -> 0 | N120: =Feuil4!N120 -> 0 | O120: =Feuil4!O120 -> 0 | P120: =Feuil4!P120 -> 0 | Q120: =Feuil4!Q120 -> 0 | R120: =Feuil4!R120 -> 0 | S120: =Feuil4!S120 -> 0 | T120: =Feuil4!T120 -> 0 | U120: =Feuil4!U120 -> 0 | V120: =Feuil4!V120 -> 0 | W120: =Feuil4!W120 -> 0 | X120: =Feuil4!X120 -> 0 | Y120: =Feuil4!Y120 -> 0 | Z120: =Feuil4!Z120 -> 0 | AA120: =Feuil4!AA120 -> 0 | AB120: =Feuil4!AB120 -> 0 | AC120: =Feuil4!AC120 -> 0 | AD120: =Feuil4!AD120 -> 0 | AE120: =Feuil4!AE120 -> 0 | AF120: =Feuil4!AF120 -> 0 | AG120: =Feuil4!AG120 -> 0 | AH120: =Feuil4!AH120 -> 0 | AI120: =Feuil4!AI120 -> 0 | AJ120: =Feuil4!AJ120 -> 0 | AK120: =Feuil4!AK120 -> 0 | AL120: =Feuil4!AL120 -> 0 | AM120: =Feuil4!AM120 -> 0 | AN120: =Feuil4!AN120 -> 00:00:00 | AO120: =Feuil4!AO120 -> 0
A121: =Feuil4!A121 -> 0 | B121: =Feuil4!B121 ->  | C121: =Feuil4!C121 -> 0 | D121: =Feuil4!D121 -> 0 | E121: =Feuil4!E121 -> 0 | F121: =Feuil4!F121 -> 0 | G121: =Feuil4!G121 -> 0 | H121: =Feuil4!H121 -> 0 | I121: =Feuil4!I121 -> 0 | J121: =Feuil4!J121 -> 0 | K121: =Feuil4!K121 -> 0 | L121: =Feuil4!L121 -> 0 | M121: =Feuil4!M121 -> 0 | N121: =Feuil4!N121 -> 0 | O121: =Feuil4!O121 -> 0 | P121: =Feuil4!P121 -> 0 | Q121: =Feuil4!Q121 -> 0 | R121: =Feuil4!R121 -> 0 | S121: =Feuil4!S121 -> 0 | T121: =Feuil4!T121 -> 0 | U121: =Feuil4!U121 -> 0 | V121: =Feuil4!V121 -> 0 | W121: =Feuil4!W121 -> 0 | X121: =Feuil4!X121 -> 0 | Y121: =Feuil4!Y121 -> 0 | Z121: =Feuil4!Z121 -> 0 | AA121: =Feuil4!AA121 -> 0 | AB121: =Feuil4!AB121 -> 0 | AC121: =Feuil4!AC121 -> 0 | AD121: =Feuil4!AD121 -> 0 | AE121: =Feuil4!AE121 -> 0 | AF121: =Feuil4!AF121 -> 0 | AG121: =Feuil4!AG121 -> 0 | AH121: =Feuil4!AH121 -> 0 | AI121: =Feuil4!AI121 -> 0 | AJ121: =Feuil4!AJ121 -> 0 | AK121: =Feuil4!AK121 -> 0 | AL121: =Feuil4!AL121 -> 0 | AM121: =Feuil4!AM121 -> 0 | AN121: =Feuil4!AN121 -> 00:00:00 | AO121: =Feuil4!AO121 -> 0
A122: =Feuil4!A122 -> 0 | B122: =Feuil4!B122 ->  | C122: =Feuil4!C122 -> 0 | D122: =Feuil4!D122 -> 0 | E122: =Feuil4!E122 -> 0 | F122: =Feuil4!F122 -> 0 | G122: =Feuil4!G122 -> 0 | H122: =Feuil4!H122 -> 0 | I122: =Feuil4!I122 -> 0 | J122: =Feuil4!J122 -> 0 | K122: =Feuil4!K122 -> 0 | L122: =Feuil4!L122 -> 0 | M122: =Feuil4!M122 -> 0 | N122: =Feuil4!N122 -> 0 | O122: =Feuil4!O122 -> 0 | P122: =Feuil4!P122 -> 0 | Q122: =Feuil4!Q122 -> 0 | R122: =Feuil4!R122 -> 0 | S122: =Feuil4!S122 -> 0 | T122: =Feuil4!T122 -> 0 | U122: =Feuil4!U122 -> 0 | V122: =Feuil4!V122 -> 0 | W122: =Feuil4!W122 -> 0 | X122: =Feuil4!X122 -> 0 | Y122: =Feuil4!Y122 -> 0 | Z122: =Feuil4!Z122 -> 0 | AA122: =Feuil4!AA122 -> 0 | AB122: =Feuil4!AB122 -> 0 | AC122: =Feuil4!AC122 -> 0 | AD122: =Feuil4!AD122 -> 0 | AE122: =Feuil4!AE122 -> 0 | AF122: =Feuil4!AF122 -> 0 | AG122: =Feuil4!AG122 -> 0 | AH122: =Feuil4!AH122 -> 0 | AI122: =Feuil4!AI122 -> 0 | AJ122: =Feuil4!AJ122 -> 0 | AK122: =Feuil4!AK122 -> 0 | AL122: =Feuil4!AL122 -> 0 | AM122: =Feuil4!AM122 -> 0 | AN122: =Feuil4!AN122 -> 00:00:00 | AO122: =Feuil4!AO122 -> 0
A123: =Feuil4!A123 -> 0 | B123: =Feuil4!B123 ->  | C123: =Feuil4!C123 -> 0 | D123: =Feuil4!D123 -> 0 | E123: =Feuil4!E123 -> 0 | F123: =Feuil4!F123 -> 0 | G123: =Feuil4!G123 -> 0 | H123: =Feuil4!H123 -> 0 | I123: =Feuil4!I123 -> 0 | J123: =Feuil4!J123 -> 0 | K123: =Feuil4!K123 -> 0 | L123: =Feuil4!L123 -> 0 | M123: =Feuil4!M123 -> 0 | N123: =Feuil4!N123 -> 0 | O123: =Feuil4!O123 -> 0 | P123: =Feuil4!P123 -> 0 | Q123: =Feuil4!Q123 -> 0 | R123: =Feuil4!R123 -> 0 | S123: =Feuil4!S123 -> 0 | T123: =Feuil4!T123 -> 0 | U123: =Feuil4!U123 -> 0 | V123: =Feuil4!V123 -> 0 | W123: =Feuil4!W123 -> 0 | X123: =Feuil4!X123 -> 0 | Y123: =Feuil4!Y123 -> 0 | Z123: =Feuil4!Z123 -> 0 | AA123: =Feuil4!AA123 -> 0 | AB123: =Feuil4!AB123 -> 0 | AC123: =Feuil4!AC123 -> 0 | AD123: =Feuil4!AD123 -> 0 | AE123: =Feuil4!AE123 -> 0 | AF123: =Feuil4!AF123 -> 0 | AG123: =Feuil4!AG123 -> 0 | AH123: =Feuil4!AH123 -> 0 | AI123: =Feuil4!AI123 -> 0 | AJ123: =Feuil4!AJ123 -> 0 | AK123: =Feuil4!AK123 -> 0 | AL123: =Feuil4!AL123 -> 0 | AM123: =Feuil4!AM123 -> 0 | AN123: =Feuil4!AN123 -> 00:00:00 | AO123: =Feuil4!AO123 -> 0
A124: =Feuil4!A124 -> 0 | B124: =Feuil4!B124 ->  | C124: =Feuil4!C124 -> 0 | D124: =Feuil4!D124 -> 0 | E124: =Feuil4!E124 -> 0 | F124: =Feuil4!F124 -> 0 | G124: =Feuil4!G124 -> 0 | H124: =Feuil4!H124 -> 0 | I124: =Feuil4!I124 -> 0 | J124: =Feuil4!J124 -> 0 | K124: =Feuil4!K124 -> 0 | L124: =Feuil4!L124 -> 0 | M124: =Feuil4!M124 -> 0 | N124: =Feuil4!N124 -> 0 | O124: =Feuil4!O124 -> 0 | P124: =Feuil4!P124 -> 0 | Q124: =Feuil4!Q124 -> 0 | R124: =Feuil4!R124 -> 0 | S124: =Feuil4!S124 -> 0 | T124: =Feuil4!T124 -> 0 | U124: =Feuil4!U124 -> 0 | V124: =Feuil4!V124 -> 0 | W124: =Feuil4!W124 -> 0 | X124: =Feuil4!X124 -> 0 | Y124: =Feuil4!Y124 -> 0 | Z124: =Feuil4!Z124 -> 0 | AA124: =Feuil4!AA124 -> 0 | AB124: =Feuil4!AB124 -> 0 | AC124: =Feuil4!AC124 -> 0 | AD124: =Feuil4!AD124 -> 0 | AE124: =Feuil4!AE124 -> 0 | AF124: =Feuil4!AF124 -> 0 | AG124: =Feuil4!AG124 -> 0 | AH124: =Feuil4!AH124 -> 0 | AI124: =Feuil4!AI124 -> 0 | AJ124: =Feuil4!AJ124 -> 0 | AK124: =Feuil4!AK124 -> 0 | AL124: =Feuil4!AL124 -> 0 | AM124: =Feuil4!AM124 -> 0 | AN124: =Feuil4!AN124 -> 00:00:00 | AO124: =Feuil4!AO124 -> 0
A125: =Feuil4!A125 -> 0 | B125: =Feuil4!B125 ->  | C125: =Feuil4!C125 -> 0 | D125: =Feuil4!D125 -> 0 | E125: =Feuil4!E125 -> 0 | F125: =Feuil4!F125 -> 0 | G125: =Feuil4!G125 -> 0 | H125: =Feuil4!H125 -> 0 | I125: =Feuil4!I125 -> 0 | J125: =Feuil4!J125 -> 0 | K125: =Feuil4!K125 -> 0 | L125: =Feuil4!L125 -> 0 | M125: =Feuil4!M125 -> 0 | N125: =Feuil4!N125 -> 0 | O125: =Feuil4!O125 -> 0 | P125: =Feuil4!P125 -> 0 | Q125: =Feuil4!Q125 -> 0 | R125: =Feuil4!R125 -> 0 | S125: =Feuil4!S125 -> 0 | T125: =Feuil4!T125 -> 0 | U125: =Feuil4!U125 -> 0 | V125: =Feuil4!V125 -> 0 | W125: =Feuil4!W125 -> 0 | X125: =Feuil4!X125 -> 0 | Y125: =Feuil4!Y125 -> 0 | Z125: =Feuil4!Z125 -> 0 | AA125: =Feuil4!AA125 -> 0 | AB125: =Feuil4!AB125 -> 0 | AC125: =Feuil4!AC125 -> 0 | AD125: =Feuil4!AD125 -> 0 | AE125: =Feuil4!AE125 -> 0 | AF125: =Feuil4!AF125 -> 0 | AG125: =Feuil4!AG125 -> 0 | AH125: =Feuil4!AH125 -> 0 | AI125: =Feuil4!AI125 -> 0 | AJ125: =Feuil4!AJ125 -> 0 | AK125: =Feuil4!AK125 -> 0 | AL125: =Feuil4!AL125 -> 0 | AM125: =Feuil4!AM125 -> 0 | AN125: =Feuil4!AN125 -> 00:00:00 | AO125: =Feuil4!AO125 -> 0
A126: =Feuil4!A126 -> 0 | B126: =Feuil4!B126 ->  | C126: =Feuil4!C126 -> 0 | D126: =Feuil4!D126 -> 0 | E126: =Feuil4!E126 -> 0 | F126: =Feuil4!F126 -> 0 | G126: =Feuil4!G126 -> 0 | H126: =Feuil4!H126 -> 0 | I126: =Feuil4!I126 -> 0 | J126: =Feuil4!J126 -> 0 | K126: =Feuil4!K126 -> 0 | L126: =Feuil4!L126 -> 0 | M126: =Feuil4!M126 -> 0 | N126: =Feuil4!N126 -> 0 | O126: =Feuil4!O126 -> 0 | P126: =Feuil4!P126 -> 0 | Q126: =Feuil4!Q126 -> 0 | R126: =Feuil4!R126 -> 0 | S126: =Feuil4!S126 -> 0 | T126: =Feuil4!T126 -> 0 | U126: =Feuil4!U126 -> 0 | V126: =Feuil4!V126 -> 0 | W126: =Feuil4!W126 -> 0 | X126: =Feuil4!X126 -> 0 | Y126: =Feuil4!Y126 -> 0 | Z126: =Feuil4!Z126 -> 0 | AA126: =Feuil4!AA126 -> 0 | AB126: =Feuil4!AB126 -> 0 | AC126: =Feuil4!AC126 -> 0 | AD126: =Feuil4!AD126 -> 0 | AE126: =Feuil4!AE126 -> 0 | AF126: =Feuil4!AF126 -> 0 | AG126: =Feuil4!AG126 -> 0 | AH126: =Feuil4!AH126 -> 0 | AI126: =Feuil4!AI126 -> 0 | AJ126: =Feuil4!AJ126 -> 0 | AK126: =Feuil4!AK126 -> 0 | AL126: =Feuil4!AL126 -> 0 | AM126: =Feuil4!AM126 -> 0 | AN126: =Feuil4!AN126 -> 00:00:00 | AO126: =Feuil4!AO126 -> 0
A127: =Feuil4!A127 -> 0 | B127: =Feuil4!B127 ->  | C127: =Feuil4!C127 -> 0 | D127: =Feuil4!D127 -> 0 | E127: =Feuil4!E127 -> 0 | F127: =Feuil4!F127 -> 0 | G127: =Feuil4!G127 -> 0 | H127: =Feuil4!H127 -> 0 | I127: =Feuil4!I127 -> 0 | J127: =Feuil4!J127 -> 0 | K127: =Feuil4!K127 -> 0 | L127: =Feuil4!L127 -> 0 | M127: =Feuil4!M127 -> 0 | N127: =Feuil4!N127 -> 0 | O127: =Feuil4!O127 -> 0 | P127: =Feuil4!P127 -> 0 | Q127: =Feuil4!Q127 -> 0 | R127: =Feuil4!R127 -> 0 | S127: =Feuil4!S127 -> 0 | T127: =Feuil4!T127 -> 0 | U127: =Feuil4!U127 -> 0 | V127: =Feuil4!V127 -> 0 | W127: =Feuil4!W127 -> 0 | X127: =Feuil4!X127 -> 0 | Y127: =Feuil4!Y127 -> 0 | Z127: =Feuil4!Z127 -> 0 | AA127: =Feuil4!AA127 -> 0 | AB127: =Feuil4!AB127 -> 0 | AC127: =Feuil4!AC127 -> 0 | AD127: =Feuil4!AD127 -> 0 | AE127: =Feuil4!AE127 -> 0 | AF127: =Feuil4!AF127 -> 0 | AG127: =Feuil4!AG127 -> 0 | AH127: =Feuil4!AH127 -> 0 | AI127: =Feuil4!AI127 -> 0 | AJ127: =Feuil4!AJ127 -> 0 | AK127: =Feuil4!AK127 -> 0 | AL127: =Feuil4!AL127 -> 0 | AM127: =Feuil4!AM127 -> 0 | AN127: =Feuil4!AN127 -> 00:00:00 | AO127: =Feuil4!AO127 -> 0
A128: =Feuil4!A128 -> 0 | B128: =Feuil4!B128 ->  | C128: =Feuil4!C128 -> 0 | D128: =Feuil4!D128 -> 0 | E128: =Feuil4!E128 -> 0 | F128: =Feuil4!F128 -> 0 | G128: =Feuil4!G128 -> 0 | H128: =Feuil4!H128 -> 0 | I128: =Feuil4!I128 -> 0 | J128: =Feuil4!J128 -> 0 | K128: =Feuil4!K128 -> 0 | L128: =Feuil4!L128 -> 0 | M128: =Feuil4!M128 -> 0 | N128: =Feuil4!N128 -> 0 | O128: =Feuil4!O128 -> 0 | P128: =Feuil4!P128 -> 0 | Q128: =Feuil4!Q128 -> 0 | R128: =Feuil4!R128 -> 0 | S128: =Feuil4!S128 -> 0 | T128: =Feuil4!T128 -> 0 | U128: =Feuil4!U128 -> 0 | V128: =Feuil4!V128 -> 0 | W128: =Feuil4!W128 -> 0 | X128: =Feuil4!X128 -> 0 | Y128: =Feuil4!Y128 -> 0 | Z128: =Feuil4!Z128 -> 0 | AA128: =Feuil4!AA128 -> 0 | AB128: =Feuil4!AB128 -> 0 | AC128: =Feuil4!AC128 -> 0 | AD128: =Feuil4!AD128 -> 0 | AE128: =Feuil4!AE128 -> 0 | AF128: =Feuil4!AF128 -> 0 | AG128: =Feuil4!AG128 -> 0 | AH128: =Feuil4!AH128 -> 0 | AI128: =Feuil4!AI128 -> 0 | AJ128: =Feuil4!AJ128 -> 0 | AK128: =Feuil4!AK128 -> 0 | AL128: =Feuil4!AL128 -> 0 | AM128: =Feuil4!AM128 -> 0 | AN128: =Feuil4!AN128 -> 00:00:00 | AO128: =Feuil4!AO128 -> 0
A129: =Feuil4!A129 -> 0 | B129: =Feuil4!B129 ->  | C129: =Feuil4!C129 -> 0 | D129: =Feuil4!D129 -> 0 | E129: =Feuil4!E129 -> 0 | F129: =Feuil4!F129 -> 0 | G129: =Feuil4!G129 -> 0 | H129: =Feuil4!H129 -> 0 | I129: =Feuil4!I129 -> 0 | J129: =Feuil4!J129 -> 0 | K129: =Feuil4!K129 -> 0 | L129: =Feuil4!L129 -> 0 | M129: =Feuil4!M129 -> 0 | N129: =Feuil4!N129 -> 0 | O129: =Feuil4!O129 -> 0 | P129: =Feuil4!P129 -> 0 | Q129: =Feuil4!Q129 -> 0 | R129: =Feuil4!R129 -> 0 | S129: =Feuil4!S129 -> 0 | T129: =Feuil4!T129 -> 0 | U129: =Feuil4!U129 -> 0 | V129: =Feuil4!V129 -> 0 | W129: =Feuil4!W129 -> 0 | X129: =Feuil4!X129 -> 0 | Y129: =Feuil4!Y129 -> 0 | Z129: =Feuil4!Z129 -> 0 | AA129: =Feuil4!AA129 -> 0 | AB129: =Feuil4!AB129 -> 0 | AC129: =Feuil4!AC129 -> 0 | AD129: =Feuil4!AD129 -> 0 | AE129: =Feuil4!AE129 -> 0 | AF129: =Feuil4!AF129 -> 0 | AG129: =Feuil4!AG129 -> 0 | AH129: =Feuil4!AH129 -> 0 | AI129: =Feuil4!AI129 -> 0 | AJ129: =Feuil4!AJ129 -> 0 | AK129: =Feuil4!AK129 -> 0 | AL129: =Feuil4!AL129 -> 0 | AM129: =Feuil4!AM129 -> 0 | AN129: =Feuil4!AN129 -> 00:00:00 | AO129: =Feuil4!AO129 -> 0
A130: =Feuil4!A130 -> 0 | B130: =Feuil4!B130 ->  | C130: =Feuil4!C130 -> 0 | D130: =Feuil4!D130 -> 0 | E130: =Feuil4!E130 -> 0 | F130: =Feuil4!F130 -> 0 | G130: =Feuil4!G130 -> 0 | H130: =Feuil4!H130 -> 0 | I130: =Feuil4!I130 -> 0 | J130: =Feuil4!J130 -> 0 | K130: =Feuil4!K130 -> 0 | L130: =Feuil4!L130 -> 0 | M130: =Feuil4!M130 -> 0 | N130: =Feuil4!N130 -> 0 | O130: =Feuil4!O130 -> 0 | P130: =Feuil4!P130 -> 0 | Q130: =Feuil4!Q130 -> 0 | R130: =Feuil4!R130 -> 0 | S130: =Feuil4!S130 -> 0 | T130: =Feuil4!T130 -> 0 | U130: =Feuil4!U130 -> 0 | V130: =Feuil4!V130 -> 0 | W130: =Feuil4!W130 -> 0 | X130: =Feuil4!X130 -> 0 | Y130: =Feuil4!Y130 -> 0 | Z130: =Feuil4!Z130 -> 0 | AA130: =Feuil4!AA130 -> 0 | AB130: =Feuil4!AB130 -> 0 | AC130: =Feuil4!AC130 -> 0 | AD130: =Feuil4!AD130 -> 0 | AE130: =Feuil4!AE130 -> 0 | AF130: =Feuil4!AF130 -> 0 | AG130: =Feuil4!AG130 -> 0 | AH130: =Feuil4!AH130 -> 0 | AI130: =Feuil4!AI130 -> 0 | AJ130: =Feuil4!AJ130 -> 0 | AK130: =Feuil4!AK130 -> 0 | AL130: =Feuil4!AL130 -> 0 | AM130: =Feuil4!AM130 -> 0 | AN130: =Feuil4!AN130 -> 00:00:00 | AO130: =Feuil4!AO130 -> 0
A131: =Feuil4!A131 -> 0 | B131: =Feuil4!B131 ->  | C131: =Feuil4!C131 -> 0 | D131: =Feuil4!D131 -> 0 | E131: =Feuil4!E131 -> 0 | F131: =Feuil4!F131 -> 0 | G131: =Feuil4!G131 -> 0 | H131: =Feuil4!H131 -> 0 | I131: =Feuil4!I131 -> 0 | J131: =Feuil4!J131 -> 0 | K131: =Feuil4!K131 -> 0 | L131: =Feuil4!L131 -> 0 | M131: =Feuil4!M131 -> 0 | N131: =Feuil4!N131 -> 0 | O131: =Feuil4!O131 -> 0 | P131: =Feuil4!P131 -> 0 | Q131: =Feuil4!Q131 -> 0 | R131: =Feuil4!R131 -> 0 | S131: =Feuil4!S131 -> 0 | T131: =Feuil4!T131 -> 0 | U131: =Feuil4!U131 -> 0 | V131: =Feuil4!V131 -> 0 | W131: =Feuil4!W131 -> 0 | X131: =Feuil4!X131 -> 0 | Y131: =Feuil4!Y131 -> 0 | Z131: =Feuil4!Z131 -> 0 | AA131: =Feuil4!AA131 -> 0 | AB131: =Feuil4!AB131 -> 0 | AC131: =Feuil4!AC131 -> 0 | AD131: =Feuil4!AD131 -> 0 | AE131: =Feuil4!AE131 -> 0 | AF131: =Feuil4!AF131 -> 0 | AG131: =Feuil4!AG131 -> 0 | AH131: =Feuil4!AH131 -> 0 | AI131: =Feuil4!AI131 -> 0 | AJ131: =Feuil4!AJ131 -> 0 | AK131: =Feuil4!AK131 -> 0 | AL131: =Feuil4!AL131 -> 0 | AM131: =Feuil4!AM131 -> 0 | AN131: =Feuil4!AN131 -> 00:00:00 | AO131: =Feuil4!AO131 -> 0
A132: =Feuil4!A132 -> 0 | B132: =Feuil4!B132 ->  | C132: =Feuil4!C132 -> 0 | D132: =Feuil4!D132 -> 0 | E132: =Feuil4!E132 -> 0 | F132: =Feuil4!F132 -> 0 | G132: =Feuil4!G132 -> 0 | H132: =Feuil4!H132 -> 0 | I132: =Feuil4!I132 -> 0 | J132: =Feuil4!J132 -> 0 | K132: =Feuil4!K132 -> 0 | L132: =Feuil4!L132 -> 0 | M132: =Feuil4!M132 -> 0 | N132: =Feuil4!N132 -> 0 | O132: =Feuil4!O132 -> 0 | P132: =Feuil4!P132 -> 0 | Q132: =Feuil4!Q132 -> 0 | R132: =Feuil4!R132 -> 0 | S132: =Feuil4!S132 -> 0 | T132: =Feuil4!T132 -> 0 | U132: =Feuil4!U132 -> 0 | V132: =Feuil4!V132 -> 0 | W132: =Feuil4!W132 -> 0 | X132: =Feuil4!X132 -> 0 | Y132: =Feuil4!Y132 -> 0 | Z132: =Feuil4!Z132 -> 0 | AA132: =Feuil4!AA132 -> 0 | AB132: =Feuil4!AB132 -> 0 | AC132: =Feuil4!AC132 -> 0 | AD132: =Feuil4!AD132 -> 0 | AE132: =Feuil4!AE132 -> 0 | AF132: =Feuil4!AF132 -> 0 | AG132: =Feuil4!AG132 -> 0 | AH132: =Feuil4!AH132 -> 0 | AI132: =Feuil4!AI132 -> 0 | AJ132: =Feuil4!AJ132 -> 0 | AK132: =Feuil4!AK132 -> 0 | AL132: =Feuil4!AL132 -> 0 | AM132: =Feuil4!AM132 -> 0 | AN132: =Feuil4!AN132 -> 00:00:00 | AO132: =Feuil4!AO132 -> 0
A133: =Feuil4!A133 -> 0 | B133: =Feuil4!B133 ->  | C133: =Feuil4!C133 -> 0 | D133: =Feuil4!D133 -> 0 | E133: =Feuil4!E133 -> 0 | F133: =Feuil4!F133 -> 0 | G133: =Feuil4!G133 -> 0 | H133: =Feuil4!H133 -> 0 | I133: =Feuil4!I133 -> 0 | J133: =Feuil4!J133 -> 0 | K133: =Feuil4!K133 -> 0 | L133: =Feuil4!L133 -> 0 | M133: =Feuil4!M133 -> 0 | N133: =Feuil4!N133 -> 0 | O133: =Feuil4!O133 -> 0 | P133: =Feuil4!P133 -> 0 | Q133: =Feuil4!Q133 -> 0 | R133: =Feuil4!R133 -> 0 | S133: =Feuil4!S133 -> 0 | T133: =Feuil4!T133 -> 0 | U133: =Feuil4!U133 -> 0 | V133: =Feuil4!V133 -> 0 | W133: =Feuil4!W133 -> 0 | X133: =Feuil4!X133 -> 0 | Y133: =Feuil4!Y133 -> 0 | Z133: =Feuil4!Z133 -> 0 | AA133: =Feuil4!AA133 -> 0 | AB133: =Feuil4!AB133 -> 0 | AC133: =Feuil4!AC133 -> 0 | AD133: =Feuil4!AD133 -> 0 | AE133: =Feuil4!AE133 -> 0 | AF133: =Feuil4!AF133 -> 0 | AG133: =Feuil4!AG133 -> 0 | AH133: =Feuil4!AH133 -> 0 | AI133: =Feuil4!AI133 -> 0 | AJ133: =Feuil4!AJ133 -> 0 | AK133: =Feuil4!AK133 -> 0 | AL133: =Feuil4!AL133 -> 0 | AM133: =Feuil4!AM133 -> 0 | AN133: =Feuil4!AN133 -> 00:00:00 | AO133: =Feuil4!AO133 -> 0
A134: =Feuil4!A134 -> 0 | B134: =Feuil4!B134 ->  | C134: =Feuil4!C134 -> 0 | D134: =Feuil4!D134 -> 0 | E134: =Feuil4!E134 -> 0 | F134: =Feuil4!F134 -> 0 | G134: =Feuil4!G134 -> 0 | H134: =Feuil4!H134 -> 0 | I134: =Feuil4!I134 -> 0 | J134: =Feuil4!J134 -> 0 | K134: =Feuil4!K134 -> 0 | L134: =Feuil4!L134 -> 0 | M134: =Feuil4!M134 -> 0 | N134: =Feuil4!N134 -> 0 | O134: =Feuil4!O134 -> 0 | P134: =Feuil4!P134 -> 0 | Q134: =Feuil4!Q134 -> 0 | R134: =Feuil4!R134 -> 0 | S134: =Feuil4!S134 -> 0 | T134: =Feuil4!T134 -> 0 | U134: =Feuil4!U134 -> 0 | V134: =Feuil4!V134 -> 0 | W134: =Feuil4!W134 -> 0 | X134: =Feuil4!X134 -> 0 | Y134: =Feuil4!Y134 -> 0 | Z134: =Feuil4!Z134 -> 0 | AA134: =Feuil4!AA134 -> 0 | AB134: =Feuil4!AB134 -> 0 | AC134: =Feuil4!AC134 -> 0 | AD134: =Feuil4!AD134 -> 0 | AE134: =Feuil4!AE134 -> 0 | AF134: =Feuil4!AF134 -> 0 | AG134: =Feuil4!AG134 -> 0 | AH134: =Feuil4!AH134 -> 0 | AI134: =Feuil4!AI134 -> 0 | AJ134: =Feuil4!AJ134 -> 0 | AK134: =Feuil4!AK134 -> 0 | AL134: =Feuil4!AL134 -> 0 | AM134: =Feuil4!AM134 -> 0 | AN134: =Feuil4!AN134 -> 00:00:00 | AO134: =Feuil4!AO134 -> 0
A135: =Feuil4!A135 -> 0 | B135: =Feuil4!B135 ->  | C135: =Feuil4!C135 -> 0 | D135: =Feuil4!D135 -> 0 | E135: =Feuil4!E135 -> 0 | F135: =Feuil4!F135 -> 0 | G135: =Feuil4!G135 -> 0 | H135: =Feuil4!H135 -> 0 | I135: =Feuil4!I135 -> 0 | J135: =Feuil4!J135 -> 0 | K135: =Feuil4!K135 -> 0 | L135: =Feuil4!L135 -> 0 | M135: =Feuil4!M135 -> 0 | N135: =Feuil4!N135 -> 0 | O135: =Feuil4!O135 -> 0 | P135: =Feuil4!P135 -> 0 | Q135: =Feuil4!Q135 -> 0 | R135: =Feuil4!R135 -> 0 | S135: =Feuil4!S135 -> 0 | T135: =Feuil4!T135 -> 0 | U135: =Feuil4!U135 -> 0 | V135: =Feuil4!V135 -> 0 | W135: =Feuil4!W135 -> 0 | X135: =Feuil4!X135 -> 0 | Y135: =Feuil4!Y135 -> 0 | Z135: =Feuil4!Z135 -> 0 | AA135: =Feuil4!AA135 -> 0 | AB135: =Feuil4!AB135 -> 0 | AC135: =Feuil4!AC135 -> 0 | AD135: =Feuil4!AD135 -> 0 | AE135: =Feuil4!AE135 -> 0 | AF135: =Feuil4!AF135 -> 0 | AG135: =Feuil4!AG135 -> 0 | AH135: =Feuil4!AH135 -> 0 | AI135: =Feuil4!AI135 -> 0 | AJ135: =Feuil4!AJ135 -> 0 | AK135: =Feuil4!AK135 -> 0 | AL135: =Feuil4!AL135 -> 0 | AM135: =Feuil4!AM135 -> 0 | AN135: =Feuil4!AN135 -> 00:00:00 | AO135: =Feuil4!AO135 -> 0
A136: =Feuil4!A136 -> 0 | B136: =Feuil4!B136 ->  | C136: =Feuil4!C136 -> 0 | D136: =Feuil4!D136 -> 0 | E136: =Feuil4!E136 -> 0 | F136: =Feuil4!F136 -> 0 | G136: =Feuil4!G136 -> 0 | H136: =Feuil4!H136 -> 0 | I136: =Feuil4!I136 -> 0 | J136: =Feuil4!J136 -> 0 | K136: =Feuil4!K136 -> 0 | L136: =Feuil4!L136 -> 0 | M136: =Feuil4!M136 -> 0 | N136: =Feuil4!N136 -> 0 | O136: =Feuil4!O136 -> 0 | P136: =Feuil4!P136 -> 0 | Q136: =Feuil4!Q136 -> 0 | R136: =Feuil4!R136 -> 0 | S136: =Feuil4!S136 -> 0 | T136: =Feuil4!T136 -> 0 | U136: =Feuil4!U136 -> 0 | V136: =Feuil4!V136 -> 0 | W136: =Feuil4!W136 -> 0 | X136: =Feuil4!X136 -> 0 | Y136: =Feuil4!Y136 -> 0 | Z136: =Feuil4!Z136 -> 0 | AA136: =Feuil4!AA136 -> 0 | AB136: =Feuil4!AB136 -> 0 | AC136: =Feuil4!AC136 -> 0 | AD136: =Feuil4!AD136 -> 0 | AE136: =Feuil4!AE136 -> 0 | AF136: =Feuil4!AF136 -> 0 | AG136: =Feuil4!AG136 -> 0 | AH136: =Feuil4!AH136 -> 0 | AI136: =Feuil4!AI136 -> 0 | AJ136: =Feuil4!AJ136 -> 0 | AK136: =Feuil4!AK136 -> 0 | AL136: =Feuil4!AL136 -> 0 | AM136: =Feuil4!AM136 -> 0 | AN136: =Feuil4!AN136 -> 00:00:00 | AO136: =Feuil4!AO136 -> 0
A137: =Feuil4!A137 -> 0 | B137: =Feuil4!B137 ->  | C137: =Feuil4!C137 -> 0 | D137: =Feuil4!D137 -> 0 | E137: =Feuil4!E137 -> 0 | F137: =Feuil4!F137 -> 0 | G137: =Feuil4!G137 -> 0 | H137: =Feuil4!H137 -> 0 | I137: =Feuil4!I137 -> 0 | J137: =Feuil4!J137 -> 0 | K137: =Feuil4!K137 -> 0 | L137: =Feuil4!L137 -> 0 | M137: =Feuil4!M137 -> 0 | N137: =Feuil4!N137 -> 0 | O137: =Feuil4!O137 -> 0 | P137: =Feuil4!P137 -> 0 | Q137: =Feuil4!Q137 -> 0 | R137: =Feuil4!R137 -> 0 | S137: =Feuil4!S137 -> 0 | T137: =Feuil4!T137 -> 0 | U137: =Feuil4!U137 -> 0 | V137: =Feuil4!V137 -> 0 | W137: =Feuil4!W137 -> 0 | X137: =Feuil4!X137 -> 0 | Y137: =Feuil4!Y137 -> 0 | Z137: =Feuil4!Z137 -> 0 | AA137: =Feuil4!AA137 -> 0 | AB137: =Feuil4!AB137 -> 0 | AC137: =Feuil4!AC137 -> 0 | AD137: =Feuil4!AD137 -> 0 | AE137: =Feuil4!AE137 -> 0 | AF137: =Feuil4!AF137 -> 0 | AG137: =Feuil4!AG137 -> 0 | AH137: =Feuil4!AH137 -> 0 | AI137: =Feuil4!AI137 -> 0 | AJ137: =Feuil4!AJ137 -> 0 | AK137: =Feuil4!AK137 -> 0 | AL137: =Feuil4!AL137 -> 0 | AM137: =Feuil4!AM137 -> 0 | AN137: =Feuil4!AN137 -> 00:00:00 | AO137: =Feuil4!AO137 -> 0
A138: =Feuil4!A138 -> 0 | B138: =Feuil4!B138 ->  | C138: =Feuil4!C138 -> 0 | D138: =Feuil4!D138 -> 0 | E138: =Feuil4!E138 -> 0 | F138: =Feuil4!F138 -> 0 | G138: =Feuil4!G138 -> 0 | H138: =Feuil4!H138 -> 0 | I138: =Feuil4!I138 -> 0 | J138: =Feuil4!J138 -> 0 | K138: =Feuil4!K138 -> 0 | L138: =Feuil4!L138 -> 0 | M138: =Feuil4!M138 -> 0 | N138: =Feuil4!N138 -> 0 | O138: =Feuil4!O138 -> 0 | P138: =Feuil4!P138 -> 0 | Q138: =Feuil4!Q138 -> 0 | R138: =Feuil4!R138 -> 0 | S138: =Feuil4!S138 -> 0 | T138: =Feuil4!T138 -> 0 | U138: =Feuil4!U138 -> 0 | V138: =Feuil4!V138 -> 0 | W138: =Feuil4!W138 -> 0 | X138: =Feuil4!X138 -> 0 | Y138: =Feuil4!Y138 -> 0 | Z138: =Feuil4!Z138 -> 0 | AA138: =Feuil4!AA138 -> 0 | AB138: =Feuil4!AB138 -> 0 | AC138: =Feuil4!AC138 -> 0 | AD138: =Feuil4!AD138 -> 0 | AE138: =Feuil4!AE138 -> 0 | AF138: =Feuil4!AF138 -> 0 | AG138: =Feuil4!AG138 -> 0 | AH138: =Feuil4!AH138 -> 0 | AI138: =Feuil4!AI138 -> 0 | AJ138: =Feuil4!AJ138 -> 0 | AK138: =Feuil4!AK138 -> 0 | AL138: =Feuil4!AL138 -> 0 | AM138: =Feuil4!AM138 -> 0 | AN138: =Feuil4!AN138 -> 00:00:00 | AO138: =Feuil4!AO138 -> 0
A139: =Feuil4!A139 -> 0 | B139: =Feuil4!B139 ->  | C139: =Feuil4!C139 -> 0 | D139: =Feuil4!D139 -> 0 | E139: =Feuil4!E139 -> 0 | F139: =Feuil4!F139 -> 0 | G139: =Feuil4!G139 -> 0 | H139: =Feuil4!H139 -> 0 | I139: =Feuil4!I139 -> 0 | J139: =Feuil4!J139 -> 0 | K139: =Feuil4!K139 -> 0 | L139: =Feuil4!L139 -> 0 | M139: =Feuil4!M139 -> 0 | N139: =Feuil4!N139 -> 0 | O139: =Feuil4!O139 -> 0 | P139: =Feuil4!P139 -> 0 | Q139: =Feuil4!Q139 -> 0 | R139: =Feuil4!R139 -> 0 | S139: =Feuil4!S139 -> 0 | T139: =Feuil4!T139 -> 0 | U139: =Feuil4!U139 -> 0 | V139: =Feuil4!V139 -> 0 | W139: =Feuil4!W139 -> 0 | X139: =Feuil4!X139 -> 0 | Y139: =Feuil4!Y139 -> 0 | Z139: =Feuil4!Z139 -> 0 | AA139: =Feuil4!AA139 -> 0 | AB139: =Feuil4!AB139 -> 0 | AC139: =Feuil4!AC139 -> 0 | AD139: =Feuil4!AD139 -> 0 | AE139: =Feuil4!AE139 -> 0 | AF139: =Feuil4!AF139 -> 0 | AG139: =Feuil4!AG139 -> 0 | AH139: =Feuil4!AH139 -> 0 | AI139: =Feuil4!AI139 -> 0 | AJ139: =Feuil4!AJ139 -> 0 | AK139: =Feuil4!AK139 -> 0 | AL139: =Feuil4!AL139 -> 0 | AM139: =Feuil4!AM139 -> 0 | AN139: =Feuil4!AN139 -> 00:00:00 | AO139: =Feuil4!AO139 -> 0
A140: =Feuil4!A140 -> 0 | B140: =Feuil4!B140 ->  | C140: =Feuil4!C140 -> 0 | D140: =Feuil4!D140 -> 0 | E140: =Feuil4!E140 -> 0 | F140: =Feuil4!F140 -> 0 | G140: =Feuil4!G140 -> 0 | H140: =Feuil4!H140 -> 0 | I140: =Feuil4!I140 -> 0 | J140: =Feuil4!J140 -> 0 | K140: =Feuil4!K140 -> 0 | L140: =Feuil4!L140 -> 0 | M140: =Feuil4!M140 -> 0 | N140: =Feuil4!N140 -> 0 | O140: =Feuil4!O140 -> 0 | P140: =Feuil4!P140 -> 0 | Q140: =Feuil4!Q140 -> 0 | R140: =Feuil4!R140 -> 0 | S140: =Feuil4!S140 -> 0 | T140: =Feuil4!T140 -> 0 | U140: =Feuil4!U140 -> 0 | V140: =Feuil4!V140 -> 0 | W140: =Feuil4!W140 -> 0 | X140: =Feuil4!X140 -> 0 | Y140: =Feuil4!Y140 -> 0 | Z140: =Feuil4!Z140 -> 0 | AA140: =Feuil4!AA140 -> 0 | AB140: =Feuil4!AB140 -> 0 | AC140: =Feuil4!AC140 -> 0 | AD140: =Feuil4!AD140 -> 0 | AE140: =Feuil4!AE140 -> 0 | AF140: =Feuil4!AF140 -> 0 | AG140: =Feuil4!AG140 -> 0 | AH140: =Feuil4!AH140 -> 0 | AI140: =Feuil4!AI140 -> 0 | AJ140: =Feuil4!AJ140 -> 0 | AK140: =Feuil4!AK140 -> 0 | AL140: =Feuil4!AL140 -> 0 | AM140: =Feuil4!AM140 -> 0 | AN140: =Feuil4!AN140 -> 00:00:00 | AO140: =Feuil4!AO140 -> 0
A141: =Feuil4!A141 -> 0 | B141: =Feuil4!B141 ->  | C141: =Feuil4!C141 -> 0 | D141: =Feuil4!D141 -> 0 | E141: =Feuil4!E141 -> 0 | F141: =Feuil4!F141 -> 0 | G141: =Feuil4!G141 -> 0 | H141: =Feuil4!H141 -> 0 | I141: =Feuil4!I141 -> 0 | J141: =Feuil4!J141 -> 0 | K141: =Feuil4!K141 -> 0 | L141: =Feuil4!L141 -> 0 | M141: =Feuil4!M141 -> 0 | N141: =Feuil4!N141 -> 0 | O141: =Feuil4!O141 -> 0 | P141: =Feuil4!P141 -> 0 | Q141: =Feuil4!Q141 -> 0 | R141: =Feuil4!R141 -> 0 | S141: =Feuil4!S141 -> 0 | T141: =Feuil4!T141 -> 0 | U141: =Feuil4!U141 -> 0 | V141: =Feuil4!V141 -> 0 | W141: =Feuil4!W141 -> 0 | X141: =Feuil4!X141 -> 0 | Y141: =Feuil4!Y141 -> 0 | Z141: =Feuil4!Z141 -> 0 | AA141: =Feuil4!AA141 -> 0 | AB141: =Feuil4!AB141 -> 0 | AC141: =Feuil4!AC141 -> 0 | AD141: =Feuil4!AD141 -> 0 | AE141: =Feuil4!AE141 -> 0 | AF141: =Feuil4!AF141 -> 0 | AG141: =Feuil4!AG141 -> 0 | AH141: =Feuil4!AH141 -> 0 | AI141: =Feuil4!AI141 -> 0 | AJ141: =Feuil4!AJ141 -> 0 | AK141: =Feuil4!AK141 -> 0 | AL141: =Feuil4!AL141 -> 0 | AM141: =Feuil4!AM141 -> 0 | AN141: =Feuil4!AN141 -> 00:00:00 | AO141: =Feuil4!AO141 -> 0
A142: =Feuil4!A142 -> 0 | B142: =Feuil4!B142 ->  | C142: =Feuil4!C142 -> 0 | D142: =Feuil4!D142 -> 0 | E142: =Feuil4!E142 -> 0 | F142: =Feuil4!F142 -> 0 | G142: =Feuil4!G142 -> 0 | H142: =Feuil4!H142 -> 0 | I142: =Feuil4!I142 -> 0 | J142: =Feuil4!J142 -> 0 | K142: =Feuil4!K142 -> 0 | L142: =Feuil4!L142 -> 0 | M142: =Feuil4!M142 -> 0 | N142: =Feuil4!N142 -> 0 | O142: =Feuil4!O142 -> 0 | P142: =Feuil4!P142 -> 0 | Q142: =Feuil4!Q142 -> 0 | R142: =Feuil4!R142 -> 0 | S142: =Feuil4!S142 -> 0 | T142: =Feuil4!T142 -> 0 | U142: =Feuil4!U142 -> 0 | V142: =Feuil4!V142 -> 0 | W142: =Feuil4!W142 -> 0 | X142: =Feuil4!X142 -> 0 | Y142: =Feuil4!Y142 -> 0 | Z142: =Feuil4!Z142 -> 0 | AA142: =Feuil4!AA142 -> 0 | AB142: =Feuil4!AB142 -> 0 | AC142: =Feuil4!AC142 -> 0 | AD142: =Feuil4!AD142 -> 0 | AE142: =Feuil4!AE142 -> 0 | AF142: =Feuil4!AF142 -> 0 | AG142: =Feuil4!AG142 -> 0 | AH142: =Feuil4!AH142 -> 0 | AI142: =Feuil4!AI142 -> 0 | AJ142: =Feuil4!AJ142 -> 0 | AK142: =Feuil4!AK142 -> 0 | AL142: =Feuil4!AL142 -> 0 | AM142: =Feuil4!AM142 -> 0 | AN142: =Feuil4!AN142 -> 00:00:00 | AO142: =Feuil4!AO142 -> 0
A143: =Feuil4!A143 -> 0 | B143: =Feuil4!B143 ->  | C143: =Feuil4!C143 -> 0 | D143: =Feuil4!D143 -> 0 | E143: =Feuil4!E143 -> 0 | F143: =Feuil4!F143 -> 0 | G143: =Feuil4!G143 -> 0 | H143: =Feuil4!H143 -> 0 | I143: =Feuil4!I143 -> 0 | J143: =Feuil4!J143 -> 0 | K143: =Feuil4!K143 -> 0 | L143: =Feuil4!L143 -> 0 | M143: =Feuil4!M143 -> 0 | N143: =Feuil4!N143 -> 0 | O143: =Feuil4!O143 -> 0 | P143: =Feuil4!P143 -> 0 | Q143: =Feuil4!Q143 -> 0 | R143: =Feuil4!R143 -> 0 | S143: =Feuil4!S143 -> 0 | T143: =Feuil4!T143 -> 0 | U143: =Feuil4!U143 -> 0 | V143: =Feuil4!V143 -> 0 | W143: =Feuil4!W143 -> 0 | X143: =Feuil4!X143 -> 0 | Y143: =Feuil4!Y143 -> 0 | Z143: =Feuil4!Z143 -> 0 | AA143: =Feuil4!AA143 -> 0 | AB143: =Feuil4!AB143 -> 0 | AC143: =Feuil4!AC143 -> 0 | AD143: =Feuil4!AD143 -> 0 | AE143: =Feuil4!AE143 -> 0 | AF143: =Feuil4!AF143 -> 0 | AG143: =Feuil4!AG143 -> 0 | AH143: =Feuil4!AH143 -> 0 | AI143: =Feuil4!AI143 -> 0 | AJ143: =Feuil4!AJ143 -> 0 | AK143: =Feuil4!AK143 -> 0 | AL143: =Feuil4!AL143 -> 0 | AM143: =Feuil4!AM143 -> 0 | AN143: =Feuil4!AN143 -> 00:00:00 | AO143: =Feuil4!AO143 -> 0
A144: =Feuil4!A144 -> 0 | B144: =Feuil4!B144 ->  | C144: =Feuil4!C144 -> 0 | D144: =Feuil4!D144 -> 0 | E144: =Feuil4!E144 -> 0 | F144: =Feuil4!F144 -> 0 | G144: =Feuil4!G144 -> 0 | H144: =Feuil4!H144 -> 0 | I144: =Feuil4!I144 -> 0 | J144: =Feuil4!J144 -> 0 | K144: =Feuil4!K144 -> 0 | L144: =Feuil4!L144 -> 0 | M144: =Feuil4!M144 -> 0 | N144: =Feuil4!N144 -> 0 | O144: =Feuil4!O144 -> 0 | P144: =Feuil4!P144 -> 0 | Q144: =Feuil4!Q144 -> 0 | R144: =Feuil4!R144 -> 0 | S144: =Feuil4!S144 -> 0 | T144: =Feuil4!T144 -> 0 | U144: =Feuil4!U144 -> 0 | V144: =Feuil4!V144 -> 0 | W144: =Feuil4!W144 -> 0 | X144: =Feuil4!X144 -> 0 | Y144: =Feuil4!Y144 -> 0 | Z144: =Feuil4!Z144 -> 0 | AA144: =Feuil4!AA144 -> 0 | AB144: =Feuil4!AB144 -> 0 | AC144: =Feuil4!AC144 -> 0 | AD144: =Feuil4!AD144 -> 0 | AE144: =Feuil4!AE144 -> 0 | AF144: =Feuil4!AF144 -> 0 | AG144: =Feuil4!AG144 -> 0 | AH144: =Feuil4!AH144 -> 0 | AI144: =Feuil4!AI144 -> 0 | AJ144: =Feuil4!AJ144 -> 0 | AK144: =Feuil4!AK144 -> 0 | AL144: =Feuil4!AL144 -> 0 | AM144: =Feuil4!AM144 -> 0 | AN144: =Feuil4!AN144 -> 00:00:00 | AO144: =Feuil4!AO144 -> 0
A145: =Feuil4!A145 -> 0 | B145: =Feuil4!B145 ->  | C145: =Feuil4!C145 -> 0 | D145: =Feuil4!D145 -> 0 | E145: =Feuil4!E145 -> 0 | F145: =Feuil4!F145 -> 0 | G145: =Feuil4!G145 -> 0 | H145: =Feuil4!H145 -> 0 | I145: =Feuil4!I145 -> 0 | J145: =Feuil4!J145 -> 0 | K145: =Feuil4!K145 -> 0 | L145: =Feuil4!L145 -> 0 | M145: =Feuil4!M145 -> 0 | N145: =Feuil4!N145 -> 0 | O145: =Feuil4!O145 -> 0 | P145: =Feuil4!P145 -> 0 | Q145: =Feuil4!Q145 -> 0 | R145: =Feuil4!R145 -> 0 | S145: =Feuil4!S145 -> 0 | T145: =Feuil4!T145 -> 0 | U145: =Feuil4!U145 -> 0 | V145: =Feuil4!V145 -> 0 | W145: =Feuil4!W145 -> 0 | X145: =Feuil4!X145 -> 0 | Y145: =Feuil4!Y145 -> 0 | Z145: =Feuil4!Z145 -> 0 | AA145: =Feuil4!AA145 -> 0 | AB145: =Feuil4!AB145 -> 0 | AC145: =Feuil4!AC145 -> 0 | AD145: =Feuil4!AD145 -> 0 | AE145: =Feuil4!AE145 -> 0 | AF145: =Feuil4!AF145 -> 0 | AG145: =Feuil4!AG145 -> 0 | AH145: =Feuil4!AH145 -> 0 | AI145: =Feuil4!AI145 -> 0 | AJ145: =Feuil4!AJ145 -> 0 | AK145: =Feuil4!AK145 -> 0 | AL145: =Feuil4!AL145 -> 0 | AM145: =Feuil4!AM145 -> 0 | AN145: =Feuil4!AN145 -> 00:00:00 | AO145: =Feuil4!AO145 -> 0
A146: =Feuil4!A146 -> 0 | B146: =Feuil4!B146 ->  | C146: =Feuil4!C146 -> 0 | D146: =Feuil4!D146 -> 0 | E146: =Feuil4!E146 -> 0 | F146: =Feuil4!F146 -> 0 | G146: =Feuil4!G146 -> 0 | H146: =Feuil4!H146 -> 0 | I146: =Feuil4!I146 -> 0 | J146: =Feuil4!J146 -> 0 | K146: =Feuil4!K146 -> 0 | L146: =Feuil4!L146 -> 0 | M146: =Feuil4!M146 -> 0 | N146: =Feuil4!N146 -> 0 | O146: =Feuil4!O146 -> 0 | P146: =Feuil4!P146 -> 0 | Q146: =Feuil4!Q146 -> 0 | R146: =Feuil4!R146 -> 0 | S146: =Feuil4!S146 -> 0 | T146: =Feuil4!T146 -> 0 | U146: =Feuil4!U146 -> 0 | V146: =Feuil4!V146 -> 0 | W146: =Feuil4!W146 -> 0 | X146: =Feuil4!X146 -> 0 | Y146: =Feuil4!Y146 -> 0 | Z146: =Feuil4!Z146 -> 0 | AA146: =Feuil4!AA146 -> 0 | AB146: =Feuil4!AB146 -> 0 | AC146: =Feuil4!AC146 -> 0 | AD146: =Feuil4!AD146 -> 0 | AE146: =Feuil4!AE146 -> 0 | AF146: =Feuil4!AF146 -> 0 | AG146: =Feuil4!AG146 -> 0 | AH146: =Feuil4!AH146 -> 0 | AI146: =Feuil4!AI146 -> 0 | AJ146: =Feuil4!AJ146 -> 0 | AK146: =Feuil4!AK146 -> 0 | AL146: =Feuil4!AL146 -> 0 | AM146: =Feuil4!AM146 -> 0 | AN146: =Feuil4!AN146 -> 00:00:00 | AO146: =Feuil4!AO146 -> 0
A147: =Feuil4!A147 -> 0 | B147: =Feuil4!B147 ->  | C147: =Feuil4!C147 -> 0 | D147: =Feuil4!D147 -> 0 | E147: =Feuil4!E147 -> 0 | F147: =Feuil4!F147 -> 0 | G147: =Feuil4!G147 -> 0 | H147: =Feuil4!H147 -> 0 | I147: =Feuil4!I147 -> 0 | J147: =Feuil4!J147 -> 0 | K147: =Feuil4!K147 -> 0 | L147: =Feuil4!L147 -> 0 | M147: =Feuil4!M147 -> 0 | N147: =Feuil4!N147 -> 0 | O147: =Feuil4!O147 -> 0 | P147: =Feuil4!P147 -> 0 | Q147: =Feuil4!Q147 -> 0 | R147: =Feuil4!R147 -> 0 | S147: =Feuil4!S147 -> 0 | T147: =Feuil4!T147 -> 0 | U147: =Feuil4!U147 -> 0 | V147: =Feuil4!V147 -> 0 | W147: =Feuil4!W147 -> 0 | X147: =Feuil4!X147 -> 0 | Y147: =Feuil4!Y147 -> 0 | Z147: =Feuil4!Z147 -> 0 | AA147: =Feuil4!AA147 -> 0 | AB147: =Feuil4!AB147 -> 0 | AC147: =Feuil4!AC147 -> 0 | AD147: =Feuil4!AD147 -> 0 | AE147: =Feuil4!AE147 -> 0 | AF147: =Feuil4!AF147 -> 0 | AG147: =Feuil4!AG147 -> 0 | AH147: =Feuil4!AH147 -> 0 | AI147: =Feuil4!AI147 -> 0 | AJ147: =Feuil4!AJ147 -> 0 | AK147: =Feuil4!AK147 -> 0 | AL147: =Feuil4!AL147 -> 0 | AM147: =Feuil4!AM147 -> 0 | AN147: =Feuil4!AN147 -> 00:00:00 | AO147: =Feuil4!AO147 -> 0
